Workbook

Sheet Front page

Sheet Guide
B8: Context & Purpose
B9: What is the NHS Mental Health Dashboard? The NHS Mental Health Dashboard (formerly the Five Year Forward View Dashboard), first published in October 2016, is a response to the recommendation in the Five Year Forward View for Mental Health that NHS England create a tool “that will identify metrics for monitoring key performance and outcomes data and that will allow us to hold national and local bodies to account for implementing this strategy.” A key purpose of the Dashboard is to enable NHS England and the Five Year Forward View Programme Board to monitor progress on its commitments to transform mental health services. Additionally, by making the data publicly available, we are ensuring that commissioners can use it as a tool to inform their work and that service users and their families and carers can see how local services are performing. Understanding financial data in the NHS Mental Health Dashboard The Dashboard includes an unprecedented level of information on the amount of money being invested in mental health services across England. As well as publishing overall spend on mental health, it also includes programme level spend at CCG, STP, regional and national level. This includes spend data on: • Children and young people’s (CYP) mental health services • CYP eating disorder services • Early intervention in psychosis services • IAPT services • A&E liaison services • Crisis resolution home treatment services It is important to note that some CCGs have had difficulties extracting costs for specific services that they commission because of block contract arrangements. As a consequence, although the total mental health spend by CCG is accurate, it may be under or overstated at the individual programme levels listed above. NHS England continues to work closely with CCGs to support them to improve the quality of information they are able to provide on their expenditure. Nevertheless, it is advised that this information is used with caution. Calculating the Mental Health Investment Standard NHS England has committed to increasing the proportion of NHS spending on mental health and has developed the ‘Mental Health Investment Standard’ (MHIS) to track whether this is being delivered. In simple terms, achievement of the MHIS compares the growth of CCG spend on mental health with the growth of a CCG’s programme allocation. CCGs must continue to increase investment in mental health services, in line with the Mental Health Investment Standard (MHIS). For 2019/20 the standard requires CCGs to increase spend by at least their overall programme allocation growth plus an additional percentage increment to reflect the additional mental health funding included in CCG allocations for 2019/20. In order to deliver the service expansions planned for 2019/20, CCGs will (other than by local exception requiring prior agreement with NHS England) also need to increase the share of their total mental health expenditure that is spent with mental health providers. The MHIS is calculated at CCG level and nationally. To calculate whether the MH investment standard will be met based on the planned spend figures for 2019/20, the 2018/19 actual spend figures used (as reported in this dashboard) must be adjusted to exclude the expenditure against additional allocations made during the year as these are not included in planned spend. The MHIS calculation also does not include planned or actual spend on learning disabilities and dementia, which is included in the total mental health spend presented here. Specialised commissioning spend is not included in the mental health investment standard compliance calculation Data availability and quality Whilst every effort has been made to ensure that the data in the Dashboard has been properly quality assured, some of the data used is classed as experimental, whilst other information, particularly financial data, is necessarily revised and improved over time. Data is correct at the time of publishing, however, caution is advised when seeking to draw comparisons between data between different iterations of the Dashboard.
B24: Sheet description
B25: Metadata: | D25: This sheet contains information about the data used for each indicator. In particular, it includes a description of the indicators; information on the numerators and denominators (where applicable); any caveats around the data and the methodology; the indicator reporting period (quarter or year) as well as information and links to the data sources.
B27: Dashboard: | D27: This sheet shows the value; the change; the annual objective; the trend and performance against the national median for each indicator. A detailed description of each column is provided in the "Dashboard" section below
B29: Dashboard
B30: To begin, select one of the four geographies (England, Region, STP or CCG) from the first drop-down list at the top of the page. If you have selected "England" there is no further action required. For all other geographies, please select one of the seven regions (North East and Yorkshire, North West, London, Midlands, East of England, South West of England and South East of England) from the second drop-down list. Similar to the first drop-down, if you have selected "Region" there is no further action required. Lastly, for CCGs or STPs, select one of the 191 CCGs or 42 STPs listed by region and alphabetically in the last drop-down list.
B40: The dashboard is automatically populated with the data relevant to the selected geography or organisation.
B41: A key/description for each column is also available in the Dashboard tab by clicking on the column headings.
B42: A description of each column in the Dashboard can be found below:
B43: Code: | D43: This is a unique code for each indicator, used across this spreadsheet. You can use this code to search for the indicator you are interested in by using the filter in column B of the Metadata tab.
B45: Indicator: | D45: This column shows the short description of each indicator. For a more detailed description please see the Metadata tab. National measures only: Certain indicator data are only available at a national (England) and in some cases regional level only, hence a few indicators are marked as national measures only. When a CCG is selected from the drop-down list, the values for these measures are greyed out.
B48: Latest reporting period: | D48: This column shows for each indicator the latest reporting period that the dashboard includes data for. For indicators updated in the latest dashboard iteration this field is in bold and italics
B50: Indicator value | D50: The value of the indicator in the latest reporting period and in brackets the annual objective for each indicator (where applicable), as set out in the Five Year Forward View for Mental Health implementation plan. Where there is an annual objective, a red dot signifies that the value is below the objective; a green dot that it's meeting the objective. N/A signifies that data is either suppressed (counts of less than 5) or not available at that level
B55: Standard met/on track: | D55: This column shows the indicator value compared to the National Standard, if the indicator value meets (or exceeds) the National Standard target the icon will be green if the indicator value does not meet the National standard target the icon will be red
B59: Trend | D59: The sparklines give an indication of trend over a specified time period (usually the last 6 quarters or last 3 years depending on the indicator reporting period and the data availability). NB: Where there are only a limited number of data points in the sparkline graphs then apparent changes may appear distorted and care should be taken when interpreting.
B62: Better is..: | D62: This column indicates whether a high or a low value is considered better for the particular measure. An upward arrow p indicates that higher values are better, while a downward arrow q that lower values are better. N/A denotes Not Applicable and is shown when an indicator needs to be considered alongside other measures to interpret the figures and hence a higher or a lower value is not necessarily indication of better performance.
B65: Range | D65: The spine chart shows the relative performance of the organisation. An organisation value towards the right of the scale indicates “better” performance (which may relate to a lower or higher indicator value depending on the indicator in hand) and towards the left of the scale indicates “worse” performance. Percentiles are based on national data. The spine chart is only available at CCG level and only applicable to a set of indicators. When the organisation value is blank or suppressed (*) it is not showing on the chart. NB: Not all indicators presented with spine charts have been standardised, so interpretation needs to be undertaken with caution. Please use the sparklines to add context
B77: Printing
B78: The "Dashboard" and "Guide" tabs are designed to print on A3 paper in portrait orientation and the "Metadata" tab in landscape orientation. Go to the File Ribbon and select Print. If you are happy with the print preview then click print otherwise select page setup to adjust scaling.
B80: Updates
B81: The dashboard will be updated quarterly.
B83: Version Control
B84: 2016-10-27 | C84: October 2016 publication | D84: First version
B85: 2017-01-30 | C85: January 2017 publication | D85: Refreshed data for all indicators bolded and italicised in the "Latest reporting period" column. Added STP functionality. Added two new indicators, IAPT (i_b) and IAPT(ii_b). Revised the definition and calculation for indicators SP (ii_a) and SP(ii_b).
B86: 2017-05-02 | C86: May 2017 publication | D86: Refreshed data for all indicators bolded and italicised in the "Latest reporting period" column. Revised the definition and calculation for indicator IAPT (i_b). Replaced previously reported experimental measure CYP (ii) Number of new CYP under 18 receiving treatment in NHS funded community services with Number of CYP receiving at least two contacts in NHS funded community services. See the Metadata tab for the definition of updated indicator
B87: 2017-07-28 | C87: July 2017 publication | D87: Refreshed data for all indicators bolded and italicised in the "Latest reporting period" column. Revised finance indicators to no longer refer to plan data but to year end outturn data.
B88: 2017-11-10 | C88: November 2017 publication | D88: Refreshed data for all indicators bolded and italicised in the "Latest reporting period" column. Indicators updated, amended and removed.
B89: 2018-01-31 | C89: National Summary (Q1&Q2 2017/18) | D89: Provided a summary front sheet giving a national view of a 6 month period (Q1 and Q2 2017/18).
B90: 2018-02-07 | C90: February 2018 publication | D90: Time period of publication changed from quarterly to cover a 6 month period (Q1 and Q2 2017/18). Refreshed data for all indicators bolded and italicised in the "Latest reporting period" column. Indicators updated, amended and removed.
B91: 2018-07-06 | C91: August 2018 publications | D91: Two publications provided to cover Q3 and Q4. Refreshed data for all indicators bolded and italicised in the "Latest reporting period" column.
B92: 2018-11-20 | C92: January 2019 Publication | D92: Restructured dashboard to use the new CCG, STP and regional structures for 2018/19 (see below). Refreshed data for all indicators bolded and italicised in the "Latest reporting period" column. Indicators updated, amended and removed. New indicators EIP(i.a), CR (iii.a), CR(iii.b) and CR(iii.c) added.
B93: 2019-01-17 | C93: February 2019 publication | D93: Refreshed data for all indicators bolded and italicised in the "Latest reporting period" column.
B94: 2019-01-17 | C94: February 2019 publication | D94: National standards added to dashboard IAPT Access standard attainment adjusted to be based on trajectory from 2017/18 to 2018/19 standard – see metadata for details.
C95: May 2019 publication | D95: Refreshed data for all indicators bolded and italicised in the "Latest reporting period" column.
B96: 2019-06-25 | C96: August 2019 publication | D96: Refreshed data for all indicators bolded and italicised in the "Latest reporting period" column. Added sparklines for finance data where three data points are available. New Crisis and A&E Liaison indicators and Physical Health checks for people with Serious Mental Illness added.
B97: 2019-10-17 | C97: December 2019 publication | D97: Restructured dashboard to use the new CCG and regional structures for 2019/20 (see below). Refreshed data for all indicators bolded and italicised in the "Latest report period" column. Q3 Out of Area placement data adjusted CR(ib, ic, id) The calculation methodology for this indicator has been updated to ensure that all teams carry equal weight in national, region and STP calculations. As a result values may differ slightly to those issued in previous dashboards. AC(i) and AC(ii) STP data adjusted.
B98: 2019-12-13 | C98: February 2020 publication | D98: Added new EIP indicator - EIP (i_b). Refreshed data for all indicators bolded and italicised in the "Latest reporting period" column.
B99: 2020-06-23 | C99: May 2020 publication | D99: AC(i) standard is 13% in 2017/18 - rag rating has been updated in Dashboard and standard has been updated in Metadata (previously 7%). Reporting period has also been updated from 'TBC' to 'Annually' in Metadata.
B101: The following CCG mergers have taken place from April 2019.
B102: New CCG Name | D102: Former CCGs
B103: 15M DERBY AND DERBYSHIRE | D103: NHS EREWASH CCG (03X) NHS HARDWICK CCG (03Y) NHS NORTH DERBYSHIRE CCG (04J) NHS SOUTH DERBYSHIRE CCG (04R)
B104: 15N NHS DEVON CCG | D104: NHS NORTHERN, EASTERN AND WESTERN DEVON CCG (99P) NHS SOUTH DEVON AND TORBAY CCG (99Q)
B105: The following Regional changes have been made from April 2019
B106: New Region Name | D106: Former Region
B107: Y62 NORTH WEST | D107: NORTH OF ENGLAND (Y54)
B108: Y63 NORTH EAST AND YORKSHIRE | D108: NORTH OF ENGLAND (Y54)
B109: Y60 MIDLANDS | D109: MIDLANDS AND EAST OF ENGLAND (Y55)
B110: Y61 EAST OF ENGLAND | D110: MIDLANDS AND EAST OF ENGLAND (Y55)
B112: Previous mergers April 2018
B113: New CCG Name | D113: Former CCGs
B114: 14Y NHS Buckinghamshire CCG | D114: NHS Aylesbury Vale CCG (10Y) NHS Chiltern CCG (10H)
B115: 15A NHS Berkshire West CCG | D115: NHS Newbury & District CCG (10M) NHS North & West Reading CCG (10N) NHS South Reading CCG (10W) NHS Wokingham CCG (11D)
B116: 15C NHS Bristol, North Somerset and South Gloucestershire CCG | D116: NHS Bristol CCG (11H) NHS North Somerset CCG (11T) NHS South Gloucestershire CCG (12A)
B117: 15D NHS East Berkshire CCG | D117: NHS Bracknell & Ascot CCG (10G) NHS Slough CCG (10T) NHS Windsor, Ascot & Maidenhead CCG (11C)
B118: 15E NHS Birmingham and Solihull CCG | D118: NHS Birmingham Cross City CCG (13P) NHS Birmingham South and Central CCG (04X) NHS Solihull CCG (05P)
B119: 15F NHS Leeds CCG | D119: NHS Leeds North CCG (02V) NHS Leeds South & East CCG (03G) NHS Leeds West CCG (03C)
B120: In addition the South Region was split between South West and South East. A new STP - Cumbria and North East has been formed from the merger of Northumberland, Tyne and Wear STP, Durham, Darlington, Tees, Hambleton, Richmondshire and Whitby STP and West, North and East Cumbria STP
B122: Contacts
B123: If you have comments or issues related to this Dashboard then please contact england.mh-dashboard@nhs.net

Sheet Metadata
B8: Code | C8: Indicator name | D8: Description * | E8: Standard (if applicable) | F8: Numerator | G8: Denominator | H8: Further Information and Data Quality | I8: Reporting period | J8: Data source | K8: Link to published data source (where available)
B9: Children and Young people (CYP) Mental Health
B10: CYP(i.b) | C10: % of CYP accessing treatment by NHS funded community services (at least two contacts) | D10: The numerator for this indicator is the number of children and young people (CYP) who received at least two contacts following a referral. The first contact must be within the relevant financial year and before their 18th birthday. Those contacts could be direct or indirect activity (excluding SMS or email). The denominator is the estimated prevalence of CYP with a diagnosable mental health condition. | E10: 34% in 2019/20 | F10: Number of CYP with two or more contacts in the year (excluding SMS or email) Individuals are only counted once in each financial year, even if they have more than one referral. They can be counted again in later financial years if they have at least two relevant contacts in each year. | G10: Prevalence of CYP with a diagnosable mental health condition taken from CCG plans for 2018/19. These CCG estimates are based on 2004 prevalence from ONS, updated using local intelligence. | H10: The NHS has committed to improving access so that by 2020/21, 70,000 more children and young people are accessing treatment each year. Based on estimated prevalence available in 2016 (ONS, 2004) when that commitment was made, that equated to access for 35% of children and young people with a diagnosable mental health condition. The implementation plan for the Five Year Forward View for Mental Health set out the indicative national trajectory that builds towards this ambition. Progress is measured through the Mental Health Services Data Set (MHSDS), which collects data on the numbers of children and young people accessing services. But, for 2017/18 a one off data collection was carried out due to issues with the MHSDS data. Further reviews of MHSDS data in 2018/19 indicated that issues with the flow of accurate data continued for some providers. As a result the validation exercise was repeated for 2018/19. The accuracy of the MHSDS is dependent on all providers of NHS commissioned services ensuring they record and submit every patient contact. On-going reviews of MHSDS data indicated issues with the flow of accurate data from some providers, leading to under-reporting of their progress. A data validation exercise was jointly developed and commissioned by NHS England, NHS Improvement and NHS Digital using the Strategic Data Collection Service (SDCS). All NHS commissioned children and young people’s mental health services, including voluntary/ independent sector providers funded by Clinical Commissioning Groups (CCGs) have been required to confirm whether their annual MHSDS access figures were accurate, or submit an alternative locally held figure if the MHSDS reported position was incomplete. All SDCS submissions were sent to CCGs to be validated. | I10: Annual | J10: Numerator: Strategic Data Collection Service (2018/19) Denominator: Unpublished estimated 2018/19 prevalence of CYP with a diagnosable mental health condition, provided by CCGs (based on 2004 estimates from ONS) | K10: Numerator: SDCS Revalidation
B11: CYP(ii.a) | C11: % of CYP with eating disorders (ED) seen within 1 week (urgent) | D11: The proportion of Children and Young People (CYP) with Eating Disorders (urgent cases) that wait 1 week or less from referral to start of NICE-approved treatment. | E11: 95% by 2020/21 | F11: The number of CYP with a suspected ED (urgent cases) that started treatment within 1 week of referral in the reporting period. | G11: The number of CYP with a suspected ED (urgent cases) that started treatment in the reporting period. | H11: The standard includes all children and young people up to the age of 19 years in whatever setting (community or inpatients) the young person is receiving care. Due to small numbers of children and young people at a CCG and STP level, the percentages for these organisations are calculated using data for a rolling 12 month period | I11: Quarter (regional and national data) Rolling 12 months (CCG and STP level) | J11: SDCS | K11: NHS England: CYP Eating Disorder Waiting Times
B12: CYP(ii.b) | C12: % of CYP with eating disorders (ED) seen within 4 weeks (routine) | D12: The proportion of Children and Young People with Eating Disorders (routine cases) that wait 4 weeks or less from referral to start of NICE-approved treatment. | E12: 95% by 2020/21 | F12: The number of CYP with suspected ED (routine cases) that started treatment within 4 weeks of referral in the reporting period. | G12: The number of CYP with a suspected ED (routine cases) that started treatment in the reporting period. | H12: As for CYP (ii.a) | I12: Quarter (regional and national data) Rolling 12 months (CCG and STP level) | J12: SDCS | K12: NHS England: CYP Eating Disorder Waiting Times
B13: CYP(iii.a) | C13: Total number of bed days for CYP under 18 in CAMHS tier 4 wards | D13: The number of bed days in Children and Adolescent Mental Health Service (CAMHS) Wards for patients aged 0-17 in the reporting period | F13: N/A | G13: N/A | H13: Since the previous publication of the mental health dashboard, data quality against this indicator has been reviewed. Following this work, figures for previous quarters have been updated. Please note that this indicator now includes medium secure and deaf inpatient children (from 2017/18). All values of less than 5 have been suppressed and replaced with N/A in this output. | I13: Quarter | J13: Provider Specialised Mental Health template submissions (NHS England) | K13: N/A
B14: CYP(iii.b) | C14: Number of admissions of CYP under 18 in Child and Adolescent Mental Health Services tier 4 wards | D14: The number of admissions in Children and Adolescent Mental Health Service (CAMHS) Wards for patients aged 0-17 in the reporting period | F14: N/A | G14: N/A | H14: As for CYP (iii.a) | I14: Quarter | J14: Provider Specialised Mental Health template Provider submissions (NHS England) | K14: N/A
B15: CYP(iv.a) | C15: Bed days of CYP under 18 in adult in-patient wards | D15: A count of bed days for people aged 0-17 who were in an adult ward each month. Individuals are allocated to a CCG based on the person's CCG at the end of the month. Three months data is then aggregated to produce the quarterly figure. (MHSDS measure: MHS24a-c) | F15: N/A | G15: N/A | H15: NHS Digital are working closely with providers to encourage reporting and check data quality. As a result of data quality issues Q2 and Q3 data for 2017/18 were republished as a supplementary file in July 2018. NHS Digital investigated any provider for which there were more than 5 children on adult wards or more than 100 bed days on adult wards within a single month and requested data quality feedback. These parameters for investigation were selected to ensure any large data quality issues are examined whilst avoiding excessive burden on providers in investigation of smaller values. Further information can be found in the data quality section of the associated monthly MHSDS publications. These statistics are classified as experimental and should be used with caution. Experimental statistics are new official statistics undergoing evaluation. Except for England, all values of less than 5 have been suppressed and replaced with a N/A in this output. All unsuppressed sub-national values have been rounded to the nearest 5. | I15: Quarter | J15: MHSDS | K15: MHSDS NHS Digital Publication
B16: CYP(iv.b) | C16: Number of CYP under 18 in adult in-patient wards | D16: The number of children and young people aged 0-17 admitted in adult in-patient wards in the reporting period. This is a count of people, aged 0-17, who were on an adult ward at any point during the quarter. To avoid counting individuals more than once, the CCG is allocated based on the data submitted for the latest month in the quarter that person spent time in an adult ward. | F16: N/A | G16: N/A | H16: As for CYP (iv.a) | I16: Quarter | J16: MHSDS | K16: MHSDS NHS Digital Publication
B17: CYP(v) | C17: CYP Mental Health CCG spend - excluding learning disabilities and eating disorders | D17: 2019/20 spend by CCGs for CYP MH (excluding learning disabilities and eating disorders) | F17: N/A | G17: N/A | I17: Year | J17: NHS England Finance financial template returns | K17: N/A
B18: CYP(vi) | C18: CYP Mental Health CCG spend - eating disorders | D18: 2019/20 spend by CCGs for CYP MH eating disorders | F18: N/A | G18: N/A | H18: Some CCGs have had difficulties extracting costs for specific services that they commission because of block or integrated contract arrangements. As a result there are 14 CCGs that show zero spend for CYP Eating Disorders, which is being reported as N/A in this dashboard. | I18: Year | J18: NHS England Finance financial template returns | K18: N/A
B19: Adult mental health: common mental health problems
B20: IAPT(i.a) | C20: Improving Access to Psychological Therapies access rate: proportion of people with depression/anxiety entering treatment during reporting period | D20: The proportion of people who have depression and/or anxiety disorders that enter NHS funded treatment with IAPT Services in the reporting period | E20: 5.50% by Q4 2019/20 | F20: The number of people who enter treatment to IAPT Services in the reporting period | G20: The number of people who have depression and/or anxiety disorders (local estimate based on Adult Psychiatric Morbidity Survey 2000) | H20: ’The annual objective set out in the Five Year Forward View Implementation plan for 2019/20 is 22%, and assessment is based on a quarterly “run rate” requirement, with the expectation that each CCG will achieve a rate of at least 5.5% of local prevalence entering services by quarter 4 of 2019/20. The measurement of whether IAPT access ambitions have been met is made in the last quarter of the year giving time for expansion to take place. For quarters 1 to 3 of the year progress is measured against a straight line trajectory from the previous year’s standard. The figures for each quarter are as follows: Q1, 4.94%; Q2, 5.13%; Q3, 5.31% and Q4 5.50%. | I20: Quarter | J20: IAPT dataset | K20: NHS Digital: IAPT reports
B21: IAPT(i.b) | C21: IAPT % of all referrals that are for older people 65+ | D21: The proportion of referrals for those aged 65 and over of all referrals | F21: The number of referrals for those aged 65 and over | G21: All referrals | I21: Quarter | J21: IAPT dataset | K21: NHS Digital: IAPT reports
B22: IAPT(ii.a) | C22: IAPT recovery rate: % of people that attended at least 2 treatment contacts and are moving to recovery | D22: The proportion of people who have attended at least two treatment contacts and are moving to recovery (defined as those who at initial assessment achieved "caseness” and at final session did not) in the reporting period (Column name in the IAPT quarterly report: Recovery Rate) | E22: 0.5 | F22: The number of people moving to Recovery. 'Recovery' Column in the IAPT quarterly report | G22: The number of people who completed treatment 'FinishedCourseTreatment' Column minus those who were not at caseness prior to treatment 'NotCaseness' Column | H22: Please note: NHS Digital publishes a pre-calculated recovery rate using unrounded data that is used at England, STP and CCG level. The IAPT quarterly report does not include a regional aggregation so the regional proportions have been calculated by NHS England as follows: The sum of all the CCGs within each region for the Recovery Column in the IAPT quarterly report/ the sum of all the CCGs within each region for the FinishedCourseTreatment Column minus the NotCaseness Column | I22: Quarter | J22: IAPT dataset | K22: NHS Digital: IAPT reports
B23: IAPT(ii.b) | C23: IAPT recovery rate for black, Asian or minority ethnic (BAME) groups | D23: The proportion of people with a black, Asian or minority ethnicity (BAME) who have attended at least two treatment contacts and are moving to recovery (defined as those who at initial assessment achieved "caseness” and at final session did not) in the reporting period (Column name in the IAPT quarterly report: Recovery Rate for variable type: BME) | E23: 0.5 | F23: The number of people moving to Recovery. 'Recovery' Column in the IAPT quarterly report for BAME groups only | G23: The number of people who completed treatment 'FinishedCourseTreatment' Column minus those who were not at caseness prior to treatment 'NotCaseness' Column - for BME groups only | H23: Please note: NHS Digital publishes a pre-calculated recovery rate using unrounded data that is used at England, STP and CCG level. The IAPT quarterly report does not include a regional aggregation so the regional proportions have been calculated by NHS England as follows: The sum of all the CCGs within each region for the Recovery Column in the IAPT quarterly report/ the sum of all the CCGs within each region for the FinishedCourseTreatment Column minus the NotCaseness Column, all for BAME groups only | I23: Quarter | J23: IAPT dataset | K23: NHS Digital: IAPT reports
B24: IAPT(iii.a) | C24: IAPT % of people receiving first treatment appointment within 6 weeks of referral | D24: The proportion of people who finished treatment in the reporting period who had their first treatment appointment within 6 weeks of referral | E24: 0.75 | F24: FirstTreatment6WeeksFinishedCourse | G24: FinishedCourseTreatment | H24: Please note: NHS Digital publishes a pre-calculated proportion using unrounded data. The IAPT quarterly report does not include a regional aggregation. The regional proportions have been calculated by NHS England by using the numerator and denominator outlined here, aggregating the CCG level figures. | I24: Quarter | J24: IAPT dataset | K24: NHS Digital: IAPT reports
B25: IAPT(iii.b) | C25: IAPT % of people receiving first treatment appointment within 18 weeks of referral | D25: The proportion of people who finished treatment in the reporting period who had their first treatment appointment within 18 weeks of referral | E25: 0.95 | F25: FirstTreatment18WeeksFinishedCourse | G25: FinishedCourseTreatment | H25: Please note: NHS Digital publishes a pre-calculated proportion using unrounded data. The IAPT quarterly report does not include a regional aggregation. The regional proportions have been calculated by NHS England by using the numerator and denominator outlined here, aggregating the CCG level figures. | I25: Quarter | J25: IAPT dataset | K25: NHS Digital: IAPT reports
B26: IAPT(iv) | C26: IAPT CCG spend | D26: 2019/20 spend by CCGs for Improving Access to Psychological Therapies services | F26: N/A | G26: N/A | I26: Year | J26: NHS England Finance financial template returns | K26: N/A
B27: Early intervention in psychosis (EIP)
B28: EIP(i) | C28: % of people who started treatment within 2 weeks of referral - All ages | D28: Proportion of ended referrals who received their first treatment appointment within 2 weeks of referral in the reporting period | E28: 0.56 | F28: The number of ended referrals that start a course of treatment in the reporting period who received their first treatment appointment within 2 weeks of referral. | G28: The number of ended referrals that start a course of treatment in the reporting period. | H28: The SDCS data collection is an interim aggregate data collection which replaces the UNIFY2 collection run by NHS England until data of sufficient quality are available from the Mental Health Services dataset (MHSDS). While data quality in the MHSDS dataset has improved significantly, there remains a gap between MHSDS data and the SDCS collection for this reporting period.The standard increases from 50% in 2017/18 to 60% in 2020/21, and is 56% in 2019/20. | I28: Quarter | J28: SDCS | K28: NHS England: EIP waiting times
B29: EIP(i.a) | C29: % of services graded at level 2 | D29: Proportion of services graded at level 2 in the annual EIP self-assessment of specialist EIP provision in line with NICE recommendations | E29: 1 | F29: The number of EIP services graded at level 2 in the 2018/19 reporting period | G29: The number of EIP services in the 2018/19 reporting period | H29: In implementing the five year forward view for mental health NHS England set out a trajectory for delivery of the EIP standard. The standard is ‘two-pronged’ and both conditions must be met for the standard to be deemed to have been achieved: 1. a maximum wait of two weeks from referral to start of treatment; and 2. treatment delivered in accordance with NICE guidelines and quality standards for psychosis and schizophrenia – either in children and young people CG155 (2013) and QS102 or in adults CG178 (2014) and QS80. This indicator measures delivery of the second part of the standard. The trajectory for 2018/19 was for all services to be graded at level 2. | I29: Annual | J29: National Clinical Audit of Psychosis | K29: N/A
B30: EIP (i.b) | C30: % of services graded at level 3 | D30: Proportion of services graded at level 3 or above in the annual assessment of specialist EIP provision in line with NICE recommendations | E30: 0.25 | F30: The number of EIP services graded at level 3 or above in the 2018/19 reporting period | G30: The number of EIP services in the 2018/19 reporting period | H30: In implementing the five year forward view for mental health NHS England set out a trajectory for delivery of the EIP standard. The standard is ‘two-pronged’ and both conditions must be met for the standard to be deemed to have been achieved: 1. A maximum wait of two weeks from referral to start of treatment; and 2. Treatment delivered in accordance with NICE guidelines and quality standards for psychosis and schizophrenia – either in children and young people CG155 (2013) and QS102 or in adults CG178 (2014) and QS80. This indicator measures delivery of the second part of the standard. The trajectory for 2018/19 was for 25% of services to be graded at level 3 or above by the end of the year. | I30: Annual | J30: National Clinical Audit of Psychosis | K30: N/A
B31: EIP(ii) | C31: EIP CCG spend | D31: 2019/20 spend by CCGs for EIP teams and services | F31: N/A | G31: N/A | H31: Some CCGs have had difficulties extracting costs for specific services that they commission because of block or integrated contract arrangements. As a result there are some CCGs that show zero spend for mental health programmes, which is being reported as N/A in this dashboard. There are 9 CCGs showing zero in their spend for Early Intervention in Psychosis services. | I31: Year | J31: NHS England Finance financial template returns | K31: N/A
B32: Employment Support
B33: ES(i) | C33: Number of people accessing Individual Placement Support services | D33: The number of secondary mental health service users who accessed an IPS service during 2016/17 for the purposes of receiving employment support. IPS = Individual Placement and Support. | E33: 2016/17 is baseline figure to be doubled by 2020/21 | F33: N/A | G33: N/A | H33: This data collection established a baseline from which to measure improved access to IPS. It is intended that further collections will be undertaken in 2018/19 to provide at least an annual view of progress on this indicator. Data relates only to IPS services (not generic employment support services). Not all STPs currently have IPS provision in their area. STP allocation is from the geographical location of the service. Data was collected at aggregate service level, not individual service user record level. | I33: Year | J33: NHS England IPS Stocktake | K33: N/A
B34: Physical health checks for people with severe mental illness (SMI)
B35: PHSMI(i) | C35: % of physical health checks for people with severe mental illness delivered in a primary care setting | D35: The percentage of people on the General Practice (GP) SMI register receiving a full physical health check in a primary care setting in the preceding 12 months | E35: 60% of people on GP SMI registers should have a comprehensive physical health check in a primary care setting. | F35: The count of the number of people on the General Practice (GP) SMI register at the end of the reporting period that have had a full physical health check in the preceding 12 months. A full physical health check includes 6 components: a measurement of weight, a blood pressure and pulse check, a blood lipid including cholesterol test, a blood glucose test, an assessment of alcohol consumption, an assessment of smoking status. | G35: The number of people on the General Practice (GP) SMI register at the end of the reporting period | H35: In order to demonstrate data completeness the percentage of CCGs to have supplied data, and a comparison of the reported denominator with an expected denominator calculated from published QOF mental health register information is included. The incompleteness of the data should be considered when interpreting results. Information is also published to demonstrate performance against the individual parts of the full check: checks of alcohol consumption, smoking status, and blood pressure were most commonly performed (72.4%, 71.1% and 70.0% respectively). | I35: Quarterly | J35: NHS England | K35: https://www.england.nhs.uk/statistics/statistical-work-areas/serious-mental-illness-smi/
B36: Crisis and acute care and use of the Mental Health Act (MHA)
B37: CR(ia) | C37: Number of crisis resolution home treatment team staff | D37: This is the total WTE staffing reported via2018 national survey of crisis resolution and home treatment teams. It includes the full staffing mix e.g. medical / nursing / social workers / psychologists / admin / peer support /other. | F37: Total WTE of staff reported via national survey | H37: The national survey was a provider level self-assessment undertaken during Q2 2018. The information was validated where possible however, it may not be fully accurate in all cases. The calculation methodology for this indicator has been updated to ensure that all teams carry equal weight in national, region and STP calculations. As a result values may differ slightly to those issued in previous dashboards. | I37: Annually | J37: National survey | K37: N/A
B38: CR(ib) | C38: Average hours per week of operation of community crisis response function (out of 168) | D38: The average number of hours per week that the teams serving the CCG are able to provide a community crisis response. This includes being able to assess people at home or any other appropriate community setting. | F38: Number of hours of operation per week | H38: The national survey was a provider level self-assessment undertaken during Q2 2018. The information was validated where possible however, it may not be fully accurate in all cases. The calculation methodology for this indicator has been updated to ensure that all teams carry equal weight in national, region and STP calculations. As a result values may differ slightly to those issued in previous dashboards. | I38: Annually | J38: National survey | K38: N/A
B39: CR(ic) | C39: Average hours per week of operation of intensive home treatment function (out of 168) | D39: The average number of hours per week that the teams serving the CCG are able to provide intensive home treatment which provides a genuine alternative to inpatient care. | F39: Number of hours of operation per week | H39: The national survey was a provider level self-assessment undertaken during Q2 2018. The information was validated where possible however, it may not be fully accurate in all cases. The calculation methodology for this indicator has been updated to ensure that all teams carry equal weight in national, region and STP calculations. As a result values may differ slightly to those issued in previous dashboards. | I39: Annually | J39: National survey | K39: N/A
B40: CR(id) | C40: % of community crisis response teams which are open access | D40: % of teams serving the CCG which are open access. This means Patients can self refer (either directly to CRHTT or via an alternative single point of access) and referrals are also accepted from families & friends, members of the public and any system partner who may need to access specialist urgent & emergency mental health support including police, ambulance, NHS111, GPs, A&E, voluntary sector. | F40: Number of teams serving the CCG which are open access | G40: Number of teams serving the CCG | H40: The national survey was a provider level self-assessment undertaken during Q2 2018. The information was validated where possible however, it may not be fully accurate in all cases. The calculation methodology for this indicator has been updated to ensure that all teams carry equal weight in national, region and STP calculations. As a result values may differ slightly to those issued in previous dashboards. | I40: Annually | J40: National survey | K40: N/A
B41: CR(ii) | C41: Crisis resolution home treatment teams spend | D41: 2018/19 spend for Crisis resolution home treatment teams | F41: N/A | G41: N/A | H41: Some CCGs have had difficulties extracting costs for specific services that they commission because of block or integrated contract arrangements. As a result there are some CCGs that show zero spend for mental health programmes, which is being reported as N/A in this dashboard. 13 CCGs returned zero in their planned spend for crisis resolution home treatment teams. | I41: Year | J41: NHS England Finance financial template returns | K41: N/A
B42: CR(iii.a) | C42: Total number of inappropriate Out of Area bed days | D42: The total number of days in which patients have been placed out of area due to unavailable beds in their usual network | E42: Zero by 2020/21 | F42: N/A | G42: N/A | H42: An Out of Area Placement is when a person with assessed acute mental health needs who requires adult mental health acute inpatient care is admitted to a unit that does not form part of their usual local network of services. By this we mean an inpatient unit that does not usually admit people living in the catchment of the person’s local community mental health service, and where the person cannot be visited regularly by their care co-ordinator to ensure continuity of care and effective discharge planning. An 'Inappropriate' out of area placement is one that is solely or primarily necessitated because of the unavailability of a local acute bed will not meet the criteria for being appropriate. Data is currently being collected through the Clinical Audit Platform. This will be until the data becomes aligned and available through the MHSDS extract which is the chosen mechanism for the long term collection of this data. | I42: Quarter | J42: Out of Area Placements in Mental Health - Clinical Audit Platform (CAP) NHS Digital | K42: NHS Digital Publications: Out of Area Placements
B43: CR(iii.b) | C43: Number of inappropriate Mental Health Out of Area Placements started in the period | D43: The total number of patients who have started a placement out of area due to unavailable beds in their usual network. | E43: Zero by 2020/21 | F43: N/A | G43: N/A | I43: Quarter | J43: Out of Area Placements in Mental Health - Clinical Audit Platform (CAP) NHS Digital | K43: NHS Digital Publications: Out of Area Placements
B44: CR(iii.c) | C44: Reported spend on inappropriate Out of Area Placements | D44: The total spend on out of area beds reported by providers who have sent patients out of area to an alternative provider | E44: Zero by 2020/21 | F44: N/A | G44: N/A | H44: This is the total cost incurred by one provider when sending a patient to a different provider. Where a provider places a patient out of area but within the same trust (for example when a trust covers a large geographical area) these costs will not be reported here. | I44: Quarter | J44: Out of Area Placements in Mental Health - Clinical Audit Platform (CAP) NHS Digital | K44: NHS Digital Publications: Out of Area Placements
B45: CR(iv.a) | C45: Number of detentions under the Mental Health Act | D45: The number of detentions under the mental health act 1983 (includes all providers) | F45: N/A | G45: N/A | H45: This is the third annual MHA report by NHS Digital using Mental Health Services Data Set (MHSDS) data as the official source of MHA statistics. Because this is a relatively new data collection there were significant data quality and completeness issues especially in the first annual MHA report for 2016/17. While this data seems to indicate an increase since 2016/17, this is likely to be due to improvements in MHSDS data completeness. The count of detentions does not include uses of Sections 4, 5(2) & 5(4) or 135 & 136 | I45: Year | J45: Mental Health Act Statistics, NHS Digital | K45: NHS Digital Publications: Mental Health Act Statistics
B46: CR(iv.b) | C46: % of people detained under the MHA who are BAME | D46: The proportion of total detentions under the mental health act 1983, with a black, Asian or minority ethnic (BAME) ethnicity | F46: The number of people with a "mixed", "Asian or Asian British", "black or black British" or "other ethnic groups" ethnic group that have been detained under the mental health act | G46: The total number of detentions under the mental health act | H46: As for CR(iv.a) | I46: Year | J46: Mental Health Act Statistics, NHS Digital | K46: NHS Digital Publications: Mental Health Act Statistics
B47: CR(v.a) | C47: Number of section 136 detentions taken to police cells as a place of safety | D47: The number of section136 detentions taken to police cells as a place of safety in England | F47: N/A | G47: N/A | I47: Year | J47: Home Office | K47: Use of Section 136 of the Mental Health Act 1983 in 2018-19
B48: CR(v.b) | C48: Number of section 136 detentions taken to police cells as a place of safety that are under 18 | D48: The number of section136 detentions taken to police cells as a place of safety in England that are under 18 | F48: N/A | G48: N/A | I48: Year | J48: Home Office | K48: Use of Section 136 of the Mental Health Act 1983 in 2018-19
B49: Acute hospital mental health liaison
B50: AC(i) | C50: % of acute hospitals meeting the ‘core 24’ service standard | D50: The proportion of acute hospitals meeting all three core 24 criteria | E50: 50% by the end of 2020/21 (13% in 2017/18) | F50: The number of acute hospitals meeting all three core 24 criteria | G50: The total number of acute hospitals with complete data | H50: The baseline for this indicator was set in 2015 at 7%. It is intended that further collections will be undertaken to provide an annual view of progress on this indicator. A liaison service is considered to be operating at the Core 24 model if: 1. The team is commissioned to operate as an on-site, distinct service on a 24/7 basis; 2. The team is commissioned to deliver care in line with the recommended response times following referral (1 hour for emergency department referrals, 24 hours for urgent ward referrals); 3. The team is resourced in line with or close to the recommended liaison mental health staffing levels and skill-mix to operate effectively and sustainably on a 24/7 rota | I50: Annually | J50: Third Annual Survey of Liaison Psychiatry in England, Health Education England | K50: N/A
B51: AC(ii) | C51: Mental health liaison staffing levels | D51: This is the total WTE staffing reported via the national mental health liaison survey | I51: Annually | J51: National survey | K51: N/A
B52: AC(iii) | C52: A&E and Ward Liaison mental health spend | D52: 2018/19 spend for A&E and Ward Liaison mental health services | F52: N/A | G52: N/A | H52: Some CCGs have had difficulties extracting costs for specific services that they commission because of block or integrated contract arrangements. As a result there are some CCGs that show zero spend for mental health programmes, which is being reported as N/A in this dashboard. There are 2 CCGs returning zero in their spend for A&E liaison services. | I52: Year | J52: NHS England Finance financial template returns | K52: N/A
B53: Health & Justice
B54: HJ(i) | C54: Number of mental health secure transfers within 2 weeks of acceptance under the MHA- Age:18+ | D54: The number of mental health secure transfers for patients aged 18 and over within 2 weeks of acceptance under the MHA | F54: N/A | G54: N/A | H54: This indicator has been excluded due to an issue with the completeness of the data. That issue has been resolved but data is not reported in this dashboard prior to Q1 2018/19. | I54: Quarter | J54: Health and Justice Indicators of Performance (HJIP) | K54: N/A
B55: HJ(ii.c) | C55: Number of patient assessments, for MH issues, during the reporting period | D55: The number of initial MH assessments completed, during the reporting period | F55: The number of initial MH assessments completed, during the reporting period | I55: Quarter | J55: Health and Justice Indicators of Performance (HJIP) | K55: N/A
B56: HJ(ii.d) | C56: Number of patient treatments for MH issues, during the reporting period | D56: The number of episodes of structured treatment activity delivered (excluding initial assessments), during the reporting period | F56: The number of episodes of structured treatment activity delivered (excluding initial assessments), during the reporting period | I56: Quarter | J56: Health and Justice Indicators of Performance (HJIP) | K56: N/A
B57: HJ(iii) | C57: % of population of England with access to liaison and diversion services - All ages | D57: The proportion of population with access to Liaison and Diversion services | E57: 0.6 | F57: The number of people with access to Liaison and Diversion services | G57: Total England population based on the 2011 census | I57: Year | J57: Liaison and Diversion Programme Team | K57: N/A
B58: Suicide prevention
B59: SP(i) | C59: Suicide: age-standardised death rate per 100,000 population - Age:10+ | D59: The rolling three year aggregate age-standardised mortality rate from suicide and injury of undetermined intent per 100,000 population | F59: Number of deaths from suicide in the reporting period. In England and Wales, suicide is defined as deaths given an underlying cause of intentional self-harm or injury/poisoning of undetermined intent. International Classification of Diseases (ICD) codes used in this dataset X60-X84 Intentional self-harm Y10-Y3478 Injury/poisoning of undetermined intent Deaths were selected using the final underlying cause of death. 7 Excluding injury/poisoning of undetermined intent for persons aged 10-14. 8 Excluding Y33.9 where the coroner's verdict was pending in England and Wales for the years 2001-2006. From 2007 onwards, deaths which were previously coded to Y33.9 are coded to U50.9. | G59: The resident population divided by 100,000 | H59: Figures are for suicides of persons aged 10 years and over. This same age band was used as a lower limit for the underlying population dataset used to calculate rates. The rates are standardised 100,000 population to the 2013 European Standard Population. Age-standardised rates are used to allow comparison between populations which may contain different proportions of people of different ages. | I59: Rolling three year aggregate | J59: Office for National Statistics | K59: ONS CCG level age standardised suicide rates
K60: ONS STP level age standardised suicide rates
B61: SP(ii.a) | C61: Hospital admissions for self-harm: age standardised rate per 100,000 - Age: 10-24 | D61: Directly standardised rate of finished admission episodes for self-harm per 100,000 population aged 10-24 years | F61: Number of finished admission episodes in children aged between 10 and 24 years for intentional self-harm in the reporting period. Self-harm is defined by external cause codes (ICD10 X60-X84) which include: •Intentional self poisoning (X60 to X69 inclusive); •Intentional self harm by hanging, drowning or jumping (X70, X71 and X80); • Intentional self harm by firearm/explosive (X72 to X75 inclusive); • Intentional self harm using other implement (X78 and X79) • Intentional self harm other (X76, X77 and X81 to X84). This definition does not include events of undetermined intent | G61: Numbers of patients registered at a GP Practice aged between 10 to 24 divided by 100,000. | H61: Directly standardised rate per 100,000 population calculated using the revised European Standard Population 2013 (2013 ESP). For more information on the methodology please see ONS publication below: | I61: Quarter | J61: Numerator: Hospital Episode Statistics (HES), NHS Digital Denominator: Number of patients registered at a GP practice, NHS Digital | K61: Numerator: NHS Digital: HES
H62: Revised European Standard Population 2013 | K62: Denominator: NHS Digital: GP registered population
B63: SP(ii.b) | C63: Hospital admissions for self-harm: age standardised rate per 100,000 - Age:25+ | D63: Directly standardised rate of finished admission episodes for self-harm per 100,000 population aged 25+ | F63: Number of finished admission episodes in children aged between 10 and 24 years for intentional self-harm in the reporting period. See SP(ii.a) for self-harm definition | G63: Numbers of patients registered at a GP Practice aged 25 and over divided by 100,000. | H63: Directly standardised rate per 100,000 population calculated using the revised European Standard Population 2013 (2013 ESP). For more information on the methodology please see ONS publication below: | I63: Quarter | J63: Numerator: Hospital Episode Statistics (HES), NHS Digital Denominator: Number of patients registered at a GP practice, NHS Digital | K63: Numerator: NHS Digital: HES
H64: Revised European Standard Population 2013 | K64: Denominator: NHS Digital: GP registered population
B65: SP(iii) | C65: % of patients on CPA discharged from hospital and followed up within 7 days | D65: The proportion patients on CPA discharged from hospital and followed up within 7 days | E65: 0.95 | F65: Number of patients on CPA who were followed up within 7 days after discharge from psychiatric inpatient care (QA) | G65: Total number of patients on CPA discharged from psychiatric inpatient care (QA) | H65: The national total includes figures for services commissioned by NHS England | I65: Quarter | J65: SDCS | K65: Mental Health Community Teams Activity
B66: Meeting commitment to increase mental health funding
B67: MHF(i) | C67: CCG spend on MH as a % of CCG allocations | D67: Mental health spend (including learning disabilities and dementia) as a proportion of overall CCG allocation in the relevant year | F67: Total CCG mental health spend (including learning disabilities and dementia) | G67: Total CCG allocation (excludes primary care co-commissioning and administration specific allocations) | H67: This indicator shows for the relevant financial year, the CCG spend on mental health as a percentage of their overall allocations. For all financial years, the overall allocation excludes primary care co-commissioning and administration specific allocations. | I67: Year | J67: NHS England Finance financial template returns | K67: N/A
B68: MHF(ii.a) and MHF (ii.b) | C68: Total mental health spend by financial year | D68: Total mental health spend by financial year (including learning disabilities and dementia) | F68: N/A | G68: N/A | H68: The total national NHS spend on mental health services is made up of both CCG and specialised commissioning spend. It does not include MH spend in primary care or on central non-commissioning. Spend on specialised commissioning covers a number of specialised mental health services that are planned nationally and regionally by NHS England. The funding for these services is held separately from CCG budgets, which is why it’s shown separately and is only reported at a national level. | I68: Year | J68: CCG spend: NHS England Finance financial template returns Specialised commissioning spend: Specialised Commissioning hub templates | K68: N/A
B69: MHF(iii) | C69: Meeting the Mental Health Investment Standard? | D69: This measure shows whether the MH investment standard was achieved in the relevant financial year by CCG and nationally. | F69: Annual increase in CCG mental health spend | G69: Annual overall increase in total CCG allocation | H69: CCGs must continue to increase investment in mental health services, in line with the Mental Health Investment Standard (MHIS). For 2019/20 the standard requires CCGs to increase spend by at least their overall programme allocation growth plus an additional percentage increment to reflect the additional mental health funding included in CCG allocations for 2019/20. In order to deliver the service expansions planned for 2019/20, CCGs will (other than by local exception requiring prior agreement with NHS England) also need to increase the share of their total mental health expenditure that is spent with mental health providers. The MHIS is calculated at CCG level and nationally. To calculate whether the MH investment standard is on track to be met in 2019/20 based on the planned spend figures, the 2018/19 actual spend figures used must be adjusted to exclude the expenditure against additional allocations made during the year as those are not included in planned spend. The MHIS calculation does not include planned or actual spend on learning disabilities and dementia, which is included in the total mental health spend presented here. Specialised commissioning spend is not included in the mental health investment standard compliance calculation. | I69: Year | J69: NHS England Finance financial template returns | K69: N/A

Sheet Dashboard
M3: =TypeSelector -> 1
M5: =LEFT(Selected_Org_Name,3) -> Eng
M6: =CCGName -> England
M7: =IF(TypeSelector=3,"Select STP","Select CCG") -> Select CCG
M8: ="Overview for "&Selected_Org_Name -> Overview for England
M10: =OFFSET('LKP - Organisation codes'!$A$2,MATCH(Selected_Org_Name,'LKP - Organisation codes'!Org_list,0),) -> EN
D12: Click on the column headings below for a brief description of each column
B13: Code | C13: Indicator* - Please see the Metadata tab for further details on the indicators | D13: Reporting period | E13: Indicator value | F13: Standard met | G13: Trend ** | H13: Better is… | I13: Range ***
B14: Children and Young people (CYP) Mental Health | D14: ='Calc - Sparklines'!D11 -> 0 | E14: =IFERROR(IF('Calc - Sparklines'!T11="","",'Calc - Sparklines'!T11),"N/A") -> N/A | G14: ='Calc - Sparklines'!X11 -> N/A
B15: CYP(i.b) | C15: % of CYP accessing treatment by NHS funded community services (at least two contacts) ⱡ | D15: ='Calc - Sparklines'!D12 -> 2018/19 | E15: =IFERROR(IF('Calc - Sparklines'!T12="","",'Calc - Sparklines'!T12),"N/A") -> 0.361 | F15: =E15 -> 0.361 | H15: ▲ | I15: =IF($M$3=1,"N/A", IF($M$3=2,"National measure only", IF($M$3=3,"National measure only", IF($M$3=4,"National measure only","")))) -> N/A
B16: CYP(ii.a) | C16: % of CYP with eating disorders seen within 1 week (urgent) + | D16: ='Calc - Sparklines'!D13 -> Q2 2019/20 | E16: =IFERROR(IF('Calc - Sparklines'!T13="","",'Calc - Sparklines'!T13),"N/A") -> 0.7507692308 | F16: N/A | G16: ='Calc - Sparklines'!X13 ->  | H16: ▲ | I16: N/A
B17: CYP(ii.b) | C17: % of CYP with eating disorders seen within 4 weeks (routine) + | D17: ='Calc - Sparklines'!D14 -> Q2 2019/20 | E17: =IFERROR(IF('Calc - Sparklines'!T14="","",'Calc - Sparklines'!T14),"N/A") -> 0.8598066298 | F17: N/A | G17: ='Calc - Sparklines'!X14 ->  | H17: ▲ | I17: N/A
B18: CYP(iii.a) | C18: Number of bed days for CYP under 18 in Child and Adolescent Mental Health Services tier 4 wards | D18: ='Calc - Sparklines'!D15 -> Q2 2019/20 | E18: =IFERROR(IF('Calc - Sparklines'!T15="","",'Calc - Sparklines'!T15),"N/A") -> 98049 | F18: N/A | G18: ='Calc - Sparklines'!X15 ->  | H18: N/A | I18: N/A
B19: CYP(iii.b) | C19: Number of admissions of CYP under 18 in Child and Adolescent Mental Health Services tier 4 wards | D19: ='Calc - Sparklines'!D16 -> Q2 2019/20 | E19: =IFERROR(IF('Calc - Sparklines'!T16="","",'Calc - Sparklines'!T16),"N/A") -> 987 | F19: N/A | G19: ='Calc - Sparklines'!X16 ->  | H19: N/A | I19: N/A
B20: CYP(iv.a) | C20: Bed days of CYP under 18 in adult in-patient wards <> | D20: ='Calc - Sparklines'!D17 -> Q2 2019/20 | E20: =IFERROR(IF('Calc - Sparklines'!T17="","",'Calc - Sparklines'!T17),"N/A") -> 1122 | F20: N/A | G20: ='Calc - Sparklines'!X17 ->  | H20: ▼ | I20: N/A
B21: CYP(iv.b) | C21: Number of CYP under 18 in adult in-patient wards | D21: ='Calc - Sparklines'!D18 -> Q2 2019/20 | E21: =IFERROR(IF('Calc - Sparklines'!T18="","",'Calc - Sparklines'!T18),"N/A") -> 133 | F21: N/A | G21: ='Calc - Sparklines'!X18 ->  | H21: ▼ | I21: N/A
B22: CYP(v) | C22: CYP Mental Health CCG spend - excluding learning disabilities and eating disorders | D22: ='Calc - Sparklines'!D19 -> 2019/20 planned | E22: =IFERROR(IF('Calc - Sparklines'!T19="","",'Calc - Sparklines'!T19),"N/A") -> 773647172.9 | F22: N/A | G22: ='Calc - Sparklines'!X19 -> N/A | H22: N/A | I22: N/A
B23: CYP(vi) | C23: CYP Mental Health CCG spend - eating disorders | D23: ='Calc - Sparklines'!D20 -> 2019/20 planned | E23: =IFERROR(IF('Calc - Sparklines'!T20="","",'Calc - Sparklines'!T20),"N/A") -> 52087100.46 | F23: N/A | G23: ='Calc - Sparklines'!X20 -> N/A | H23: N/A | I23: N/A
B24: Adult mental health: common mental health problems (Improving Access to Psychological Therapies services)
B25: IAPT(i.a) | C25: IAPT access rate: proportion of people with depression/anxiety entering NHS funded treatment during reporting period ++ | D25: ='Calc - Sparklines'!D22 -> Q2 2019/20 | E25: =IFERROR(IF('Calc - Sparklines'!T22="","",'Calc - Sparklines'!T22),"N/A") -> 0.04691333274 | F25: =E25 -> 0.04691333274 | G25: ='Calc - Sparklines'!X22 ->  | H25: ▲ | I25: =IF($M$3=1,"Chart available at STP and CCG level", IF($M$3=2,"Chart available at STP and CCG level", IF($M$3=3,"", IF($M$3=4,"","")))) -> Chart available at STP and CCG level
B26: IAPT(i.b) | C26: IAPT % of all referrals that are for older people 65+ | D26: ='Calc - Sparklines'!D23 -> Q2 2019/20 | E26: =IFERROR(IF('Calc - Sparklines'!T23="","",'Calc - Sparklines'!T23),"N/A") -> 0.06498323159 | F26: N/A | G26: ='Calc - Sparklines'!X23 ->  | H26: ▲ | I26: Chart available at STP and CCG level
B27: IAPT(ii.a) | C27: IAPT recovery rate: % of people that attended at least 2 treatment contacts and are moving to recovery | D27: ='Calc - Sparklines'!D24 -> Q2 2019/20 | E27: =IFERROR(IF('Calc - Sparklines'!T24="","",'Calc - Sparklines'!T24),"N/A") -> 0.518 | F27: =E27 -> 0.518 | G27: ='Calc - Sparklines'!X24 ->  | H27: ▲ | I27: Chart available at STP and CCG level
B28: IAPT(ii.b) | C28: IAPT recovery rate for black, Asian or minority ethnic (BAME) groups | D28: ='Calc - Sparklines'!D25 -> Q2 2019/20 | E28: =IFERROR(IF('Calc - Sparklines'!T25="","",'Calc - Sparklines'!T25),"N/A") -> 0.494 | F28: =E28 -> 0.494 | G28: ='Calc - Sparklines'!X25 ->  | H28: ▲ | I28: Chart available at STP and CCG level
B29: IAPT(iii.a) | C29: IAPT % of people receiving first treatment appointment within 6 weeks of referral | D29: ='Calc - Sparklines'!D26 -> Q2 2019/20 | E29: =IFERROR(IF('Calc - Sparklines'!T26="","",'Calc - Sparklines'!T26),"N/A") -> 0.867 | F29: =E29 -> 0.867 | G29: ='Calc - Sparklines'!X26 ->  | H29: ▲ | I29: Chart available at STP and CCG level
B30: IAPT(iii.b) | C30: IAPT % of people receiving first treatment appointment within 18 weeks of referral | D30: ='Calc - Sparklines'!D27 -> Q2 2019/20 | E30: =IFERROR(IF('Calc - Sparklines'!T27="","",'Calc - Sparklines'!T27),"N/A") -> 0.987 | F30: =E30 -> 0.987 | G30: ='Calc - Sparklines'!X27 ->  | H30: ▲ | I30: Chart available at STP and CCG level
B31: IAPT(iv) | C31: IAPT CCG spend | D31: ='Calc - Sparklines'!D28 -> 2019/20 planned | E31: =IFERROR(IF('Calc - Sparklines'!T28="","",'Calc - Sparklines'!T28),"N/A") -> 578601188.7 | F31: N/A | G31: ='Calc - Sparklines'!X28 -> N/A | H31: N/A | I31: N/A
B32: Early intervention in psychosis (EIP)
B33: EIP(i) | C33: % of people who started treatment within 2 weeks of referral - All ages | D33: ='Calc - Sparklines'!D30 -> Q2 2019/20 | E33: =IFERROR(IF('Calc - Sparklines'!T30="","",'Calc - Sparklines'!T30),"N/A") -> 0.7837188345 | F33: =E33 -> 0.7837188345 | G33: ='Calc - Sparklines'!X30 ->  | H33: ▲ | I33: =IF($M$3=1,"Chart available at STP and CCG level", IF($M$3=2,"Chart available at STP and CCG level", IF($M$3=3,"", IF($M$3=4,"","")))) -> Chart available at STP and CCG level
B34: EIP(i.a) | C34: % of CCG commissioned EIP services meeting NICE level 2 | D34: ='Calc - Sparklines'!D31 -> 2018/19 | E34: =IFERROR(IF('Calc - Sparklines'!T31="","",'Calc - Sparklines'!T31),"N/A") -> 0.8312 | F34: =E34 -> 0.8312 | G34: ='Calc - Sparklines'!X31 -> N/A | H34: ▲ | I34: =IF($M$3=1,"N/A", IF($M$3=2,"N/A", IF($M$3=3,"Data not available at STP level", IF($M$3=4,"Data not available at CCG level","")))) -> N/A
B35: EIP(i.b) | C35: % of CCG commissioned EIP services meeting NICE level 3 | D35: ='Calc - Sparklines'!D32 -> 2018/19 | E35: =IFERROR(IF('Calc - Sparklines'!T32="","",'Calc - Sparklines'!T32),"N/A") -> 0.1818 | F35: =E35 -> 0.1818 | G35: ='Calc - Sparklines'!X32 -> N/A | H35: ▲ | I35: =IF($M$3=1,"N/A", IF($M$3=2,"N/A", IF($M$3=3,"Data not available at STP level", IF($M$3=4,"Data not available at CCG level","")))) -> N/A
B36: EIP(ii) | C36: EIP CCG spend | D36: ='Calc - Sparklines'!D33 -> 2019/20 planned | E36: =IFERROR(IF('Calc - Sparklines'!T33="","",'Calc - Sparklines'!T33),"N/A") -> 181724516.9 | F36: N/A | G36: ='Calc - Sparklines'!X33 -> N/A | H36: N/A | I36: N/A
B37: Employment support
B38: ES(i) | C38: Number of people accessing Individual Placement Support services | D38: ='Calc - Sparklines'!D35 -> 2016/17 | E38: =IFERROR(IF('Calc - Sparklines'!T35="","",'Calc - Sparklines'!T35),"N/A") -> 9775 | F38: N/A | G38: ='Calc - Sparklines'!X35 -> Baseline figure | H38: ▲ | I38: =IF($M$3=1,"N/A", IF($M$3=2,"National measure only", IF($M$3=3,"National measure only", IF($M$3=4,"National measure only","")))) -> N/A
B39: Physical Health Checks (SMI)
B40: PHSMI(i) | C40: % of people on GP SMI register receiving full physical health check in primary care setting | D40: ='Calc - Sparklines'!D37 -> Q2 2019/20 | E40: =IFERROR(IF('Calc - Sparklines'!T37="","",'Calc - Sparklines'!T37),"N/A") -> 0.3004748212 | F40: =E40 -> 0.3004748212 | G40: ='Calc - Sparklines'!X40 -> N/A | H40: ▲ | I40: =IF($M$3=1,"Chart available at STP and CCG level", IF($M$3=2,"Chart available at STP and CCG level", IF($M$3=3,"", IF($M$3=4,"","")))) -> Chart available at STP and CCG level
B41: Crisis and acute care and use of the Mental Health Act (MHA)
B42: CR(i.a) | C42: Number of crisis resolution home treatment team staff | D42: ='Calc - Sparklines'!D39 -> 2017/18 | E42: =IFERROR(IF('Calc - Sparklines'!T39="","",'Calc - Sparklines'!T39),"N/A") -> 6582.23 | F42: N/A | H42: ▲ | I42: =IF($M$3=1,"N/A", IF($M$3=2,"National measure only", IF($M$3=3,"National measure only", IF($M$3=4,"National measure only","")))) -> N/A
B43: CR(i.b) | C43: Average hours per week of operation of community crisis response function (out of 168) | D43: ='Calc - Sparklines'!D40 -> 2017/18 | E43: =IFERROR(IF('Calc - Sparklines'!T40="","",'Calc - Sparklines'!T40),"N/A") -> 133.9986111 | F43: N/A | G43: ='Calc - Sparklines'!X40 -> N/A | H43: ▲ | I43: =IF($M$3=1,"Chart available at STP and CCG level", IF($M$3=2,"Chart available at STP and CCG level", IF($M$3=3,"", IF($M$3=4,"","")))) -> Chart available at STP and CCG level
B44: CR(i.c) | C44: Average hours per week of operation of intensive home treatment function (out of 168) | D44: ='Calc - Sparklines'!D41 -> 2017/18 | E44: =IFERROR(IF('Calc - Sparklines'!T41="","",'Calc - Sparklines'!T41),"N/A") -> 130.6458333 | F44: N/A | G44: ='Calc - Sparklines'!X41 -> N/A | H44: ▲ | I44: =IF($M$3=1,"Chart available at STP and CCG level", IF($M$3=2,"Chart available at STP and CCG level", IF($M$3=3,"", IF($M$3=4,"","")))) -> Chart available at STP and CCG level
B45: CR(i.d) | C45: % of community crisis response teams which are open access | D45: ='Calc - Sparklines'!D42 -> 2017/18 | E45: =IFERROR(IF('Calc - Sparklines'!T42="","",'Calc - Sparklines'!T42),"N/A") -> 0.4272727273 | F45: N/A | G45: ='Calc - Sparklines'!X42 -> N/A | H45: ▲ | I45: N/A
B46: CR(ii) | C46: Crisis resolution home treatment teams spend | D46: ='Calc - Sparklines'!D43 -> 2019/20 planned | E46: =IFERROR(IF('Calc - Sparklines'!T43="","",'Calc - Sparklines'!T43),"N/A") -> 373416024.7 | F46: N/A | G46: ='Calc - Sparklines'!X43 -> N/A | H46: N/A | I46: N/A
B47: CR(iii.a) | C47: Total number of inappropriate Out of Area bed days | D47: ='Calc - Sparklines'!D44 -> Q2 2019/20 | E47: =IFERROR(IF('Calc - Sparklines'!T44="","",'Calc - Sparklines'!T44),"N/A") -> 70490 | F47: N/A | G47: ='Calc - Sparklines'!X44 ->  | H47: ▼ | I47: N/A
B48: CR(iii.b) | C48: Number of inappropriate Mental Health Out of Area Placements started in the period | D48: ='Calc - Sparklines'!D45 -> Q2 2019/20 | E48: =IFERROR(IF('Calc - Sparklines'!T45="","",'Calc - Sparklines'!T45),"N/A") -> 2170 | F48: N/A | G48: ='Calc - Sparklines'!X45 ->  | H48: ▼ | I48: N/A
B49: CR(iii.c) | C49: Reported spend on inappropriate Out of Area Placements | D49: ='Calc - Sparklines'!D46 -> Q2 2019/20 | E49: =IFERROR(IF('Calc - Sparklines'!T46="","",'Calc - Sparklines'!T46),"N/A") -> 34729184 | F49: N/A | G49: ='Calc - Sparklines'!X46 ->  | H49: ▼ | I49: N/A
B50: CR(iv.a) | C50: Number of detentions under the Mental Health Act | D50: ='Calc - Sparklines'!D47 -> 2018/19 | E50: =IFERROR(IF('Calc - Sparklines'!T47="","",'Calc - Sparklines'!T47),"N/A") -> 49988 | F50: N/A | G50: ='Calc - Sparklines'!X47 ->  | H50: ▼ | I50: =IF($M$3=1,"N/A", IF($M$3=2,"National measure only", IF($M$3=3,"National measure only", IF($M$3=4,"National measure only","")))) -> N/A
B51: CR(iv.b) | C51: % of people detained under the MHA who are BAME | D51: ='Calc - Sparklines'!D48 -> 2018/19 | E51: =IFERROR(IF('Calc - Sparklines'!T48="","",'Calc - Sparklines'!T48),"N/A") -> 0.31 | F51: N/A | G51: ='Calc - Sparklines'!X48 ->  | H51: ▼ | I51: =IF($M$3=1,"N/A", IF($M$3=2,"National measure only", IF($M$3=3,"National measure only", IF($M$3=4,"National measure only","")))) -> N/A
B52: CR(v.a) | C52: Number of section 136 detentions taken to police cells as a place of safety # | D52: ='Calc - Sparklines'!D49 -> 2018/19 | E52: =IFERROR(IF('Calc - Sparklines'!T49="","",'Calc - Sparklines'!T49),"N/A") -> 110 | F52: N/A | G52: ='Calc - Sparklines'!X49 ->  | H52: ▼ | I52: =IF($M$3=1,"N/A", IF($M$3=2,"National measure only", IF($M$3=3,"National measure only", IF($M$3=4,"National measure only","")))) -> N/A
B53: CR(v.b) | C53: Number of section 136 detentions taken to police cells as a place of safety that are under 18 # | D53: ='Calc - Sparklines'!D50 -> 2018/19 | E53: =IFERROR(IF('Calc - Sparklines'!T50="","",'Calc - Sparklines'!T50),"N/A") -> 4 | F53: N/A | G53: ='Calc - Sparklines'!X50 ->  | H53: ▼ | I53: =IF($M$3=1,"N/A", IF($M$3=2,"National measure only", IF($M$3=3,"National measure only", IF($M$3=4,"National measure only","")))) -> N/A
B54: Acute hospital mental health liaison
B55: AC(i) | C55: % of acute hospitals meeting the ‘core 24’ service standard | D55: ='Calc - Sparklines'!D52 -> 2017/18 | E55: =IFERROR(IF('Calc - Sparklines'!T52="","",'Calc - Sparklines'!T52),"N/A") -> 0.3314285714 | F55: =E55 -> 0.3314285714 | G55: ='Calc - Sparklines'!X52 ->  | H55: ▲ | I55: =IF($M$3=1,"National, Regional and STP Measure only", IF($M$3=2,"National, Regional and STP Measure only", IF($M$3=3,"", IF($M$3=4,"National, Regional and STP Measure only","")))) -> National, Regional and STP Measure only
B56: AC(ii) | C56: Mental health liaison staffing levels | D56: ='Calc - Sparklines'!D53 -> 2017/18 | E56: =IFERROR(IF('Calc - Sparklines'!T53="","",'Calc - Sparklines'!T53),"N/A") -> 2316.63 | F56: N/A | G56: ='Calc - Sparklines'!X53 ->  | H56: ▲ | I56: N/A
B57: AC(iii) | C57: A&E and Ward Liaison mental health spend | D57: ='Calc - Sparklines'!D54 -> 2019/20 planned | E57: =IFERROR(IF('Calc - Sparklines'!T54="","",'Calc - Sparklines'!T54),"N/A") -> 177421754.6 | F57: N/A | G57: ='Calc - Sparklines'!X54 -> N/A | H57: N/A | I57: N/A
B58: Health & Justice
B59: HJ(i) | C59: Number of mental health secure transfers within 2 weeks of acceptance under the MHA- Age:18+ | D59: ='Calc - Sparklines'!D56 -> Q2 2019/20 | E59: =IFERROR(IF('Calc - Sparklines'!T56="","",'Calc - Sparklines'!T56),"N/A") -> 64 | F59: N/A | G59: ='Calc - Sparklines'!X56 ->  | H59: N/A | I59: =IF($M$3=1,"N/A", IF($M$3=2,"National measure only", IF($M$3=3,"National measure only", IF($M$3=4,"National measure only","")))) -> N/A
B60: HJ(ii.c) | C60: Number of patient assessments in the adult prison estate, for MH issues, during the reporting period ## | D60: ='Calc - Sparklines'!D57 -> Q2 2019/20 | E60: =IFERROR(IF('Calc - Sparklines'!T57="","",'Calc - Sparklines'!T57),"N/A") -> 19369 | F60: N/A | G60: ='Calc - Sparklines'!X57 ->  | H60: ▲ | I60: =IF($M$3=1,"N/A", IF($M$3=2,"National measure only", IF($M$3=3,"National measure only", IF($M$3=4,"National measure only","")))) -> N/A
B61: HJ(ii.d) | C61: Number of patient treatments in the adult prison estate, for MH issues, during the reporting period ## | D61: ='Calc - Sparklines'!D58 -> Q2 2019/20 | E61: =IFERROR(IF('Calc - Sparklines'!T58="","",'Calc - Sparklines'!T58),"N/A") -> 64906 | F61: N/A | G61: ='Calc - Sparklines'!X58 ->  | H61: ▲ | I61: =IF($M$3=1,"N/A", IF($M$3=2,"National measure only", IF($M$3=3,"National measure only", IF($M$3=4,"National measure only","")))) -> N/A
B62: HJ(iii) | C62: % of population of England with access to liaison and diversion services - All ages | D62: ='Calc - Sparklines'!D59 -> 2018/19 | E62: =IFERROR(IF('Calc - Sparklines'!T59="","",'Calc - Sparklines'!T59),"N/A") -> 0.92 | F62: =E62 -> 0.92 | G62: ='Calc - Sparklines'!X59 ->  | H62: ▲ | I62: =IF($M$3=1,"N/A", IF($M$3=2,"National measure only", IF($M$3=3,"National measure only", IF($M$3=4,"National measure only","")))) -> N/A
B63: Suicide prevention
B64: SP(i) | C64: Suicide: age-standardised death rate per 100,000 population - Age:10+ | D64: ='Calc - Sparklines'!D61 -> 2016-2018 | E64: =IFERROR(IF('Calc - Sparklines'!T61="","",'Calc - Sparklines'!T61),"N/A") -> 9.6 | F64: N/A | G64: ='Calc - Sparklines'!X61 ->  | H64: ▼ | I64: =IF($M$3=1,"Chart available at STP and CCG level", IF($M$3=2,"Chart available at STP and CCG level", IF($M$3=3,"", IF($M$3=4,"","")))) -> Chart available at STP and CCG level
B65: SP(ii.a) | C65: Hospital admissions for self-harm: age standardised rate per 100,000 - Age: 10-24 ### | D65: ='Calc - Sparklines'!D62 -> Q1 2019/20 | E65: =IFERROR(IF('Calc - Sparklines'!T62="","",'Calc - Sparklines'!T62),"N/A") -> 109.7017932 | F65: N/A | G65: ='Calc - Sparklines'!X62 ->  | H65: ▼ | I65: =IF($M$3=1,"Chart available at STP and CCG level", IF($M$3=2,"Chart available at STP and CCG level", IF($M$3=3,"", IF($M$3=4,"","")))) -> Chart available at STP and CCG level
B66: SP(ii.b) | C66: Hospital admissions for self-harm: age standardised rate per 100,000 - Age:25+ ### | D66: ='Calc - Sparklines'!D63 -> Q1 2019/20 | E66: =IFERROR(IF('Calc - Sparklines'!T63="","",'Calc - Sparklines'!T63),"N/A") -> 39.77258864 | F66: N/A | G66: ='Calc - Sparklines'!X63 ->  | H66: ▼ | I66: =IF($M$3=1,"Chart available at STP and CCG level", IF($M$3=2,"Chart available at STP and CCG level", IF($M$3=3,"", IF($M$3=4,"","")))) -> Chart available at STP and CCG level
B67: SP(iii) | C67: % of patients on Care Programme Approach discharged from hospital and followed up within 7 days | D67: ='Calc - Sparklines'!D64 -> Q2 2019/20 | E67: =IFERROR(IF('Calc - Sparklines'!T64="","",'Calc - Sparklines'!T64),"N/A") -> 0.9453589392 | F67: =E67 -> 0.9453589392 | G67: ='Calc - Sparklines'!X64 ->  | H67: ▲ | I67: =IF($M$3=1,"Chart available at STP and CCG level", IF($M$3=2,"Chart available at STP and CCG level", IF($M$3=3,"", IF($M$3=4,"","")))) -> Chart available at STP and CCG level
B68: Meeting commitment to increase mental health funding | D68: ='Calc - Sparklines'!D65 -> 0
B69: MHF(i) | C69: CCG spend on MH as a % of CCG base allocations | D69: ='Calc - Sparklines'!D66 -> 2019/20 planned | E69: =IFERROR(IF('Calc - Sparklines'!T66="","",'Calc - Sparklines'!T66),"N/A") -> 0.1407545152 | F69: N/A | G69: ='Calc - Sparklines'!X66 -> N/A | H69: ▲
B70: MHF(ii.a) | C70: Mental health actual spend in 2018/19 ^ | D70: ='Calc - Sparklines'!D67 -> 2018/19 | E70: =IFERROR(IF('Calc - Sparklines'!T67="","",'Calc - Sparklines'!T67),"N/A") -> 1.055899845e+10 | F70: N/A | G70: N/A | H70: ▲
B71: MHF(ii.b) | C71: Mental health planned spend in 2019/20 ^ | D71: ='Calc - Sparklines'!D68 -> 2019/20 planned | E71: =IFERROR(IF('Calc - Sparklines'!T68="","",'Calc - Sparklines'!T68),"N/A") -> 1.107955244e+10 | F71: N/A | G71: ='Calc - Sparklines'!X68 -> N/A | H71: ▲
B72: MHF(iii) | C72: MH investment standard achieved? ^^ | D72: ='Calc - Sparklines'!D69 -> 2019/20 planned | E72: =IFERROR(IF('Calc - Sparklines'!T69="","",'Calc - Sparklines'!T69),"N/A") -> Y | F72: N/A | G72: ='Calc - Sparklines'!X69 -> N/A
C75: Meeting commitment to increase mental health funding | D75: Local CCG spend on mental health (£m) | E75: NHSE Specialised Commissioning spend on mental health (£m) | F75: Total NHS spend on mental health (£m) | G75: CCG spend on MH as a % of CCG base allocations | H75: MH Investment Standard met?^^ | I75: No. CCGs meeting MHIS ^^ | J75: % CCGs meeting MHIS ^^
C76: Total actual spend - 2015/16 | D76: 9148.3 | E76: 1830.6 | F76: 10978.9 | G76: 0.131 | H76: Y | I76: 170 out of 209 | J76: 0.81
C77: Total actual spend - 2016/17 | D77: 9722.8 | E77: 1879.1 | F77: 11601.9 | G77: 0.136 | H77: Y | I77: 177 out of 209 | J77: 0.85
C78: Total actual spend - 2017/18 | D78: 10079.6 | E78: =F78-D78 -> 1896.4 | F78: 11976 | G78: 0.137 | H78: Y | I78: 186 out of 207 | J78: 0.9
C79: Total actual spend - 2018/19 ^ | D79: 10558.99845 | E79: 1954.2 | F79: =D79+E79 -> 12513.19845 | G79: 0.138 | H79: Y | I79: 195 out of 195 | J79: 1
C80: Total planned spend - 2019/20 ^ | D80: =11079552436.9623/1000000 -> 11079.55244 | E80: 1975.8 | F80: =D80+E80 -> 13055.35244 | G80: 0.141 | H80: Y | I80: 186 out of 191 | J80: =186/191 -> 0.9738219895
B82: ^ | C82: Over the course of 2019/20 there will be additional expenditure on projects that will be funded from additional resources that will be allocated throughout the year. This additional expenditure is not included in planned spend for 2019/20 because the additional allocations were not known to CCGs at this point. The total CCG spend nationally for 2018/19 was £10,390.3m excluding expenditure against the additional allocations made during the year. Nationally the planned increase in CCG spend on mental health between 2018/19 and 2019/20 on a like-for-like basis is 6.63% compared to a 6.35% increase in the national CCG allocation. Total mental health spend reported here includes spending on learning disabilities and dementia, which is not included in the MHIS or the baseline spend for the commitment in the NHS Long Term Plan to increase mental health spending by at least £2.3bn a year by 2023/24. In 2019/20 planned spend on learning disabilities and dementia was £2,171.2m.
B83: ^^ | C83: To calculate whether the MH investment standard will be met based on the planned spend figures for 2019/20, the 2018/19 actual spend figures used must be adjusted to exclude the expenditure against additional allocations made during the year. The MHIS calculation also does not include planned or actual spend on learning disabilities and dementia, which is included in the total mental health spend presented here. Specialised commissioning spend is not included in the mental health investment standard compliance calculation.97% of CCGs have achieved the MHIS; focused work has taken place with the five CCGs that previously did not plan to meet the MHIS, to identify additional investment that has now been planned.
B84: * | C84: The indicators within this dashboard should be interpreted with caution, some data are experimental and improvements or decreases could be due to data quality fluctuations. Please see Metadata tab for further details.
B85: ** | C85: Where fewer than three time periods are available trendlines are not shown. This may apply to data that has only been collected for a short period, or where an individual organisation has data in some periods that are suppressed due to small numbers. If the most recent period is suppressed no trendline will be shown.
B86: *** | C86: Not all indicators presented with spine charts have been standardised, so interpretation needs to be undertaken with caution. Please use the trend lines to add context.
B87: ⱡ | C87: Scrutiny of data on the number of CYP aged 0-18 receiving treatment by NHS commissioned services has highlighted anomalies (most notably significant under-reporting of CYP by non-NHS providers). A validation exercise where CCGs were asked to agree the MHSDS data or provide an alternative local value was carried out by NHS Digital and published in July 2018 (17/18 data) and July 2019 (18/19 data). The national access rate derived from this data is published here. Whilst the trajectory is still based on a 2004 prevalence survey that was the best available at the time of publishing the Five Year Forward View, we exceed the target for 2018/19 (32%) even when measured against more recent prevalence rates from a 2017 survey. Against those more recent prevalence rates, services achieved an access rate of 33.1% nationally. See meta-data for more information.
B88: + | C88: Data at national and regional level is presented for the most recent quarter. Due to low numbers CCG and STP percentages are calculated using data from the last 12 months
B89: ++ | C89: Standard based on trajectory from Q1 2019/20 to Q4 2020/21 – see metadata for details
B90: # | C90: In addition the British Transport Police used a police station as a place of safety 6 times. It is not possible to determine from the data if these people were in England or Wales.
B91: ## | C91: These indicators are new and replace previous indicators on individual and group therapies in order to better reflect current priorities in this area.
B92: ### | C92: Publication of these indicators for Q2 is not currently possible due to data access issues. These will be updated in Q3.
B93: <> | C93: The number of children and young people on adult wards for Q2 is inflated due to data quality issues, with a children’s ward being coded as an adult ward in data for September 2019.

Sheet Briefing tables (hidden)
B8: Code | C8: Indicator - Please see the Metadata tab for further details on the indicators | D8: Q1 2016/17 | E8: Q2 2016/17 | F8: Q3 2016/17 | G8: Q4 2016/17 | H8: Q1 2017/18 | I8: Change * | K8: Min | L8: Max | M8: Better is…
B9: Children and Young people (CYP) Mental Health
B10: CYP(i.c) | C10: Number of new CYP aged 0-18 receiving treatment from NHS funded community services ⱡ | D10: - | E10: 17902 | F10: 21921 | G10: 24825 | H10: 23924 | I10: =IF(H10>G10,"▲", IF(H10<G10,"▼","◄►")) -> ▼ | K10: =MIN(Data_Latest_CYP_i_b) -> 0 | L10: =MAX(Data_Latest_CYP_i_b) -> 0 | M10: ▲
B11: CYP(ii.a) | C11: % of CYP with eating disorders seen within 1 week (urgent) | D11: 0.6485355649 | E11: 0.5796460177 | F11: 0.6721854305 | G11: 0.686746988 | H11: 0.7330960854 | I11: ▲ | K11: =MIN(Data_Latest_CYP_ii_a) -> 0 | L11: =MAX(Data_Latest_CYP_ii_a) -> 1 | M11: ▲
B12: CYP(ii.b) | C12: % of CYP with eating disorders seen within 4 weeks (routine) | D12: 0.6513661202 | E12: 0.6748140276 | F12: 0.7896081772 | G12: 0.7886382623 | H12: 0.7874538745 | I12: ▼ | K12: =MIN(Data_Latest_CYP_ii_b) -> 0.4390243902 | L12: =MAX(Data_Latest_CYP_ii_b) -> 1 | M12: ▲
B13: CYP(iii.a) | C13: Number of bed days for CYP under 18 in CAMHS tier 4 wards | D13: 92380 | E13: 95378 | F13: 102567 | G13: 103421 | H13: 91791 | I13: ▼ | K13: =MIN(Data_Latest_CYP_iii_a) -> 13 | L13: =MAX(Data_Latest_CYP_iii_a) -> 2971 | M13: ▼
B14: CYP(iii.b) | C14: Number of admissions of CYP under 18 in CAMHS tier 4 wards | D14: 4117 | E14: 2967 | F14: 2434 | G14: 1348 | H14: 2612 | I14: ▲ | K14: =MIN(Data_Latest_CYP_iii_b) -> 5 | L14: =MAX(Data_Latest_CYP_iii_b) -> 25 | M14: ▼
B15: CYP(iv.a) | C15: Bed days of CYP under 18 in adult in-patient wards | D15: 1938 | E15: 2654 | F15: 2700 | G15: 321 | H15: 428 | I15: ▲ | K15: =MIN(Data_Latest_CYP_iv_a) -> 5 | L15: =MAX(Data_Latest_CYP_iv_a) -> 165 | M15: ▼
B16: CYP(iv.b) | C16: Number of CYP under 18 in adult in-patient wards | D16: 79 | E16: 90 | F16: 83 | G16: 42 | H16: 57 | I16: ▲ | K16: =MIN(Data_Latest_CYP_iv_b) -> 5 | L16: =MAX(Data_Latest_CYP_iv_b) -> 10 | M16: ▼
B17: Adult mental health: common mental health problems
B18: IAPT(i.a) | C18: IAPT access to treatment rate | D18: 0.04004039662 | E18: 0.03752950236 | F18: 0.03806242492 | G18: 0.04120502699 | H18: 0.04030370169 | I18: =IF(H18>G18,"▲", IF(H18<G18,"▼","◄►")) -> ▼ | K18: =MIN(Data_Latest_IAPT_i_a) -> 0.02022092615 | L18: =MAX(Data_Latest_IAPT_i_a) -> 0.07093686135 | M18: ▲
B19: IAPT(i.b) | C19: IAPT % of all referrals that are for older people 65+ | D19: 0.07051405173 | E19: 0.0758319296 | F19: 0.06790641312 | G19: 0.06844675613 | H19: 0.06786990036 | I19: ▼ | K19: =MIN(Data_Latest_IAPT_i_b) -> 0.01986754967 | L19: =MAX(Data_Latest_IAPT_i_b) -> 0.18125 | M19: ▲
B20: IAPT(ii.a) | C20: IAPT recovery rate: % of people that attended at least 2 treatment contacts and are moving to recovery | D20: 0.489 | E20: 0.485 | F20: 0.488 | G20: 0.51 | H20: 0.506 | I20: ▼ | K20: =MIN(Data_Latest_IAPT_ii_a) -> 0.32 | L20: =MAX(Data_Latest_IAPT_ii_a) -> 0.64 | M20: ▲
B21: IAPT(ii.b) | C21: IAPT recovery rate for black or minority ethnic (BME) groups | D21: 0.451 | E21: 0.45 | F21: 0.457 | G21: 0.47 | H21: 0.468 | I21: ▼ | K21: =MIN(Data_Latest_IAPT_ii_b) -> 0.25 | L21: =MAX(Data_Latest_IAPT_ii_b) -> 0.77 | M21: ▲
B22: IAPT(iii.a) | C22: IAPT: % of people receiving first treatment appointment within 6 weeks of referral | D22: 0.8456414993 | E22: 0.8672008928 | F22: 0.8864402442 | G22: 0.8964721093 | H22: 0.892 | I22: ▼ | K22: =MIN(Data_Latest_IAPT_iii_a) -> 0.35 | L22: =MAX(Data_Latest_IAPT_iii_a) -> 1 | M22: ▲
B23: IAPT(iii.b) | C23: IAPT: % of people receiving first treatment appointment within 18 weeks of referral | D23: 0.9726217678 | E23: 0.9800135797 | F23: 0.983957884 | G23: 1 | H23: 0.99 | I23: ▼ | K23: =MIN(Data_Latest_IAPT_iii_b) -> 0.7 | L23: =MAX(Data_Latest_IAPT_iii_b) -> 1 | M23: ▲
B24: Early intervention in psychosis (EIP)
B25: EIP(i) | C25: % of people who started treatment within 2 weeks of referral - All ages | D25: 0.6867061812 | E25: 0.7619843924 | F25: 0.7625737567 | G25: 0.7659084365 | H25: 0.7619793298 | I25: =IF(H25>G25,"▲", IF(H25<G25,"▼","◄►")) -> ▼ | K25: =MIN(Data_Latest_EIP_i) -> 0.1666666667 | L25: =MAX(Data_Latest_EIP_i) -> 1 | M25: ▲
B26: Suicide prevention
B27: SP(ii.a) | C27: Hospital admissions for self-harm: age standardised rate per 100,000 - Age: 10-24 | D27: 107.5188639 | E27: 89.94124719 | F27: 89.30476313 | G27: 105.7517192 | H27: 112.4575234 | I27: =IF(H27>G27,"▲", IF(H27<G27,"▼","◄►")) -> ▲ | K27: =MIN(Data_Latest_SP_ii_a) -> 30.59760113 | L27: =MAX(Data_Latest_SP_ii_a) -> 262.2354169 | M27: ▼
B28: SP(ii.b) | C28: Hospital admissions for self-harm: age standardised rate per 100,000 - Age:25+ | D28: 41.02023713 | E28: 39.91281021 | F28: 35.21954812 | G28: 34.45998154 | H28: 39.87991401 | I28: =IF(H28>G28,"▲", IF(H28<G28,"▼","◄►")) -> ▲ | K28: =MIN(Data_Latest_SP_ii_b) -> 8.342700967 | L28: =MAX(Data_Latest_SP_ii_b) -> 99.07594247 | M28: ▼
B29: SP(iii) | C29: % of patients on CPA discharged from hospital and followed up within 7 days | D29: 0.9620300056 | E29: 0.9679459887 | F29: 0.9676164977 | G29: 0.9684847004 | H29: 0.9665282189 | I29: =IF(H29>G29,"▲", IF(H29<G29,"▼","◄►")) -> ▼ | K29: =MIN(Data_Latest_SP_iii) -> 0.7272727273 | L29: =MAX(Data_Latest_SP_iii) -> 1 | M29: ▲
B30: Crisis and acute care and use of the mental health act (MHA)
B31: CR(iii.a) | C31: Total number of bed nights for Out of Area Placements (OAPs) | D31: - | E31: - | F31: - | G31: - | H31: 67550 | K31: =MIN(Data_latest_CR_iii_a) -> 0 | L31: =MAX(Data_latest_CR_iii_a) -> 10055 | M31: ▼
B32: CR(iii.b) | C32: Total number of Out of Area Placements (OAPs) | D32: - | E32: - | F32: - | G32: - | H32: 833 | K32: =MIN(Data_latest_CR_iii_b) -> 0 | L32: =MAX(Data_latest_CR_iii_b) -> 10055 | M32: ▼
B33: CR(iii.c) | C33: Total costs for Out of Area Placements (OAPs - external placements only) | D33: - | E33: - | F33: - | G33: - | H33: 25163100 | K33: =MIN(Data_latest_CR_iii_c) -> 0 | L33: =MAX(Data_latest_CR_iii_c) -> 2954760 | M33: ▼
B34: CR(iv.a) | C34: Number of detentions under the Mental Health Act | D34: - | E34: - | F34: - | G34: - | H34: 45864 | K34: =MIN(Data_Latest_CR_iv_a) ->  | L34: =MAX(Data_Latest_CR_iv_a) ->  | M34: ▼
B35: CR(iv.b) | C35: % of people detained under the MHA who are BME | D35: - | E35: - | F35: - | G35: - | H35: 0.3 | K35: =MIN(Data_Latest_CR_iv_b) ->  | L35: =MAX(Data_Latest_CR_iv_b) ->  | M35: N/A
B36: Health & Justice
B37: HJ(i) | C37: Number of mental health secure transfers within 2 weeks of acceptance under the MHA- Age:18+ | D37: 90 | E37: 89 | F37: 108 | G37: 83 | H37: 73 | I37: =IF(H37>G37,"▲", IF(H37<G37,"▼","◄►")) -> ▼ | K37: =MIN(Data_Latest_HJ_i) ->  | L37: =MAX(Data_Latest_HJ_i) ->  | M37: N/A
B38: HJ(ii.a) | C38: % of mental health patients receiving group therapy in secure and detained settings - Age:18+ | H38: 0.03176944615 | I38: =IF(H38>G38,"▲", IF(H38<G38,"▼","◄►")) -> ▲ | K38: =MIN(Data_Latest_HJ_ii_c) ->  | L38: =MAX(Data_Latest_HJ_ii_c) ->  | M38: ▲
B39: HJ(ii.b) | C39: % of mental patients receiving individual therapy in secure and detained settings - Age:18+ | D39: 0.3186717157 | E39: 0.3521471192 | F39: 0.363717605 | G39: 0.400315831 | H39: 0.7617757782 | I39: =IF(H39>G39,"▲", IF(H39<G39,"▼","◄►")) -> ▲ | K39: =MIN(Data_Latest_HJ_ii_d) ->  | L39: =MAX(Data_Latest_HJ_ii_d) ->  | M39: ▲
B41: Acute hospital (UEC) liaison | D41: 2015/16
B42: AC(i) | C42: % of acute hospitals meeting the ‘core 24’ service standard (criteria a, b and c below) | D42: 0.1016949153 | K42: =MIN(Data_Latest_AC_i) ->  | L42: =MAX(Data_Latest_AC_i) ->  | M42: ▲
B44: Crisis and acute care and use of the mental health act (MHA) | D44: 2016/17
B45: CR(i) | C45: % of CRHT services in the STP area able to meet selected core functions | D45: 0.2368421053 | K45: =MIN(Data_Latest_CR_i) ->  | L45: =MAX(Data_Latest_CR_i) ->  | M45: ▲
B47: Health & Justice | D47: 2015/16 | E47: 2016/17
B48: HJ(iii) | C48: % of population with access to liaison and diversion services - All ages | D48: 0.22 | E48: 0.68 | I48: =IF(E48>D48,"▲", IF(E48<D48,"▼","◄►")) -> ▲ | K48: =MIN(Data_Latest_HJ_iii) ->  | L48: =MAX(Data_Latest_HJ_iii) ->  | M48: ▲
B50: Crisis and acute care and use of the mental health act (MHA) | D50: 2013/14 | E50: 2014/15 | F50: 2015/16 | G50: 2016/17
B51: CR(v.a) | C51: Number of section 136 detentions taken to police cells as a place of safety | D51: - | E51: 3996 | F51: 1764 | G51: 898 | I51: =IF(F51>E51,"▲", IF(F51<E51,"▼","◄►")) -> ▼ | K51: =MIN(Data_Latest_CR_v_a) ->  | L51: =MAX(Data_Latest_CR_v_a) ->  | M51: ▼
B52: CR(v.b) | C52: Number of these that are under 18 | D52: 236 | E52: 145 | F52: 35 | G52: 20 | I52: =IF(F52>E52,"▲", IF(F52<E52,"▼","◄►")) -> ▼ | K52: =MIN(Data_Latest_CR_v_b) ->  | L52: =MAX(Data_Latest_CR_v_b) ->  | M52: ▼
B54: Meeting commitment to increase mental health funding | D54: 2015/16 | E54: 2016/17 | F54: 2017/18
B55: MHF(i) | C55: Mental health planned spend as a % of overall CCG allocation | D55: 0.1252598265 | E55: 0.1266054465 | F55: 0.136953073 | I55: =IF(F55>E55,"▲", IF(F55<E55,"▼","◄►")) -> ▲ | K55: =MIN(Data_Latest_MHF_i) -> 0.08379940407 | L55: =MAX(Data_Latest_MHF_i) -> 0.2101771449 | M55: N/A
B56: MHF(ii.a) | C56: Mental health forecast outturn (£k) | D56: 9148313.818 | E56: 9722830.54 | F56: 9921159.67 | I56: =IF(F56>E56,"▲", IF(F56<E56,"▼","◄►")) -> ▲ | K56: =MIN(Data_Latest_MHF_ii) ->  | L56: =MAX(Data_Latest_MHF_ii) ->  | M56: N/A
B57: MHF(ii.b) | C57: Mental health planned spend (£k) | D57: - | E57: 9722830.54 | F57: 9907754.679 | I57: =IF(F57>E57,"▲", IF(F57<E57,"▼","◄►")) -> ▲ | K57: =MIN(Data_latest_MHF_ii_b) -> 13498422.98 | L57: =MAX(Data_latest_MHF_ii_b) -> 289574798.5 | M57: N/A
B58: MHF(iii) | C58: Mental Health Investment Standard achieved? | D58: - | E58: Y | F58: Y | M58: N/A
B59: MHF(iv) | C59: Mental Health Spec Comm planned spend (£k) | D59: - | E59: - | F59: - | K59: =MIN(Data_Latest_MHF_iv) ->  | L59: =MAX(Data_Latest_MHF_iv) ->  | M59: N/A
B61: Suicide prevention | D61: 2011-2013 | E61: 2012-2014 | F61: 2013-2015
B62: SP(i) | C62: Suicide: age-standardised death rate per 100,000 population - Age:10+ | D62: 9.8 | E62: 10 | F62: 10.1 | I62: =IF(F62>E62,"▲", IF(F62<E62,"▼","◄►")) -> ▲ | K62: =MIN(Data_Latest_SP_i) -> 5.1 | L62: =MAX(Data_Latest_SP_i) -> 16.3 | M62: ▼

Sheet Calc - Sparklines (hidden)
A1: Selected CCG | C1: =Selected_Org_Name -> England
A2: Selected Org Code | C2: =Selected_Org_Code -> EN | E2: =IFERROR(IF(ISNUMBER( INDEX(INDIRECT(#REF!), MATCH('Calc - Sparklines'!$C$1,INDIRECT(#REF!),0), MATCH('Calc - Sparklines'!#REF!,INDIRECT(#REF!),0)-11))=FALSE,NA(), INDEX(INDIRECT(#REF!), MATCH('Calc - Sparklines'!$C$1,INDIRECT(#REF!),0), MATCH('Calc - Sparklines'!#REF!,INDIRECT(#REF!),0)-11)),NA()) ->  | F2: =ISNUMBER(#REF!) -> FALSE | G2: =ISNUMBER(#REF!) -> FALSE | H2: =ISNUMBER(#REF!) -> FALSE | I2: =ISNUMBER(#REF!) -> FALSE | J2: =ISNUMBER(#REF!) -> FALSE | K2: =ISNUMBER(#REF!) -> FALSE | L2: =ISNUMBER(#REF!) -> FALSE | M2: =ISNUMBER(#REF!) -> FALSE | N2: =ISNUMBER(#REF!) -> FALSE | O2: =ISNUMBER(#REF!) -> FALSE
E3: 11 | F3: 10 | G3: 9 | H3: 8 | I3: 7 | J3: 6 | K3: 5 | L3: 4 | M3: 3 | N3: 2 | O3: 1 | P3: 0 | Q3: Other measures
E4: 10 | F4: 10 | G4: 10 | H4: 10 | I4: 10 | J4: 10 | K4: 10 | L4: 8 | M4: 6 | N4: 4 | O4: 2 | P4: 0 | Q4: Finance measures
Q6: p | R6: p
I7: =OFFSET('Calc - Sparklines'!$P$14,,-'Calc - Sparklines'!$S$14,,-'Calc - Sparklines'!$R$14) -> 
C10: Indicator | D10: Latest Period | E10: Period 1 | F10: Period 2 | G10: Period 3 | H10: Period 4 | I10: Period 5 | J10: Period 6 | K10: Period 7 | L10: Period 8 | M10: Period 9 | N10: Period 10 | O10: Period 11 | P10: Period 12 | R10: Available data points | S10: Periods out of date | T10: Latest value | U10: Previous Value | V10: Change | W10: Sparkline Named range | X10: Include sparkline? | Z10: Data Range | AA10: Organisation Range | AB10: Period Range
A11: Children and Young people Mental Health | B11: Children and Young people Mental Health | E11: =IFERROR(IF(ISNUMBER( INDEX(INDIRECT($Z11), MATCH('Calc - Sparklines'!$C$1,INDIRECT($AA11),0), MATCH('Calc - Sparklines'!$D11,INDIRECT($AB11),0)-E$3))=FALSE,NA(), INDEX(INDIRECT($Z11), MATCH('Calc - Sparklines'!$C$1,INDIRECT($AA11),0), MATCH('Calc - Sparklines'!$D11,INDIRECT($AB11),0)-E$3)),NA()) ->  | F11: =IFERROR(IF(ISNUMBER( INDEX(INDIRECT($Z11), MATCH('Calc - Sparklines'!$C$1,INDIRECT($AA11),0), MATCH('Calc - Sparklines'!$D11,INDIRECT($AB11),0)-F$3))=FALSE,NA(), INDEX(INDIRECT($Z11), MATCH('Calc - Sparklines'!$C$1,INDIRECT($AA11),0), MATCH('Calc - Sparklines'!$D11,INDIRECT($AB11),0)-F$3)),NA()) ->  | G11: =IFERROR(IF(ISNUMBER( INDEX(INDIRECT($Z11), MATCH('Calc - Sparklines'!$C$1,INDIRECT($AA11),0), MATCH('Calc - Sparklines'!$D11,INDIRECT($AB11),0)-G$3))=FALSE,NA(), INDEX(INDIRECT($Z11), MATCH('Calc - Sparklines'!$C$1,INDIRECT($AA11),0), MATCH('Calc - Sparklines'!$D11,INDIRECT($AB11),0)-G$3)),NA()) ->  | H11: =IFERROR(IF(ISNUMBER( INDEX(INDIRECT($Z11), MATCH('Calc - Sparklines'!$C$1,INDIRECT($AA11),0), MATCH('Calc - Sparklines'!$D11,INDIRECT($AB11),0)-H$3))=FALSE,NA(), INDEX(INDIRECT($Z11), MATCH('Calc - Sparklines'!$C$1,INDIRECT($AA11),0), MATCH('Calc - Sparklines'!$D11,INDIRECT($AB11),0)-H$3)),NA()) ->  | I11: =IFERROR(IF(ISNUMBER( INDEX(INDIRECT($Z11), MATCH('Calc - Sparklines'!$C$1,INDIRECT($AA11),0), MATCH('Calc - Sparklines'!$D11,INDIRECT($AB11),0)-I$3))=FALSE,NA(), INDEX(INDIRECT($Z11), MATCH('Calc - Sparklines'!$C$1,INDIRECT($AA11),0), MATCH('Calc - Sparklines'!$D11,INDIRECT($AB11),0)-I$3)),NA()) ->  | J11: =IFERROR(IF(ISNUMBER( INDEX(INDIRECT($Z11), MATCH('Calc - Sparklines'!$C$1,INDIRECT($AA11),0), MATCH('Calc - Sparklines'!$D11,INDIRECT($AB11),0)-J$3))=FALSE,NA(), INDEX(INDIRECT($Z11), MATCH('Calc - Sparklines'!$C$1,INDIRECT($AA11),0), MATCH('Calc - Sparklines'!$D11,INDIRECT($AB11),0)-J$3)),NA()) ->  | K11: =IFERROR(IF(ISNUMBER( INDEX(INDIRECT($Z11), MATCH('Calc - Sparklines'!$C$1,INDIRECT($AA11),0), MATCH('Calc - Sparklines'!$D11,INDIRECT($AB11),0)-K$3))=FALSE,NA(), INDEX(INDIRECT($Z11), MATCH('Calc - Sparklines'!$C$1,INDIRECT($AA11),0), MATCH('Calc - Sparklines'!$D11,INDIRECT($AB11),0)-K$3)),NA()) ->  | L11: =IFERROR(IF(ISNUMBER( INDEX(INDIRECT($Z11), MATCH('Calc - Sparklines'!$C$1,INDIRECT($AA11),0), MATCH('Calc - Sparklines'!$D11,INDIRECT($AB11),0)-L$3))=FALSE,NA(), INDEX(INDIRECT($Z11), MATCH('Calc - Sparklines'!$C$1,INDIRECT($AA11),0), MATCH('Calc - Sparklines'!$D11,INDIRECT($AB11),0)-L$3)),NA()) ->  | M11: =IFERROR(IF(ISNUMBER( INDEX(INDIRECT($Z11), MATCH('Calc - Sparklines'!$C$1,INDIRECT($AA11),0), MATCH('Calc - Sparklines'!$D11,INDIRECT($AB11),0)-M$3))=FALSE,NA(), INDEX(INDIRECT($Z11), MATCH('Calc - Sparklines'!$C$1,INDIRECT($AA11),0), MATCH('Calc - Sparklines'!$D11,INDIRECT($AB11),0)-M$3)),NA()) ->  | N11: =IFERROR(IF(ISNUMBER( INDEX(INDIRECT($Z11), MATCH('Calc - Sparklines'!$C$1,INDIRECT($AA11),0), MATCH('Calc - Sparklines'!$D11,INDIRECT($AB11),0)-N$3))=FALSE,NA(), INDEX(INDIRECT($Z11), MATCH('Calc - Sparklines'!$C$1,INDIRECT($AA11),0), MATCH('Calc - Sparklines'!$D11,INDIRECT($AB11),0)-N$3)),NA()) ->  | O11: =IFERROR(IF(ISNUMBER( INDEX(INDIRECT($Z11), MATCH('Calc - Sparklines'!$C$1,INDIRECT($AA11),0), MATCH('Calc - Sparklines'!$D11,INDIRECT($AB11),0)-O$3))=FALSE,NA(), INDEX(INDIRECT($Z11), MATCH('Calc - Sparklines'!$C$1,INDIRECT($AA11),0), MATCH('Calc - Sparklines'!$D11,INDIRECT($AB11),0)-O$3)),NA()) ->  | P11: =IFERROR(IF(ISNUMBER( INDEX(INDIRECT($Z11), MATCH('Calc - Sparklines'!$C$1,INDIRECT($AA11),0), MATCH('Calc - Sparklines'!$D11,INDIRECT($AB11),0)-P$3))=FALSE,NA(), INDEX(INDIRECT($Z11), MATCH('Calc - Sparklines'!$C$1,INDIRECT($AA11),0), MATCH('Calc - Sparklines'!$D11,INDIRECT($AB11),0)-P$3)),NA()) ->  | R11: =IF(COUNTA(K11:P11)-COUNTIF(K11:P11,"#N/A")<3, 0, COUNTA(K11:P11)) -> 0 | S11: =IF(P11="N/A",IF(O11="N/A",2,1),0) ->  | T11: =OFFSET(P11,,-S11) ->  | U11: =IF(ISERROR(O11),IF(ISERROR(N11),IF(ISERROR(M11),IF(ISERROR(L11),IF(ISERROR(K11),IF(ISERROR(J11),IF(ISERROR(I11),IF(ISERROR(H11),IF(ISERROR(G11),IF(ISERROR(F11),IF(ISERROR(E11), NA(), E11),F11),G11),H11),I11),J11),K11),L11),M11),N11),O11) ->  | V11: =IF(D11="","",IFERROR(IF(T11>U11,"▲", IF(T11<U11,"▼","◄►")),"N/A")) ->  | X11: =IF(ISNA(T11),"N/A",IF(R11<=2,"N/A","")) -> N/A | AD11: Heading
A12: CYP_i_b | B12: CYP(i.b) | C12: % of CYP accessing treatment by NHS funded community services (at least two contacts) | D12: ='CYP(i_b)_FINAL CALC'!B6 -> 2018/19 | E12: =IFERROR(IF(ISNUMBER( INDEX(INDIRECT($Z12), MATCH('Calc - Sparklines'!$C$1,INDIRECT($AA12),0), MATCH('Calc - Sparklines'!$D12,INDIRECT($AB12),0)-E$3))=FALSE,NA(), INDEX(INDIRECT($Z12), MATCH('Calc - Sparklines'!$C$1,INDIRECT($AA12),0), MATCH('Calc - Sparklines'!$D12,INDIRECT($AB12),0)-E$3)),NA()) ->  | F12: =IFERROR(IF(ISNUMBER( INDEX(INDIRECT($Z12), MATCH('Calc - Sparklines'!$C$1,INDIRECT($AA12),0), MATCH('Calc - Sparklines'!$D12,INDIRECT($AB12),0)-F$3))=FALSE,NA(), INDEX(INDIRECT($Z12), MATCH('Calc - Sparklines'!$C$1,INDIRECT($AA12),0), MATCH('Calc - Sparklines'!$D12,INDIRECT($AB12),0)-F$3)),NA()) ->  | G12: =IFERROR(IF(ISNUMBER( INDEX(INDIRECT($Z12), MATCH('Calc - Sparklines'!$C$1,INDIRECT($AA12),0), MATCH('Calc - Sparklines'!$D12,INDIRECT($AB12),0)-G$3))=FALSE,NA(), INDEX(INDIRECT($Z12), MATCH('Calc - Sparklines'!$C$1,INDIRECT($AA12),0), MATCH('Calc - Sparklines'!$D12,INDIRECT($AB12),0)-G$3)),NA()) ->  | H12: =IFERROR(IF(ISNUMBER( INDEX(INDIRECT($Z12), MATCH('Calc - Sparklines'!$C$1,INDIRECT($AA12),0), MATCH('Calc - Sparklines'!$D12,INDIRECT($AB12),0)-H$3))=FALSE,NA(), INDEX(INDIRECT($Z12), MATCH('Calc - Sparklines'!$C$1,INDIRECT($AA12),0), MATCH('Calc - Sparklines'!$D12,INDIRECT($AB12),0)-H$3)),NA()) ->  | I12: =IFERROR(IF(ISNUMBER( INDEX(INDIRECT($Z12), MATCH('Calc - Sparklines'!$C$1,INDIRECT($AA12),0), MATCH('Calc - Sparklines'!$D12,INDIRECT($AB12),0)-I$3))=FALSE,NA(), INDEX(INDIRECT($Z12), MATCH('Calc - Sparklines'!$C$1,INDIRECT($AA12),0), MATCH('Calc - Sparklines'!$D12,INDIRECT($AB12),0)-I$3)),NA()) ->  | J12: =IFERROR(IF(ISNUMBER( INDEX(INDIRECT($Z12), MATCH('Calc - Sparklines'!$C$1,INDIRECT($AA12),0), MATCH('Calc - Sparklines'!$D12,INDIRECT($AB12),0)-J$3))=FALSE,NA(), INDEX(INDIRECT($Z12), MATCH('Calc - Sparklines'!$C$1,INDIRECT($AA12),0), MATCH('Calc - Sparklines'!$D12,INDIRECT($AB12),0)-J$3)),NA()) ->  | K12: =IFERROR(IF(ISNUMBER( INDEX(INDIRECT($Z12), MATCH('Calc - Sparklines'!$C$1,INDIRECT($AA12),0), MATCH('Calc - Sparklines'!$D12,INDIRECT($AB12),0)-K$3))=FALSE,NA(), INDEX(INDIRECT($Z12), MATCH('Calc - Sparklines'!$C$1,INDIRECT($AA12),0), MATCH('Calc - Sparklines'!$D12,INDIRECT($AB12),0)-K$3)),NA()) ->  | L12: =IFERROR(IF(ISNUMBER( INDEX(INDIRECT($Z12), MATCH('Calc - Sparklines'!$C$1,INDIRECT($AA12),0), MATCH('Calc - Sparklines'!$D12,INDIRECT($AB12),0)-L$3))=FALSE,NA(), INDEX(INDIRECT($Z12), MATCH('Calc - Sparklines'!$C$1,INDIRECT($AA12),0), MATCH('Calc - Sparklines'!$D12,INDIRECT($AB12),0)-L$3)),NA()) ->  | M12: =IFERROR(IF(ISNUMBER( INDEX(INDIRECT($Z12), MATCH('Calc - Sparklines'!$C$1,INDIRECT($AA12),0), MATCH('Calc - Sparklines'!$D12,INDIRECT($AB12),0)-M$3))=FALSE,NA(), INDEX(INDIRECT($Z12), MATCH('Calc - Sparklines'!$C$1,INDIRECT($AA12),0), MATCH('Calc - Sparklines'!$D12,INDIRECT($AB12),0)-M$3)),NA()) ->  | N12: =IFERROR(IF(ISNUMBER( INDEX(INDIRECT($Z12), MATCH('Calc - Sparklines'!$C$1,INDIRECT($AA12),0), MATCH('Calc - Sparklines'!$D12,INDIRECT($AB12),0)-N$3))=FALSE,NA(), INDEX(INDIRECT($Z12), MATCH('Calc - Sparklines'!$C$1,INDIRECT($AA12),0), MATCH('Calc - Sparklines'!$D12,INDIRECT($AB12),0)-N$3)),NA()) ->  | O12: =IFERROR(IF(ISNUMBER( INDEX(INDIRECT($Z12), MATCH('Calc - Sparklines'!$C$1,INDIRECT($AA12),0), MATCH('Calc - Sparklines'!$D12,INDIRECT($AB12),0)-O$3))=FALSE,NA(), INDEX(INDIRECT($Z12), MATCH('Calc - Sparklines'!$C$1,INDIRECT($AA12),0), MATCH('Calc - Sparklines'!$D12,INDIRECT($AB12),0)-O$3)),NA()) -> 0.3050977763 | P12: =IFERROR(IF(ISNUMBER( INDEX(INDIRECT($Z12), MATCH('Calc - Sparklines'!$C$1,INDIRECT($AA12),0), MATCH('Calc - Sparklines'!$D12,INDIRECT($AB12),0)-P$3))=FALSE,NA(), INDEX(INDIRECT($Z12), MATCH('Calc - Sparklines'!$C$1,INDIRECT($AA12),0), MATCH('Calc - Sparklines'!$D12,INDIRECT($AB12),0)-P$3)),NA()) -> 0.361 | R12: 0 | S12: =IF(P12="N/A",IF(O12="N/A",2,1),0) -> 0 | T12: 0.361 | U12: 0.3050977763 | V12: =IF(D12="","",IFERROR(IF(T12>U12,"▲", IF(T12<U12,"▼","◄►")),"N/A")) -> ▲ | W12: Sparkline04 | Z12: Data_Table_CYP_i_b | AA12: Data_Orgs_CYP_i_b | AB12: Data_Dates_CYP_i_b | AD12: National and regional measure only | AE12: National and regional measure only
A13: CYP_ii_a | B13: CYP(ii.a) | C13: % of CYP with eating disorders seen within 1 week (urgent) | D13: ='CYP(ii_a)_FINAL CALC'!B6 -> Q2 2019/20 | E13: =IFERROR(IF(ISNUMBER( INDEX(INDIRECT($Z13), MATCH('Calc - Sparklines'!$C$1,INDIRECT($AA13),0), MATCH('Calc - Sparklines'!$D13,INDIRECT($AB13),0)-E$3))=FALSE,NA(), INDEX(INDIRECT($Z13), MATCH('Calc - Sparklines'!$C$1,INDIRECT($AA13),0), MATCH('Calc - Sparklines'!$D13,INDIRECT($AB13),0)-E$3)),NA()) -> 0.6721854305 | F13: =IFERROR(IF(ISNUMBER( INDEX(INDIRECT($Z13), MATCH('Calc - Sparklines'!$C$1,INDIRECT($AA13),0), MATCH('Calc - Sparklines'!$D13,INDIRECT($AB13),0)-F$3))=FALSE,NA(), INDEX(INDIRECT($Z13), MATCH('Calc - Sparklines'!$C$1,INDIRECT($AA13),0), MATCH('Calc - Sparklines'!$D13,INDIRECT($AB13),0)-F$3)),NA()) -> 0.686746988 | G13: =IFERROR(IF(ISNUMBER( INDEX(INDIRECT($Z13), MATCH('Calc - Sparklines'!$C$1,INDIRECT($AA13),0), MATCH('Calc - Sparklines'!$D13,INDIRECT($AB13),0)-G$3))=FALSE,NA(), INDEX(INDIRECT($Z13), MATCH('Calc - Sparklines'!$C$1,INDIRECT($AA13),0), MATCH('Calc - Sparklines'!$D13,INDIRECT($AB13),0)-G$3)),NA()) -> 0.7330960854 | H13: =IFERROR(IF(ISNUMBER( INDEX(INDIRECT($Z13), MATCH('Calc - Sparklines'!$C$1,INDIRECT($AA13),0), MATCH('Calc - Sparklines'!$D13,INDIRECT($AB13),0)-H$3))=FALSE,NA(), INDEX(INDIRECT($Z13), MATCH('Calc - Sparklines'!$C$1,INDIRECT($AA13),0), MATCH('Calc - Sparklines'!$D13,INDIRECT($AB13),0)-H$3)),NA()) -> 0.7097902098 | I13: =IFERROR(IF(ISNUMBER( INDEX(INDIRECT($Z13), MATCH('Calc - Sparklines'!$C$1,INDIRECT($AA13),0), MATCH('Calc - Sparklines'!$D13,INDIRECT($AB13),0)-I$3))=FALSE,NA(), INDEX(INDIRECT($Z13), MATCH('Calc - Sparklines'!$C$1,INDIRECT($AA13),0), MATCH('Calc - Sparklines'!$D13,INDIRECT($AB13),0)-I$3)),NA()) -> 0.7687296417 | J13: =IFERROR(IF(ISNUMBER( INDEX(INDIRECT($Z13), MATCH('Calc - Sparklines'!$C$1,INDIRECT($AA13),0), MATCH('Calc - Sparklines'!$D13,INDIRECT($AB13),0)-J$3))=FALSE,NA(), INDEX(INDIRECT($Z13), MATCH('Calc - Sparklines'!$C$1,INDIRECT($AA13),0), MATCH('Calc - Sparklines'!$D13,INDIRECT($AB13),0)-J$3)),NA()) -> 0.7894736842 | K13: =IFERROR(IF(ISNUMBER( INDEX(INDIRECT($Z13), MATCH('Calc - Sparklines'!$C$1,INDIRECT($AA13),0), MATCH('Calc - Sparklines'!$D13,INDIRECT($AB13),0)-K$3))=FALSE,NA(), INDEX(INDIRECT($Z13), MATCH('Calc - Sparklines'!$C$1,INDIRECT($AA13),0), MATCH('Calc - Sparklines'!$D13,INDIRECT($AB13),0)-K$3)),NA()) -> 0.747440273 | L13: =IFERROR(IF(ISNUMBER( INDEX(INDIRECT($Z13), MATCH('Calc - Sparklines'!$C$1,INDIRECT($AA13),0), MATCH('Calc - Sparklines'!$D13,INDIRECT($AB13),0)-L$3))=FALSE,NA(), INDEX(INDIRECT($Z13), MATCH('Calc - Sparklines'!$C$1,INDIRECT($AA13),0), MATCH('Calc - Sparklines'!$D13,INDIRECT($AB13),0)-L$3)),NA()) -> 0.8130081301 | M13: =IFERROR(IF(ISNUMBER( INDEX(INDIRECT($Z13), MATCH('Calc - Sparklines'!$C$1,INDIRECT($AA13),0), MATCH('Calc - Sparklines'!$D13,INDIRECT($AB13),0)-M$3))=FALSE,NA(), INDEX(INDIRECT($Z13), MATCH('Calc - Sparklines'!$C$1,INDIRECT($AA13),0), MATCH('Calc - Sparklines'!$D13,INDIRECT($AB13),0)-M$3)),NA()) -> 0.807 | N13: =IFERROR(IF(ISNUMBER( INDEX(INDIRECT($Z13), MATCH('Calc - Sparklines'!$C$1,INDIRECT($AA13),0), MATCH('Calc - Sparklines'!$D13,INDIRECT($AB13),0)-N$3))=FALSE,NA(), INDEX(INDIRECT($Z13), MATCH('Calc - Sparklines'!$C$1,INDIRECT($AA13),0), MATCH('Calc - Sparklines'!$D13,INDIRECT($AB13),0)-N$3)),NA()) -> 0.8063 | O13: =IFERROR(IF(ISNUMBER( INDEX(INDIRECT($Z13), MATCH('Calc - Sparklines'!$C$1,INDIRECT($AA13),0), MATCH('Calc - Sparklines'!$D13,INDIRECT($AB13),0)-O$3))=FALSE,NA(), INDEX(INDIRECT($Z13), MATCH('Calc - Sparklines'!$C$1,INDIRECT($AA13),0), MATCH('Calc - Sparklines'!$D13,INDIRECT($AB13),0)-O$3)),NA()) -> 0.7767295597 | P13: =IFERROR(IF(ISNUMBER( INDEX(INDIRECT($Z13), MATCH('Calc - Sparklines'!$C$1,INDIRECT($AA13),0), MATCH('Calc - Sparklines'!$D13,INDIRECT($AB13),0)-P$3))=FALSE,NA(), INDEX(INDIRECT($Z13), MATCH('Calc - Sparklines'!$C$1,INDIRECT($AA13),0), MATCH('Calc - Sparklines'!$D13,INDIRECT($AB13),0)-P$3)),NA()) -> 0.7507692308 | R13: 6 | S13: 0 | T13: 0.7507692308 | U13: 0.7767295597 | V13: ▼ | W13: Sparkline54 | Z13: Data_Table_CYP_ii_a | AA13: Data_Orgs_CYP_ii_a | AB13: Data_Dates_CYP_ii_a | AD13: National and regional measure only | AE13: National and regional measure only
A14: CYP_ii_b | B14: CYP(ii.b) | C14: % of CYP with eating disorders seen within 4 weeks (routine) | D14: ='CYP(ii_b)_FINAL CALC'!B6 -> Q2 2019/20 | E14: =IFERROR(IF(ISNUMBER( INDEX(INDIRECT($Z14), MATCH('Calc - Sparklines'!$C$1,INDIRECT($AA14),0), MATCH('Calc - Sparklines'!$D14,INDIRECT($AB14),0)-E$3))=FALSE,NA(), INDEX(INDIRECT($Z14), MATCH('Calc - Sparklines'!$C$1,INDIRECT($AA14),0), MATCH('Calc - Sparklines'!$D14,INDIRECT($AB14),0)-E$3)),NA()) -> 0.7896081772 | F14: =IFERROR(IF(ISNUMBER( INDEX(INDIRECT($Z14), MATCH('Calc - Sparklines'!$C$1,INDIRECT($AA14),0), MATCH('Calc - Sparklines'!$D14,INDIRECT($AB14),0)-F$3))=FALSE,NA(), INDEX(INDIRECT($Z14), MATCH('Calc - Sparklines'!$C$1,INDIRECT($AA14),0), MATCH('Calc - Sparklines'!$D14,INDIRECT($AB14),0)-F$3)),NA()) -> 0.7886382623 | G14: =IFERROR(IF(ISNUMBER( INDEX(INDIRECT($Z14), MATCH('Calc - Sparklines'!$C$1,INDIRECT($AA14),0), MATCH('Calc - Sparklines'!$D14,INDIRECT($AB14),0)-G$3))=FALSE,NA(), INDEX(INDIRECT($Z14), MATCH('Calc - Sparklines'!$C$1,INDIRECT($AA14),0), MATCH('Calc - Sparklines'!$D14,INDIRECT($AB14),0)-G$3)),NA()) -> 0.7874538745 | H14: =IFERROR(IF(ISNUMBER( INDEX(INDIRECT($Z14), MATCH('Calc - Sparklines'!$C$1,INDIRECT($AA14),0), MATCH('Calc - Sparklines'!$D14,INDIRECT($AB14),0)-H$3))=FALSE,NA(), INDEX(INDIRECT($Z14), MATCH('Calc - Sparklines'!$C$1,INDIRECT($AA14),0), MATCH('Calc - Sparklines'!$D14,INDIRECT($AB14),0)-H$3)),NA()) -> 0.824456114 | I14: =IFERROR(IF(ISNUMBER( INDEX(INDIRECT($Z14), MATCH('Calc - Sparklines'!$C$1,INDIRECT($AA14),0), MATCH('Calc - Sparklines'!$D14,INDIRECT($AB14),0)-I$3))=FALSE,NA(), INDEX(INDIRECT($Z14), MATCH('Calc - Sparklines'!$C$1,INDIRECT($AA14),0), MATCH('Calc - Sparklines'!$D14,INDIRECT($AB14),0)-I$3)),NA()) -> 0.8314304903 | J14: =IFERROR(IF(ISNUMBER( INDEX(INDIRECT($Z14), MATCH('Calc - Sparklines'!$C$1,INDIRECT($AA14),0), MATCH('Calc - Sparklines'!$D14,INDIRECT($AB14),0)-J$3))=FALSE,NA(), INDEX(INDIRECT($Z14), MATCH('Calc - Sparklines'!$C$1,INDIRECT($AA14),0), MATCH('Calc - Sparklines'!$D14,INDIRECT($AB14),0)-J$3)),NA()) -> 0.7993548387 | K14: =IFERROR(IF(ISNUMBER( INDEX(INDIRECT($Z14), MATCH('Calc - Sparklines'!$C$1,INDIRECT($AA14),0), MATCH('Calc - Sparklines'!$D14,INDIRECT($AB14),0)-K$3))=FALSE,NA(), INDEX(INDIRECT($Z14), MATCH('Calc - Sparklines'!$C$1,INDIRECT($AA14),0), MATCH('Calc - Sparklines'!$D14,INDIRECT($AB14),0)-K$3)),NA()) -> 0.8124183007 | L14: =IFERROR(IF(ISNUMBER( INDEX(INDIRECT($Z14), MATCH('Calc - Sparklines'!$C$1,INDIRECT($AA14),0), MATCH('Calc - Sparklines'!$D14,INDIRECT($AB14),0)-L$3))=FALSE,NA(), INDEX(INDIRECT($Z14), MATCH('Calc - Sparklines'!$C$1,INDIRECT($AA14),0), MATCH('Calc - Sparklines'!$D14,INDIRECT($AB14),0)-L$3)),NA()) -> 0.8017894012 | M14: =IFERROR(IF(ISNUMBER( INDEX(INDIRECT($Z14), MATCH('Calc - Sparklines'!$C$1,INDIRECT($AA14),0), MATCH('Calc - Sparklines'!$D14,INDIRECT($AB14),0)-M$3))=FALSE,NA(), INDEX(INDIRECT($Z14), MATCH('Calc - Sparklines'!$C$1,INDIRECT($AA14),0), MATCH('Calc - Sparklines'!$D14,INDIRECT($AB14),0)-M$3)),NA()) -> 0.8681388013 | N14: =IFERROR(IF(ISNUMBER( INDEX(INDIRECT($Z14), MATCH('Calc - Sparklines'!$C$1,INDIRECT($AA14),0), MATCH('Calc - Sparklines'!$D14,INDIRECT($AB14),0)-N$3))=FALSE,NA(), INDEX(INDIRECT($Z14), MATCH('Calc - Sparklines'!$C$1,INDIRECT($AA14),0), MATCH('Calc - Sparklines'!$D14,INDIRECT($AB14),0)-N$3)),NA()) -> 0.8242560359 | O14: =IFERROR(IF(ISNUMBER( INDEX(INDIRECT($Z14), MATCH('Calc - Sparklines'!$C$1,INDIRECT($AA14),0), MATCH('Calc - Sparklines'!$D14,INDIRECT($AB14),0)-O$3))=FALSE,NA(), INDEX(INDIRECT($Z14), MATCH('Calc - Sparklines'!$C$1,INDIRECT($AA14),0), MATCH('Calc - Sparklines'!$D14,INDIRECT($AB14),0)-O$3)),NA()) -> 0.8343004513 | P14: =IFERROR(IF(ISNUMBER( INDEX(INDIRECT($Z14), MATCH('Calc - Sparklines'!$C$1,INDIRECT($AA14),0), MATCH('Calc - Sparklines'!$D14,INDIRECT($AB14),0)-P$3))=FALSE,NA(), INDEX(INDIRECT($Z14), MATCH('Calc - Sparklines'!$C$1,INDIRECT($AA14),0), MATCH('Calc - Sparklines'!$D14,INDIRECT($AB14),0)-P$3)),NA()) -> 0.8598066298 | R14: 6 | S14: 0 | T14: 0.8598066298 | U14: 0.8343004513 | V14: =IF(D14="","",IFERROR(IF(T14>U14,"▲", IF(T14<U14,"▼","◄►")),"N/A")) -> ▲ | W14: Sparkline05 | Z14: Data_Table_CYP_ii_b | AA14: Data_Orgs_CYP_ii_b | AB14: Data_Dates_CYP_ii_b | AD14: Chart available at CCG & STP level only | AE14: =IF(OR(Dashboard!$M$3=1,Dashboard!$M$3=2),"Chart available at CCG & STP level only","") -> Chart available at CCG & STP level only
A15: CYP_iii_a | B15: CYP(iii.a) | C15: Number of bed days for CYP under 18 in CAMHS tier 4 wards | D15: ='CYP(iii_a)_FINAL CALC'!B6 -> Q2 2019/20 | E15: =IFERROR(IF(ISNUMBER( INDEX(INDIRECT($Z15), MATCH('Calc - Sparklines'!$C$1,INDIRECT($AA15),0), MATCH('Calc - Sparklines'!$D15,INDIRECT($AB15),0)-E$3))=FALSE,NA(), INDEX(INDIRECT($Z15), MATCH('Calc - Sparklines'!$C$1,INDIRECT($AA15),0), MATCH('Calc - Sparklines'!$D15,INDIRECT($AB15),0)-E$3)),NA()) -> 110032 | F15: =IFERROR(IF(ISNUMBER( INDEX(INDIRECT($Z15), MATCH('Calc - Sparklines'!$C$1,INDIRECT($AA15),0), MATCH('Calc - Sparklines'!$D15,INDIRECT($AB15),0)-F$3))=FALSE,NA(), INDEX(INDIRECT($Z15), MATCH('Calc - Sparklines'!$C$1,INDIRECT($AA15),0), MATCH('Calc - Sparklines'!$D15,INDIRECT($AB15),0)-F$3)),NA()) -> 110216 | G15: =IFERROR(IF(ISNUMBER( INDEX(INDIRECT($Z15), MATCH('Calc - Sparklines'!$C$1,INDIRECT($AA15),0), MATCH('Calc - Sparklines'!$D15,INDIRECT($AB15),0)-G$3))=FALSE,NA(), INDEX(INDIRECT($Z15), MATCH('Calc - Sparklines'!$C$1,INDIRECT($AA15),0), MATCH('Calc - Sparklines'!$D15,INDIRECT($AB15),0)-G$3)),NA()) -> 117128 | H15: =IFERROR(IF(ISNUMBER( INDEX(INDIRECT($Z15), MATCH('Calc - Sparklines'!$C$1,INDIRECT($AA15),0), MATCH('Calc - Sparklines'!$D15,INDIRECT($AB15),0)-H$3))=FALSE,NA(), INDEX(INDIRECT($Z15), MATCH('Calc - Sparklines'!$C$1,INDIRECT($AA15),0), MATCH('Calc - Sparklines'!$D15,INDIRECT($AB15),0)-H$3)),NA()) -> 112752 | I15: =IFERROR(IF(ISNUMBER( INDEX(INDIRECT($Z15), MATCH('Calc - Sparklines'!$C$1,INDIRECT($AA15),0), MATCH('Calc - Sparklines'!$D15,INDIRECT($AB15),0)-I$3))=FALSE,NA(), INDEX(INDIRECT($Z15), MATCH('Calc - Sparklines'!$C$1,INDIRECT($AA15),0), MATCH('Calc - Sparklines'!$D15,INDIRECT($AB15),0)-I$3)),NA()) -> 119096 | J15: =IFERROR(IF(ISNUMBER( INDEX(INDIRECT($Z15), MATCH('Calc - Sparklines'!$C$1,INDIRECT($AA15),0), MATCH('Calc - Sparklines'!$D15,INDIRECT($AB15),0)-J$3))=FALSE,NA(), INDEX(INDIRECT($Z15), MATCH('Calc - Sparklines'!$C$1,INDIRECT($AA15),0), MATCH('Calc - Sparklines'!$D15,INDIRECT($AB15),0)-J$3)),NA()) -> 116790 | K15: =IFERROR(IF(ISNUMBER( INDEX(INDIRECT($Z15), MATCH('Calc - Sparklines'!$C$1,INDIRECT($AA15),0), MATCH('Calc - Sparklines'!$D15,INDIRECT($AB15),0)-K$3))=FALSE,NA(), INDEX(INDIRECT($Z15), MATCH('Calc - Sparklines'!$C$1,INDIRECT($AA15),0), MATCH('Calc - Sparklines'!$D15,INDIRECT($AB15),0)-K$3)),NA()) -> 108029 | L15: =IFERROR(IF(ISNUMBER( INDEX(INDIRECT($Z15), MATCH('Calc - Sparklines'!$C$1,INDIRECT($AA15),0), MATCH('Calc - Sparklines'!$D15,INDIRECT($AB15),0)-L$3))=FALSE,NA(), INDEX(INDIRECT($Z15), MATCH('Calc - Sparklines'!$C$1,INDIRECT($AA15),0), MATCH('Calc - Sparklines'!$D15,INDIRECT($AB15),0)-L$3)),NA()) -> 103200 | M15: =IFERROR(IF(ISNUMBER( INDEX(INDIRECT($Z15), MATCH('Calc - Sparklines'!$C$1,INDIRECT($AA15),0), MATCH('Calc - Sparklines'!$D15,INDIRECT($AB15),0)-M$3))=FALSE,NA(), INDEX(INDIRECT($Z15), MATCH('Calc - Sparklines'!$C$1,INDIRECT($AA15),0), MATCH('Calc - Sparklines'!$D15,INDIRECT($AB15),0)-M$3)),NA()) -> 107808 | N15: =IFERROR(IF(ISNUMBER( INDEX(INDIRECT($Z15), MATCH('Calc - Sparklines'!$C$1,INDIRECT($AA15),0), MATCH('Calc - Sparklines'!$D15,INDIRECT($AB15),0)-N$3))=FALSE,NA(), INDEX(INDIRECT($Z15), MATCH('Calc - Sparklines'!$C$1,INDIRECT($AA15),0), MATCH('Calc - Sparklines'!$D15,INDIRECT($AB15),0)-N$3)),NA()) -> 110782 | O15: =IFERROR(IF(ISNUMBER( INDEX(INDIRECT($Z15), MATCH('Calc - Sparklines'!$C$1,INDIRECT($AA15),0), MATCH('Calc - Sparklines'!$D15,INDIRECT($AB15),0)-O$3))=FALSE,NA(), INDEX(INDIRECT($Z15), MATCH('Calc - Sparklines'!$C$1,INDIRECT($AA15),0), MATCH('Calc - Sparklines'!$D15,INDIRECT($AB15),0)-O$3)),NA()) -> 107052 | P15: =IFERROR(IF(ISNUMBER( INDEX(INDIRECT($Z15), MATCH('Calc - Sparklines'!$C$1,INDIRECT($AA15),0), MATCH('Calc - Sparklines'!$D15,INDIRECT($AB15),0)-P$3))=FALSE,NA(), INDEX(INDIRECT($Z15), MATCH('Calc - Sparklines'!$C$1,INDIRECT($AA15),0), MATCH('Calc - Sparklines'!$D15,INDIRECT($AB15),0)-P$3)),NA()) -> 98049 | R15: 6 | S15: 0 | T15: 98049 | U15: 107052 | V15: ▼ | W15: Sparkline06 | Z15: Data_Table_CYP_iii_a | AA15: Data_Orgs_CYP_iii_a | AB15: Data_Dates_CYP_iii_a | AD15: Chart available at CCG & STP level only | AE15: =IF(OR(Dashboard!$M$3=1,Dashboard!$M$3=2),"Chart available at CCG & STP level only","") -> Chart available at CCG & STP level only
A16: CYP_iii_b | B16: CYP(iii.b) | C16: Number of admissions of CYP under 18 in CAMHS tier 4 wards | D16: ='CYP(iii_b)_FINAL CALC'!B6 -> Q2 2019/20 | E16: =IFERROR(IF(ISNUMBER( INDEX(INDIRECT($Z16), MATCH('Calc - Sparklines'!$C$1,INDIRECT($AA16),0), MATCH('Calc - Sparklines'!$D16,INDIRECT($AB16),0)-E$3))=FALSE,NA(), INDEX(INDIRECT($Z16), MATCH('Calc - Sparklines'!$C$1,INDIRECT($AA16),0), MATCH('Calc - Sparklines'!$D16,INDIRECT($AB16),0)-E$3)),NA()) -> 1269 | F16: =IFERROR(IF(ISNUMBER( INDEX(INDIRECT($Z16), MATCH('Calc - Sparklines'!$C$1,INDIRECT($AA16),0), MATCH('Calc - Sparklines'!$D16,INDIRECT($AB16),0)-F$3))=FALSE,NA(), INDEX(INDIRECT($Z16), MATCH('Calc - Sparklines'!$C$1,INDIRECT($AA16),0), MATCH('Calc - Sparklines'!$D16,INDIRECT($AB16),0)-F$3)),NA()) -> 1190 | G16: =IFERROR(IF(ISNUMBER( INDEX(INDIRECT($Z16), MATCH('Calc - Sparklines'!$C$1,INDIRECT($AA16),0), MATCH('Calc - Sparklines'!$D16,INDIRECT($AB16),0)-G$3))=FALSE,NA(), INDEX(INDIRECT($Z16), MATCH('Calc - Sparklines'!$C$1,INDIRECT($AA16),0), MATCH('Calc - Sparklines'!$D16,INDIRECT($AB16),0)-G$3)),NA()) -> 1269 | H16: =IFERROR(IF(ISNUMBER( INDEX(INDIRECT($Z16), MATCH('Calc - Sparklines'!$C$1,INDIRECT($AA16),0), MATCH('Calc - Sparklines'!$D16,INDIRECT($AB16),0)-H$3))=FALSE,NA(), INDEX(INDIRECT($Z16), MATCH('Calc - Sparklines'!$C$1,INDIRECT($AA16),0), MATCH('Calc - Sparklines'!$D16,INDIRECT($AB16),0)-H$3)),NA()) -> 1104 | I16: =IFERROR(IF(ISNUMBER( INDEX(INDIRECT($Z16), MATCH('Calc - Sparklines'!$C$1,INDIRECT($AA16),0), MATCH('Calc - Sparklines'!$D16,INDIRECT($AB16),0)-I$3))=FALSE,NA(), INDEX(INDIRECT($Z16), MATCH('Calc - Sparklines'!$C$1,INDIRECT($AA16),0), MATCH('Calc - Sparklines'!$D16,INDIRECT($AB16),0)-I$3)),NA()) -> 1202 | J16: =IFERROR(IF(ISNUMBER( INDEX(INDIRECT($Z16), MATCH('Calc - Sparklines'!$C$1,INDIRECT($AA16),0), MATCH('Calc - Sparklines'!$D16,INDIRECT($AB16),0)-J$3))=FALSE,NA(), INDEX(INDIRECT($Z16), MATCH('Calc - Sparklines'!$C$1,INDIRECT($AA16),0), MATCH('Calc - Sparklines'!$D16,INDIRECT($AB16),0)-J$3)),NA()) -> 1076 | K16: =IFERROR(IF(ISNUMBER( INDEX(INDIRECT($Z16), MATCH('Calc - Sparklines'!$C$1,INDIRECT($AA16),0), MATCH('Calc - Sparklines'!$D16,INDIRECT($AB16),0)-K$3))=FALSE,NA(), INDEX(INDIRECT($Z16), MATCH('Calc - Sparklines'!$C$1,INDIRECT($AA16),0), MATCH('Calc - Sparklines'!$D16,INDIRECT($AB16),0)-K$3)),NA()) -> 1230 | L16: =IFERROR(IF(ISNUMBER( INDEX(INDIRECT($Z16), MATCH('Calc - Sparklines'!$C$1,INDIRECT($AA16),0), MATCH('Calc - Sparklines'!$D16,INDIRECT($AB16),0)-L$3))=FALSE,NA(), INDEX(INDIRECT($Z16), MATCH('Calc - Sparklines'!$C$1,INDIRECT($AA16),0), MATCH('Calc - Sparklines'!$D16,INDIRECT($AB16),0)-L$3)),NA()) -> 1090 | M16: =IFERROR(IF(ISNUMBER( INDEX(INDIRECT($Z16), MATCH('Calc - Sparklines'!$C$1,INDIRECT($AA16),0), MATCH('Calc - Sparklines'!$D16,INDIRECT($AB16),0)-M$3))=FALSE,NA(), INDEX(INDIRECT($Z16), MATCH('Calc - Sparklines'!$C$1,INDIRECT($AA16),0), MATCH('Calc - Sparklines'!$D16,INDIRECT($AB16),0)-M$3)),NA()) -> 1179 | N16: =IFERROR(IF(ISNUMBER( INDEX(INDIRECT($Z16), MATCH('Calc - Sparklines'!$C$1,INDIRECT($AA16),0), MATCH('Calc - Sparklines'!$D16,INDIRECT($AB16),0)-N$3))=FALSE,NA(), INDEX(INDIRECT($Z16), MATCH('Calc - Sparklines'!$C$1,INDIRECT($AA16),0), MATCH('Calc - Sparklines'!$D16,INDIRECT($AB16),0)-N$3)),NA()) -> 1158 | O16: =IFERROR(IF(ISNUMBER( INDEX(INDIRECT($Z16), MATCH('Calc - Sparklines'!$C$1,INDIRECT($AA16),0), MATCH('Calc - Sparklines'!$D16,INDIRECT($AB16),0)-O$3))=FALSE,NA(), INDEX(INDIRECT($Z16), MATCH('Calc - Sparklines'!$C$1,INDIRECT($AA16),0), MATCH('Calc - Sparklines'!$D16,INDIRECT($AB16),0)-O$3)),NA()) -> 1088 | P16: =IFERROR(IF(ISNUMBER( INDEX(INDIRECT($Z16), MATCH('Calc - Sparklines'!$C$1,INDIRECT($AA16),0), MATCH('Calc - Sparklines'!$D16,INDIRECT($AB16),0)-P$3))=FALSE,NA(), INDEX(INDIRECT($Z16), MATCH('Calc - Sparklines'!$C$1,INDIRECT($AA16),0), MATCH('Calc - Sparklines'!$D16,INDIRECT($AB16),0)-P$3)),NA()) -> 987 | R16: 6 | S16: =IF(P16="N/A",IF(O16="N/A",2,1),0) -> 0 | T16: 987 | U16: 1088 | V16: ▼ | W16: Sparkline07 | Z16: Data_Table_CYP_iii_b | AA16: Data_Orgs_CYP_iii_b | AB16: Data_Dates_CYP_iii_b | AD16: National and regional measure only | AE16: National and regional measure only
A17: CYP_iv_a | B17: CYP(iv.a) | C17: Bed days of CYP under 18 in adult in-patient wards | D17: ='CYP(iv_a)_FINAL CALC'!B6 -> Q2 2019/20 | E17: =IFERROR(IF(ISNUMBER( INDEX(INDIRECT($Z17), MATCH('Calc - Sparklines'!$C$1,INDIRECT($AA17),0), MATCH('Calc - Sparklines'!$D17,INDIRECT($AB17),0)-E$3))=FALSE,NA(), INDEX(INDIRECT($Z17), MATCH('Calc - Sparklines'!$C$1,INDIRECT($AA17),0), MATCH('Calc - Sparklines'!$D17,INDIRECT($AB17),0)-E$3)),NA()) -> 2700 | F17: =IFERROR(IF(ISNUMBER( INDEX(INDIRECT($Z17), MATCH('Calc - Sparklines'!$C$1,INDIRECT($AA17),0), MATCH('Calc - Sparklines'!$D17,INDIRECT($AB17),0)-F$3))=FALSE,NA(), INDEX(INDIRECT($Z17), MATCH('Calc - Sparklines'!$C$1,INDIRECT($AA17),0), MATCH('Calc - Sparklines'!$D17,INDIRECT($AB17),0)-F$3)),NA()) -> 321 | G17: =IFERROR(IF(ISNUMBER( INDEX(INDIRECT($Z17), MATCH('Calc - Sparklines'!$C$1,INDIRECT($AA17),0), MATCH('Calc - Sparklines'!$D17,INDIRECT($AB17),0)-G$3))=FALSE,NA(), INDEX(INDIRECT($Z17), MATCH('Calc - Sparklines'!$C$1,INDIRECT($AA17),0), MATCH('Calc - Sparklines'!$D17,INDIRECT($AB17),0)-G$3)),NA()) -> 428 | H17: =IFERROR(IF(ISNUMBER( INDEX(INDIRECT($Z17), MATCH('Calc - Sparklines'!$C$1,INDIRECT($AA17),0), MATCH('Calc - Sparklines'!$D17,INDIRECT($AB17),0)-H$3))=FALSE,NA(), INDEX(INDIRECT($Z17), MATCH('Calc - Sparklines'!$C$1,INDIRECT($AA17),0), MATCH('Calc - Sparklines'!$D17,INDIRECT($AB17),0)-H$3)),NA()) -> 522 | I17: =IFERROR(IF(ISNUMBER( INDEX(INDIRECT($Z17), MATCH('Calc - Sparklines'!$C$1,INDIRECT($AA17),0), MATCH('Calc - Sparklines'!$D17,INDIRECT($AB17),0)-I$3))=FALSE,NA(), INDEX(INDIRECT($Z17), MATCH('Calc - Sparklines'!$C$1,INDIRECT($AA17),0), MATCH('Calc - Sparklines'!$D17,INDIRECT($AB17),0)-I$3)),NA()) -> 767 | J17: =IFERROR(IF(ISNUMBER( INDEX(INDIRECT($Z17), MATCH('Calc - Sparklines'!$C$1,INDIRECT($AA17),0), MATCH('Calc - Sparklines'!$D17,INDIRECT($AB17),0)-J$3))=FALSE,NA(), INDEX(INDIRECT($Z17), MATCH('Calc - Sparklines'!$C$1,INDIRECT($AA17),0), MATCH('Calc - Sparklines'!$D17,INDIRECT($AB17),0)-J$3)),NA()) -> 451 | K17: =IFERROR(IF(ISNUMBER( INDEX(INDIRECT($Z17), MATCH('Calc - Sparklines'!$C$1,INDIRECT($AA17),0), MATCH('Calc - Sparklines'!$D17,INDIRECT($AB17),0)-K$3))=FALSE,NA(), INDEX(INDIRECT($Z17), MATCH('Calc - Sparklines'!$C$1,INDIRECT($AA17),0), MATCH('Calc - Sparklines'!$D17,INDIRECT($AB17),0)-K$3)),NA()) -> 364 | L17: =IFERROR(IF(ISNUMBER( INDEX(INDIRECT($Z17), MATCH('Calc - Sparklines'!$C$1,INDIRECT($AA17),0), MATCH('Calc - Sparklines'!$D17,INDIRECT($AB17),0)-L$3))=FALSE,NA(), INDEX(INDIRECT($Z17), MATCH('Calc - Sparklines'!$C$1,INDIRECT($AA17),0), MATCH('Calc - Sparklines'!$D17,INDIRECT($AB17),0)-L$3)),NA()) -> 388 | M17: =IFERROR(IF(ISNUMBER( INDEX(INDIRECT($Z17), MATCH('Calc - Sparklines'!$C$1,INDIRECT($AA17),0), MATCH('Calc - Sparklines'!$D17,INDIRECT($AB17),0)-M$3))=FALSE,NA(), INDEX(INDIRECT($Z17), MATCH('Calc - Sparklines'!$C$1,INDIRECT($AA17),0), MATCH('Calc - Sparklines'!$D17,INDIRECT($AB17),0)-M$3)),NA()) -> 282 | N17: =IFERROR(IF(ISNUMBER( INDEX(INDIRECT($Z17), MATCH('Calc - Sparklines'!$C$1,INDIRECT($AA17),0), MATCH('Calc - Sparklines'!$D17,INDIRECT($AB17),0)-N$3))=FALSE,NA(), INDEX(INDIRECT($Z17), MATCH('Calc - Sparklines'!$C$1,INDIRECT($AA17),0), MATCH('Calc - Sparklines'!$D17,INDIRECT($AB17),0)-N$3)),NA()) -> 505 | O17: =IFERROR(IF(ISNUMBER( INDEX(INDIRECT($Z17), MATCH('Calc - Sparklines'!$C$1,INDIRECT($AA17),0), MATCH('Calc - Sparklines'!$D17,INDIRECT($AB17),0)-O$3))=FALSE,NA(), INDEX(INDIRECT($Z17), MATCH('Calc - Sparklines'!$C$1,INDIRECT($AA17),0), MATCH('Calc - Sparklines'!$D17,INDIRECT($AB17),0)-O$3)),NA()) -> 426 | P17: =IFERROR(IF(ISNUMBER( INDEX(INDIRECT($Z17), MATCH('Calc - Sparklines'!$C$1,INDIRECT($AA17),0), MATCH('Calc - Sparklines'!$D17,INDIRECT($AB17),0)-P$3))=FALSE,NA(), INDEX(INDIRECT($Z17), MATCH('Calc - Sparklines'!$C$1,INDIRECT($AA17),0), MATCH('Calc - Sparklines'!$D17,INDIRECT($AB17),0)-P$3)),NA()) -> 1122 | R17: 6 | S17: =IF(P17="N/A",IF(O17="N/A",2,1),0) -> 0 | T17: =OFFSET(P17,,-S17) -> 1122 | U17: =IF(ISERROR(O17),IF(ISERROR(N17),IF(ISERROR(M17),IF(ISERROR(L17),IF(ISERROR(K17),IF(ISERROR(J17),IF(ISERROR(I17),IF(ISERROR(H17),IF(ISERROR(G17),IF(ISERROR(F17),IF(ISERROR(E17), NA(), E17),F17),G17),H17),I17),J17),K17),L17),M17),N17),O17) -> 426 | V17: =IF(D17="","",IFERROR(IF(T17>U17,"▲", IF(T17<U17,"▼","◄►")),"N/A")) -> ▲ | W17: Sparkline08 | Z17: Data_Table_CYP_iv_a | AA17: Data_Orgs_CYP_iv_a | AB17: Data_Dates_CYP_iv_a
A18: CYP_iv_b | B18: CYP(iv.b) | C18: Number of CYP under 18 in adult in-patient wards | D18: ='CYP(iv_b)_FINAL CALC'!B6 -> Q2 2019/20 | E18: =IFERROR(IF(ISNUMBER( INDEX(INDIRECT($Z18), MATCH('Calc - Sparklines'!$C$1,INDIRECT($AA18),0), MATCH('Calc - Sparklines'!$D18,INDIRECT($AB18),0)-E$3))=FALSE,NA(), INDEX(INDIRECT($Z18), MATCH('Calc - Sparklines'!$C$1,INDIRECT($AA18),0), MATCH('Calc - Sparklines'!$D18,INDIRECT($AB18),0)-E$3)),NA()) -> 83 | F18: =IFERROR(IF(ISNUMBER( INDEX(INDIRECT($Z18), MATCH('Calc - Sparklines'!$C$1,INDIRECT($AA18),0), MATCH('Calc - Sparklines'!$D18,INDIRECT($AB18),0)-F$3))=FALSE,NA(), INDEX(INDIRECT($Z18), MATCH('Calc - Sparklines'!$C$1,INDIRECT($AA18),0), MATCH('Calc - Sparklines'!$D18,INDIRECT($AB18),0)-F$3)),NA()) -> 42 | G18: =IFERROR(IF(ISNUMBER( INDEX(INDIRECT($Z18), MATCH('Calc - Sparklines'!$C$1,INDIRECT($AA18),0), MATCH('Calc - Sparklines'!$D18,INDIRECT($AB18),0)-G$3))=FALSE,NA(), INDEX(INDIRECT($Z18), MATCH('Calc - Sparklines'!$C$1,INDIRECT($AA18),0), MATCH('Calc - Sparklines'!$D18,INDIRECT($AB18),0)-G$3)),NA()) -> 57 | H18: =IFERROR(IF(ISNUMBER( INDEX(INDIRECT($Z18), MATCH('Calc - Sparklines'!$C$1,INDIRECT($AA18),0), MATCH('Calc - Sparklines'!$D18,INDIRECT($AB18),0)-H$3))=FALSE,NA(), INDEX(INDIRECT($Z18), MATCH('Calc - Sparklines'!$C$1,INDIRECT($AA18),0), MATCH('Calc - Sparklines'!$D18,INDIRECT($AB18),0)-H$3)),NA()) -> 49 | I18: =IFERROR(IF(ISNUMBER( INDEX(INDIRECT($Z18), MATCH('Calc - Sparklines'!$C$1,INDIRECT($AA18),0), MATCH('Calc - Sparklines'!$D18,INDIRECT($AB18),0)-I$3))=FALSE,NA(), INDEX(INDIRECT($Z18), MATCH('Calc - Sparklines'!$C$1,INDIRECT($AA18),0), MATCH('Calc - Sparklines'!$D18,INDIRECT($AB18),0)-I$3)),NA()) -> 58 | J18: =IFERROR(IF(ISNUMBER( INDEX(INDIRECT($Z18), MATCH('Calc - Sparklines'!$C$1,INDIRECT($AA18),0), MATCH('Calc - Sparklines'!$D18,INDIRECT($AB18),0)-J$3))=FALSE,NA(), INDEX(INDIRECT($Z18), MATCH('Calc - Sparklines'!$C$1,INDIRECT($AA18),0), MATCH('Calc - Sparklines'!$D18,INDIRECT($AB18),0)-J$3)),NA()) -> 53 | K18: =IFERROR(IF(ISNUMBER( INDEX(INDIRECT($Z18), MATCH('Calc - Sparklines'!$C$1,INDIRECT($AA18),0), MATCH('Calc - Sparklines'!$D18,INDIRECT($AB18),0)-K$3))=FALSE,NA(), INDEX(INDIRECT($Z18), MATCH('Calc - Sparklines'!$C$1,INDIRECT($AA18),0), MATCH('Calc - Sparklines'!$D18,INDIRECT($AB18),0)-K$3)),NA()) -> 48 | L18: =IFERROR(IF(ISNUMBER( INDEX(INDIRECT($Z18), MATCH('Calc - Sparklines'!$C$1,INDIRECT($AA18),0), MATCH('Calc - Sparklines'!$D18,INDIRECT($AB18),0)-L$3))=FALSE,NA(), INDEX(INDIRECT($Z18), MATCH('Calc - Sparklines'!$C$1,INDIRECT($AA18),0), MATCH('Calc - Sparklines'!$D18,INDIRECT($AB18),0)-L$3)),NA()) -> 37 | M18: =IFERROR(IF(ISNUMBER( INDEX(INDIRECT($Z18), MATCH('Calc - Sparklines'!$C$1,INDIRECT($AA18),0), MATCH('Calc - Sparklines'!$D18,INDIRECT($AB18),0)-M$3))=FALSE,NA(), INDEX(INDIRECT($Z18), MATCH('Calc - Sparklines'!$C$1,INDIRECT($AA18),0), MATCH('Calc - Sparklines'!$D18,INDIRECT($AB18),0)-M$3)),NA()) -> 37 | N18: =IFERROR(IF(ISNUMBER( INDEX(INDIRECT($Z18), MATCH('Calc - Sparklines'!$C$1,INDIRECT($AA18),0), MATCH('Calc - Sparklines'!$D18,INDIRECT($AB18),0)-N$3))=FALSE,NA(), INDEX(INDIRECT($Z18), MATCH('Calc - Sparklines'!$C$1,INDIRECT($AA18),0), MATCH('Calc - Sparklines'!$D18,INDIRECT($AB18),0)-N$3)),NA()) -> 74 | O18: =IFERROR(IF(ISNUMBER( INDEX(INDIRECT($Z18), MATCH('Calc - Sparklines'!$C$1,INDIRECT($AA18),0), MATCH('Calc - Sparklines'!$D18,INDIRECT($AB18),0)-O$3))=FALSE,NA(), INDEX(INDIRECT($Z18), MATCH('Calc - Sparklines'!$C$1,INDIRECT($AA18),0), MATCH('Calc - Sparklines'!$D18,INDIRECT($AB18),0)-O$3)),NA()) -> 72 | P18: =IFERROR(IF(ISNUMBER( INDEX(INDIRECT($Z18), MATCH('Calc - Sparklines'!$C$1,INDIRECT($AA18),0), MATCH('Calc - Sparklines'!$D18,INDIRECT($AB18),0)-P$3))=FALSE,NA(), INDEX(INDIRECT($Z18), MATCH('Calc - Sparklines'!$C$1,INDIRECT($AA18),0), MATCH('Calc - Sparklines'!$D18,INDIRECT($AB18),0)-P$3)),NA()) -> 133 | R18: 6 | S18: =IF(P18="N/A",IF(O18="N/A",2,1),0) -> 0 | T18: 133 | U18: 72 | V18: ▲ | W18: Sparkline09 | Z18: Data_Table_CYP_iv_b | AA18: Data_Orgs_CYP_iv_b | AB18: Data_Dates_CYP_iv_b
A19: CYP_v | B19: CYP(v) | C19: CYP MH forecast outturn (£k) - excluding learning disabilities and eating disorders | D19: ='CYP(v)_FINAL CALC'!$B$6 -> 2019/20 planned | E19: =IFERROR(IF(ISNUMBER( INDEX(INDIRECT($Z19), MATCH('Calc - Sparklines'!$C$1,INDIRECT($AA19),0), MATCH('Calc - Sparklines'!$D19,INDIRECT($AB19),0)-E$4))=FALSE,NA(), INDEX(INDIRECT($Z19), MATCH('Calc - Sparklines'!$C$1,INDIRECT($AA19),0), MATCH('Calc - Sparklines'!$D19,INDIRECT($AB19),0)-E$4)),NA()) ->  | F19: =IFERROR(IF(ISNUMBER( INDEX(INDIRECT($Z19), MATCH('Calc - Sparklines'!$C$1,INDIRECT($AA19),0), MATCH('Calc - Sparklines'!$D19,INDIRECT($AB19),0)-F$4))=FALSE,NA(), INDEX(INDIRECT($Z19), MATCH('Calc - Sparklines'!$C$1,INDIRECT($AA19),0), MATCH('Calc - Sparklines'!$D19,INDIRECT($AB19),0)-F$4)),NA()) ->  | G19: =IFERROR(IF(ISNUMBER( INDEX(INDIRECT($Z19), MATCH('Calc - Sparklines'!$C$1,INDIRECT($AA19),0), MATCH('Calc - Sparklines'!$D19,INDIRECT($AB19),0)-G$4))=FALSE,NA(), INDEX(INDIRECT($Z19), MATCH('Calc - Sparklines'!$C$1,INDIRECT($AA19),0), MATCH('Calc - Sparklines'!$D19,INDIRECT($AB19),0)-G$4)),NA()) ->  | H19: =IFERROR(IF(ISNUMBER( INDEX(INDIRECT($Z19), MATCH('Calc - Sparklines'!$C$1,INDIRECT($AA19),0), MATCH('Calc - Sparklines'!$D19,INDIRECT($AB19),0)-H$4))=FALSE,NA(), INDEX(INDIRECT($Z19), MATCH('Calc - Sparklines'!$C$1,INDIRECT($AA19),0), MATCH('Calc - Sparklines'!$D19,INDIRECT($AB19),0)-H$4)),NA()) ->  | I19: =IFERROR(IF(ISNUMBER( INDEX(INDIRECT($Z19), MATCH('Calc - Sparklines'!$C$1,INDIRECT($AA19),0), MATCH('Calc - Sparklines'!$D19,INDIRECT($AB19),0)-I$4))=FALSE,NA(), INDEX(INDIRECT($Z19), MATCH('Calc - Sparklines'!$C$1,INDIRECT($AA19),0), MATCH('Calc - Sparklines'!$D19,INDIRECT($AB19),0)-I$4)),NA()) ->  | J19: =IFERROR(IF(ISNUMBER( INDEX(INDIRECT($Z19), MATCH('Calc - Sparklines'!$C$1,INDIRECT($AA19),0), MATCH('Calc - Sparklines'!$D19,INDIRECT($AB19),0)-J$4))=FALSE,NA(), INDEX(INDIRECT($Z19), MATCH('Calc - Sparklines'!$C$1,INDIRECT($AA19),0), MATCH('Calc - Sparklines'!$D19,INDIRECT($AB19),0)-J$4)),NA()) ->  | K19: =IFERROR(IF(ISNUMBER( INDEX(INDIRECT($Z19), MATCH('Calc - Sparklines'!$C$1,INDIRECT($AA19),0), MATCH('Calc - Sparklines'!$D19,INDIRECT($AB19),0)-K$4))=FALSE,NA(), INDEX(INDIRECT($Z19), MATCH('Calc - Sparklines'!$C$1,INDIRECT($AA19),0), MATCH('Calc - Sparklines'!$D19,INDIRECT($AB19),0)-K$4)),NA()) ->  | L19: =IFERROR(IF(ISNUMBER( INDEX(INDIRECT($Z19), MATCH('Calc - Sparklines'!$C$1,INDIRECT($AA19),0), MATCH('Calc - Sparklines'!$D19,INDIRECT($AB19),0)-L$4))=FALSE,NA(), INDEX(INDIRECT($Z19), MATCH('Calc - Sparklines'!$C$1,INDIRECT($AA19),0), MATCH('Calc - Sparklines'!$D19,INDIRECT($AB19),0)-L$4)),NA()) ->  | M19: =IFERROR(IF(ISNUMBER( INDEX(INDIRECT($Z19), MATCH('Calc - Sparklines'!$C$1,INDIRECT($AA19),0), MATCH('Calc - Sparklines'!$D19,INDIRECT($AB19),0)-M$4))=FALSE,NA(), INDEX(INDIRECT($Z19), MATCH('Calc - Sparklines'!$C$1,INDIRECT($AA19),0), MATCH('Calc - Sparklines'!$D19,INDIRECT($AB19),0)-M$4)),NA()) ->  | N19: =IFERROR(IF(ISNUMBER( INDEX(INDIRECT($Z19), MATCH('Calc - Sparklines'!$C$1,INDIRECT($AA19),0), MATCH('Calc - Sparklines'!$D19,INDIRECT($AB19),0)-N$4))=FALSE,NA(), INDEX(INDIRECT($Z19), MATCH('Calc - Sparklines'!$C$1,INDIRECT($AA19),0), MATCH('Calc - Sparklines'!$D19,INDIRECT($AB19),0)-N$4)),NA()) -> 614127742.6 | O19: =IFERROR(IF(ISNUMBER( INDEX(INDIRECT($Z19), MATCH('Calc - Sparklines'!$C$1,INDIRECT($AA19),0), MATCH('Calc - Sparklines'!$D19,INDIRECT($AB19),0)-O$4))=FALSE,NA(), INDEX(INDIRECT($Z19), MATCH('Calc - Sparklines'!$C$1,INDIRECT($AA19),0), MATCH('Calc - Sparklines'!$D19,INDIRECT($AB19),0)-O$4)),NA()) -> 676604727.4 | P19: =IFERROR(IF(ISNUMBER( INDEX(INDIRECT($Z19), MATCH('Calc - Sparklines'!$C$1,INDIRECT($AA19),0), MATCH('Calc - Sparklines'!$D19,INDIRECT($AB19),0)-P$4))=FALSE,NA(), INDEX(INDIRECT($Z19), MATCH('Calc - Sparklines'!$C$1,INDIRECT($AA19),0), MATCH('Calc - Sparklines'!$D19,INDIRECT($AB19),0)-P$4)),NA()) -> 773647172.9 | R19: 6 | S19: 0 | T19: 773647172.9 | U19: 676604727.4 | V19: ▲ | W19: Sparkline10 | X19: N/A | Z19: Data_Table_CYP_v | AA19: Data_Orgs_CYP_v | AB19: Data_Dates_CYP_v | AD19: Not Applicable | AE19: Not Applicable
A20: CYP_vi | B20: CYP(vi) | C20: CYP MH forecast outturn (£k) - eating disorders | D20: ='CYP(vi)_FINAL CALC'!$B$6 -> 2019/20 planned | E20: =IFERROR(IF(ISNUMBER( INDEX(INDIRECT($Z20), MATCH('Calc - Sparklines'!$C$1,INDIRECT($AA20),0), MATCH('Calc - Sparklines'!$D20,INDIRECT($AB20),0)-E$4))=FALSE,NA(), INDEX(INDIRECT($Z20), MATCH('Calc - Sparklines'!$C$1,INDIRECT($AA20),0), MATCH('Calc - Sparklines'!$D20,INDIRECT($AB20),0)-E$4)),NA()) ->  | F20: =IFERROR(IF(ISNUMBER( INDEX(INDIRECT($Z20), MATCH('Calc - Sparklines'!$C$1,INDIRECT($AA20),0), MATCH('Calc - Sparklines'!$D20,INDIRECT($AB20),0)-F$4))=FALSE,NA(), INDEX(INDIRECT($Z20), MATCH('Calc - Sparklines'!$C$1,INDIRECT($AA20),0), MATCH('Calc - Sparklines'!$D20,INDIRECT($AB20),0)-F$4)),NA()) ->  | G20: =IFERROR(IF(ISNUMBER( INDEX(INDIRECT($Z20), MATCH('Calc - Sparklines'!$C$1,INDIRECT($AA20),0), MATCH('Calc - Sparklines'!$D20,INDIRECT($AB20),0)-G$4))=FALSE,NA(), INDEX(INDIRECT($Z20), MATCH('Calc - Sparklines'!$C$1,INDIRECT($AA20),0), MATCH('Calc - Sparklines'!$D20,INDIRECT($AB20),0)-G$4)),NA()) ->  | H20: =IFERROR(IF(ISNUMBER( INDEX(INDIRECT($Z20), MATCH('Calc - Sparklines'!$C$1,INDIRECT($AA20),0), MATCH('Calc - Sparklines'!$D20,INDIRECT($AB20),0)-H$4))=FALSE,NA(), INDEX(INDIRECT($Z20), MATCH('Calc - Sparklines'!$C$1,INDIRECT($AA20),0), MATCH('Calc - Sparklines'!$D20,INDIRECT($AB20),0)-H$4)),NA()) ->  | I20: =IFERROR(IF(ISNUMBER( INDEX(INDIRECT($Z20), MATCH('Calc - Sparklines'!$C$1,INDIRECT($AA20),0), MATCH('Calc - Sparklines'!$D20,INDIRECT($AB20),0)-I$4))=FALSE,NA(), INDEX(INDIRECT($Z20), MATCH('Calc - Sparklines'!$C$1,INDIRECT($AA20),0), MATCH('Calc - Sparklines'!$D20,INDIRECT($AB20),0)-I$4)),NA()) ->  | J20: =IFERROR(IF(ISNUMBER( INDEX(INDIRECT($Z20), MATCH('Calc - Sparklines'!$C$1,INDIRECT($AA20),0), MATCH('Calc - Sparklines'!$D20,INDIRECT($AB20),0)-J$4))=FALSE,NA(), INDEX(INDIRECT($Z20), MATCH('Calc - Sparklines'!$C$1,INDIRECT($AA20),0), MATCH('Calc - Sparklines'!$D20,INDIRECT($AB20),0)-J$4)),NA()) ->  | K20: =IFERROR(IF(ISNUMBER( INDEX(INDIRECT($Z20), MATCH('Calc - Sparklines'!$C$1,INDIRECT($AA20),0), MATCH('Calc - Sparklines'!$D20,INDIRECT($AB20),0)-K$4))=FALSE,NA(), INDEX(INDIRECT($Z20), MATCH('Calc - Sparklines'!$C$1,INDIRECT($AA20),0), MATCH('Calc - Sparklines'!$D20,INDIRECT($AB20),0)-K$4)),NA()) ->  | L20: =IFERROR(IF(ISNUMBER( INDEX(INDIRECT($Z20), MATCH('Calc - Sparklines'!$C$1,INDIRECT($AA20),0), MATCH('Calc - Sparklines'!$D20,INDIRECT($AB20),0)-L$4))=FALSE,NA(), INDEX(INDIRECT($Z20), MATCH('Calc - Sparklines'!$C$1,INDIRECT($AA20),0), MATCH('Calc - Sparklines'!$D20,INDIRECT($AB20),0)-L$4)),NA()) ->  | M20: =IFERROR(IF(ISNUMBER( INDEX(INDIRECT($Z20), MATCH('Calc - Sparklines'!$C$1,INDIRECT($AA20),0), MATCH('Calc - Sparklines'!$D20,INDIRECT($AB20),0)-M$4))=FALSE,NA(), INDEX(INDIRECT($Z20), MATCH('Calc - Sparklines'!$C$1,INDIRECT($AA20),0), MATCH('Calc - Sparklines'!$D20,INDIRECT($AB20),0)-M$4)),NA()) ->  | N20: =IFERROR(IF(ISNUMBER( INDEX(INDIRECT($Z20), MATCH('Calc - Sparklines'!$C$1,INDIRECT($AA20),0), MATCH('Calc - Sparklines'!$D20,INDIRECT($AB20),0)-N$4))=FALSE,NA(), INDEX(INDIRECT($Z20), MATCH('Calc - Sparklines'!$C$1,INDIRECT($AA20),0), MATCH('Calc - Sparklines'!$D20,INDIRECT($AB20),0)-N$4)),NA()) -> 46716934.23 | O20: =IFERROR(IF(ISNUMBER( INDEX(INDIRECT($Z20), MATCH('Calc - Sparklines'!$C$1,INDIRECT($AA20),0), MATCH('Calc - Sparklines'!$D20,INDIRECT($AB20),0)-O$4))=FALSE,NA(), INDEX(INDIRECT($Z20), MATCH('Calc - Sparklines'!$C$1,INDIRECT($AA20),0), MATCH('Calc - Sparklines'!$D20,INDIRECT($AB20),0)-O$4)),NA()) -> 50720650.11 | P20: =IFERROR(IF(ISNUMBER( INDEX(INDIRECT($Z20), MATCH('Calc - Sparklines'!$C$1,INDIRECT($AA20),0), MATCH('Calc - Sparklines'!$D20,INDIRECT($AB20),0)-P$4))=FALSE,NA(), INDEX(INDIRECT($Z20), MATCH('Calc - Sparklines'!$C$1,INDIRECT($AA20),0), MATCH('Calc - Sparklines'!$D20,INDIRECT($AB20),0)-P$4)),NA()) -> 52087100.46 | R20: 6 | S20: 0 | T20: 52087100.46 | U20: 50720650.11 | V20: ▲ | W20: Sparkline11 | X20: N/A | Z20: Data_Table_CYP_vi | AA20: Data_Orgs_CYP_vi | AB20: Data_Dates_CYP_vi
A21: Adult mental health: common mental health problems | B21: Adult mental health: common mental health problems | E21: =IFERROR(IF(ISNUMBER( INDEX(INDIRECT($Z21), MATCH('Calc - Sparklines'!$C$1,INDIRECT($AA21),0), MATCH('Calc - Sparklines'!$D21,INDIRECT($AB21),0)-E$3))=FALSE,NA(), INDEX(INDIRECT($Z21), MATCH('Calc - Sparklines'!$C$1,INDIRECT($AA21),0), MATCH('Calc - Sparklines'!$D21,INDIRECT($AB21),0)-E$3)),NA()) ->  | F21: =IFERROR(IF(ISNUMBER( INDEX(INDIRECT($Z21), MATCH('Calc - Sparklines'!$C$1,INDIRECT($AA21),0), MATCH('Calc - Sparklines'!$D21,INDIRECT($AB21),0)-F$3))=FALSE,NA(), INDEX(INDIRECT($Z21), MATCH('Calc - Sparklines'!$C$1,INDIRECT($AA21),0), MATCH('Calc - Sparklines'!$D21,INDIRECT($AB21),0)-F$3)),NA()) ->  | G21: =IFERROR(IF(ISNUMBER( INDEX(INDIRECT($Z21), MATCH('Calc - Sparklines'!$C$1,INDIRECT($AA21),0), MATCH('Calc - Sparklines'!$D21,INDIRECT($AB21),0)-G$3))=FALSE,NA(), INDEX(INDIRECT($Z21), MATCH('Calc - Sparklines'!$C$1,INDIRECT($AA21),0), MATCH('Calc - Sparklines'!$D21,INDIRECT($AB21),0)-G$3)),NA()) ->  | H21: =IFERROR(IF(ISNUMBER( INDEX(INDIRECT($Z21), MATCH('Calc - Sparklines'!$C$1,INDIRECT($AA21),0), MATCH('Calc - Sparklines'!$D21,INDIRECT($AB21),0)-H$3))=FALSE,NA(), INDEX(INDIRECT($Z21), MATCH('Calc - Sparklines'!$C$1,INDIRECT($AA21),0), MATCH('Calc - Sparklines'!$D21,INDIRECT($AB21),0)-H$3)),NA()) ->  | I21: =IFERROR(IF(ISNUMBER( INDEX(INDIRECT($Z21), MATCH('Calc - Sparklines'!$C$1,INDIRECT($AA21),0), MATCH('Calc - Sparklines'!$D21,INDIRECT($AB21),0)-I$3))=FALSE,NA(), INDEX(INDIRECT($Z21), MATCH('Calc - Sparklines'!$C$1,INDIRECT($AA21),0), MATCH('Calc - Sparklines'!$D21,INDIRECT($AB21),0)-I$3)),NA()) ->  | J21: =IFERROR(IF(ISNUMBER( INDEX(INDIRECT($Z21), MATCH('Calc - Sparklines'!$C$1,INDIRECT($AA21),0), MATCH('Calc - Sparklines'!$D21,INDIRECT($AB21),0)-J$3))=FALSE,NA(), INDEX(INDIRECT($Z21), MATCH('Calc - Sparklines'!$C$1,INDIRECT($AA21),0), MATCH('Calc - Sparklines'!$D21,INDIRECT($AB21),0)-J$3)),NA()) ->  | K21: =IFERROR(IF(ISNUMBER( INDEX(INDIRECT($Z21), MATCH('Calc - Sparklines'!$C$1,INDIRECT($AA21),0), MATCH('Calc - Sparklines'!$D21,INDIRECT($AB21),0)-K$3))=FALSE,NA(), INDEX(INDIRECT($Z21), MATCH('Calc - Sparklines'!$C$1,INDIRECT($AA21),0), MATCH('Calc - Sparklines'!$D21,INDIRECT($AB21),0)-K$3)),NA()) ->  | L21: =IFERROR(IF(ISNUMBER( INDEX(INDIRECT($Z21), MATCH('Calc - Sparklines'!$C$1,INDIRECT($AA21),0), MATCH('Calc - Sparklines'!$D21,INDIRECT($AB21),0)-L$3))=FALSE,NA(), INDEX(INDIRECT($Z21), MATCH('Calc - Sparklines'!$C$1,INDIRECT($AA21),0), MATCH('Calc - Sparklines'!$D21,INDIRECT($AB21),0)-L$3)),NA()) ->  | M21: =IFERROR(IF(ISNUMBER( INDEX(INDIRECT($Z21), MATCH('Calc - Sparklines'!$C$1,INDIRECT($AA21),0), MATCH('Calc - Sparklines'!$D21,INDIRECT($AB21),0)-M$3))=FALSE,NA(), INDEX(INDIRECT($Z21), MATCH('Calc - Sparklines'!$C$1,INDIRECT($AA21),0), MATCH('Calc - Sparklines'!$D21,INDIRECT($AB21),0)-M$3)),NA()) ->  | N21: =IFERROR(IF(ISNUMBER( INDEX(INDIRECT($Z21), MATCH('Calc - Sparklines'!$C$1,INDIRECT($AA21),0), MATCH('Calc - Sparklines'!$D21,INDIRECT($AB21),0)-N$3))=FALSE,NA(), INDEX(INDIRECT($Z21), MATCH('Calc - Sparklines'!$C$1,INDIRECT($AA21),0), MATCH('Calc - Sparklines'!$D21,INDIRECT($AB21),0)-N$3)),NA()) ->  | O21: =IFERROR(IF(ISNUMBER( INDEX(INDIRECT($Z21), MATCH('Calc - Sparklines'!$C$1,INDIRECT($AA21),0), MATCH('Calc - Sparklines'!$D21,INDIRECT($AB21),0)-O$3))=FALSE,NA(), INDEX(INDIRECT($Z21), MATCH('Calc - Sparklines'!$C$1,INDIRECT($AA21),0), MATCH('Calc - Sparklines'!$D21,INDIRECT($AB21),0)-O$3)),NA()) ->  | P21: =IFERROR(IF(ISNUMBER( INDEX(INDIRECT($Z21), MATCH('Calc - Sparklines'!$C$1,INDIRECT($AA21),0), MATCH('Calc - Sparklines'!$D21,INDIRECT($AB21),0)-P$3))=FALSE,NA(), INDEX(INDIRECT($Z21), MATCH('Calc - Sparklines'!$C$1,INDIRECT($AA21),0), MATCH('Calc - Sparklines'!$D21,INDIRECT($AB21),0)-P$3)),NA()) ->  | R21: 0 | X21: =IF(ISNA(T21),"N/A",IF(R21<=2,"N/A","")) -> N/A | AD21: Heading
A22: IAPT_i_a | B22: IAPT(i.a) | C22: IAPT access to treatment rate | D22: ='IAPT(i_a)_FINAL CALC'!B6 -> Q2 2019/20 | E22: =IFERROR(IF(ISNUMBER( INDEX(INDIRECT($Z22), MATCH('Calc - Sparklines'!$C$1,INDIRECT($AA22),0), MATCH('Calc - Sparklines'!$D22,INDIRECT($AB22),0)-E$3))=FALSE,NA(), INDEX(INDIRECT($Z22), MATCH('Calc - Sparklines'!$C$1,INDIRECT($AA22),0), MATCH('Calc - Sparklines'!$D22,INDIRECT($AB22),0)-E$3)),NA()) -> 0.03806242492 | F22: =IFERROR(IF(ISNUMBER( INDEX(INDIRECT($Z22), MATCH('Calc - Sparklines'!$C$1,INDIRECT($AA22),0), MATCH('Calc - Sparklines'!$D22,INDIRECT($AB22),0)-F$3))=FALSE,NA(), INDEX(INDIRECT($Z22), MATCH('Calc - Sparklines'!$C$1,INDIRECT($AA22),0), MATCH('Calc - Sparklines'!$D22,INDIRECT($AB22),0)-F$3)),NA()) -> 0.04120502699 | G22: =IFERROR(IF(ISNUMBER( INDEX(INDIRECT($Z22), MATCH('Calc - Sparklines'!$C$1,INDIRECT($AA22),0), MATCH('Calc - Sparklines'!$D22,INDIRECT($AB22),0)-G$3))=FALSE,NA(), INDEX(INDIRECT($Z22), MATCH('Calc - Sparklines'!$C$1,INDIRECT($AA22),0), MATCH('Calc - Sparklines'!$D22,INDIRECT($AB22),0)-G$3)),NA()) -> 0.04030370169 | H22: =IFERROR(IF(ISNUMBER( INDEX(INDIRECT($Z22), MATCH('Calc - Sparklines'!$C$1,INDIRECT($AA22),0), MATCH('Calc - Sparklines'!$D22,INDIRECT($AB22),0)-H$3))=FALSE,NA(), INDEX(INDIRECT($Z22), MATCH('Calc - Sparklines'!$C$1,INDIRECT($AA22),0), MATCH('Calc - Sparklines'!$D22,INDIRECT($AB22),0)-H$3)),NA()) -> 0.04011036142 | I22: =IFERROR(IF(ISNUMBER( INDEX(INDIRECT($Z22), MATCH('Calc - Sparklines'!$C$1,INDIRECT($AA22),0), MATCH('Calc - Sparklines'!$D22,INDIRECT($AB22),0)-I$3))=FALSE,NA(), INDEX(INDIRECT($Z22), MATCH('Calc - Sparklines'!$C$1,INDIRECT($AA22),0), MATCH('Calc - Sparklines'!$D22,INDIRECT($AB22),0)-I$3)),NA()) -> 0.04036843719 | J22: =IFERROR(IF(ISNUMBER( INDEX(INDIRECT($Z22), MATCH('Calc - Sparklines'!$C$1,INDIRECT($AA22),0), MATCH('Calc - Sparklines'!$D22,INDIRECT($AB22),0)-J$3))=FALSE,NA(), INDEX(INDIRECT($Z22), MATCH('Calc - Sparklines'!$C$1,INDIRECT($AA22),0), MATCH('Calc - Sparklines'!$D22,INDIRECT($AB22),0)-J$3)),NA()) -> 0.0427111943 | K22: =IFERROR(IF(ISNUMBER( INDEX(INDIRECT($Z22), MATCH('Calc - Sparklines'!$C$1,INDIRECT($AA22),0), MATCH('Calc - Sparklines'!$D22,INDIRECT($AB22),0)-K$3))=FALSE,NA(), INDEX(INDIRECT($Z22), MATCH('Calc - Sparklines'!$C$1,INDIRECT($AA22),0), MATCH('Calc - Sparklines'!$D22,INDIRECT($AB22),0)-K$3)),NA()) -> 0.04200192594 | L22: =IFERROR(IF(ISNUMBER( INDEX(INDIRECT($Z22), MATCH('Calc - Sparklines'!$C$1,INDIRECT($AA22),0), MATCH('Calc - Sparklines'!$D22,INDIRECT($AB22),0)-L$3))=FALSE,NA(), INDEX(INDIRECT($Z22), MATCH('Calc - Sparklines'!$C$1,INDIRECT($AA22),0), MATCH('Calc - Sparklines'!$D22,INDIRECT($AB22),0)-L$3)),NA()) -> 0.04239202189 | M22: =IFERROR(IF(ISNUMBER( INDEX(INDIRECT($Z22), MATCH('Calc - Sparklines'!$C$1,INDIRECT($AA22),0), MATCH('Calc - Sparklines'!$D22,INDIRECT($AB22),0)-M$3))=FALSE,NA(), INDEX(INDIRECT($Z22), MATCH('Calc - Sparklines'!$C$1,INDIRECT($AA22),0), MATCH('Calc - Sparklines'!$D22,INDIRECT($AB22),0)-M$3)),NA()) -> 0.04482094146 | N22: =IFERROR(IF(ISNUMBER( INDEX(INDIRECT($Z22), MATCH('Calc - Sparklines'!$C$1,INDIRECT($AA22),0), MATCH('Calc - Sparklines'!$D22,INDIRECT($AB22),0)-N$3))=FALSE,NA(), INDEX(INDIRECT($Z22), MATCH('Calc - Sparklines'!$C$1,INDIRECT($AA22),0), MATCH('Calc - Sparklines'!$D22,INDIRECT($AB22),0)-N$3)),NA()) -> 0.04764161283 | O22: =IFERROR(IF(ISNUMBER( INDEX(INDIRECT($Z22), MATCH('Calc - Sparklines'!$C$1,INDIRECT($AA22),0), MATCH('Calc - Sparklines'!$D22,INDIRECT($AB22),0)-O$3))=FALSE,NA(), INDEX(INDIRECT($Z22), MATCH('Calc - Sparklines'!$C$1,INDIRECT($AA22),0), MATCH('Calc - Sparklines'!$D22,INDIRECT($AB22),0)-O$3)),NA()) -> 0.04681891304 | P22: =IFERROR(IF(ISNUMBER( INDEX(INDIRECT($Z22), MATCH('Calc - Sparklines'!$C$1,INDIRECT($AA22),0), MATCH('Calc - Sparklines'!$D22,INDIRECT($AB22),0)-P$3))=FALSE,NA(), INDEX(INDIRECT($Z22), MATCH('Calc - Sparklines'!$C$1,INDIRECT($AA22),0), MATCH('Calc - Sparklines'!$D22,INDIRECT($AB22),0)-P$3)),NA()) -> 0.04691333274 | R22: 6 | S22: 0 | T22: 0.04691333274 | U22: 0.04681891304 | V22: ▲ | W22: Sparkline12 | Z22: Data_Table_IAPT_i_a | AA22: Data_Orgs_IAPT_i_a | AB22: Data_Dates_IAPT_i_a | AD22: Chart available at CCG & STP level only | AE22: =IF(OR(Dashboard!$M$3=1,Dashboard!$M$3=2),"Chart available at CCG & STP level only","") -> Chart available at CCG & STP level only
A23: IAPT_i_b | B23: IAPT(i.b) | C23: IAPT % of all referrals that are for older people 65+ | D23: ='IAPT(i_b)_FINAL CALC'!B6 -> Q2 2019/20 | E23: =IFERROR(IF(ISNUMBER( INDEX(INDIRECT($Z23), MATCH('Calc - Sparklines'!$C$1,INDIRECT($AA23),0), MATCH('Calc - Sparklines'!$D23,INDIRECT($AB23),0)-E$3))=FALSE,NA(), INDEX(INDIRECT($Z23), MATCH('Calc - Sparklines'!$C$1,INDIRECT($AA23),0), MATCH('Calc - Sparklines'!$D23,INDIRECT($AB23),0)-E$3)),NA()) -> 0.06117463801 | F23: =IFERROR(IF(ISNUMBER( INDEX(INDIRECT($Z23), MATCH('Calc - Sparklines'!$C$1,INDIRECT($AA23),0), MATCH('Calc - Sparklines'!$D23,INDIRECT($AB23),0)-F$3))=FALSE,NA(), INDEX(INDIRECT($Z23), MATCH('Calc - Sparklines'!$C$1,INDIRECT($AA23),0), MATCH('Calc - Sparklines'!$D23,INDIRECT($AB23),0)-F$3)),NA()) -> 0.06403633131 | G23: =IFERROR(IF(ISNUMBER( INDEX(INDIRECT($Z23), MATCH('Calc - Sparklines'!$C$1,INDIRECT($AA23),0), MATCH('Calc - Sparklines'!$D23,INDIRECT($AB23),0)-G$3))=FALSE,NA(), INDEX(INDIRECT($Z23), MATCH('Calc - Sparklines'!$C$1,INDIRECT($AA23),0), MATCH('Calc - Sparklines'!$D23,INDIRECT($AB23),0)-G$3)),NA()) -> 0.06786990036 | H23: =IFERROR(IF(ISNUMBER( INDEX(INDIRECT($Z23), MATCH('Calc - Sparklines'!$C$1,INDIRECT($AA23),0), MATCH('Calc - Sparklines'!$D23,INDIRECT($AB23),0)-H$3))=FALSE,NA(), INDEX(INDIRECT($Z23), MATCH('Calc - Sparklines'!$C$1,INDIRECT($AA23),0), MATCH('Calc - Sparklines'!$D23,INDIRECT($AB23),0)-H$3)),NA()) -> 0.0698328274 | I23: =IFERROR(IF(ISNUMBER( INDEX(INDIRECT($Z23), MATCH('Calc - Sparklines'!$C$1,INDIRECT($AA23),0), MATCH('Calc - Sparklines'!$D23,INDIRECT($AB23),0)-I$3))=FALSE,NA(), INDEX(INDIRECT($Z23), MATCH('Calc - Sparklines'!$C$1,INDIRECT($AA23),0), MATCH('Calc - Sparklines'!$D23,INDIRECT($AB23),0)-I$3)),NA()) -> 0.06498038852 | J23: =IFERROR(IF(ISNUMBER( INDEX(INDIRECT($Z23), MATCH('Calc - Sparklines'!$C$1,INDIRECT($AA23),0), MATCH('Calc - Sparklines'!$D23,INDIRECT($AB23),0)-J$3))=FALSE,NA(), INDEX(INDIRECT($Z23), MATCH('Calc - Sparklines'!$C$1,INDIRECT($AA23),0), MATCH('Calc - Sparklines'!$D23,INDIRECT($AB23),0)-J$3)),NA()) -> 0.06765652158 | K23: =IFERROR(IF(ISNUMBER( INDEX(INDIRECT($Z23), MATCH('Calc - Sparklines'!$C$1,INDIRECT($AA23),0), MATCH('Calc - Sparklines'!$D23,INDIRECT($AB23),0)-K$3))=FALSE,NA(), INDEX(INDIRECT($Z23), MATCH('Calc - Sparklines'!$C$1,INDIRECT($AA23),0), MATCH('Calc - Sparklines'!$D23,INDIRECT($AB23),0)-K$3)),NA()) -> 0.06930133626 | L23: =IFERROR(IF(ISNUMBER( INDEX(INDIRECT($Z23), MATCH('Calc - Sparklines'!$C$1,INDIRECT($AA23),0), MATCH('Calc - Sparklines'!$D23,INDIRECT($AB23),0)-L$3))=FALSE,NA(), INDEX(INDIRECT($Z23), MATCH('Calc - Sparklines'!$C$1,INDIRECT($AA23),0), MATCH('Calc - Sparklines'!$D23,INDIRECT($AB23),0)-L$3)),NA()) -> 0.06626504439 | M23: =IFERROR(IF(ISNUMBER( INDEX(INDIRECT($Z23), MATCH('Calc - Sparklines'!$C$1,INDIRECT($AA23),0), MATCH('Calc - Sparklines'!$D23,INDIRECT($AB23),0)-M$3))=FALSE,NA(), INDEX(INDIRECT($Z23), MATCH('Calc - Sparklines'!$C$1,INDIRECT($AA23),0), MATCH('Calc - Sparklines'!$D23,INDIRECT($AB23),0)-M$3)),NA()) -> 0.06149580671 | N23: =IFERROR(IF(ISNUMBER( INDEX(INDIRECT($Z23), MATCH('Calc - Sparklines'!$C$1,INDIRECT($AA23),0), MATCH('Calc - Sparklines'!$D23,INDIRECT($AB23),0)-N$3))=FALSE,NA(), INDEX(INDIRECT($Z23), MATCH('Calc - Sparklines'!$C$1,INDIRECT($AA23),0), MATCH('Calc - Sparklines'!$D23,INDIRECT($AB23),0)-N$3)),NA()) -> 0.06152307964 | O23: =IFERROR(IF(ISNUMBER( INDEX(INDIRECT($Z23), MATCH('Calc - Sparklines'!$C$1,INDIRECT($AA23),0), MATCH('Calc - Sparklines'!$D23,INDIRECT($AB23),0)-O$3))=FALSE,NA(), INDEX(INDIRECT($Z23), MATCH('Calc - Sparklines'!$C$1,INDIRECT($AA23),0), MATCH('Calc - Sparklines'!$D23,INDIRECT($AB23),0)-O$3)),NA()) -> 0.06392641509 | P23: =IFERROR(IF(ISNUMBER( INDEX(INDIRECT($Z23), MATCH('Calc - Sparklines'!$C$1,INDIRECT($AA23),0), MATCH('Calc - Sparklines'!$D23,INDIRECT($AB23),0)-P$3))=FALSE,NA(), INDEX(INDIRECT($Z23), MATCH('Calc - Sparklines'!$C$1,INDIRECT($AA23),0), MATCH('Calc - Sparklines'!$D23,INDIRECT($AB23),0)-P$3)),NA()) -> 0.06498323159 | R23: 6 | S23: 0 | T23: 0.06498323159 | U23: 0.06392641509 | V23: ▲ | W23: Sparkline13 | Z23: Data_Table_IAPT_i_b | AA23: Data_Orgs_IAPT_i_b | AB23: Data_Dates_IAPT_i_b | AD23: Chart available at CCG & STP level only | AE23: =IF(OR(Dashboard!$M$3=1,Dashboard!$M$3=2),"Chart available at CCG & STP level only","") -> Chart available at CCG & STP level only
A24: IAPT_ii_a | B24: IAPT(ii.a) | C24: IAPT recovery rate: % of people that attended at least 2 treatment contacts and are moving to recovery | D24: ='IAPT(ii_a)_FINAL CALC'!B6 -> Q2 2019/20 | E24: =IFERROR(IF(ISNUMBER( INDEX(INDIRECT($Z24), MATCH('Calc - Sparklines'!$C$1,INDIRECT($AA24),0), MATCH('Calc - Sparklines'!$D24,INDIRECT($AB24),0)-E$3))=FALSE,NA(), INDEX(INDIRECT($Z24), MATCH('Calc - Sparklines'!$C$1,INDIRECT($AA24),0), MATCH('Calc - Sparklines'!$D24,INDIRECT($AB24),0)-E$3)),NA()) -> 0.488 | F24: =IFERROR(IF(ISNUMBER( INDEX(INDIRECT($Z24), MATCH('Calc - Sparklines'!$C$1,INDIRECT($AA24),0), MATCH('Calc - Sparklines'!$D24,INDIRECT($AB24),0)-F$3))=FALSE,NA(), INDEX(INDIRECT($Z24), MATCH('Calc - Sparklines'!$C$1,INDIRECT($AA24),0), MATCH('Calc - Sparklines'!$D24,INDIRECT($AB24),0)-F$3)),NA()) -> 0.51 | G24: =IFERROR(IF(ISNUMBER( INDEX(INDIRECT($Z24), MATCH('Calc - Sparklines'!$C$1,INDIRECT($AA24),0), MATCH('Calc - Sparklines'!$D24,INDIRECT($AB24),0)-G$3))=FALSE,NA(), INDEX(INDIRECT($Z24), MATCH('Calc - Sparklines'!$C$1,INDIRECT($AA24),0), MATCH('Calc - Sparklines'!$D24,INDIRECT($AB24),0)-G$3)),NA()) -> 0.506 | H24: =IFERROR(IF(ISNUMBER( INDEX(INDIRECT($Z24), MATCH('Calc - Sparklines'!$C$1,INDIRECT($AA24),0), MATCH('Calc - Sparklines'!$D24,INDIRECT($AB24),0)-H$3))=FALSE,NA(), INDEX(INDIRECT($Z24), MATCH('Calc - Sparklines'!$C$1,INDIRECT($AA24),0), MATCH('Calc - Sparklines'!$D24,INDIRECT($AB24),0)-H$3)),NA()) -> 0.508 | I24: =IFERROR(IF(ISNUMBER( INDEX(INDIRECT($Z24), MATCH('Calc - Sparklines'!$C$1,INDIRECT($AA24),0), MATCH('Calc - Sparklines'!$D24,INDIRECT($AB24),0)-I$3))=FALSE,NA(), INDEX(INDIRECT($Z24), MATCH('Calc - Sparklines'!$C$1,INDIRECT($AA24),0), MATCH('Calc - Sparklines'!$D24,INDIRECT($AB24),0)-I$3)),NA()) -> 0.502 | J24: =IFERROR(IF(ISNUMBER( INDEX(INDIRECT($Z24), MATCH('Calc - Sparklines'!$C$1,INDIRECT($AA24),0), MATCH('Calc - Sparklines'!$D24,INDIRECT($AB24),0)-J$3))=FALSE,NA(), INDEX(INDIRECT($Z24), MATCH('Calc - Sparklines'!$C$1,INDIRECT($AA24),0), MATCH('Calc - Sparklines'!$D24,INDIRECT($AB24),0)-J$3)),NA()) -> 0.517 | K24: =IFERROR(IF(ISNUMBER( INDEX(INDIRECT($Z24), MATCH('Calc - Sparklines'!$C$1,INDIRECT($AA24),0), MATCH('Calc - Sparklines'!$D24,INDIRECT($AB24),0)-K$3))=FALSE,NA(), INDEX(INDIRECT($Z24), MATCH('Calc - Sparklines'!$C$1,INDIRECT($AA24),0), MATCH('Calc - Sparklines'!$D24,INDIRECT($AB24),0)-K$3)),NA()) -> 0.524 | L24: =IFERROR(IF(ISNUMBER( INDEX(INDIRECT($Z24), MATCH('Calc - Sparklines'!$C$1,INDIRECT($AA24),0), MATCH('Calc - Sparklines'!$D24,INDIRECT($AB24),0)-L$3))=FALSE,NA(), INDEX(INDIRECT($Z24), MATCH('Calc - Sparklines'!$C$1,INDIRECT($AA24),0), MATCH('Calc - Sparklines'!$D24,INDIRECT($AB24),0)-L$3)),NA()) -> 0.513 | M24: =IFERROR(IF(ISNUMBER( INDEX(INDIRECT($Z24), MATCH('Calc - Sparklines'!$C$1,INDIRECT($AA24),0), MATCH('Calc - Sparklines'!$D24,INDIRECT($AB24),0)-M$3))=FALSE,NA(), INDEX(INDIRECT($Z24), MATCH('Calc - Sparklines'!$C$1,INDIRECT($AA24),0), MATCH('Calc - Sparklines'!$D24,INDIRECT($AB24),0)-M$3)),NA()) -> 0.518 | N24: =IFERROR(IF(ISNUMBER( INDEX(INDIRECT($Z24), MATCH('Calc - Sparklines'!$C$1,INDIRECT($AA24),0), MATCH('Calc - Sparklines'!$D24,INDIRECT($AB24),0)-N$3))=FALSE,NA(), INDEX(INDIRECT($Z24), MATCH('Calc - Sparklines'!$C$1,INDIRECT($AA24),0), MATCH('Calc - Sparklines'!$D24,INDIRECT($AB24),0)-N$3)),NA()) -> 0.53 | O24: =IFERROR(IF(ISNUMBER( INDEX(INDIRECT($Z24), MATCH('Calc - Sparklines'!$C$1,INDIRECT($AA24),0), MATCH('Calc - Sparklines'!$D24,INDIRECT($AB24),0)-O$3))=FALSE,NA(), INDEX(INDIRECT($Z24), MATCH('Calc - Sparklines'!$C$1,INDIRECT($AA24),0), MATCH('Calc - Sparklines'!$D24,INDIRECT($AB24),0)-O$3)),NA()) -> 0.522 | P24: =IFERROR(IF(ISNUMBER( INDEX(INDIRECT($Z24), MATCH('Calc - Sparklines'!$C$1,INDIRECT($AA24),0), MATCH('Calc - Sparklines'!$D24,INDIRECT($AB24),0)-P$3))=FALSE,NA(), INDEX(INDIRECT($Z24), MATCH('Calc - Sparklines'!$C$1,INDIRECT($AA24),0), MATCH('Calc - Sparklines'!$D24,INDIRECT($AB24),0)-P$3)),NA()) -> 0.518 | R24: 6 | S24: 0 | T24: 0.518 | U24: 0.522 | V24: ▼ | W24: Sparkline14 | Z24: Data_Table_IAPT_ii_a | AA24: Data_Orgs_IAPT_ii_a | AB24: Data_Dates_IAPT_ii_a | AD24: Chart available at CCG & STP level only | AE24: =IF(OR(Dashboard!$M$3=1,Dashboard!$M$3=2),"Chart available at CCG & STP level only","") -> Chart available at CCG & STP level only
A25: IAPT_ii_b | B25: IAPT(ii.b) | C25: IAPT recovery rate for black or minority ethnic (BME) groups | D25: ='IAPT(ii_b)_FINAL CALC'!B6 -> Q2 2019/20 | E25: =IFERROR(IF(ISNUMBER( INDEX(INDIRECT($Z25), MATCH('Calc - Sparklines'!$C$1,INDIRECT($AA25),0), MATCH('Calc - Sparklines'!$D25,INDIRECT($AB25),0)-E$3))=FALSE,NA(), INDEX(INDIRECT($Z25), MATCH('Calc - Sparklines'!$C$1,INDIRECT($AA25),0), MATCH('Calc - Sparklines'!$D25,INDIRECT($AB25),0)-E$3)),NA()) -> 0.457 | F25: =IFERROR(IF(ISNUMBER( INDEX(INDIRECT($Z25), MATCH('Calc - Sparklines'!$C$1,INDIRECT($AA25),0), MATCH('Calc - Sparklines'!$D25,INDIRECT($AB25),0)-F$3))=FALSE,NA(), INDEX(INDIRECT($Z25), MATCH('Calc - Sparklines'!$C$1,INDIRECT($AA25),0), MATCH('Calc - Sparklines'!$D25,INDIRECT($AB25),0)-F$3)),NA()) -> 0.47 | G25: =IFERROR(IF(ISNUMBER( INDEX(INDIRECT($Z25), MATCH('Calc - Sparklines'!$C$1,INDIRECT($AA25),0), MATCH('Calc - Sparklines'!$D25,INDIRECT($AB25),0)-G$3))=FALSE,NA(), INDEX(INDIRECT($Z25), MATCH('Calc - Sparklines'!$C$1,INDIRECT($AA25),0), MATCH('Calc - Sparklines'!$D25,INDIRECT($AB25),0)-G$3)),NA()) -> 0.468 | H25: =IFERROR(IF(ISNUMBER( INDEX(INDIRECT($Z25), MATCH('Calc - Sparklines'!$C$1,INDIRECT($AA25),0), MATCH('Calc - Sparklines'!$D25,INDIRECT($AB25),0)-H$3))=FALSE,NA(), INDEX(INDIRECT($Z25), MATCH('Calc - Sparklines'!$C$1,INDIRECT($AA25),0), MATCH('Calc - Sparklines'!$D25,INDIRECT($AB25),0)-H$3)),NA()) -> 0.473 | I25: =IFERROR(IF(ISNUMBER( INDEX(INDIRECT($Z25), MATCH('Calc - Sparklines'!$C$1,INDIRECT($AA25),0), MATCH('Calc - Sparklines'!$D25,INDIRECT($AB25),0)-I$3))=FALSE,NA(), INDEX(INDIRECT($Z25), MATCH('Calc - Sparklines'!$C$1,INDIRECT($AA25),0), MATCH('Calc - Sparklines'!$D25,INDIRECT($AB25),0)-I$3)),NA()) -> 0.468 | J25: =IFERROR(IF(ISNUMBER( INDEX(INDIRECT($Z25), MATCH('Calc - Sparklines'!$C$1,INDIRECT($AA25),0), MATCH('Calc - Sparklines'!$D25,INDIRECT($AB25),0)-J$3))=FALSE,NA(), INDEX(INDIRECT($Z25), MATCH('Calc - Sparklines'!$C$1,INDIRECT($AA25),0), MATCH('Calc - Sparklines'!$D25,INDIRECT($AB25),0)-J$3)),NA()) -> 0.482 | K25: =IFERROR(IF(ISNUMBER( INDEX(INDIRECT($Z25), MATCH('Calc - Sparklines'!$C$1,INDIRECT($AA25),0), MATCH('Calc - Sparklines'!$D25,INDIRECT($AB25),0)-K$3))=FALSE,NA(), INDEX(INDIRECT($Z25), MATCH('Calc - Sparklines'!$C$1,INDIRECT($AA25),0), MATCH('Calc - Sparklines'!$D25,INDIRECT($AB25),0)-K$3)),NA()) -> 0.495 | L25: =IFERROR(IF(ISNUMBER( INDEX(INDIRECT($Z25), MATCH('Calc - Sparklines'!$C$1,INDIRECT($AA25),0), MATCH('Calc - Sparklines'!$D25,INDIRECT($AB25),0)-L$3))=FALSE,NA(), INDEX(INDIRECT($Z25), MATCH('Calc - Sparklines'!$C$1,INDIRECT($AA25),0), MATCH('Calc - Sparklines'!$D25,INDIRECT($AB25),0)-L$3)),NA()) -> 0.479 | M25: =IFERROR(IF(ISNUMBER( INDEX(INDIRECT($Z25), MATCH('Calc - Sparklines'!$C$1,INDIRECT($AA25),0), MATCH('Calc - Sparklines'!$D25,INDIRECT($AB25),0)-M$3))=FALSE,NA(), INDEX(INDIRECT($Z25), MATCH('Calc - Sparklines'!$C$1,INDIRECT($AA25),0), MATCH('Calc - Sparklines'!$D25,INDIRECT($AB25),0)-M$3)),NA()) -> 0.492 | N25: =IFERROR(IF(ISNUMBER( INDEX(INDIRECT($Z25), MATCH('Calc - Sparklines'!$C$1,INDIRECT($AA25),0), MATCH('Calc - Sparklines'!$D25,INDIRECT($AB25),0)-N$3))=FALSE,NA(), INDEX(INDIRECT($Z25), MATCH('Calc - Sparklines'!$C$1,INDIRECT($AA25),0), MATCH('Calc - Sparklines'!$D25,INDIRECT($AB25),0)-N$3)),NA()) -> 0.499 | O25: =IFERROR(IF(ISNUMBER( INDEX(INDIRECT($Z25), MATCH('Calc - Sparklines'!$C$1,INDIRECT($AA25),0), MATCH('Calc - Sparklines'!$D25,INDIRECT($AB25),0)-O$3))=FALSE,NA(), INDEX(INDIRECT($Z25), MATCH('Calc - Sparklines'!$C$1,INDIRECT($AA25),0), MATCH('Calc - Sparklines'!$D25,INDIRECT($AB25),0)-O$3)),NA()) -> 0.495 | P25: =IFERROR(IF(ISNUMBER( INDEX(INDIRECT($Z25), MATCH('Calc - Sparklines'!$C$1,INDIRECT($AA25),0), MATCH('Calc - Sparklines'!$D25,INDIRECT($AB25),0)-P$3))=FALSE,NA(), INDEX(INDIRECT($Z25), MATCH('Calc - Sparklines'!$C$1,INDIRECT($AA25),0), MATCH('Calc - Sparklines'!$D25,INDIRECT($AB25),0)-P$3)),NA()) -> 0.494 | R25: 6 | S25: 0 | T25: 0.494 | U25: 0.495 | V25: ▼ | W25: Sparkline15 | Z25: Data_Table_IAPT_ii_b | AA25: Data_Orgs_IAPT_ii_b | AB25: Data_Dates_IAPT_ii_b | AD25: Chart available at CCG & STP level only | AE25: =IF(OR(Dashboard!$M$3=1,Dashboard!$M$3=2),"Chart available at CCG & STP level only","") -> Chart available at CCG & STP level only
A26: IAPT_iii_a | B26: IAPT(iii.a) | C26: IAPT: % of people receiving first treatment appointment within 6 weeks of referral | D26: ='IAPT(iii_a)_FINAL CALC'!B6 -> Q2 2019/20 | E26: =IFERROR(IF(ISNUMBER( INDEX(INDIRECT($Z26), MATCH('Calc - Sparklines'!$C$1,INDIRECT($AA26),0), MATCH('Calc - Sparklines'!$D26,INDIRECT($AB26),0)-E$3))=FALSE,NA(), INDEX(INDIRECT($Z26), MATCH('Calc - Sparklines'!$C$1,INDIRECT($AA26),0), MATCH('Calc - Sparklines'!$D26,INDIRECT($AB26),0)-E$3)),NA()) -> 0.8864402442 | F26: =IFERROR(IF(ISNUMBER( INDEX(INDIRECT($Z26), MATCH('Calc - Sparklines'!$C$1,INDIRECT($AA26),0), MATCH('Calc - Sparklines'!$D26,INDIRECT($AB26),0)-F$3))=FALSE,NA(), INDEX(INDIRECT($Z26), MATCH('Calc - Sparklines'!$C$1,INDIRECT($AA26),0), MATCH('Calc - Sparklines'!$D26,INDIRECT($AB26),0)-F$3)),NA()) -> 0.8964721093 | G26: =IFERROR(IF(ISNUMBER( INDEX(INDIRECT($Z26), MATCH('Calc - Sparklines'!$C$1,INDIRECT($AA26),0), MATCH('Calc - Sparklines'!$D26,INDIRECT($AB26),0)-G$3))=FALSE,NA(), INDEX(INDIRECT($Z26), MATCH('Calc - Sparklines'!$C$1,INDIRECT($AA26),0), MATCH('Calc - Sparklines'!$D26,INDIRECT($AB26),0)-G$3)),NA()) -> 0.892 | H26: =IFERROR(IF(ISNUMBER( INDEX(INDIRECT($Z26), MATCH('Calc - Sparklines'!$C$1,INDIRECT($AA26),0), MATCH('Calc - Sparklines'!$D26,INDIRECT($AB26),0)-H$3))=FALSE,NA(), INDEX(INDIRECT($Z26), MATCH('Calc - Sparklines'!$C$1,INDIRECT($AA26),0), MATCH('Calc - Sparklines'!$D26,INDIRECT($AB26),0)-H$3)),NA()) -> 0.886 | I26: =IFERROR(IF(ISNUMBER( INDEX(INDIRECT($Z26), MATCH('Calc - Sparklines'!$C$1,INDIRECT($AA26),0), MATCH('Calc - Sparklines'!$D26,INDIRECT($AB26),0)-I$3))=FALSE,NA(), INDEX(INDIRECT($Z26), MATCH('Calc - Sparklines'!$C$1,INDIRECT($AA26),0), MATCH('Calc - Sparklines'!$D26,INDIRECT($AB26),0)-I$3)),NA()) -> 0.89 | J26: =IFERROR(IF(ISNUMBER( INDEX(INDIRECT($Z26), MATCH('Calc - Sparklines'!$C$1,INDIRECT($AA26),0), MATCH('Calc - Sparklines'!$D26,INDIRECT($AB26),0)-J$3))=FALSE,NA(), INDEX(INDIRECT($Z26), MATCH('Calc - Sparklines'!$C$1,INDIRECT($AA26),0), MATCH('Calc - Sparklines'!$D26,INDIRECT($AB26),0)-J$3)),NA()) -> 0.893 | K26: =IFERROR(IF(ISNUMBER( INDEX(INDIRECT($Z26), MATCH('Calc - Sparklines'!$C$1,INDIRECT($AA26),0), MATCH('Calc - Sparklines'!$D26,INDIRECT($AB26),0)-K$3))=FALSE,NA(), INDEX(INDIRECT($Z26), MATCH('Calc - Sparklines'!$C$1,INDIRECT($AA26),0), MATCH('Calc - Sparklines'!$D26,INDIRECT($AB26),0)-K$3)),NA()) -> 0.895 | L26: =IFERROR(IF(ISNUMBER( INDEX(INDIRECT($Z26), MATCH('Calc - Sparklines'!$C$1,INDIRECT($AA26),0), MATCH('Calc - Sparklines'!$D26,INDIRECT($AB26),0)-L$3))=FALSE,NA(), INDEX(INDIRECT($Z26), MATCH('Calc - Sparklines'!$C$1,INDIRECT($AA26),0), MATCH('Calc - Sparklines'!$D26,INDIRECT($AB26),0)-L$3)),NA()) -> 0.895 | M26: =IFERROR(IF(ISNUMBER( INDEX(INDIRECT($Z26), MATCH('Calc - Sparklines'!$C$1,INDIRECT($AA26),0), MATCH('Calc - Sparklines'!$D26,INDIRECT($AB26),0)-M$3))=FALSE,NA(), INDEX(INDIRECT($Z26), MATCH('Calc - Sparklines'!$C$1,INDIRECT($AA26),0), MATCH('Calc - Sparklines'!$D26,INDIRECT($AB26),0)-M$3)),NA()) -> 0.895 | N26: =IFERROR(IF(ISNUMBER( INDEX(INDIRECT($Z26), MATCH('Calc - Sparklines'!$C$1,INDIRECT($AA26),0), MATCH('Calc - Sparklines'!$D26,INDIRECT($AB26),0)-N$3))=FALSE,NA(), INDEX(INDIRECT($Z26), MATCH('Calc - Sparklines'!$C$1,INDIRECT($AA26),0), MATCH('Calc - Sparklines'!$D26,INDIRECT($AB26),0)-N$3)),NA()) -> 0.89 | O26: =IFERROR(IF(ISNUMBER( INDEX(INDIRECT($Z26), MATCH('Calc - Sparklines'!$C$1,INDIRECT($AA26),0), MATCH('Calc - Sparklines'!$D26,INDIRECT($AB26),0)-O$3))=FALSE,NA(), INDEX(INDIRECT($Z26), MATCH('Calc - Sparklines'!$C$1,INDIRECT($AA26),0), MATCH('Calc - Sparklines'!$D26,INDIRECT($AB26),0)-O$3)),NA()) -> 0.876 | P26: =IFERROR(IF(ISNUMBER( INDEX(INDIRECT($Z26), MATCH('Calc - Sparklines'!$C$1,INDIRECT($AA26),0), MATCH('Calc - Sparklines'!$D26,INDIRECT($AB26),0)-P$3))=FALSE,NA(), INDEX(INDIRECT($Z26), MATCH('Calc - Sparklines'!$C$1,INDIRECT($AA26),0), MATCH('Calc - Sparklines'!$D26,INDIRECT($AB26),0)-P$3)),NA()) -> 0.867 | R26: 6 | S26: 0 | T26: 0.867 | U26: 0.876 | V26: ▼ | W26: Sparkline16 | Z26: Data_Table_IAPT_iii_a | AA26: Data_Orgs_IAPT_iii_a | AB26: Data_Dates_IAPT_iii_a | AD26: Chart available at CCG & STP level only | AE26: =IF(OR(Dashboard!$M$3=1,Dashboard!$M$3=2),"Chart available at CCG & STP level only","") -> Chart available at CCG & STP level only
A27: IAPT_iii_b | B27: IAPT(iii.b) | C27: IAPT: % of people receiving first treatment appointment within 18 weeks of referral | D27: ='IAPT(iii_b)_FINAL CALC'!B6 -> Q2 2019/20 | E27: =IFERROR(IF(ISNUMBER( INDEX(INDIRECT($Z27), MATCH('Calc - Sparklines'!$C$1,INDIRECT($AA27),0), MATCH('Calc - Sparklines'!$D27,INDIRECT($AB27),0)-E$3))=FALSE,NA(), INDEX(INDIRECT($Z27), MATCH('Calc - Sparklines'!$C$1,INDIRECT($AA27),0), MATCH('Calc - Sparklines'!$D27,INDIRECT($AB27),0)-E$3)),NA()) -> 0.983957884 | F27: =IFERROR(IF(ISNUMBER( INDEX(INDIRECT($Z27), MATCH('Calc - Sparklines'!$C$1,INDIRECT($AA27),0), MATCH('Calc - Sparklines'!$D27,INDIRECT($AB27),0)-F$3))=FALSE,NA(), INDEX(INDIRECT($Z27), MATCH('Calc - Sparklines'!$C$1,INDIRECT($AA27),0), MATCH('Calc - Sparklines'!$D27,INDIRECT($AB27),0)-F$3)),NA()) -> 0.988 | G27: =IFERROR(IF(ISNUMBER( INDEX(INDIRECT($Z27), MATCH('Calc - Sparklines'!$C$1,INDIRECT($AA27),0), MATCH('Calc - Sparklines'!$D27,INDIRECT($AB27),0)-G$3))=FALSE,NA(), INDEX(INDIRECT($Z27), MATCH('Calc - Sparklines'!$C$1,INDIRECT($AA27),0), MATCH('Calc - Sparklines'!$D27,INDIRECT($AB27),0)-G$3)),NA()) -> 0.99 | H27: =IFERROR(IF(ISNUMBER( INDEX(INDIRECT($Z27), MATCH('Calc - Sparklines'!$C$1,INDIRECT($AA27),0), MATCH('Calc - Sparklines'!$D27,INDIRECT($AB27),0)-H$3))=FALSE,NA(), INDEX(INDIRECT($Z27), MATCH('Calc - Sparklines'!$C$1,INDIRECT($AA27),0), MATCH('Calc - Sparklines'!$D27,INDIRECT($AB27),0)-H$3)),NA()) -> 0.989 | I27: =IFERROR(IF(ISNUMBER( INDEX(INDIRECT($Z27), MATCH('Calc - Sparklines'!$C$1,INDIRECT($AA27),0), MATCH('Calc - Sparklines'!$D27,INDIRECT($AB27),0)-I$3))=FALSE,NA(), INDEX(INDIRECT($Z27), MATCH('Calc - Sparklines'!$C$1,INDIRECT($AA27),0), MATCH('Calc - Sparklines'!$D27,INDIRECT($AB27),0)-I$3)),NA()) -> 0.987 | J27: =IFERROR(IF(ISNUMBER( INDEX(INDIRECT($Z27), MATCH('Calc - Sparklines'!$C$1,INDIRECT($AA27),0), MATCH('Calc - Sparklines'!$D27,INDIRECT($AB27),0)-J$3))=FALSE,NA(), INDEX(INDIRECT($Z27), MATCH('Calc - Sparklines'!$C$1,INDIRECT($AA27),0), MATCH('Calc - Sparklines'!$D27,INDIRECT($AB27),0)-J$3)),NA()) -> 0.987 | K27: =IFERROR(IF(ISNUMBER( INDEX(INDIRECT($Z27), MATCH('Calc - Sparklines'!$C$1,INDIRECT($AA27),0), MATCH('Calc - Sparklines'!$D27,INDIRECT($AB27),0)-K$3))=FALSE,NA(), INDEX(INDIRECT($Z27), MATCH('Calc - Sparklines'!$C$1,INDIRECT($AA27),0), MATCH('Calc - Sparklines'!$D27,INDIRECT($AB27),0)-K$3)),NA()) -> 0.99 | L27: =IFERROR(IF(ISNUMBER( INDEX(INDIRECT($Z27), MATCH('Calc - Sparklines'!$C$1,INDIRECT($AA27),0), MATCH('Calc - Sparklines'!$D27,INDIRECT($AB27),0)-L$3))=FALSE,NA(), INDEX(INDIRECT($Z27), MATCH('Calc - Sparklines'!$C$1,INDIRECT($AA27),0), MATCH('Calc - Sparklines'!$D27,INDIRECT($AB27),0)-L$3)),NA()) -> 0.991 | M27: =IFERROR(IF(ISNUMBER( INDEX(INDIRECT($Z27), MATCH('Calc - Sparklines'!$C$1,INDIRECT($AA27),0), MATCH('Calc - Sparklines'!$D27,INDIRECT($AB27),0)-M$3))=FALSE,NA(), INDEX(INDIRECT($Z27), MATCH('Calc - Sparklines'!$C$1,INDIRECT($AA27),0), MATCH('Calc - Sparklines'!$D27,INDIRECT($AB27),0)-M$3)),NA()) -> 0.99 | N27: =IFERROR(IF(ISNUMBER( INDEX(INDIRECT($Z27), MATCH('Calc - Sparklines'!$C$1,INDIRECT($AA27),0), MATCH('Calc - Sparklines'!$D27,INDIRECT($AB27),0)-N$3))=FALSE,NA(), INDEX(INDIRECT($Z27), MATCH('Calc - Sparklines'!$C$1,INDIRECT($AA27),0), MATCH('Calc - Sparklines'!$D27,INDIRECT($AB27),0)-N$3)),NA()) -> 0.99 | O27: =IFERROR(IF(ISNUMBER( INDEX(INDIRECT($Z27), MATCH('Calc - Sparklines'!$C$1,INDIRECT($AA27),0), MATCH('Calc - Sparklines'!$D27,INDIRECT($AB27),0)-O$3))=FALSE,NA(), INDEX(INDIRECT($Z27), MATCH('Calc - Sparklines'!$C$1,INDIRECT($AA27),0), MATCH('Calc - Sparklines'!$D27,INDIRECT($AB27),0)-O$3)),NA()) -> 0.986 | P27: =IFERROR(IF(ISNUMBER( INDEX(INDIRECT($Z27), MATCH('Calc - Sparklines'!$C$1,INDIRECT($AA27),0), MATCH('Calc - Sparklines'!$D27,INDIRECT($AB27),0)-P$3))=FALSE,NA(), INDEX(INDIRECT($Z27), MATCH('Calc - Sparklines'!$C$1,INDIRECT($AA27),0), MATCH('Calc - Sparklines'!$D27,INDIRECT($AB27),0)-P$3)),NA()) -> 0.987 | R27: 6 | S27: 0 | T27: 0.987 | U27: 0.986 | V27: ▲ | W27: Sparkline17 | Z27: Data_Table_IAPT_iii_b | AA27: Data_Orgs_IAPT_iii_b | AB27: Data_Dates_IAPT_iii_b | AD27: Not Applicable | AE27: Not Applicable
A28: IAPT_iv | B28: IAPT(iv) | C28: IAPT forecast outturn (£k) | D28: ='IAPT(iv)_FINAL CALC'!B6 -> 2019/20 planned | E28: =IFERROR(IF(ISNUMBER( INDEX(INDIRECT($Z28), MATCH('Calc - Sparklines'!$C$1,INDIRECT($AA28),0), MATCH('Calc - Sparklines'!$D28,INDIRECT($AB28),0)-E$4))=FALSE,NA(), INDEX(INDIRECT($Z28), MATCH('Calc - Sparklines'!$C$1,INDIRECT($AA28),0), MATCH('Calc - Sparklines'!$D28,INDIRECT($AB28),0)-E$4)),NA()) ->  | F28: =IFERROR(IF(ISNUMBER( INDEX(INDIRECT($Z28), MATCH('Calc - Sparklines'!$C$1,INDIRECT($AA28),0), MATCH('Calc - Sparklines'!$D28,INDIRECT($AB28),0)-F$4))=FALSE,NA(), INDEX(INDIRECT($Z28), MATCH('Calc - Sparklines'!$C$1,INDIRECT($AA28),0), MATCH('Calc - Sparklines'!$D28,INDIRECT($AB28),0)-F$4)),NA()) ->  | G28: =IFERROR(IF(ISNUMBER( INDEX(INDIRECT($Z28), MATCH('Calc - Sparklines'!$C$1,INDIRECT($AA28),0), MATCH('Calc - Sparklines'!$D28,INDIRECT($AB28),0)-G$4))=FALSE,NA(), INDEX(INDIRECT($Z28), MATCH('Calc - Sparklines'!$C$1,INDIRECT($AA28),0), MATCH('Calc - Sparklines'!$D28,INDIRECT($AB28),0)-G$4)),NA()) ->  | H28: =IFERROR(IF(ISNUMBER( INDEX(INDIRECT($Z28), MATCH('Calc - Sparklines'!$C$1,INDIRECT($AA28),0), MATCH('Calc - Sparklines'!$D28,INDIRECT($AB28),0)-H$4))=FALSE,NA(), INDEX(INDIRECT($Z28), MATCH('Calc - Sparklines'!$C$1,INDIRECT($AA28),0), MATCH('Calc - Sparklines'!$D28,INDIRECT($AB28),0)-H$4)),NA()) ->  | I28: =IFERROR(IF(ISNUMBER( INDEX(INDIRECT($Z28), MATCH('Calc - Sparklines'!$C$1,INDIRECT($AA28),0), MATCH('Calc - Sparklines'!$D28,INDIRECT($AB28),0)-I$4))=FALSE,NA(), INDEX(INDIRECT($Z28), MATCH('Calc - Sparklines'!$C$1,INDIRECT($AA28),0), MATCH('Calc - Sparklines'!$D28,INDIRECT($AB28),0)-I$4)),NA()) ->  | J28: =IFERROR(IF(ISNUMBER( INDEX(INDIRECT($Z28), MATCH('Calc - Sparklines'!$C$1,INDIRECT($AA28),0), MATCH('Calc - Sparklines'!$D28,INDIRECT($AB28),0)-J$4))=FALSE,NA(), INDEX(INDIRECT($Z28), MATCH('Calc - Sparklines'!$C$1,INDIRECT($AA28),0), MATCH('Calc - Sparklines'!$D28,INDIRECT($AB28),0)-J$4)),NA()) ->  | K28: =IFERROR(IF(ISNUMBER( INDEX(INDIRECT($Z28), MATCH('Calc - Sparklines'!$C$1,INDIRECT($AA28),0), MATCH('Calc - Sparklines'!$D28,INDIRECT($AB28),0)-K$4))=FALSE,NA(), INDEX(INDIRECT($Z28), MATCH('Calc - Sparklines'!$C$1,INDIRECT($AA28),0), MATCH('Calc - Sparklines'!$D28,INDIRECT($AB28),0)-K$4)),NA()) ->  | L28: =IFERROR(IF(ISNUMBER( INDEX(INDIRECT($Z28), MATCH('Calc - Sparklines'!$C$1,INDIRECT($AA28),0), MATCH('Calc - Sparklines'!$D28,INDIRECT($AB28),0)-L$4))=FALSE,NA(), INDEX(INDIRECT($Z28), MATCH('Calc - Sparklines'!$C$1,INDIRECT($AA28),0), MATCH('Calc - Sparklines'!$D28,INDIRECT($AB28),0)-L$4)),NA()) ->  | M28: =IFERROR(IF(ISNUMBER( INDEX(INDIRECT($Z28), MATCH('Calc - Sparklines'!$C$1,INDIRECT($AA28),0), MATCH('Calc - Sparklines'!$D28,INDIRECT($AB28),0)-M$4))=FALSE,NA(), INDEX(INDIRECT($Z28), MATCH('Calc - Sparklines'!$C$1,INDIRECT($AA28),0), MATCH('Calc - Sparklines'!$D28,INDIRECT($AB28),0)-M$4)),NA()) ->  | N28: =IFERROR(IF(ISNUMBER( INDEX(INDIRECT($Z28), MATCH('Calc - Sparklines'!$C$1,INDIRECT($AA28),0), MATCH('Calc - Sparklines'!$D28,INDIRECT($AB28),0)-N$4))=FALSE,NA(), INDEX(INDIRECT($Z28), MATCH('Calc - Sparklines'!$C$1,INDIRECT($AA28),0), MATCH('Calc - Sparklines'!$D28,INDIRECT($AB28),0)-N$4)),NA()) -> 428790556.9 | O28: =IFERROR(IF(ISNUMBER( INDEX(INDIRECT($Z28), MATCH('Calc - Sparklines'!$C$1,INDIRECT($AA28),0), MATCH('Calc - Sparklines'!$D28,INDIRECT($AB28),0)-O$4))=FALSE,NA(), INDEX(INDIRECT($Z28), MATCH('Calc - Sparklines'!$C$1,INDIRECT($AA28),0), MATCH('Calc - Sparklines'!$D28,INDIRECT($AB28),0)-O$4)),NA()) -> 479857086.7 | P28: =IFERROR(IF(ISNUMBER( INDEX(INDIRECT($Z28), MATCH('Calc - Sparklines'!$C$1,INDIRECT($AA28),0), MATCH('Calc - Sparklines'!$D28,INDIRECT($AB28),0)-P$4))=FALSE,NA(), INDEX(INDIRECT($Z28), MATCH('Calc - Sparklines'!$C$1,INDIRECT($AA28),0), MATCH('Calc - Sparklines'!$D28,INDIRECT($AB28),0)-P$4)),NA()) -> 578601188.7 | R28: 6 | S28: 0 | T28: 578601188.7 | U28: 479857086.7 | V28: ▲ | W28: Sparkline17a | X28: N/A | Z28: Data_Table_IAPT_iv | AA28: Data_Orgs_IAPT_iv | AB28: Data_Dates_IAPT_iv
A29: EIP | B29: EIP | E29: =IFERROR(IF(ISNUMBER( INDEX(INDIRECT($Z29), MATCH('Calc - Sparklines'!$C$1,INDIRECT($AA29),0), MATCH('Calc - Sparklines'!$D29,INDIRECT($AB29),0)-E$3))=FALSE,NA(), INDEX(INDIRECT($Z29), MATCH('Calc - Sparklines'!$C$1,INDIRECT($AA29),0), MATCH('Calc - Sparklines'!$D29,INDIRECT($AB29),0)-E$3)),NA()) ->  | F29: =IFERROR(IF(ISNUMBER( INDEX(INDIRECT($Z29), MATCH('Calc - Sparklines'!$C$1,INDIRECT($AA29),0), MATCH('Calc - Sparklines'!$D29,INDIRECT($AB29),0)-F$3))=FALSE,NA(), INDEX(INDIRECT($Z29), MATCH('Calc - Sparklines'!$C$1,INDIRECT($AA29),0), MATCH('Calc - Sparklines'!$D29,INDIRECT($AB29),0)-F$3)),NA()) ->  | G29: =IFERROR(IF(ISNUMBER( INDEX(INDIRECT($Z29), MATCH('Calc - Sparklines'!$C$1,INDIRECT($AA29),0), MATCH('Calc - Sparklines'!$D29,INDIRECT($AB29),0)-G$3))=FALSE,NA(), INDEX(INDIRECT($Z29), MATCH('Calc - Sparklines'!$C$1,INDIRECT($AA29),0), MATCH('Calc - Sparklines'!$D29,INDIRECT($AB29),0)-G$3)),NA()) ->  | H29: =IFERROR(IF(ISNUMBER( INDEX(INDIRECT($Z29), MATCH('Calc - Sparklines'!$C$1,INDIRECT($AA29),0), MATCH('Calc - Sparklines'!$D29,INDIRECT($AB29),0)-H$3))=FALSE,NA(), INDEX(INDIRECT($Z29), MATCH('Calc - Sparklines'!$C$1,INDIRECT($AA29),0), MATCH('Calc - Sparklines'!$D29,INDIRECT($AB29),0)-H$3)),NA()) ->  | I29: =IFERROR(IF(ISNUMBER( INDEX(INDIRECT($Z29), MATCH('Calc - Sparklines'!$C$1,INDIRECT($AA29),0), MATCH('Calc - Sparklines'!$D29,INDIRECT($AB29),0)-I$3))=FALSE,NA(), INDEX(INDIRECT($Z29), MATCH('Calc - Sparklines'!$C$1,INDIRECT($AA29),0), MATCH('Calc - Sparklines'!$D29,INDIRECT($AB29),0)-I$3)),NA()) ->  | J29: =IFERROR(IF(ISNUMBER( INDEX(INDIRECT($Z29), MATCH('Calc - Sparklines'!$C$1,INDIRECT($AA29),0), MATCH('Calc - Sparklines'!$D29,INDIRECT($AB29),0)-J$3))=FALSE,NA(), INDEX(INDIRECT($Z29), MATCH('Calc - Sparklines'!$C$1,INDIRECT($AA29),0), MATCH('Calc - Sparklines'!$D29,INDIRECT($AB29),0)-J$3)),NA()) ->  | K29: =IFERROR(IF(ISNUMBER( INDEX(INDIRECT($Z29), MATCH('Calc - Sparklines'!$C$1,INDIRECT($AA29),0), MATCH('Calc - Sparklines'!$D29,INDIRECT($AB29),0)-K$3))=FALSE,NA(), INDEX(INDIRECT($Z29), MATCH('Calc - Sparklines'!$C$1,INDIRECT($AA29),0), MATCH('Calc - Sparklines'!$D29,INDIRECT($AB29),0)-K$3)),NA()) ->  | L29: =IFERROR(IF(ISNUMBER( INDEX(INDIRECT($Z29), MATCH('Calc - Sparklines'!$C$1,INDIRECT($AA29),0), MATCH('Calc - Sparklines'!$D29,INDIRECT($AB29),0)-L$3))=FALSE,NA(), INDEX(INDIRECT($Z29), MATCH('Calc - Sparklines'!$C$1,INDIRECT($AA29),0), MATCH('Calc - Sparklines'!$D29,INDIRECT($AB29),0)-L$3)),NA()) ->  | M29: =IFERROR(IF(ISNUMBER( INDEX(INDIRECT($Z29), MATCH('Calc - Sparklines'!$C$1,INDIRECT($AA29),0), MATCH('Calc - Sparklines'!$D29,INDIRECT($AB29),0)-M$3))=FALSE,NA(), INDEX(INDIRECT($Z29), MATCH('Calc - Sparklines'!$C$1,INDIRECT($AA29),0), MATCH('Calc - Sparklines'!$D29,INDIRECT($AB29),0)-M$3)),NA()) ->  | N29: =IFERROR(IF(ISNUMBER( INDEX(INDIRECT($Z29), MATCH('Calc - Sparklines'!$C$1,INDIRECT($AA29),0), MATCH('Calc - Sparklines'!$D29,INDIRECT($AB29),0)-N$3))=FALSE,NA(), INDEX(INDIRECT($Z29), MATCH('Calc - Sparklines'!$C$1,INDIRECT($AA29),0), MATCH('Calc - Sparklines'!$D29,INDIRECT($AB29),0)-N$3)),NA()) ->  | O29: =IFERROR(IF(ISNUMBER( INDEX(INDIRECT($Z29), MATCH('Calc - Sparklines'!$C$1,INDIRECT($AA29),0), MATCH('Calc - Sparklines'!$D29,INDIRECT($AB29),0)-O$3))=FALSE,NA(), INDEX(INDIRECT($Z29), MATCH('Calc - Sparklines'!$C$1,INDIRECT($AA29),0), MATCH('Calc - Sparklines'!$D29,INDIRECT($AB29),0)-O$3)),NA()) ->  | P29: =IFERROR(IF(ISNUMBER( INDEX(INDIRECT($Z29), MATCH('Calc - Sparklines'!$C$1,INDIRECT($AA29),0), MATCH('Calc - Sparklines'!$D29,INDIRECT($AB29),0)-P$3))=FALSE,NA(), INDEX(INDIRECT($Z29), MATCH('Calc - Sparklines'!$C$1,INDIRECT($AA29),0), MATCH('Calc - Sparklines'!$D29,INDIRECT($AB29),0)-P$3)),NA()) ->  | R29: 0 | X29: N/A | AD29: Subheading
A30: EIP_i | B30: EIP(i) | C30: % of people who started treatment within 2 weeks of referral - All ages | D30: ='EIP(i)_FINAL CALC'!B6 -> Q2 2019/20 | E30: =IFERROR(IF(ISNUMBER( INDEX(INDIRECT($Z30), MATCH('Calc - Sparklines'!$C$1,INDIRECT($AA30),0), MATCH('Calc - Sparklines'!$D30,INDIRECT($AB30),0)-E$3))=FALSE,NA(), INDEX(INDIRECT($Z30), MATCH('Calc - Sparklines'!$C$1,INDIRECT($AA30),0), MATCH('Calc - Sparklines'!$D30,INDIRECT($AB30),0)-E$3)),NA()) -> 0.7625737567 | F30: =IFERROR(IF(ISNUMBER( INDEX(INDIRECT($Z30), MATCH('Calc - Sparklines'!$C$1,INDIRECT($AA30),0), MATCH('Calc - Sparklines'!$D30,INDIRECT($AB30),0)-F$3))=FALSE,NA(), INDEX(INDIRECT($Z30), MATCH('Calc - Sparklines'!$C$1,INDIRECT($AA30),0), MATCH('Calc - Sparklines'!$D30,INDIRECT($AB30),0)-F$3)),NA()) -> 0.7659084365 | G30: =IFERROR(IF(ISNUMBER( INDEX(INDIRECT($Z30), MATCH('Calc - Sparklines'!$C$1,INDIRECT($AA30),0), MATCH('Calc - Sparklines'!$D30,INDIRECT($AB30),0)-G$3))=FALSE,NA(), INDEX(INDIRECT($Z30), MATCH('Calc - Sparklines'!$C$1,INDIRECT($AA30),0), MATCH('Calc - Sparklines'!$D30,INDIRECT($AB30),0)-G$3)),NA()) -> 0.7619793298 | H30: =IFERROR(IF(ISNUMBER( INDEX(INDIRECT($Z30), MATCH('Calc - Sparklines'!$C$1,INDIRECT($AA30),0), MATCH('Calc - Sparklines'!$D30,INDIRECT($AB30),0)-H$3))=FALSE,NA(), INDEX(INDIRECT($Z30), MATCH('Calc - Sparklines'!$C$1,INDIRECT($AA30),0), MATCH('Calc - Sparklines'!$D30,INDIRECT($AB30),0)-H$3)),NA()) -> 0.7560750538 | I30: =IFERROR(IF(ISNUMBER( INDEX(INDIRECT($Z30), MATCH('Calc - Sparklines'!$C$1,INDIRECT($AA30),0), MATCH('Calc - Sparklines'!$D30,INDIRECT($AB30),0)-I$3))=FALSE,NA(), INDEX(INDIRECT($Z30), MATCH('Calc - Sparklines'!$C$1,INDIRECT($AA30),0), MATCH('Calc - Sparklines'!$D30,INDIRECT($AB30),0)-I$3)),NA()) -> 0.7428023033 | J30: =IFERROR(IF(ISNUMBER( INDEX(INDIRECT($Z30), MATCH('Calc - Sparklines'!$C$1,INDIRECT($AA30),0), MATCH('Calc - Sparklines'!$D30,INDIRECT($AB30),0)-J$3))=FALSE,NA(), INDEX(INDIRECT($Z30), MATCH('Calc - Sparklines'!$C$1,INDIRECT($AA30),0), MATCH('Calc - Sparklines'!$D30,INDIRECT($AB30),0)-J$3)),NA()) -> 0.7396562699 | K30: =IFERROR(IF(ISNUMBER( INDEX(INDIRECT($Z30), MATCH('Calc - Sparklines'!$C$1,INDIRECT($AA30),0), MATCH('Calc - Sparklines'!$D30,INDIRECT($AB30),0)-K$3))=FALSE,NA(), INDEX(INDIRECT($Z30), MATCH('Calc - Sparklines'!$C$1,INDIRECT($AA30),0), MATCH('Calc - Sparklines'!$D30,INDIRECT($AB30),0)-K$3)),NA()) -> 0.7558569667 | L30: =IFERROR(IF(ISNUMBER( INDEX(INDIRECT($Z30), MATCH('Calc - Sparklines'!$C$1,INDIRECT($AA30),0), MATCH('Calc - Sparklines'!$D30,INDIRECT($AB30),0)-L$3))=FALSE,NA(), INDEX(INDIRECT($Z30), MATCH('Calc - Sparklines'!$C$1,INDIRECT($AA30),0), MATCH('Calc - Sparklines'!$D30,INDIRECT($AB30),0)-L$3)),NA()) -> 0.7542533081 | M30: =IFERROR(IF(ISNUMBER( INDEX(INDIRECT($Z30), MATCH('Calc - Sparklines'!$C$1,INDIRECT($AA30),0), MATCH('Calc - Sparklines'!$D30,INDIRECT($AB30),0)-M$3))=FALSE,NA(), INDEX(INDIRECT($Z30), MATCH('Calc - Sparklines'!$C$1,INDIRECT($AA30),0), MATCH('Calc - Sparklines'!$D30,INDIRECT($AB30),0)-M$3)),NA()) -> 0.7720083557 | N30: =IFERROR(IF(ISNUMBER( INDEX(INDIRECT($Z30), MATCH('Calc - Sparklines'!$C$1,INDIRECT($AA30),0), MATCH('Calc - Sparklines'!$D30,INDIRECT($AB30),0)-N$3))=FALSE,NA(), INDEX(INDIRECT($Z30), MATCH('Calc - Sparklines'!$C$1,INDIRECT($AA30),0), MATCH('Calc - Sparklines'!$D30,INDIRECT($AB30),0)-N$3)),NA()) -> 0.7528455285 | O30: =IFERROR(IF(ISNUMBER( INDEX(INDIRECT($Z30), MATCH('Calc - Sparklines'!$C$1,INDIRECT($AA30),0), MATCH('Calc - Sparklines'!$D30,INDIRECT($AB30),0)-O$3))=FALSE,NA(), INDEX(INDIRECT($Z30), MATCH('Calc - Sparklines'!$C$1,INDIRECT($AA30),0), MATCH('Calc - Sparklines'!$D30,INDIRECT($AB30),0)-O$3)),NA()) -> 0.7554821268 | P30: =IFERROR(IF(ISNUMBER( INDEX(INDIRECT($Z30), MATCH('Calc - Sparklines'!$C$1,INDIRECT($AA30),0), MATCH('Calc - Sparklines'!$D30,INDIRECT($AB30),0)-P$3))=FALSE,NA(), INDEX(INDIRECT($Z30), MATCH('Calc - Sparklines'!$C$1,INDIRECT($AA30),0), MATCH('Calc - Sparklines'!$D30,INDIRECT($AB30),0)-P$3)),NA()) -> 0.7837188345 | R30: 6 | S30: 0 | T30: 0.7837188345 | U30: 0.7554821268 | V30: ▲ | W30: Sparkline18 | Z30: Data_Table_EIP_i | AA30: Data_Orgs_EIP_i | AB30: Data_Dates_EIP_i | AD30: Placeholder | AE30: Placeholder
A31: EIP_i_a | B31: EIP(i.a) | C31: % of CCG commissioned EIP services meeting NICE level 2 | D31: ='EIP(i_a)_FINAL CALC'!B6 -> 2018/19 | E31: =IFERROR(IF(ISNUMBER( INDEX(INDIRECT($Z31), MATCH('Calc - Sparklines'!$C$1,INDIRECT($AA31),0), MATCH('Calc - Sparklines'!$D31,INDIRECT($AB31),0)-E$3))=FALSE,NA(), INDEX(INDIRECT($Z31), MATCH('Calc - Sparklines'!$C$1,INDIRECT($AA31),0), MATCH('Calc - Sparklines'!$D31,INDIRECT($AB31),0)-E$3)),NA()) ->  | F31: =IFERROR(IF(ISNUMBER( INDEX(INDIRECT($Z31), MATCH('Calc - Sparklines'!$C$1,INDIRECT($AA31),0), MATCH('Calc - Sparklines'!$D31,INDIRECT($AB31),0)-F$3))=FALSE,NA(), INDEX(INDIRECT($Z31), MATCH('Calc - Sparklines'!$C$1,INDIRECT($AA31),0), MATCH('Calc - Sparklines'!$D31,INDIRECT($AB31),0)-F$3)),NA()) ->  | G31: =IFERROR(IF(ISNUMBER( INDEX(INDIRECT($Z31), MATCH('Calc - Sparklines'!$C$1,INDIRECT($AA31),0), MATCH('Calc - Sparklines'!$D31,INDIRECT($AB31),0)-G$3))=FALSE,NA(), INDEX(INDIRECT($Z31), MATCH('Calc - Sparklines'!$C$1,INDIRECT($AA31),0), MATCH('Calc - Sparklines'!$D31,INDIRECT($AB31),0)-G$3)),NA()) ->  | H31: =IFERROR(IF(ISNUMBER( INDEX(INDIRECT($Z31), MATCH('Calc - Sparklines'!$C$1,INDIRECT($AA31),0), MATCH('Calc - Sparklines'!$D31,INDIRECT($AB31),0)-H$3))=FALSE,NA(), INDEX(INDIRECT($Z31), MATCH('Calc - Sparklines'!$C$1,INDIRECT($AA31),0), MATCH('Calc - Sparklines'!$D31,INDIRECT($AB31),0)-H$3)),NA()) ->  | I31: =IFERROR(IF(ISNUMBER( INDEX(INDIRECT($Z31), MATCH('Calc - Sparklines'!$C$1,INDIRECT($AA31),0), MATCH('Calc - Sparklines'!$D31,INDIRECT($AB31),0)-I$3))=FALSE,NA(), INDEX(INDIRECT($Z31), MATCH('Calc - Sparklines'!$C$1,INDIRECT($AA31),0), MATCH('Calc - Sparklines'!$D31,INDIRECT($AB31),0)-I$3)),NA()) ->  | J31: =IFERROR(IF(ISNUMBER( INDEX(INDIRECT($Z31), MATCH('Calc - Sparklines'!$C$1,INDIRECT($AA31),0), MATCH('Calc - Sparklines'!$D31,INDIRECT($AB31),0)-J$3))=FALSE,NA(), INDEX(INDIRECT($Z31), MATCH('Calc - Sparklines'!$C$1,INDIRECT($AA31),0), MATCH('Calc - Sparklines'!$D31,INDIRECT($AB31),0)-J$3)),NA()) ->  | K31: =IFERROR(IF(ISNUMBER( INDEX(INDIRECT($Z31), MATCH('Calc - Sparklines'!$C$1,INDIRECT($AA31),0), MATCH('Calc - Sparklines'!$D31,INDIRECT($AB31),0)-K$3))=FALSE,NA(), INDEX(INDIRECT($Z31), MATCH('Calc - Sparklines'!$C$1,INDIRECT($AA31),0), MATCH('Calc - Sparklines'!$D31,INDIRECT($AB31),0)-K$3)),NA()) ->  | L31: =IFERROR(IF(ISNUMBER( INDEX(INDIRECT($Z31), MATCH('Calc - Sparklines'!$C$1,INDIRECT($AA31),0), MATCH('Calc - Sparklines'!$D31,INDIRECT($AB31),0)-L$3))=FALSE,NA(), INDEX(INDIRECT($Z31), MATCH('Calc - Sparklines'!$C$1,INDIRECT($AA31),0), MATCH('Calc - Sparklines'!$D31,INDIRECT($AB31),0)-L$3)),NA()) ->  | M31: =IFERROR(IF(ISNUMBER( INDEX(INDIRECT($Z31), MATCH('Calc - Sparklines'!$C$1,INDIRECT($AA31),0), MATCH('Calc - Sparklines'!$D31,INDIRECT($AB31),0)-M$3))=FALSE,NA(), INDEX(INDIRECT($Z31), MATCH('Calc - Sparklines'!$C$1,INDIRECT($AA31),0), MATCH('Calc - Sparklines'!$D31,INDIRECT($AB31),0)-M$3)),NA()) ->  | N31: =IFERROR(IF(ISNUMBER( INDEX(INDIRECT($Z31), MATCH('Calc - Sparklines'!$C$1,INDIRECT($AA31),0), MATCH('Calc - Sparklines'!$D31,INDIRECT($AB31),0)-N$3))=FALSE,NA(), INDEX(INDIRECT($Z31), MATCH('Calc - Sparklines'!$C$1,INDIRECT($AA31),0), MATCH('Calc - Sparklines'!$D31,INDIRECT($AB31),0)-N$3)),NA()) ->  | O31: =IFERROR(IF(ISNUMBER( INDEX(INDIRECT($Z31), MATCH('Calc - Sparklines'!$C$1,INDIRECT($AA31),0), MATCH('Calc - Sparklines'!$D31,INDIRECT($AB31),0)-O$3))=FALSE,NA(), INDEX(INDIRECT($Z31), MATCH('Calc - Sparklines'!$C$1,INDIRECT($AA31),0), MATCH('Calc - Sparklines'!$D31,INDIRECT($AB31),0)-O$3)),NA()) -> 0.7792 | P31: =IFERROR(IF(ISNUMBER( INDEX(INDIRECT($Z31), MATCH('Calc - Sparklines'!$C$1,INDIRECT($AA31),0), MATCH('Calc - Sparklines'!$D31,INDIRECT($AB31),0)-P$3))=FALSE,NA(), INDEX(INDIRECT($Z31), MATCH('Calc - Sparklines'!$C$1,INDIRECT($AA31),0), MATCH('Calc - Sparklines'!$D31,INDIRECT($AB31),0)-P$3)),NA()) -> 0.8312 | R31: =IF(COUNTA(K31:P31)-COUNTIF(K31:P31,"#N/A")<3, 0, COUNTA(K31:P31)) -> 0 | S31: =IF(P31="N/A",IF(O31="N/A",2,1),0) -> 0 | T31: =OFFSET(P31,,-S31) -> 0.8312 | U31: =IF(ISERROR(O31),IF(ISERROR(N31),IF(ISERROR(M31),IF(ISERROR(L31),IF(ISERROR(K31),IF(ISERROR(J31),IF(ISERROR(I31),IF(ISERROR(H31),IF(ISERROR(G31),IF(ISERROR(F31),IF(ISERROR(E31), NA(), E31),F31),G31),H31),I31),J31),K31),L31),M31),N31),O31) -> 0.7792 | V31: ▲ | W31: Sparkline19 | X31: N/A | Z31: Data_Table_EIP_i_a | AA31: Data_Orgs_EIP_i_a | AB31: Data_Dates_EIP_i_a | AD31: Placeholder | AE31: Placeholder
A32: EIP_i_b | B32: EIP(i.b) | C32: % of CCG commissioned EIP services meeting NICE level 3 | D32: ='EIP(i_b)_FINAL CALC'!B6 -> 2018/19 | E32: =IFERROR(IF(ISNUMBER( INDEX(INDIRECT($Z32), MATCH('Calc - Sparklines'!$C$1,INDIRECT($AA32),0), MATCH('Calc - Sparklines'!$D32,INDIRECT($AB32),0)-E$3))=FALSE,NA(), INDEX(INDIRECT($Z32), MATCH('Calc - Sparklines'!$C$1,INDIRECT($AA32),0), MATCH('Calc - Sparklines'!$D32,INDIRECT($AB32),0)-E$3)),NA()) ->  | F32: =IFERROR(IF(ISNUMBER( INDEX(INDIRECT($Z32), MATCH('Calc - Sparklines'!$C$1,INDIRECT($AA32),0), MATCH('Calc - Sparklines'!$D32,INDIRECT($AB32),0)-F$3))=FALSE,NA(), INDEX(INDIRECT($Z32), MATCH('Calc - Sparklines'!$C$1,INDIRECT($AA32),0), MATCH('Calc - Sparklines'!$D32,INDIRECT($AB32),0)-F$3)),NA()) ->  | G32: =IFERROR(IF(ISNUMBER( INDEX(INDIRECT($Z32), MATCH('Calc - Sparklines'!$C$1,INDIRECT($AA32),0), MATCH('Calc - Sparklines'!$D32,INDIRECT($AB32),0)-G$3))=FALSE,NA(), INDEX(INDIRECT($Z32), MATCH('Calc - Sparklines'!$C$1,INDIRECT($AA32),0), MATCH('Calc - Sparklines'!$D32,INDIRECT($AB32),0)-G$3)),NA()) ->  | H32: =IFERROR(IF(ISNUMBER( INDEX(INDIRECT($Z32), MATCH('Calc - Sparklines'!$C$1,INDIRECT($AA32),0), MATCH('Calc - Sparklines'!$D32,INDIRECT($AB32),0)-H$3))=FALSE,NA(), INDEX(INDIRECT($Z32), MATCH('Calc - Sparklines'!$C$1,INDIRECT($AA32),0), MATCH('Calc - Sparklines'!$D32,INDIRECT($AB32),0)-H$3)),NA()) ->  | I32: =IFERROR(IF(ISNUMBER( INDEX(INDIRECT($Z32), MATCH('Calc - Sparklines'!$C$1,INDIRECT($AA32),0), MATCH('Calc - Sparklines'!$D32,INDIRECT($AB32),0)-I$3))=FALSE,NA(), INDEX(INDIRECT($Z32), MATCH('Calc - Sparklines'!$C$1,INDIRECT($AA32),0), MATCH('Calc - Sparklines'!$D32,INDIRECT($AB32),0)-I$3)),NA()) ->  | J32: =IFERROR(IF(ISNUMBER( INDEX(INDIRECT($Z32), MATCH('Calc - Sparklines'!$C$1,INDIRECT($AA32),0), MATCH('Calc - Sparklines'!$D32,INDIRECT($AB32),0)-J$3))=FALSE,NA(), INDEX(INDIRECT($Z32), MATCH('Calc - Sparklines'!$C$1,INDIRECT($AA32),0), MATCH('Calc - Sparklines'!$D32,INDIRECT($AB32),0)-J$3)),NA()) ->  | K32: =IFERROR(IF(ISNUMBER( INDEX(INDIRECT($Z32), MATCH('Calc - Sparklines'!$C$1,INDIRECT($AA32),0), MATCH('Calc - Sparklines'!$D32,INDIRECT($AB32),0)-K$3))=FALSE,NA(), INDEX(INDIRECT($Z32), MATCH('Calc - Sparklines'!$C$1,INDIRECT($AA32),0), MATCH('Calc - Sparklines'!$D32,INDIRECT($AB32),0)-K$3)),NA()) ->  | L32: =IFERROR(IF(ISNUMBER( INDEX(INDIRECT($Z32), MATCH('Calc - Sparklines'!$C$1,INDIRECT($AA32),0), MATCH('Calc - Sparklines'!$D32,INDIRECT($AB32),0)-L$3))=FALSE,NA(), INDEX(INDIRECT($Z32), MATCH('Calc - Sparklines'!$C$1,INDIRECT($AA32),0), MATCH('Calc - Sparklines'!$D32,INDIRECT($AB32),0)-L$3)),NA()) ->  | M32: =IFERROR(IF(ISNUMBER( INDEX(INDIRECT($Z32), MATCH('Calc - Sparklines'!$C$1,INDIRECT($AA32),0), MATCH('Calc - Sparklines'!$D32,INDIRECT($AB32),0)-M$3))=FALSE,NA(), INDEX(INDIRECT($Z32), MATCH('Calc - Sparklines'!$C$1,INDIRECT($AA32),0), MATCH('Calc - Sparklines'!$D32,INDIRECT($AB32),0)-M$3)),NA()) ->  | N32: =IFERROR(IF(ISNUMBER( INDEX(INDIRECT($Z32), MATCH('Calc - Sparklines'!$C$1,INDIRECT($AA32),0), MATCH('Calc - Sparklines'!$D32,INDIRECT($AB32),0)-N$3))=FALSE,NA(), INDEX(INDIRECT($Z32), MATCH('Calc - Sparklines'!$C$1,INDIRECT($AA32),0), MATCH('Calc - Sparklines'!$D32,INDIRECT($AB32),0)-N$3)),NA()) ->  | O32: =IFERROR(IF(ISNUMBER( INDEX(INDIRECT($Z32), MATCH('Calc - Sparklines'!$C$1,INDIRECT($AA32),0), MATCH('Calc - Sparklines'!$D32,INDIRECT($AB32),0)-O$3))=FALSE,NA(), INDEX(INDIRECT($Z32), MATCH('Calc - Sparklines'!$C$1,INDIRECT($AA32),0), MATCH('Calc - Sparklines'!$D32,INDIRECT($AB32),0)-O$3)),NA()) ->  | P32: =IFERROR(IF(ISNUMBER( INDEX(INDIRECT($Z32), MATCH('Calc - Sparklines'!$C$1,INDIRECT($AA32),0), MATCH('Calc - Sparklines'!$D32,INDIRECT($AB32),0)-P$3))=FALSE,NA(), INDEX(INDIRECT($Z32), MATCH('Calc - Sparklines'!$C$1,INDIRECT($AA32),0), MATCH('Calc - Sparklines'!$D32,INDIRECT($AB32),0)-P$3)),NA()) -> 0.1818 | R32: =IF(COUNTA(K32:P32)-COUNTIF(K32:P32,"#N/A")<3, 0, COUNTA(K32:P32)) -> 0 | S32: =IF(P32="N/A",IF(O32="N/A",2,1),0) -> 0 | T32: =OFFSET(P32,,-S32) -> 0.1818 | U32: =IF(ISERROR(O32),IF(ISERROR(N32),IF(ISERROR(M32),IF(ISERROR(L32),IF(ISERROR(K32),IF(ISERROR(J32),IF(ISERROR(I32),IF(ISERROR(H32),IF(ISERROR(G32),IF(ISERROR(F32),IF(ISERROR(E32), NA(), E32),F32),G32),H32),I32),J32),K32),L32),M32),N32),O32) ->  | V32: =IF(D32="","",IFERROR(IF(T32>U32,"▲", IF(T32<U32,"▼","◄►")),"N/A")) -> N/A | W32: Sparkine56 | X32: N/A | Z32: Data_Table_EIP_i_b | AA32: Data_Orgs_EIP_i_b | AB32: Data_Dates_EIP_i_b | AD32: Placeholder | AE32: Placeholder
A33: EIP_ii | B33: EIP(ii) | C33: EIP forecast outturn (£k) | D33: ='EIP(ii)_FINAL CALC'!B6 -> 2019/20 planned | E33: =IFERROR(IF(ISNUMBER( INDEX(INDIRECT($Z33), MATCH('Calc - Sparklines'!$C$1,INDIRECT($AA33),0), MATCH('Calc - Sparklines'!$D33,INDIRECT($AB33),0)-E$4))=FALSE,NA(), INDEX(INDIRECT($Z33), MATCH('Calc - Sparklines'!$C$1,INDIRECT($AA33),0), MATCH('Calc - Sparklines'!$D33,INDIRECT($AB33),0)-E$4)),NA()) ->  | F33: =IFERROR(IF(ISNUMBER( INDEX(INDIRECT($Z33), MATCH('Calc - Sparklines'!$C$1,INDIRECT($AA33),0), MATCH('Calc - Sparklines'!$D33,INDIRECT($AB33),0)-F$4))=FALSE,NA(), INDEX(INDIRECT($Z33), MATCH('Calc - Sparklines'!$C$1,INDIRECT($AA33),0), MATCH('Calc - Sparklines'!$D33,INDIRECT($AB33),0)-F$4)),NA()) ->  | G33: =IFERROR(IF(ISNUMBER( INDEX(INDIRECT($Z33), MATCH('Calc - Sparklines'!$C$1,INDIRECT($AA33),0), MATCH('Calc - Sparklines'!$D33,INDIRECT($AB33),0)-G$4))=FALSE,NA(), INDEX(INDIRECT($Z33), MATCH('Calc - Sparklines'!$C$1,INDIRECT($AA33),0), MATCH('Calc - Sparklines'!$D33,INDIRECT($AB33),0)-G$4)),NA()) ->  | H33: =IFERROR(IF(ISNUMBER( INDEX(INDIRECT($Z33), MATCH('Calc - Sparklines'!$C$1,INDIRECT($AA33),0), MATCH('Calc - Sparklines'!$D33,INDIRECT($AB33),0)-H$4))=FALSE,NA(), INDEX(INDIRECT($Z33), MATCH('Calc - Sparklines'!$C$1,INDIRECT($AA33),0), MATCH('Calc - Sparklines'!$D33,INDIRECT($AB33),0)-H$4)),NA()) ->  | I33: =IFERROR(IF(ISNUMBER( INDEX(INDIRECT($Z33), MATCH('Calc - Sparklines'!$C$1,INDIRECT($AA33),0), MATCH('Calc - Sparklines'!$D33,INDIRECT($AB33),0)-I$4))=FALSE,NA(), INDEX(INDIRECT($Z33), MATCH('Calc - Sparklines'!$C$1,INDIRECT($AA33),0), MATCH('Calc - Sparklines'!$D33,INDIRECT($AB33),0)-I$4)),NA()) ->  | J33: =IFERROR(IF(ISNUMBER( INDEX(INDIRECT($Z33), MATCH('Calc - Sparklines'!$C$1,INDIRECT($AA33),0), MATCH('Calc - Sparklines'!$D33,INDIRECT($AB33),0)-J$4))=FALSE,NA(), INDEX(INDIRECT($Z33), MATCH('Calc - Sparklines'!$C$1,INDIRECT($AA33),0), MATCH('Calc - Sparklines'!$D33,INDIRECT($AB33),0)-J$4)),NA()) ->  | K33: =IFERROR(IF(ISNUMBER( INDEX(INDIRECT($Z33), MATCH('Calc - Sparklines'!$C$1,INDIRECT($AA33),0), MATCH('Calc - Sparklines'!$D33,INDIRECT($AB33),0)-K$4))=FALSE,NA(), INDEX(INDIRECT($Z33), MATCH('Calc - Sparklines'!$C$1,INDIRECT($AA33),0), MATCH('Calc - Sparklines'!$D33,INDIRECT($AB33),0)-K$4)),NA()) ->  | L33: =IFERROR(IF(ISNUMBER( INDEX(INDIRECT($Z33), MATCH('Calc - Sparklines'!$C$1,INDIRECT($AA33),0), MATCH('Calc - Sparklines'!$D33,INDIRECT($AB33),0)-L$4))=FALSE,NA(), INDEX(INDIRECT($Z33), MATCH('Calc - Sparklines'!$C$1,INDIRECT($AA33),0), MATCH('Calc - Sparklines'!$D33,INDIRECT($AB33),0)-L$4)),NA()) ->  | M33: =IFERROR(IF(ISNUMBER( INDEX(INDIRECT($Z33), MATCH('Calc - Sparklines'!$C$1,INDIRECT($AA33),0), MATCH('Calc - Sparklines'!$D33,INDIRECT($AB33),0)-M$4))=FALSE,NA(), INDEX(INDIRECT($Z33), MATCH('Calc - Sparklines'!$C$1,INDIRECT($AA33),0), MATCH('Calc - Sparklines'!$D33,INDIRECT($AB33),0)-M$4)),NA()) ->  | N33: =IFERROR(IF(ISNUMBER( INDEX(INDIRECT($Z33), MATCH('Calc - Sparklines'!$C$1,INDIRECT($AA33),0), MATCH('Calc - Sparklines'!$D33,INDIRECT($AB33),0)-N$4))=FALSE,NA(), INDEX(INDIRECT($Z33), MATCH('Calc - Sparklines'!$C$1,INDIRECT($AA33),0), MATCH('Calc - Sparklines'!$D33,INDIRECT($AB33),0)-N$4)),NA()) -> 148630976.7 | O33: =IFERROR(IF(ISNUMBER( INDEX(INDIRECT($Z33), MATCH('Calc - Sparklines'!$C$1,INDIRECT($AA33),0), MATCH('Calc - Sparklines'!$D33,INDIRECT($AB33),0)-O$4))=FALSE,NA(), INDEX(INDIRECT($Z33), MATCH('Calc - Sparklines'!$C$1,INDIRECT($AA33),0), MATCH('Calc - Sparklines'!$D33,INDIRECT($AB33),0)-O$4)),NA()) -> 164444118.7 | P33: =IFERROR(IF(ISNUMBER( INDEX(INDIRECT($Z33), MATCH('Calc - Sparklines'!$C$1,INDIRECT($AA33),0), MATCH('Calc - Sparklines'!$D33,INDIRECT($AB33),0)-P$4))=FALSE,NA(), INDEX(INDIRECT($Z33), MATCH('Calc - Sparklines'!$C$1,INDIRECT($AA33),0), MATCH('Calc - Sparklines'!$D33,INDIRECT($AB33),0)-P$4)),NA()) -> 181724516.9 | R33: 6 | S33: 0 | T33: 181724516.9 | U33: 164444118.7 | V33: ▲ | W33: Sparkline20 | X33: N/A | Z33: Data_Table_EIP_ii | AA33: Data_Orgs_EIP_ii | AB33: Data_Dates_EIP_ii | AD33: Placeholder | AE33: Placeholder
A34: ES | B34: Employment Support | E34: =IFERROR(IF(ISNUMBER( INDEX(INDIRECT($Z34), MATCH('Calc - Sparklines'!$C$1,INDIRECT($AA34),0), MATCH('Calc - Sparklines'!$D34,INDIRECT($AB34),0)-E$3))=FALSE,NA(), INDEX(INDIRECT($Z34), MATCH('Calc - Sparklines'!$C$1,INDIRECT($AA34),0), MATCH('Calc - Sparklines'!$D34,INDIRECT($AB34),0)-E$3)),NA()) ->  | F34: =IFERROR(IF(ISNUMBER( INDEX(INDIRECT($Z34), MATCH('Calc - Sparklines'!$C$1,INDIRECT($AA34),0), MATCH('Calc - Sparklines'!$D34,INDIRECT($AB34),0)-F$3))=FALSE,NA(), INDEX(INDIRECT($Z34), MATCH('Calc - Sparklines'!$C$1,INDIRECT($AA34),0), MATCH('Calc - Sparklines'!$D34,INDIRECT($AB34),0)-F$3)),NA()) ->  | G34: =IFERROR(IF(ISNUMBER( INDEX(INDIRECT($Z34), MATCH('Calc - Sparklines'!$C$1,INDIRECT($AA34),0), MATCH('Calc - Sparklines'!$D34,INDIRECT($AB34),0)-G$3))=FALSE,NA(), INDEX(INDIRECT($Z34), MATCH('Calc - Sparklines'!$C$1,INDIRECT($AA34),0), MATCH('Calc - Sparklines'!$D34,INDIRECT($AB34),0)-G$3)),NA()) ->  | H34: =IFERROR(IF(ISNUMBER( INDEX(INDIRECT($Z34), MATCH('Calc - Sparklines'!$C$1,INDIRECT($AA34),0), MATCH('Calc - Sparklines'!$D34,INDIRECT($AB34),0)-H$3))=FALSE,NA(), INDEX(INDIRECT($Z34), MATCH('Calc - Sparklines'!$C$1,INDIRECT($AA34),0), MATCH('Calc - Sparklines'!$D34,INDIRECT($AB34),0)-H$3)),NA()) ->  | I34: =IFERROR(IF(ISNUMBER( INDEX(INDIRECT($Z34), MATCH('Calc - Sparklines'!$C$1,INDIRECT($AA34),0), MATCH('Calc - Sparklines'!$D34,INDIRECT($AB34),0)-I$3))=FALSE,NA(), INDEX(INDIRECT($Z34), MATCH('Calc - Sparklines'!$C$1,INDIRECT($AA34),0), MATCH('Calc - Sparklines'!$D34,INDIRECT($AB34),0)-I$3)),NA()) ->  | J34: =IFERROR(IF(ISNUMBER( INDEX(INDIRECT($Z34), MATCH('Calc - Sparklines'!$C$1,INDIRECT($AA34),0), MATCH('Calc - Sparklines'!$D34,INDIRECT($AB34),0)-J$3))=FALSE,NA(), INDEX(INDIRECT($Z34), MATCH('Calc - Sparklines'!$C$1,INDIRECT($AA34),0), MATCH('Calc - Sparklines'!$D34,INDIRECT($AB34),0)-J$3)),NA()) ->  | K34: =IFERROR(IF(ISNUMBER( INDEX(INDIRECT($Z34), MATCH('Calc - Sparklines'!$C$1,INDIRECT($AA34),0), MATCH('Calc - Sparklines'!$D34,INDIRECT($AB34),0)-K$3))=FALSE,NA(), INDEX(INDIRECT($Z34), MATCH('Calc - Sparklines'!$C$1,INDIRECT($AA34),0), MATCH('Calc - Sparklines'!$D34,INDIRECT($AB34),0)-K$3)),NA()) ->  | L34: =IFERROR(IF(ISNUMBER( INDEX(INDIRECT($Z34), MATCH('Calc - Sparklines'!$C$1,INDIRECT($AA34),0), MATCH('Calc - Sparklines'!$D34,INDIRECT($AB34),0)-L$3))=FALSE,NA(), INDEX(INDIRECT($Z34), MATCH('Calc - Sparklines'!$C$1,INDIRECT($AA34),0), MATCH('Calc - Sparklines'!$D34,INDIRECT($AB34),0)-L$3)),NA()) ->  | M34: =IFERROR(IF(ISNUMBER( INDEX(INDIRECT($Z34), MATCH('Calc - Sparklines'!$C$1,INDIRECT($AA34),0), MATCH('Calc - Sparklines'!$D34,INDIRECT($AB34),0)-M$3))=FALSE,NA(), INDEX(INDIRECT($Z34), MATCH('Calc - Sparklines'!$C$1,INDIRECT($AA34),0), MATCH('Calc - Sparklines'!$D34,INDIRECT($AB34),0)-M$3)),NA()) ->  | N34: =IFERROR(IF(ISNUMBER( INDEX(INDIRECT($Z34), MATCH('Calc - Sparklines'!$C$1,INDIRECT($AA34),0), MATCH('Calc - Sparklines'!$D34,INDIRECT($AB34),0)-N$3))=FALSE,NA(), INDEX(INDIRECT($Z34), MATCH('Calc - Sparklines'!$C$1,INDIRECT($AA34),0), MATCH('Calc - Sparklines'!$D34,INDIRECT($AB34),0)-N$3)),NA()) ->  | O34: =IFERROR(IF(ISNUMBER( INDEX(INDIRECT($Z34), MATCH('Calc - Sparklines'!$C$1,INDIRECT($AA34),0), MATCH('Calc - Sparklines'!$D34,INDIRECT($AB34),0)-O$3))=FALSE,NA(), INDEX(INDIRECT($Z34), MATCH('Calc - Sparklines'!$C$1,INDIRECT($AA34),0), MATCH('Calc - Sparklines'!$D34,INDIRECT($AB34),0)-O$3)),NA()) ->  | P34: =IFERROR(IF(ISNUMBER( INDEX(INDIRECT($Z34), MATCH('Calc - Sparklines'!$C$1,INDIRECT($AA34),0), MATCH('Calc - Sparklines'!$D34,INDIRECT($AB34),0)-P$3))=FALSE,NA(), INDEX(INDIRECT($Z34), MATCH('Calc - Sparklines'!$C$1,INDIRECT($AA34),0), MATCH('Calc - Sparklines'!$D34,INDIRECT($AB34),0)-P$3)),NA()) ->  | R34: 0 | X34: N/A | AD34: Subheading
A35: ES_i | B35: ES(i) | C35: Number of people accessing IPS services in 2016/17 | D35: ='ES(i)_FINAL CALC'!B6 -> 2016/17 | E35: =IFERROR(IF(ISNUMBER( INDEX(INDIRECT($Z35), MATCH('Calc - Sparklines'!$C$1,INDIRECT($AA35),0), MATCH('Calc - Sparklines'!$D35,INDIRECT($AB35),0)-E$3))=FALSE,NA(), INDEX(INDIRECT($Z35), MATCH('Calc - Sparklines'!$C$1,INDIRECT($AA35),0), MATCH('Calc - Sparklines'!$D35,INDIRECT($AB35),0)-E$3)),NA()) ->  | F35: =IFERROR(IF(ISNUMBER( INDEX(INDIRECT($Z35), MATCH('Calc - Sparklines'!$C$1,INDIRECT($AA35),0), MATCH('Calc - Sparklines'!$D35,INDIRECT($AB35),0)-F$3))=FALSE,NA(), INDEX(INDIRECT($Z35), MATCH('Calc - Sparklines'!$C$1,INDIRECT($AA35),0), MATCH('Calc - Sparklines'!$D35,INDIRECT($AB35),0)-F$3)),NA()) ->  | G35: =IFERROR(IF(ISNUMBER( INDEX(INDIRECT($Z35), MATCH('Calc - Sparklines'!$C$1,INDIRECT($AA35),0), MATCH('Calc - Sparklines'!$D35,INDIRECT($AB35),0)-G$3))=FALSE,NA(), INDEX(INDIRECT($Z35), MATCH('Calc - Sparklines'!$C$1,INDIRECT($AA35),0), MATCH('Calc - Sparklines'!$D35,INDIRECT($AB35),0)-G$3)),NA()) ->  | H35: =IFERROR(IF(ISNUMBER( INDEX(INDIRECT($Z35), MATCH('Calc - Sparklines'!$C$1,INDIRECT($AA35),0), MATCH('Calc - Sparklines'!$D35,INDIRECT($AB35),0)-H$3))=FALSE,NA(), INDEX(INDIRECT($Z35), MATCH('Calc - Sparklines'!$C$1,INDIRECT($AA35),0), MATCH('Calc - Sparklines'!$D35,INDIRECT($AB35),0)-H$3)),NA()) ->  | I35: =IFERROR(IF(ISNUMBER( INDEX(INDIRECT($Z35), MATCH('Calc - Sparklines'!$C$1,INDIRECT($AA35),0), MATCH('Calc - Sparklines'!$D35,INDIRECT($AB35),0)-I$3))=FALSE,NA(), INDEX(INDIRECT($Z35), MATCH('Calc - Sparklines'!$C$1,INDIRECT($AA35),0), MATCH('Calc - Sparklines'!$D35,INDIRECT($AB35),0)-I$3)),NA()) ->  | J35: =IFERROR(IF(ISNUMBER( INDEX(INDIRECT($Z35), MATCH('Calc - Sparklines'!$C$1,INDIRECT($AA35),0), MATCH('Calc - Sparklines'!$D35,INDIRECT($AB35),0)-J$3))=FALSE,NA(), INDEX(INDIRECT($Z35), MATCH('Calc - Sparklines'!$C$1,INDIRECT($AA35),0), MATCH('Calc - Sparklines'!$D35,INDIRECT($AB35),0)-J$3)),NA()) ->  | K35: =IFERROR(IF(ISNUMBER( INDEX(INDIRECT($Z35), MATCH('Calc - Sparklines'!$C$1,INDIRECT($AA35),0), MATCH('Calc - Sparklines'!$D35,INDIRECT($AB35),0)-K$3))=FALSE,NA(), INDEX(INDIRECT($Z35), MATCH('Calc - Sparklines'!$C$1,INDIRECT($AA35),0), MATCH('Calc - Sparklines'!$D35,INDIRECT($AB35),0)-K$3)),NA()) ->  | L35: =IFERROR(IF(ISNUMBER( INDEX(INDIRECT($Z35), MATCH('Calc - Sparklines'!$C$1,INDIRECT($AA35),0), MATCH('Calc - Sparklines'!$D35,INDIRECT($AB35),0)-L$3))=FALSE,NA(), INDEX(INDIRECT($Z35), MATCH('Calc - Sparklines'!$C$1,INDIRECT($AA35),0), MATCH('Calc - Sparklines'!$D35,INDIRECT($AB35),0)-L$3)),NA()) ->  | M35: =IFERROR(IF(ISNUMBER( INDEX(INDIRECT($Z35), MATCH('Calc - Sparklines'!$C$1,INDIRECT($AA35),0), MATCH('Calc - Sparklines'!$D35,INDIRECT($AB35),0)-M$3))=FALSE,NA(), INDEX(INDIRECT($Z35), MATCH('Calc - Sparklines'!$C$1,INDIRECT($AA35),0), MATCH('Calc - Sparklines'!$D35,INDIRECT($AB35),0)-M$3)),NA()) ->  | N35: =IFERROR(IF(ISNUMBER( INDEX(INDIRECT($Z35), MATCH('Calc - Sparklines'!$C$1,INDIRECT($AA35),0), MATCH('Calc - Sparklines'!$D35,INDIRECT($AB35),0)-N$3))=FALSE,NA(), INDEX(INDIRECT($Z35), MATCH('Calc - Sparklines'!$C$1,INDIRECT($AA35),0), MATCH('Calc - Sparklines'!$D35,INDIRECT($AB35),0)-N$3)),NA()) ->  | O35: =IFERROR(IF(ISNUMBER( INDEX(INDIRECT($Z35), MATCH('Calc - Sparklines'!$C$1,INDIRECT($AA35),0), MATCH('Calc - Sparklines'!$D35,INDIRECT($AB35),0)-O$3))=FALSE,NA(), INDEX(INDIRECT($Z35), MATCH('Calc - Sparklines'!$C$1,INDIRECT($AA35),0), MATCH('Calc - Sparklines'!$D35,INDIRECT($AB35),0)-O$3)),NA()) ->  | P35: =IFERROR(IF(ISNUMBER( INDEX(INDIRECT($Z35), MATCH('Calc - Sparklines'!$C$1,INDIRECT($AA35),0), MATCH('Calc - Sparklines'!$D35,INDIRECT($AB35),0)-P$3))=FALSE,NA(), INDEX(INDIRECT($Z35), MATCH('Calc - Sparklines'!$C$1,INDIRECT($AA35),0), MATCH('Calc - Sparklines'!$D35,INDIRECT($AB35),0)-P$3)),NA()) -> 9775 | R35: =IF(COUNTA(K35:P35)-COUNTIF(K35:P35,"#N/A")<3, 0, COUNTA(K35:P35)) -> 0 | S35: =IF(P35="N/A",IF(O35="N/A",2,1),0) -> 0 | T35: =OFFSET(P35,,-S35) -> 9775 | U35: =IF(ISERROR(O35),IF(ISERROR(N35),IF(ISERROR(M35),IF(ISERROR(L35),IF(ISERROR(K35),IF(ISERROR(J35),IF(ISERROR(I35),IF(ISERROR(H35),IF(ISERROR(G35),IF(ISERROR(F35),IF(ISERROR(E35), NA(), E35),F35),G35),H35),I35),J35),K35),L35),M35),N35),O35) ->  | V35: =IF(D35="","",IFERROR(IF(T35>U35,"▲", IF(T35<U35,"▼","◄►")),"N/A")) -> N/A | X35: Baseline figure | Z35: Data_Table_ES_i | AA35: Data_Orgs_ES_i | AB35: Data_Dates_ES_i
A36: PHSMI | B36: Employment Support | E36: =IFERROR(IF(ISNUMBER( INDEX(INDIRECT($Z36), MATCH('Calc - Sparklines'!$C$1,INDIRECT($AA36),0), MATCH('Calc - Sparklines'!$D36,INDIRECT($AB36),0)-E$3))=FALSE,NA(), INDEX(INDIRECT($Z36), MATCH('Calc - Sparklines'!$C$1,INDIRECT($AA36),0), MATCH('Calc - Sparklines'!$D36,INDIRECT($AB36),0)-E$3)),NA()) ->  | F36: =IFERROR(IF(ISNUMBER( INDEX(INDIRECT($Z36), MATCH('Calc - Sparklines'!$C$1,INDIRECT($AA36),0), MATCH('Calc - Sparklines'!$D36,INDIRECT($AB36),0)-F$3))=FALSE,NA(), INDEX(INDIRECT($Z36), MATCH('Calc - Sparklines'!$C$1,INDIRECT($AA36),0), MATCH('Calc - Sparklines'!$D36,INDIRECT($AB36),0)-F$3)),NA()) ->  | G36: =IFERROR(IF(ISNUMBER( INDEX(INDIRECT($Z36), MATCH('Calc - Sparklines'!$C$1,INDIRECT($AA36),0), MATCH('Calc - Sparklines'!$D36,INDIRECT($AB36),0)-G$3))=FALSE,NA(), INDEX(INDIRECT($Z36), MATCH('Calc - Sparklines'!$C$1,INDIRECT($AA36),0), MATCH('Calc - Sparklines'!$D36,INDIRECT($AB36),0)-G$3)),NA()) ->  | H36: =IFERROR(IF(ISNUMBER( INDEX(INDIRECT($Z36), MATCH('Calc - Sparklines'!$C$1,INDIRECT($AA36),0), MATCH('Calc - Sparklines'!$D36,INDIRECT($AB36),0)-H$3))=FALSE,NA(), INDEX(INDIRECT($Z36), MATCH('Calc - Sparklines'!$C$1,INDIRECT($AA36),0), MATCH('Calc - Sparklines'!$D36,INDIRECT($AB36),0)-H$3)),NA()) ->  | I36: =IFERROR(IF(ISNUMBER( INDEX(INDIRECT($Z36), MATCH('Calc - Sparklines'!$C$1,INDIRECT($AA36),0), MATCH('Calc - Sparklines'!$D36,INDIRECT($AB36),0)-I$3))=FALSE,NA(), INDEX(INDIRECT($Z36), MATCH('Calc - Sparklines'!$C$1,INDIRECT($AA36),0), MATCH('Calc - Sparklines'!$D36,INDIRECT($AB36),0)-I$3)),NA()) ->  | J36: =IFERROR(IF(ISNUMBER( INDEX(INDIRECT($Z36), MATCH('Calc - Sparklines'!$C$1,INDIRECT($AA36),0), MATCH('Calc - Sparklines'!$D36,INDIRECT($AB36),0)-J$3))=FALSE,NA(), INDEX(INDIRECT($Z36), MATCH('Calc - Sparklines'!$C$1,INDIRECT($AA36),0), MATCH('Calc - Sparklines'!$D36,INDIRECT($AB36),0)-J$3)),NA()) ->  | K36: =IFERROR(IF(ISNUMBER( INDEX(INDIRECT($Z36), MATCH('Calc - Sparklines'!$C$1,INDIRECT($AA36),0), MATCH('Calc - Sparklines'!$D36,INDIRECT($AB36),0)-K$3))=FALSE,NA(), INDEX(INDIRECT($Z36), MATCH('Calc - Sparklines'!$C$1,INDIRECT($AA36),0), MATCH('Calc - Sparklines'!$D36,INDIRECT($AB36),0)-K$3)),NA()) ->  | L36: =IFERROR(IF(ISNUMBER( INDEX(INDIRECT($Z36), MATCH('Calc - Sparklines'!$C$1,INDIRECT($AA36),0), MATCH('Calc - Sparklines'!$D36,INDIRECT($AB36),0)-L$3))=FALSE,NA(), INDEX(INDIRECT($Z36), MATCH('Calc - Sparklines'!$C$1,INDIRECT($AA36),0), MATCH('Calc - Sparklines'!$D36,INDIRECT($AB36),0)-L$3)),NA()) ->  | M36: =IFERROR(IF(ISNUMBER( INDEX(INDIRECT($Z36), MATCH('Calc - Sparklines'!$C$1,INDIRECT($AA36),0), MATCH('Calc - Sparklines'!$D36,INDIRECT($AB36),0)-M$3))=FALSE,NA(), INDEX(INDIRECT($Z36), MATCH('Calc - Sparklines'!$C$1,INDIRECT($AA36),0), MATCH('Calc - Sparklines'!$D36,INDIRECT($AB36),0)-M$3)),NA()) ->  | N36: =IFERROR(IF(ISNUMBER( INDEX(INDIRECT($Z36), MATCH('Calc - Sparklines'!$C$1,INDIRECT($AA36),0), MATCH('Calc - Sparklines'!$D36,INDIRECT($AB36),0)-N$3))=FALSE,NA(), INDEX(INDIRECT($Z36), MATCH('Calc - Sparklines'!$C$1,INDIRECT($AA36),0), MATCH('Calc - Sparklines'!$D36,INDIRECT($AB36),0)-N$3)),NA()) ->  | O36: =IFERROR(IF(ISNUMBER( INDEX(INDIRECT($Z36), MATCH('Calc - Sparklines'!$C$1,INDIRECT($AA36),0), MATCH('Calc - Sparklines'!$D36,INDIRECT($AB36),0)-O$3))=FALSE,NA(), INDEX(INDIRECT($Z36), MATCH('Calc - Sparklines'!$C$1,INDIRECT($AA36),0), MATCH('Calc - Sparklines'!$D36,INDIRECT($AB36),0)-O$3)),NA()) ->  | P36: =IFERROR(IF(ISNUMBER( INDEX(INDIRECT($Z36), MATCH('Calc - Sparklines'!$C$1,INDIRECT($AA36),0), MATCH('Calc - Sparklines'!$D36,INDIRECT($AB36),0)-P$3))=FALSE,NA(), INDEX(INDIRECT($Z36), MATCH('Calc - Sparklines'!$C$1,INDIRECT($AA36),0), MATCH('Calc - Sparklines'!$D36,INDIRECT($AB36),0)-P$3)),NA()) ->  | R36: 0 | T36: =OFFSET(P36,,-S36) ->  | U36: =IF(ISERROR(O36),IF(ISERROR(N36),IF(ISERROR(M36),IF(ISERROR(L36),IF(ISERROR(K36),IF(ISERROR(J36),IF(ISERROR(I36),IF(ISERROR(H36),IF(ISERROR(G36),IF(ISERROR(F36),IF(ISERROR(E36), NA(), E36),F36),G36),H36),I36),J36),K36),L36),M36),N36),O36) ->  | V36: =IF(D36="","",IFERROR(IF(T36>U36,"▲", IF(T36<U36,"▼","◄►")),"N/A")) ->  | X36: =IF(ISNA(T36),"N/A",IF(R36<=2,"N/A","")) -> N/A | AD36: Subheading
A37: PHSMI_i | B37: PHSMI(i) | C37: % of people on GP SMI register receiving full physical health check in primary care setting | D37: ='PHSMI(i)_FINAL CALC'!B6 -> Q2 2019/20 | E37: =IFERROR(IF(ISNUMBER( INDEX(INDIRECT($Z37), MATCH('Calc - Sparklines'!$C$1,INDIRECT($AA37),0), MATCH('Calc - Sparklines'!$D37,INDIRECT($AB37),0)-E$3))=FALSE,NA(), INDEX(INDIRECT($Z37), MATCH('Calc - Sparklines'!$C$1,INDIRECT($AA37),0), MATCH('Calc - Sparklines'!$D37,INDIRECT($AB37),0)-E$3)),NA()) ->  | F37: =IFERROR(IF(ISNUMBER( INDEX(INDIRECT($Z37), MATCH('Calc - Sparklines'!$C$1,INDIRECT($AA37),0), MATCH('Calc - Sparklines'!$D37,INDIRECT($AB37),0)-F$3))=FALSE,NA(), INDEX(INDIRECT($Z37), MATCH('Calc - Sparklines'!$C$1,INDIRECT($AA37),0), MATCH('Calc - Sparklines'!$D37,INDIRECT($AB37),0)-F$3)),NA()) ->  | G37: =IFERROR(IF(ISNUMBER( INDEX(INDIRECT($Z37), MATCH('Calc - Sparklines'!$C$1,INDIRECT($AA37),0), MATCH('Calc - Sparklines'!$D37,INDIRECT($AB37),0)-G$3))=FALSE,NA(), INDEX(INDIRECT($Z37), MATCH('Calc - Sparklines'!$C$1,INDIRECT($AA37),0), MATCH('Calc - Sparklines'!$D37,INDIRECT($AB37),0)-G$3)),NA()) ->  | H37: =IFERROR(IF(ISNUMBER( INDEX(INDIRECT($Z37), MATCH('Calc - Sparklines'!$C$1,INDIRECT($AA37),0), MATCH('Calc - Sparklines'!$D37,INDIRECT($AB37),0)-H$3))=FALSE,NA(), INDEX(INDIRECT($Z37), MATCH('Calc - Sparklines'!$C$1,INDIRECT($AA37),0), MATCH('Calc - Sparklines'!$D37,INDIRECT($AB37),0)-H$3)),NA()) ->  | I37: =IFERROR(IF(ISNUMBER( INDEX(INDIRECT($Z37), MATCH('Calc - Sparklines'!$C$1,INDIRECT($AA37),0), MATCH('Calc - Sparklines'!$D37,INDIRECT($AB37),0)-I$3))=FALSE,NA(), INDEX(INDIRECT($Z37), MATCH('Calc - Sparklines'!$C$1,INDIRECT($AA37),0), MATCH('Calc - Sparklines'!$D37,INDIRECT($AB37),0)-I$3)),NA()) ->  | J37: =IFERROR(IF(ISNUMBER( INDEX(INDIRECT($Z37), MATCH('Calc - Sparklines'!$C$1,INDIRECT($AA37),0), MATCH('Calc - Sparklines'!$D37,INDIRECT($AB37),0)-J$3))=FALSE,NA(), INDEX(INDIRECT($Z37), MATCH('Calc - Sparklines'!$C$1,INDIRECT($AA37),0), MATCH('Calc - Sparklines'!$D37,INDIRECT($AB37),0)-J$3)),NA()) ->  | K37: =IFERROR(IF(ISNUMBER( INDEX(INDIRECT($Z37), MATCH('Calc - Sparklines'!$C$1,INDIRECT($AA37),0), MATCH('Calc - Sparklines'!$D37,INDIRECT($AB37),0)-K$3))=FALSE,NA(), INDEX(INDIRECT($Z37), MATCH('Calc - Sparklines'!$C$1,INDIRECT($AA37),0), MATCH('Calc - Sparklines'!$D37,INDIRECT($AB37),0)-K$3)),NA()) ->  | L37: =IFERROR(IF(ISNUMBER( INDEX(INDIRECT($Z37), MATCH('Calc - Sparklines'!$C$1,INDIRECT($AA37),0), MATCH('Calc - Sparklines'!$D37,INDIRECT($AB37),0)-L$3))=FALSE,NA(), INDEX(INDIRECT($Z37), MATCH('Calc - Sparklines'!$C$1,INDIRECT($AA37),0), MATCH('Calc - Sparklines'!$D37,INDIRECT($AB37),0)-L$3)),NA()) ->  | M37: =IFERROR(IF(ISNUMBER( INDEX(INDIRECT($Z37), MATCH('Calc - Sparklines'!$C$1,INDIRECT($AA37),0), MATCH('Calc - Sparklines'!$D37,INDIRECT($AB37),0)-M$3))=FALSE,NA(), INDEX(INDIRECT($Z37), MATCH('Calc - Sparklines'!$C$1,INDIRECT($AA37),0), MATCH('Calc - Sparklines'!$D37,INDIRECT($AB37),0)-M$3)),NA()) -> 0.2414872726 | N37: =IFERROR(IF(ISNUMBER( INDEX(INDIRECT($Z37), MATCH('Calc - Sparklines'!$C$1,INDIRECT($AA37),0), MATCH('Calc - Sparklines'!$D37,INDIRECT($AB37),0)-N$3))=FALSE,NA(), INDEX(INDIRECT($Z37), MATCH('Calc - Sparklines'!$C$1,INDIRECT($AA37),0), MATCH('Calc - Sparklines'!$D37,INDIRECT($AB37),0)-N$3)),NA()) -> 0.3030954574 | O37: =IFERROR(IF(ISNUMBER( INDEX(INDIRECT($Z37), MATCH('Calc - Sparklines'!$C$1,INDIRECT($AA37),0), MATCH('Calc - Sparklines'!$D37,INDIRECT($AB37),0)-O$3))=FALSE,NA(), INDEX(INDIRECT($Z37), MATCH('Calc - Sparklines'!$C$1,INDIRECT($AA37),0), MATCH('Calc - Sparklines'!$D37,INDIRECT($AB37),0)-O$3)),NA()) -> 0.2946942363 | P37: =IFERROR(IF(ISNUMBER( INDEX(INDIRECT($Z37), MATCH('Calc - Sparklines'!$C$1,INDIRECT($AA37),0), MATCH('Calc - Sparklines'!$D37,INDIRECT($AB37),0)-P$3))=FALSE,NA(), INDEX(INDIRECT($Z37), MATCH('Calc - Sparklines'!$C$1,INDIRECT($AA37),0), MATCH('Calc - Sparklines'!$D37,INDIRECT($AB37),0)-P$3)),NA()) -> 0.3004748212 | R37: 6 | S37: 0 | T37: =OFFSET(P37,,-S37) -> 0.3004748212 | U37: =IF(ISERROR(O37),IF(ISERROR(N37),IF(ISERROR(M37),IF(ISERROR(L37),IF(ISERROR(K37),IF(ISERROR(J37),IF(ISERROR(I37),IF(ISERROR(H37),IF(ISERROR(G37),IF(ISERROR(F37),IF(ISERROR(E37), NA(), E37),F37),G37),H37),I37),J37),K37),L37),M37),N37),O37) -> 0.2946942363 | V37: =IF(D37="","",IFERROR(IF(T37>U37,"▲", IF(T37<U37,"▼","◄►")),"N/A")) -> ▲ | Z37: Data_Table_PHSMI_i | AA37: Data_Orgs_PHSMI_i | AB37: Data_Dates_PHSMI_i
A38: Crisis and acute care and use of the Mental Health Act | B38: Crisis and acute care and use of the Mental Health Act | E38: =IFERROR(IF(ISNUMBER( INDEX(INDIRECT($Z38), MATCH('Calc - Sparklines'!$C$1,INDIRECT($AA38),0), MATCH('Calc - Sparklines'!$D38,INDIRECT($AB38),0)-E$3))=FALSE,NA(), INDEX(INDIRECT($Z38), MATCH('Calc - Sparklines'!$C$1,INDIRECT($AA38),0), MATCH('Calc - Sparklines'!$D38,INDIRECT($AB38),0)-E$3)),NA()) ->  | F38: =IFERROR(IF(ISNUMBER( INDEX(INDIRECT($Z38), MATCH('Calc - Sparklines'!$C$1,INDIRECT($AA38),0), MATCH('Calc - Sparklines'!$D38,INDIRECT($AB38),0)-F$3))=FALSE,NA(), INDEX(INDIRECT($Z38), MATCH('Calc - Sparklines'!$C$1,INDIRECT($AA38),0), MATCH('Calc - Sparklines'!$D38,INDIRECT($AB38),0)-F$3)),NA()) ->  | G38: =IFERROR(IF(ISNUMBER( INDEX(INDIRECT($Z38), MATCH('Calc - Sparklines'!$C$1,INDIRECT($AA38),0), MATCH('Calc - Sparklines'!$D38,INDIRECT($AB38),0)-G$3))=FALSE,NA(), INDEX(INDIRECT($Z38), MATCH('Calc - Sparklines'!$C$1,INDIRECT($AA38),0), MATCH('Calc - Sparklines'!$D38,INDIRECT($AB38),0)-G$3)),NA()) ->  | H38: =IFERROR(IF(ISNUMBER( INDEX(INDIRECT($Z38), MATCH('Calc - Sparklines'!$C$1,INDIRECT($AA38),0), MATCH('Calc - Sparklines'!$D38,INDIRECT($AB38),0)-H$3))=FALSE,NA(), INDEX(INDIRECT($Z38), MATCH('Calc - Sparklines'!$C$1,INDIRECT($AA38),0), MATCH('Calc - Sparklines'!$D38,INDIRECT($AB38),0)-H$3)),NA()) ->  | I38: =IFERROR(IF(ISNUMBER( INDEX(INDIRECT($Z38), MATCH('Calc - Sparklines'!$C$1,INDIRECT($AA38),0), MATCH('Calc - Sparklines'!$D38,INDIRECT($AB38),0)-I$3))=FALSE,NA(), INDEX(INDIRECT($Z38), MATCH('Calc - Sparklines'!$C$1,INDIRECT($AA38),0), MATCH('Calc - Sparklines'!$D38,INDIRECT($AB38),0)-I$3)),NA()) ->  | J38: =IFERROR(IF(ISNUMBER( INDEX(INDIRECT($Z38), MATCH('Calc - Sparklines'!$C$1,INDIRECT($AA38),0), MATCH('Calc - Sparklines'!$D38,INDIRECT($AB38),0)-J$3))=FALSE,NA(), INDEX(INDIRECT($Z38), MATCH('Calc - Sparklines'!$C$1,INDIRECT($AA38),0), MATCH('Calc - Sparklines'!$D38,INDIRECT($AB38),0)-J$3)),NA()) ->  | K38: =IFERROR(IF(ISNUMBER( INDEX(INDIRECT($Z38), MATCH('Calc - Sparklines'!$C$1,INDIRECT($AA38),0), MATCH('Calc - Sparklines'!$D38,INDIRECT($AB38),0)-K$3))=FALSE,NA(), INDEX(INDIRECT($Z38), MATCH('Calc - Sparklines'!$C$1,INDIRECT($AA38),0), MATCH('Calc - Sparklines'!$D38,INDIRECT($AB38),0)-K$3)),NA()) ->  | L38: =IFERROR(IF(ISNUMBER( INDEX(INDIRECT($Z38), MATCH('Calc - Sparklines'!$C$1,INDIRECT($AA38),0), MATCH('Calc - Sparklines'!$D38,INDIRECT($AB38),0)-L$3))=FALSE,NA(), INDEX(INDIRECT($Z38), MATCH('Calc - Sparklines'!$C$1,INDIRECT($AA38),0), MATCH('Calc - Sparklines'!$D38,INDIRECT($AB38),0)-L$3)),NA()) ->  | M38: =IFERROR(IF(ISNUMBER( INDEX(INDIRECT($Z38), MATCH('Calc - Sparklines'!$C$1,INDIRECT($AA38),0), MATCH('Calc - Sparklines'!$D38,INDIRECT($AB38),0)-M$3))=FALSE,NA(), INDEX(INDIRECT($Z38), MATCH('Calc - Sparklines'!$C$1,INDIRECT($AA38),0), MATCH('Calc - Sparklines'!$D38,INDIRECT($AB38),0)-M$3)),NA()) ->  | N38: =IFERROR(IF(ISNUMBER( INDEX(INDIRECT($Z38), MATCH('Calc - Sparklines'!$C$1,INDIRECT($AA38),0), MATCH('Calc - Sparklines'!$D38,INDIRECT($AB38),0)-N$3))=FALSE,NA(), INDEX(INDIRECT($Z38), MATCH('Calc - Sparklines'!$C$1,INDIRECT($AA38),0), MATCH('Calc - Sparklines'!$D38,INDIRECT($AB38),0)-N$3)),NA()) ->  | O38: =IFERROR(IF(ISNUMBER( INDEX(INDIRECT($Z38), MATCH('Calc - Sparklines'!$C$1,INDIRECT($AA38),0), MATCH('Calc - Sparklines'!$D38,INDIRECT($AB38),0)-O$3))=FALSE,NA(), INDEX(INDIRECT($Z38), MATCH('Calc - Sparklines'!$C$1,INDIRECT($AA38),0), MATCH('Calc - Sparklines'!$D38,INDIRECT($AB38),0)-O$3)),NA()) ->  | P38: =IFERROR(IF(ISNUMBER( INDEX(INDIRECT($Z38), MATCH('Calc - Sparklines'!$C$1,INDIRECT($AA38),0), MATCH('Calc - Sparklines'!$D38,INDIRECT($AB38),0)-P$3))=FALSE,NA(), INDEX(INDIRECT($Z38), MATCH('Calc - Sparklines'!$C$1,INDIRECT($AA38),0), MATCH('Calc - Sparklines'!$D38,INDIRECT($AB38),0)-P$3)),NA()) ->  | R38: 0 | T38: =OFFSET(P38,,-S38) ->  | U38: =IF(ISERROR(O38),IF(ISERROR(N38),IF(ISERROR(M38),IF(ISERROR(L38),IF(ISERROR(K38),IF(ISERROR(J38),IF(ISERROR(I38),IF(ISERROR(H38),IF(ISERROR(G38),IF(ISERROR(F38),IF(ISERROR(E38), NA(), E38),F38),G38),H38),I38),J38),K38),L38),M38),N38),O38) ->  | V38: =IF(D38="","",IFERROR(IF(T38>U38,"▲", IF(T38<U38,"▼","◄►")),"N/A")) ->  | X38: N/A | AD38: Subheading
A39: CR_i_a | B39: CR(i.a) | C39: Number of crisis resolution home treatment team staff | D39: ='CR(i_a)_FINAL CALC'!$B$6 -> 2017/18 | E39: =IFERROR(IF(ISNUMBER( INDEX(INDIRECT($Z39), MATCH('Calc - Sparklines'!$C$1,INDIRECT($AA39),0), MATCH('Calc - Sparklines'!$D39,INDIRECT($AB39),0)-E$3))=FALSE,NA(), INDEX(INDIRECT($Z39), MATCH('Calc - Sparklines'!$C$1,INDIRECT($AA39),0), MATCH('Calc - Sparklines'!$D39,INDIRECT($AB39),0)-E$3)),NA()) ->  | F39: =IFERROR(IF(ISNUMBER( INDEX(INDIRECT($Z39), MATCH('Calc - Sparklines'!$C$1,INDIRECT($AA39),0), MATCH('Calc - Sparklines'!$D39,INDIRECT($AB39),0)-F$3))=FALSE,NA(), INDEX(INDIRECT($Z39), MATCH('Calc - Sparklines'!$C$1,INDIRECT($AA39),0), MATCH('Calc - Sparklines'!$D39,INDIRECT($AB39),0)-F$3)),NA()) ->  | G39: =IFERROR(IF(ISNUMBER( INDEX(INDIRECT($Z39), MATCH('Calc - Sparklines'!$C$1,INDIRECT($AA39),0), MATCH('Calc - Sparklines'!$D39,INDIRECT($AB39),0)-G$3))=FALSE,NA(), INDEX(INDIRECT($Z39), MATCH('Calc - Sparklines'!$C$1,INDIRECT($AA39),0), MATCH('Calc - Sparklines'!$D39,INDIRECT($AB39),0)-G$3)),NA()) ->  | H39: =IFERROR(IF(ISNUMBER( INDEX(INDIRECT($Z39), MATCH('Calc - Sparklines'!$C$1,INDIRECT($AA39),0), MATCH('Calc - Sparklines'!$D39,INDIRECT($AB39),0)-H$3))=FALSE,NA(), INDEX(INDIRECT($Z39), MATCH('Calc - Sparklines'!$C$1,INDIRECT($AA39),0), MATCH('Calc - Sparklines'!$D39,INDIRECT($AB39),0)-H$3)),NA()) ->  | I39: =IFERROR(IF(ISNUMBER( INDEX(INDIRECT($Z39), MATCH('Calc - Sparklines'!$C$1,INDIRECT($AA39),0), MATCH('Calc - Sparklines'!$D39,INDIRECT($AB39),0)-I$3))=FALSE,NA(), INDEX(INDIRECT($Z39), MATCH('Calc - Sparklines'!$C$1,INDIRECT($AA39),0), MATCH('Calc - Sparklines'!$D39,INDIRECT($AB39),0)-I$3)),NA()) ->  | J39: =IFERROR(IF(ISNUMBER( INDEX(INDIRECT($Z39), MATCH('Calc - Sparklines'!$C$1,INDIRECT($AA39),0), MATCH('Calc - Sparklines'!$D39,INDIRECT($AB39),0)-J$3))=FALSE,NA(), INDEX(INDIRECT($Z39), MATCH('Calc - Sparklines'!$C$1,INDIRECT($AA39),0), MATCH('Calc - Sparklines'!$D39,INDIRECT($AB39),0)-J$3)),NA()) ->  | K39: =IFERROR(IF(ISNUMBER( INDEX(INDIRECT($Z39), MATCH('Calc - Sparklines'!$C$1,INDIRECT($AA39),0), MATCH('Calc - Sparklines'!$D39,INDIRECT($AB39),0)-K$3))=FALSE,NA(), INDEX(INDIRECT($Z39), MATCH('Calc - Sparklines'!$C$1,INDIRECT($AA39),0), MATCH('Calc - Sparklines'!$D39,INDIRECT($AB39),0)-K$3)),NA()) ->  | L39: =IFERROR(IF(ISNUMBER( INDEX(INDIRECT($Z39), MATCH('Calc - Sparklines'!$C$1,INDIRECT($AA39),0), MATCH('Calc - Sparklines'!$D39,INDIRECT($AB39),0)-L$3))=FALSE,NA(), INDEX(INDIRECT($Z39), MATCH('Calc - Sparklines'!$C$1,INDIRECT($AA39),0), MATCH('Calc - Sparklines'!$D39,INDIRECT($AB39),0)-L$3)),NA()) ->  | M39: =IFERROR(IF(ISNUMBER( INDEX(INDIRECT($Z39), MATCH('Calc - Sparklines'!$C$1,INDIRECT($AA39),0), MATCH('Calc - Sparklines'!$D39,INDIRECT($AB39),0)-M$3))=FALSE,NA(), INDEX(INDIRECT($Z39), MATCH('Calc - Sparklines'!$C$1,INDIRECT($AA39),0), MATCH('Calc - Sparklines'!$D39,INDIRECT($AB39),0)-M$3)),NA()) ->  | N39: =IFERROR(IF(ISNUMBER( INDEX(INDIRECT($Z39), MATCH('Calc - Sparklines'!$C$1,INDIRECT($AA39),0), MATCH('Calc - Sparklines'!$D39,INDIRECT($AB39),0)-N$3))=FALSE,NA(), INDEX(INDIRECT($Z39), MATCH('Calc - Sparklines'!$C$1,INDIRECT($AA39),0), MATCH('Calc - Sparklines'!$D39,INDIRECT($AB39),0)-N$3)),NA()) ->  | O39: =IFERROR(IF(ISNUMBER( INDEX(INDIRECT($Z39), MATCH('Calc - Sparklines'!$C$1,INDIRECT($AA39),0), MATCH('Calc - Sparklines'!$D39,INDIRECT($AB39),0)-O$3))=FALSE,NA(), INDEX(INDIRECT($Z39), MATCH('Calc - Sparklines'!$C$1,INDIRECT($AA39),0), MATCH('Calc - Sparklines'!$D39,INDIRECT($AB39),0)-O$3)),NA()) -> 5104 | P39: =IFERROR(IF(ISNUMBER( INDEX(INDIRECT($Z39), MATCH('Calc - Sparklines'!$C$1,INDIRECT($AA39),0), MATCH('Calc - Sparklines'!$D39,INDIRECT($AB39),0)-P$3))=FALSE,NA(), INDEX(INDIRECT($Z39), MATCH('Calc - Sparklines'!$C$1,INDIRECT($AA39),0), MATCH('Calc - Sparklines'!$D39,INDIRECT($AB39),0)-P$3)),NA()) -> 6582.23 | R39: 2 | S39: 0 | T39: =OFFSET(P39,,-S39) -> 6582.23 | U39: =IF(ISERROR(O39),IF(ISERROR(N39),IF(ISERROR(M39),IF(ISERROR(L39),IF(ISERROR(K39),IF(ISERROR(J39),IF(ISERROR(I39),IF(ISERROR(H39),IF(ISERROR(G39),IF(ISERROR(F39),IF(ISERROR(E39), NA(), E39),F39),G39),H39),I39),J39),K39),L39),M39),N39),O39) -> 5104 | V39: =IF(D39="","",IFERROR(IF(T39>U39,"▲", IF(T39<U39,"▼","◄►")),"N/A")) -> ▲ | W39: Sparkline21 | Z39: Data_Table_CR_i_a | AA39: Data_Orgs_CR_i_a | AB39: Data_Dates_CR_i_a | AD39: National measure only | AE39: National measure only
A40: CR_i_b | B40: CR(i.b) | C40: Average hours per week of operation of community crisis response function (out of 168) | D40: ='CR(i_b)_FINAL CALC'!$B$6 -> 2017/18 | E40: =IFERROR(IF(ISNUMBER( INDEX(INDIRECT($Z40), MATCH('Calc - Sparklines'!$C$1,INDIRECT($AA40),0), MATCH('Calc - Sparklines'!$D40,INDIRECT($AB40),0)-E$3))=FALSE,NA(), INDEX(INDIRECT($Z40), MATCH('Calc - Sparklines'!$C$1,INDIRECT($AA40),0), MATCH('Calc - Sparklines'!$D40,INDIRECT($AB40),0)-E$3)),NA()) ->  | F40: =IFERROR(IF(ISNUMBER( INDEX(INDIRECT($Z40), MATCH('Calc - Sparklines'!$C$1,INDIRECT($AA40),0), MATCH('Calc - Sparklines'!$D40,INDIRECT($AB40),0)-F$3))=FALSE,NA(), INDEX(INDIRECT($Z40), MATCH('Calc - Sparklines'!$C$1,INDIRECT($AA40),0), MATCH('Calc - Sparklines'!$D40,INDIRECT($AB40),0)-F$3)),NA()) ->  | G40: =IFERROR(IF(ISNUMBER( INDEX(INDIRECT($Z40), MATCH('Calc - Sparklines'!$C$1,INDIRECT($AA40),0), MATCH('Calc - Sparklines'!$D40,INDIRECT($AB40),0)-G$3))=FALSE,NA(), INDEX(INDIRECT($Z40), MATCH('Calc - Sparklines'!$C$1,INDIRECT($AA40),0), MATCH('Calc - Sparklines'!$D40,INDIRECT($AB40),0)-G$3)),NA()) ->  | H40: =IFERROR(IF(ISNUMBER( INDEX(INDIRECT($Z40), MATCH('Calc - Sparklines'!$C$1,INDIRECT($AA40),0), MATCH('Calc - Sparklines'!$D40,INDIRECT($AB40),0)-H$3))=FALSE,NA(), INDEX(INDIRECT($Z40), MATCH('Calc - Sparklines'!$C$1,INDIRECT($AA40),0), MATCH('Calc - Sparklines'!$D40,INDIRECT($AB40),0)-H$3)),NA()) ->  | I40: =IFERROR(IF(ISNUMBER( INDEX(INDIRECT($Z40), MATCH('Calc - Sparklines'!$C$1,INDIRECT($AA40),0), MATCH('Calc - Sparklines'!$D40,INDIRECT($AB40),0)-I$3))=FALSE,NA(), INDEX(INDIRECT($Z40), MATCH('Calc - Sparklines'!$C$1,INDIRECT($AA40),0), MATCH('Calc - Sparklines'!$D40,INDIRECT($AB40),0)-I$3)),NA()) ->  | J40: =IFERROR(IF(ISNUMBER( INDEX(INDIRECT($Z40), MATCH('Calc - Sparklines'!$C$1,INDIRECT($AA40),0), MATCH('Calc - Sparklines'!$D40,INDIRECT($AB40),0)-J$3))=FALSE,NA(), INDEX(INDIRECT($Z40), MATCH('Calc - Sparklines'!$C$1,INDIRECT($AA40),0), MATCH('Calc - Sparklines'!$D40,INDIRECT($AB40),0)-J$3)),NA()) ->  | K40: =IFERROR(IF(ISNUMBER( INDEX(INDIRECT($Z40), MATCH('Calc - Sparklines'!$C$1,INDIRECT($AA40),0), MATCH('Calc - Sparklines'!$D40,INDIRECT($AB40),0)-K$3))=FALSE,NA(), INDEX(INDIRECT($Z40), MATCH('Calc - Sparklines'!$C$1,INDIRECT($AA40),0), MATCH('Calc - Sparklines'!$D40,INDIRECT($AB40),0)-K$3)),NA()) ->  | L40: =IFERROR(IF(ISNUMBER( INDEX(INDIRECT($Z40), MATCH('Calc - Sparklines'!$C$1,INDIRECT($AA40),0), MATCH('Calc - Sparklines'!$D40,INDIRECT($AB40),0)-L$3))=FALSE,NA(), INDEX(INDIRECT($Z40), MATCH('Calc - Sparklines'!$C$1,INDIRECT($AA40),0), MATCH('Calc - Sparklines'!$D40,INDIRECT($AB40),0)-L$3)),NA()) ->  | M40: =IFERROR(IF(ISNUMBER( INDEX(INDIRECT($Z40), MATCH('Calc - Sparklines'!$C$1,INDIRECT($AA40),0), MATCH('Calc - Sparklines'!$D40,INDIRECT($AB40),0)-M$3))=FALSE,NA(), INDEX(INDIRECT($Z40), MATCH('Calc - Sparklines'!$C$1,INDIRECT($AA40),0), MATCH('Calc - Sparklines'!$D40,INDIRECT($AB40),0)-M$3)),NA()) ->  | N40: =IFERROR(IF(ISNUMBER( INDEX(INDIRECT($Z40), MATCH('Calc - Sparklines'!$C$1,INDIRECT($AA40),0), MATCH('Calc - Sparklines'!$D40,INDIRECT($AB40),0)-N$3))=FALSE,NA(), INDEX(INDIRECT($Z40), MATCH('Calc - Sparklines'!$C$1,INDIRECT($AA40),0), MATCH('Calc - Sparklines'!$D40,INDIRECT($AB40),0)-N$3)),NA()) ->  | O40: =IFERROR(IF(ISNUMBER( INDEX(INDIRECT($Z40), MATCH('Calc - Sparklines'!$C$1,INDIRECT($AA40),0), MATCH('Calc - Sparklines'!$D40,INDIRECT($AB40),0)-O$3))=FALSE,NA(), INDEX(INDIRECT($Z40), MATCH('Calc - Sparklines'!$C$1,INDIRECT($AA40),0), MATCH('Calc - Sparklines'!$D40,INDIRECT($AB40),0)-O$3)),NA()) ->  | P40: =IFERROR(IF(ISNUMBER( INDEX(INDIRECT($Z40), MATCH('Calc - Sparklines'!$C$1,INDIRECT($AA40),0), MATCH('Calc - Sparklines'!$D40,INDIRECT($AB40),0)-P$3))=FALSE,NA(), INDEX(INDIRECT($Z40), MATCH('Calc - Sparklines'!$C$1,INDIRECT($AA40),0), MATCH('Calc - Sparklines'!$D40,INDIRECT($AB40),0)-P$3)),NA()) -> 133.9986111 | R40: 0 | S40: 0 | T40: =OFFSET(P40,,-S40) -> 133.9986111 | U40: =IF(ISERROR(O40),IF(ISERROR(N40),IF(ISERROR(M40),IF(ISERROR(L40),IF(ISERROR(K40),IF(ISERROR(J40),IF(ISERROR(I40),IF(ISERROR(H40),IF(ISERROR(G40),IF(ISERROR(F40),IF(ISERROR(E40), NA(), E40),F40),G40),H40),I40),J40),K40),L40),M40),N40),O40) ->  | V40: N/A | W40: Sparkline22 | X40: N/A | Z40: Data_Table_CR_i_b | AA40: Data_Orgs_CR_i_b | AB40: Data_Dates_CR_i_b
A41: CR_i_c | B41: CR(i.c) | C41: Average hours per week of operation of intensive home treatment function (out of 168) | D41: ='CR(i_c)_FINAL CALC'!$B$6 -> 2017/18 | E41: =IFERROR(IF(ISNUMBER( INDEX(INDIRECT($Z41), MATCH('Calc - Sparklines'!$C$1,INDIRECT($AA41),0), MATCH('Calc - Sparklines'!$D41,INDIRECT($AB41),0)-E$3))=FALSE,NA(), INDEX(INDIRECT($Z41), MATCH('Calc - Sparklines'!$C$1,INDIRECT($AA41),0), MATCH('Calc - Sparklines'!$D41,INDIRECT($AB41),0)-E$3)),NA()) ->  | F41: =IFERROR(IF(ISNUMBER( INDEX(INDIRECT($Z41), MATCH('Calc - Sparklines'!$C$1,INDIRECT($AA41),0), MATCH('Calc - Sparklines'!$D41,INDIRECT($AB41),0)-F$3))=FALSE,NA(), INDEX(INDIRECT($Z41), MATCH('Calc - Sparklines'!$C$1,INDIRECT($AA41),0), MATCH('Calc - Sparklines'!$D41,INDIRECT($AB41),0)-F$3)),NA()) ->  | G41: =IFERROR(IF(ISNUMBER( INDEX(INDIRECT($Z41), MATCH('Calc - Sparklines'!$C$1,INDIRECT($AA41),0), MATCH('Calc - Sparklines'!$D41,INDIRECT($AB41),0)-G$3))=FALSE,NA(), INDEX(INDIRECT($Z41), MATCH('Calc - Sparklines'!$C$1,INDIRECT($AA41),0), MATCH('Calc - Sparklines'!$D41,INDIRECT($AB41),0)-G$3)),NA()) ->  | H41: =IFERROR(IF(ISNUMBER( INDEX(INDIRECT($Z41), MATCH('Calc - Sparklines'!$C$1,INDIRECT($AA41),0), MATCH('Calc - Sparklines'!$D41,INDIRECT($AB41),0)-H$3))=FALSE,NA(), INDEX(INDIRECT($Z41), MATCH('Calc - Sparklines'!$C$1,INDIRECT($AA41),0), MATCH('Calc - Sparklines'!$D41,INDIRECT($AB41),0)-H$3)),NA()) ->  | I41: =IFERROR(IF(ISNUMBER( INDEX(INDIRECT($Z41), MATCH('Calc - Sparklines'!$C$1,INDIRECT($AA41),0), MATCH('Calc - Sparklines'!$D41,INDIRECT($AB41),0)-I$3))=FALSE,NA(), INDEX(INDIRECT($Z41), MATCH('Calc - Sparklines'!$C$1,INDIRECT($AA41),0), MATCH('Calc - Sparklines'!$D41,INDIRECT($AB41),0)-I$3)),NA()) ->  | J41: =IFERROR(IF(ISNUMBER( INDEX(INDIRECT($Z41), MATCH('Calc - Sparklines'!$C$1,INDIRECT($AA41),0), MATCH('Calc - Sparklines'!$D41,INDIRECT($AB41),0)-J$3))=FALSE,NA(), INDEX(INDIRECT($Z41), MATCH('Calc - Sparklines'!$C$1,INDIRECT($AA41),0), MATCH('Calc - Sparklines'!$D41,INDIRECT($AB41),0)-J$3)),NA()) ->  | K41: =IFERROR(IF(ISNUMBER( INDEX(INDIRECT($Z41), MATCH('Calc - Sparklines'!$C$1,INDIRECT($AA41),0), MATCH('Calc - Sparklines'!$D41,INDIRECT($AB41),0)-K$3))=FALSE,NA(), INDEX(INDIRECT($Z41), MATCH('Calc - Sparklines'!$C$1,INDIRECT($AA41),0), MATCH('Calc - Sparklines'!$D41,INDIRECT($AB41),0)-K$3)),NA()) ->  | L41: =IFERROR(IF(ISNUMBER( INDEX(INDIRECT($Z41), MATCH('Calc - Sparklines'!$C$1,INDIRECT($AA41),0), MATCH('Calc - Sparklines'!$D41,INDIRECT($AB41),0)-L$3))=FALSE,NA(), INDEX(INDIRECT($Z41), MATCH('Calc - Sparklines'!$C$1,INDIRECT($AA41),0), MATCH('Calc - Sparklines'!$D41,INDIRECT($AB41),0)-L$3)),NA()) ->  | M41: =IFERROR(IF(ISNUMBER( INDEX(INDIRECT($Z41), MATCH('Calc - Sparklines'!$C$1,INDIRECT($AA41),0), MATCH('Calc - Sparklines'!$D41,INDIRECT($AB41),0)-M$3))=FALSE,NA(), INDEX(INDIRECT($Z41), MATCH('Calc - Sparklines'!$C$1,INDIRECT($AA41),0), MATCH('Calc - Sparklines'!$D41,INDIRECT($AB41),0)-M$3)),NA()) ->  | N41: =IFERROR(IF(ISNUMBER( INDEX(INDIRECT($Z41), MATCH('Calc - Sparklines'!$C$1,INDIRECT($AA41),0), MATCH('Calc - Sparklines'!$D41,INDIRECT($AB41),0)-N$3))=FALSE,NA(), INDEX(INDIRECT($Z41), MATCH('Calc - Sparklines'!$C$1,INDIRECT($AA41),0), MATCH('Calc - Sparklines'!$D41,INDIRECT($AB41),0)-N$3)),NA()) ->  | O41: =IFERROR(IF(ISNUMBER( INDEX(INDIRECT($Z41), MATCH('Calc - Sparklines'!$C$1,INDIRECT($AA41),0), MATCH('Calc - Sparklines'!$D41,INDIRECT($AB41),0)-O$3))=FALSE,NA(), INDEX(INDIRECT($Z41), MATCH('Calc - Sparklines'!$C$1,INDIRECT($AA41),0), MATCH('Calc - Sparklines'!$D41,INDIRECT($AB41),0)-O$3)),NA()) ->  | P41: =IFERROR(IF(ISNUMBER( INDEX(INDIRECT($Z41), MATCH('Calc - Sparklines'!$C$1,INDIRECT($AA41),0), MATCH('Calc - Sparklines'!$D41,INDIRECT($AB41),0)-P$3))=FALSE,NA(), INDEX(INDIRECT($Z41), MATCH('Calc - Sparklines'!$C$1,INDIRECT($AA41),0), MATCH('Calc - Sparklines'!$D41,INDIRECT($AB41),0)-P$3)),NA()) -> 130.6458333 | R41: 0 | S41: 0 | T41: =OFFSET(P41,,-S41) -> 130.6458333 | U41: =IF(ISERROR(O41),IF(ISERROR(N41),IF(ISERROR(M41),IF(ISERROR(L41),IF(ISERROR(K41),IF(ISERROR(J41),IF(ISERROR(I41),IF(ISERROR(H41),IF(ISERROR(G41),IF(ISERROR(F41),IF(ISERROR(E41), NA(), E41),F41),G41),H41),I41),J41),K41),L41),M41),N41),O41) ->  | V41: N/A | W41: Sparkline23 | X41: N/A | Z41: Data_Table_CR_i_c | AA41: Data_Orgs_CR_i_c | AB41: Data_Dates_CR_i_c
A42: CR_i_d | B42: CR(i.d) | C42: % of community crisis response teams which are open access | D42: ='CR(i_d)_FINAL CALC'!$B$6 -> 2017/18 | E42: =IFERROR(IF(ISNUMBER( INDEX(INDIRECT($Z42), MATCH('Calc - Sparklines'!$C$1,INDIRECT($AA42),0), MATCH('Calc - Sparklines'!$D42,INDIRECT($AB42),0)-E$3))=FALSE,NA(), INDEX(INDIRECT($Z42), MATCH('Calc - Sparklines'!$C$1,INDIRECT($AA42),0), MATCH('Calc - Sparklines'!$D42,INDIRECT($AB42),0)-E$3)),NA()) ->  | F42: =IFERROR(IF(ISNUMBER( INDEX(INDIRECT($Z42), MATCH('Calc - Sparklines'!$C$1,INDIRECT($AA42),0), MATCH('Calc - Sparklines'!$D42,INDIRECT($AB42),0)-F$3))=FALSE,NA(), INDEX(INDIRECT($Z42), MATCH('Calc - Sparklines'!$C$1,INDIRECT($AA42),0), MATCH('Calc - Sparklines'!$D42,INDIRECT($AB42),0)-F$3)),NA()) ->  | G42: =IFERROR(IF(ISNUMBER( INDEX(INDIRECT($Z42), MATCH('Calc - Sparklines'!$C$1,INDIRECT($AA42),0), MATCH('Calc - Sparklines'!$D42,INDIRECT($AB42),0)-G$3))=FALSE,NA(), INDEX(INDIRECT($Z42), MATCH('Calc - Sparklines'!$C$1,INDIRECT($AA42),0), MATCH('Calc - Sparklines'!$D42,INDIRECT($AB42),0)-G$3)),NA()) ->  | H42: =IFERROR(IF(ISNUMBER( INDEX(INDIRECT($Z42), MATCH('Calc - Sparklines'!$C$1,INDIRECT($AA42),0), MATCH('Calc - Sparklines'!$D42,INDIRECT($AB42),0)-H$3))=FALSE,NA(), INDEX(INDIRECT($Z42), MATCH('Calc - Sparklines'!$C$1,INDIRECT($AA42),0), MATCH('Calc - Sparklines'!$D42,INDIRECT($AB42),0)-H$3)),NA()) ->  | I42: =IFERROR(IF(ISNUMBER( INDEX(INDIRECT($Z42), MATCH('Calc - Sparklines'!$C$1,INDIRECT($AA42),0), MATCH('Calc - Sparklines'!$D42,INDIRECT($AB42),0)-I$3))=FALSE,NA(), INDEX(INDIRECT($Z42), MATCH('Calc - Sparklines'!$C$1,INDIRECT($AA42),0), MATCH('Calc - Sparklines'!$D42,INDIRECT($AB42),0)-I$3)),NA()) ->  | J42: =IFERROR(IF(ISNUMBER( INDEX(INDIRECT($Z42), MATCH('Calc - Sparklines'!$C$1,INDIRECT($AA42),0), MATCH('Calc - Sparklines'!$D42,INDIRECT($AB42),0)-J$3))=FALSE,NA(), INDEX(INDIRECT($Z42), MATCH('Calc - Sparklines'!$C$1,INDIRECT($AA42),0), MATCH('Calc - Sparklines'!$D42,INDIRECT($AB42),0)-J$3)),NA()) ->  | K42: =IFERROR(IF(ISNUMBER( INDEX(INDIRECT($Z42), MATCH('Calc - Sparklines'!$C$1,INDIRECT($AA42),0), MATCH('Calc - Sparklines'!$D42,INDIRECT($AB42),0)-K$3))=FALSE,NA(), INDEX(INDIRECT($Z42), MATCH('Calc - Sparklines'!$C$1,INDIRECT($AA42),0), MATCH('Calc - Sparklines'!$D42,INDIRECT($AB42),0)-K$3)),NA()) ->  | L42: =IFERROR(IF(ISNUMBER( INDEX(INDIRECT($Z42), MATCH('Calc - Sparklines'!$C$1,INDIRECT($AA42),0), MATCH('Calc - Sparklines'!$D42,INDIRECT($AB42),0)-L$3))=FALSE,NA(), INDEX(INDIRECT($Z42), MATCH('Calc - Sparklines'!$C$1,INDIRECT($AA42),0), MATCH('Calc - Sparklines'!$D42,INDIRECT($AB42),0)-L$3)),NA()) ->  | M42: =IFERROR(IF(ISNUMBER( INDEX(INDIRECT($Z42), MATCH('Calc - Sparklines'!$C$1,INDIRECT($AA42),0), MATCH('Calc - Sparklines'!$D42,INDIRECT($AB42),0)-M$3))=FALSE,NA(), INDEX(INDIRECT($Z42), MATCH('Calc - Sparklines'!$C$1,INDIRECT($AA42),0), MATCH('Calc - Sparklines'!$D42,INDIRECT($AB42),0)-M$3)),NA()) ->  | N42: =IFERROR(IF(ISNUMBER( INDEX(INDIRECT($Z42), MATCH('Calc - Sparklines'!$C$1,INDIRECT($AA42),0), MATCH('Calc - Sparklines'!$D42,INDIRECT($AB42),0)-N$3))=FALSE,NA(), INDEX(INDIRECT($Z42), MATCH('Calc - Sparklines'!$C$1,INDIRECT($AA42),0), MATCH('Calc - Sparklines'!$D42,INDIRECT($AB42),0)-N$3)),NA()) ->  | O42: =IFERROR(IF(ISNUMBER( INDEX(INDIRECT($Z42), MATCH('Calc - Sparklines'!$C$1,INDIRECT($AA42),0), MATCH('Calc - Sparklines'!$D42,INDIRECT($AB42),0)-O$3))=FALSE,NA(), INDEX(INDIRECT($Z42), MATCH('Calc - Sparklines'!$C$1,INDIRECT($AA42),0), MATCH('Calc - Sparklines'!$D42,INDIRECT($AB42),0)-O$3)),NA()) ->  | P42: =IFERROR(IF(ISNUMBER( INDEX(INDIRECT($Z42), MATCH('Calc - Sparklines'!$C$1,INDIRECT($AA42),0), MATCH('Calc - Sparklines'!$D42,INDIRECT($AB42),0)-P$3))=FALSE,NA(), INDEX(INDIRECT($Z42), MATCH('Calc - Sparklines'!$C$1,INDIRECT($AA42),0), MATCH('Calc - Sparklines'!$D42,INDIRECT($AB42),0)-P$3)),NA()) -> 0.4272727273 | R42: 0 | S42: 0 | T42: =OFFSET(P42,,-S42) -> 0.4272727273 | U42: =IF(ISERROR(O42),IF(ISERROR(N42),IF(ISERROR(M42),IF(ISERROR(L42),IF(ISERROR(K42),IF(ISERROR(J42),IF(ISERROR(I42),IF(ISERROR(H42),IF(ISERROR(G42),IF(ISERROR(F42),IF(ISERROR(E42), NA(), E42),F42),G42),H42),I42),J42),K42),L42),M42),N42),O42) ->  | V42: N/A | W42: Sparkline24 | X42: N/A | Z42: Data_Table_CR_i_d | AA42: Data_Orgs_CR_i_d | AB42: Data_Dates_CR_i_d | AD42: National, Regional and STP measure only | AE42: National, Regional and STP measure only
A43: CR_ii | B43: CR(ii) | C43: Crisis resolution home treatment teams forecast outturn (£k) | D43: ='CR(ii)_FINAL CALC'!$B$6 -> 2019/20 planned | E43: =IFERROR(IF(ISNUMBER( INDEX(INDIRECT($Z43), MATCH('Calc - Sparklines'!$C$1,INDIRECT($AA43),0), MATCH('Calc - Sparklines'!$D43,INDIRECT($AB43),0)-E$4))=FALSE,NA(), INDEX(INDIRECT($Z43), MATCH('Calc - Sparklines'!$C$1,INDIRECT($AA43),0), MATCH('Calc - Sparklines'!$D43,INDIRECT($AB43),0)-E$4)),NA()) ->  | F43: =IFERROR(IF(ISNUMBER( INDEX(INDIRECT($Z43), MATCH('Calc - Sparklines'!$C$1,INDIRECT($AA43),0), MATCH('Calc - Sparklines'!$D43,INDIRECT($AB43),0)-F$4))=FALSE,NA(), INDEX(INDIRECT($Z43), MATCH('Calc - Sparklines'!$C$1,INDIRECT($AA43),0), MATCH('Calc - Sparklines'!$D43,INDIRECT($AB43),0)-F$4)),NA()) ->  | G43: =IFERROR(IF(ISNUMBER( INDEX(INDIRECT($Z43), MATCH('Calc - Sparklines'!$C$1,INDIRECT($AA43),0), MATCH('Calc - Sparklines'!$D43,INDIRECT($AB43),0)-G$4))=FALSE,NA(), INDEX(INDIRECT($Z43), MATCH('Calc - Sparklines'!$C$1,INDIRECT($AA43),0), MATCH('Calc - Sparklines'!$D43,INDIRECT($AB43),0)-G$4)),NA()) ->  | H43: =IFERROR(IF(ISNUMBER( INDEX(INDIRECT($Z43), MATCH('Calc - Sparklines'!$C$1,INDIRECT($AA43),0), MATCH('Calc - Sparklines'!$D43,INDIRECT($AB43),0)-H$4))=FALSE,NA(), INDEX(INDIRECT($Z43), MATCH('Calc - Sparklines'!$C$1,INDIRECT($AA43),0), MATCH('Calc - Sparklines'!$D43,INDIRECT($AB43),0)-H$4)),NA()) ->  | I43: =IFERROR(IF(ISNUMBER( INDEX(INDIRECT($Z43), MATCH('Calc - Sparklines'!$C$1,INDIRECT($AA43),0), MATCH('Calc - Sparklines'!$D43,INDIRECT($AB43),0)-I$4))=FALSE,NA(), INDEX(INDIRECT($Z43), MATCH('Calc - Sparklines'!$C$1,INDIRECT($AA43),0), MATCH('Calc - Sparklines'!$D43,INDIRECT($AB43),0)-I$4)),NA()) ->  | J43: =IFERROR(IF(ISNUMBER( INDEX(INDIRECT($Z43), MATCH('Calc - Sparklines'!$C$1,INDIRECT($AA43),0), MATCH('Calc - Sparklines'!$D43,INDIRECT($AB43),0)-J$4))=FALSE,NA(), INDEX(INDIRECT($Z43), MATCH('Calc - Sparklines'!$C$1,INDIRECT($AA43),0), MATCH('Calc - Sparklines'!$D43,INDIRECT($AB43),0)-J$4)),NA()) ->  | K43: =IFERROR(IF(ISNUMBER( INDEX(INDIRECT($Z43), MATCH('Calc - Sparklines'!$C$1,INDIRECT($AA43),0), MATCH('Calc - Sparklines'!$D43,INDIRECT($AB43),0)-K$4))=FALSE,NA(), INDEX(INDIRECT($Z43), MATCH('Calc - Sparklines'!$C$1,INDIRECT($AA43),0), MATCH('Calc - Sparklines'!$D43,INDIRECT($AB43),0)-K$4)),NA()) ->  | L43: =IFERROR(IF(ISNUMBER( INDEX(INDIRECT($Z43), MATCH('Calc - Sparklines'!$C$1,INDIRECT($AA43),0), MATCH('Calc - Sparklines'!$D43,INDIRECT($AB43),0)-L$4))=FALSE,NA(), INDEX(INDIRECT($Z43), MATCH('Calc - Sparklines'!$C$1,INDIRECT($AA43),0), MATCH('Calc - Sparklines'!$D43,INDIRECT($AB43),0)-L$4)),NA()) ->  | M43: =IFERROR(IF(ISNUMBER( INDEX(INDIRECT($Z43), MATCH('Calc - Sparklines'!$C$1,INDIRECT($AA43),0), MATCH('Calc - Sparklines'!$D43,INDIRECT($AB43),0)-M$4))=FALSE,NA(), INDEX(INDIRECT($Z43), MATCH('Calc - Sparklines'!$C$1,INDIRECT($AA43),0), MATCH('Calc - Sparklines'!$D43,INDIRECT($AB43),0)-M$4)),NA()) ->  | N43: =IFERROR(IF(ISNUMBER( INDEX(INDIRECT($Z43), MATCH('Calc - Sparklines'!$C$1,INDIRECT($AA43),0), MATCH('Calc - Sparklines'!$D43,INDIRECT($AB43),0)-N$4))=FALSE,NA(), INDEX(INDIRECT($Z43), MATCH('Calc - Sparklines'!$C$1,INDIRECT($AA43),0), MATCH('Calc - Sparklines'!$D43,INDIRECT($AB43),0)-N$4)),NA()) -> 290659055.8 | O43: =IFERROR(IF(ISNUMBER( INDEX(INDIRECT($Z43), MATCH('Calc - Sparklines'!$C$1,INDIRECT($AA43),0), MATCH('Calc - Sparklines'!$D43,INDIRECT($AB43),0)-O$4))=FALSE,NA(), INDEX(INDIRECT($Z43), MATCH('Calc - Sparklines'!$C$1,INDIRECT($AA43),0), MATCH('Calc - Sparklines'!$D43,INDIRECT($AB43),0)-O$4)),NA()) -> 328554773.6 | P43: =IFERROR(IF(ISNUMBER( INDEX(INDIRECT($Z43), MATCH('Calc - Sparklines'!$C$1,INDIRECT($AA43),0), MATCH('Calc - Sparklines'!$D43,INDIRECT($AB43),0)-P$4))=FALSE,NA(), INDEX(INDIRECT($Z43), MATCH('Calc - Sparklines'!$C$1,INDIRECT($AA43),0), MATCH('Calc - Sparklines'!$D43,INDIRECT($AB43),0)-P$4)),NA()) -> 373416024.7 | R43: 6 | S43: =IF(P43="N/A",IF(O43="N/A",2,1),0) -> 0 | T43: 373416024.7 | U43: 328554773.6 | V43: ▲ | W43: Sparkline30 | X43: N/A | Z43: Data_Table_CR_ii | AA43: Data_Orgs_CR_ii | AB43: Data_Dates_CR_ii | AD43: Chart available at CCG & STP level only | AE43: =IF(OR(Dashboard!$M$3=1,Dashboard!$M$3=2),"Chart available at CCG & STP level only","") -> Chart available at CCG & STP level only
A44: CR_iii_a | B44: CR(iii.a) | C44: Total number of inappropriate Out of Area bed days | D44: ='CR(iii_a)_FINAL CALC'!$B$6 -> Q2 2019/20 | E44: =IFERROR(IF(ISNUMBER( INDEX(INDIRECT($Z44), MATCH('Calc - Sparklines'!$C$1,INDIRECT($AA44),0), MATCH('Calc - Sparklines'!$D44,INDIRECT($AB44),0)-E$3))=FALSE,NA(), INDEX(INDIRECT($Z44), MATCH('Calc - Sparklines'!$C$1,INDIRECT($AA44),0), MATCH('Calc - Sparklines'!$D44,INDIRECT($AB44),0)-E$3)),NA()) ->  | F44: =IFERROR(IF(ISNUMBER( INDEX(INDIRECT($Z44), MATCH('Calc - Sparklines'!$C$1,INDIRECT($AA44),0), MATCH('Calc - Sparklines'!$D44,INDIRECT($AB44),0)-F$3))=FALSE,NA(), INDEX(INDIRECT($Z44), MATCH('Calc - Sparklines'!$C$1,INDIRECT($AA44),0), MATCH('Calc - Sparklines'!$D44,INDIRECT($AB44),0)-F$3)),NA()) ->  | G44: =IFERROR(IF(ISNUMBER( INDEX(INDIRECT($Z44), MATCH('Calc - Sparklines'!$C$1,INDIRECT($AA44),0), MATCH('Calc - Sparklines'!$D44,INDIRECT($AB44),0)-G$3))=FALSE,NA(), INDEX(INDIRECT($Z44), MATCH('Calc - Sparklines'!$C$1,INDIRECT($AA44),0), MATCH('Calc - Sparklines'!$D44,INDIRECT($AB44),0)-G$3)),NA()) ->  | H44: =IFERROR(IF(ISNUMBER( INDEX(INDIRECT($Z44), MATCH('Calc - Sparklines'!$C$1,INDIRECT($AA44),0), MATCH('Calc - Sparklines'!$D44,INDIRECT($AB44),0)-H$3))=FALSE,NA(), INDEX(INDIRECT($Z44), MATCH('Calc - Sparklines'!$C$1,INDIRECT($AA44),0), MATCH('Calc - Sparklines'!$D44,INDIRECT($AB44),0)-H$3)),NA()) -> 67891 | I44: =IFERROR(IF(ISNUMBER( INDEX(INDIRECT($Z44), MATCH('Calc - Sparklines'!$C$1,INDIRECT($AA44),0), MATCH('Calc - Sparklines'!$D44,INDIRECT($AB44),0)-I$3))=FALSE,NA(), INDEX(INDIRECT($Z44), MATCH('Calc - Sparklines'!$C$1,INDIRECT($AA44),0), MATCH('Calc - Sparklines'!$D44,INDIRECT($AB44),0)-I$3)),NA()) -> 60265 | J44: =IFERROR(IF(ISNUMBER( INDEX(INDIRECT($Z44), MATCH('Calc - Sparklines'!$C$1,INDIRECT($AA44),0), MATCH('Calc - Sparklines'!$D44,INDIRECT($AB44),0)-J$3))=FALSE,NA(), INDEX(INDIRECT($Z44), MATCH('Calc - Sparklines'!$C$1,INDIRECT($AA44),0), MATCH('Calc - Sparklines'!$D44,INDIRECT($AB44),0)-J$3)),NA()) -> 54440 | K44: =IFERROR(IF(ISNUMBER( INDEX(INDIRECT($Z44), MATCH('Calc - Sparklines'!$C$1,INDIRECT($AA44),0), MATCH('Calc - Sparklines'!$D44,INDIRECT($AB44),0)-K$3))=FALSE,NA(), INDEX(INDIRECT($Z44), MATCH('Calc - Sparklines'!$C$1,INDIRECT($AA44),0), MATCH('Calc - Sparklines'!$D44,INDIRECT($AB44),0)-K$3)),NA()) -> 59075 | L44: =IFERROR(IF(ISNUMBER( INDEX(INDIRECT($Z44), MATCH('Calc - Sparklines'!$C$1,INDIRECT($AA44),0), MATCH('Calc - Sparklines'!$D44,INDIRECT($AB44),0)-L$3))=FALSE,NA(), INDEX(INDIRECT($Z44), MATCH('Calc - Sparklines'!$C$1,INDIRECT($AA44),0), MATCH('Calc - Sparklines'!$D44,INDIRECT($AB44),0)-L$3)),NA()) -> 57290 | M44: =IFERROR(IF(ISNUMBER( INDEX(INDIRECT($Z44), MATCH('Calc - Sparklines'!$C$1,INDIRECT($AA44),0), MATCH('Calc - Sparklines'!$D44,INDIRECT($AB44),0)-M$3))=FALSE,NA(), INDEX(INDIRECT($Z44), MATCH('Calc - Sparklines'!$C$1,INDIRECT($AA44),0), MATCH('Calc - Sparklines'!$D44,INDIRECT($AB44),0)-M$3)),NA()) -> 58340 | N44: =IFERROR(IF(ISNUMBER( INDEX(INDIRECT($Z44), MATCH('Calc - Sparklines'!$C$1,INDIRECT($AA44),0), MATCH('Calc - Sparklines'!$D44,INDIRECT($AB44),0)-N$3))=FALSE,NA(), INDEX(INDIRECT($Z44), MATCH('Calc - Sparklines'!$C$1,INDIRECT($AA44),0), MATCH('Calc - Sparklines'!$D44,INDIRECT($AB44),0)-N$3)),NA()) -> 64310 | O44: =IFERROR(IF(ISNUMBER( INDEX(INDIRECT($Z44), MATCH('Calc - Sparklines'!$C$1,INDIRECT($AA44),0), MATCH('Calc - Sparklines'!$D44,INDIRECT($AB44),0)-O$3))=FALSE,NA(), INDEX(INDIRECT($Z44), MATCH('Calc - Sparklines'!$C$1,INDIRECT($AA44),0), MATCH('Calc - Sparklines'!$D44,INDIRECT($AB44),0)-O$3)),NA()) -> 71350 | P44: =IFERROR(IF(ISNUMBER( INDEX(INDIRECT($Z44), MATCH('Calc - Sparklines'!$C$1,INDIRECT($AA44),0), MATCH('Calc - Sparklines'!$D44,INDIRECT($AB44),0)-P$3))=FALSE,NA(), INDEX(INDIRECT($Z44), MATCH('Calc - Sparklines'!$C$1,INDIRECT($AA44),0), MATCH('Calc - Sparklines'!$D44,INDIRECT($AB44),0)-P$3)),NA()) -> 70490 | R44: 6 | S44: 0 | T44: 70490 | U44: 71350 | V44: ▼ | W44: Sparkline32 | X44: =IF(ISNA(T44),"N/A",IF(R44<=2,"N/A","")) ->  | Z44: Data_Table_CR_iii_a | AA44: Data_Orgs_CR_iii_a | AB44: Data_Dates_CR_iii_a | AD44: Not Applicable | AE44: Not Applicable
A45: CR_iii_b | B45: CR(iii.b) | C45: Number of inappropriate Mental Health Out of Area Placements started in the period | D45: ='CR(iii_b)_FINAL CALC'!$B$6 -> Q2 2019/20 | E45: =IFERROR(IF(ISNUMBER( INDEX(INDIRECT($Z45), MATCH('Calc - Sparklines'!$C$1,INDIRECT($AA45),0), MATCH('Calc - Sparklines'!$D45,INDIRECT($AB45),0)-E$3))=FALSE,NA(), INDEX(INDIRECT($Z45), MATCH('Calc - Sparklines'!$C$1,INDIRECT($AA45),0), MATCH('Calc - Sparklines'!$D45,INDIRECT($AB45),0)-E$3)),NA()) ->  | F45: =IFERROR(IF(ISNUMBER( INDEX(INDIRECT($Z45), MATCH('Calc - Sparklines'!$C$1,INDIRECT($AA45),0), MATCH('Calc - Sparklines'!$D45,INDIRECT($AB45),0)-F$3))=FALSE,NA(), INDEX(INDIRECT($Z45), MATCH('Calc - Sparklines'!$C$1,INDIRECT($AA45),0), MATCH('Calc - Sparklines'!$D45,INDIRECT($AB45),0)-F$3)),NA()) ->  | G45: =IFERROR(IF(ISNUMBER( INDEX(INDIRECT($Z45), MATCH('Calc - Sparklines'!$C$1,INDIRECT($AA45),0), MATCH('Calc - Sparklines'!$D45,INDIRECT($AB45),0)-G$3))=FALSE,NA(), INDEX(INDIRECT($Z45), MATCH('Calc - Sparklines'!$C$1,INDIRECT($AA45),0), MATCH('Calc - Sparklines'!$D45,INDIRECT($AB45),0)-G$3)),NA()) ->  | H45: =IFERROR(IF(ISNUMBER( INDEX(INDIRECT($Z45), MATCH('Calc - Sparklines'!$C$1,INDIRECT($AA45),0), MATCH('Calc - Sparklines'!$D45,INDIRECT($AB45),0)-H$3))=FALSE,NA(), INDEX(INDIRECT($Z45), MATCH('Calc - Sparklines'!$C$1,INDIRECT($AA45),0), MATCH('Calc - Sparklines'!$D45,INDIRECT($AB45),0)-H$3)),NA()) -> 1872 | I45: =IFERROR(IF(ISNUMBER( INDEX(INDIRECT($Z45), MATCH('Calc - Sparklines'!$C$1,INDIRECT($AA45),0), MATCH('Calc - Sparklines'!$D45,INDIRECT($AB45),0)-I$3))=FALSE,NA(), INDEX(INDIRECT($Z45), MATCH('Calc - Sparklines'!$C$1,INDIRECT($AA45),0), MATCH('Calc - Sparklines'!$D45,INDIRECT($AB45),0)-I$3)),NA()) -> 2000 | J45: =IFERROR(IF(ISNUMBER( INDEX(INDIRECT($Z45), MATCH('Calc - Sparklines'!$C$1,INDIRECT($AA45),0), MATCH('Calc - Sparklines'!$D45,INDIRECT($AB45),0)-J$3))=FALSE,NA(), INDEX(INDIRECT($Z45), MATCH('Calc - Sparklines'!$C$1,INDIRECT($AA45),0), MATCH('Calc - Sparklines'!$D45,INDIRECT($AB45),0)-J$3)),NA()) -> 1980 | K45: =IFERROR(IF(ISNUMBER( INDEX(INDIRECT($Z45), MATCH('Calc - Sparklines'!$C$1,INDIRECT($AA45),0), MATCH('Calc - Sparklines'!$D45,INDIRECT($AB45),0)-K$3))=FALSE,NA(), INDEX(INDIRECT($Z45), MATCH('Calc - Sparklines'!$C$1,INDIRECT($AA45),0), MATCH('Calc - Sparklines'!$D45,INDIRECT($AB45),0)-K$3)),NA()) -> 1925 | L45: =IFERROR(IF(ISNUMBER( INDEX(INDIRECT($Z45), MATCH('Calc - Sparklines'!$C$1,INDIRECT($AA45),0), MATCH('Calc - Sparklines'!$D45,INDIRECT($AB45),0)-L$3))=FALSE,NA(), INDEX(INDIRECT($Z45), MATCH('Calc - Sparklines'!$C$1,INDIRECT($AA45),0), MATCH('Calc - Sparklines'!$D45,INDIRECT($AB45),0)-L$3)),NA()) -> 1855 | M45: =IFERROR(IF(ISNUMBER( INDEX(INDIRECT($Z45), MATCH('Calc - Sparklines'!$C$1,INDIRECT($AA45),0), MATCH('Calc - Sparklines'!$D45,INDIRECT($AB45),0)-M$3))=FALSE,NA(), INDEX(INDIRECT($Z45), MATCH('Calc - Sparklines'!$C$1,INDIRECT($AA45),0), MATCH('Calc - Sparklines'!$D45,INDIRECT($AB45),0)-M$3)),NA()) -> 1935 | N45: =IFERROR(IF(ISNUMBER( INDEX(INDIRECT($Z45), MATCH('Calc - Sparklines'!$C$1,INDIRECT($AA45),0), MATCH('Calc - Sparklines'!$D45,INDIRECT($AB45),0)-N$3))=FALSE,NA(), INDEX(INDIRECT($Z45), MATCH('Calc - Sparklines'!$C$1,INDIRECT($AA45),0), MATCH('Calc - Sparklines'!$D45,INDIRECT($AB45),0)-N$3)),NA()) -> 2220 | O45: =IFERROR(IF(ISNUMBER( INDEX(INDIRECT($Z45), MATCH('Calc - Sparklines'!$C$1,INDIRECT($AA45),0), MATCH('Calc - Sparklines'!$D45,INDIRECT($AB45),0)-O$3))=FALSE,NA(), INDEX(INDIRECT($Z45), MATCH('Calc - Sparklines'!$C$1,INDIRECT($AA45),0), MATCH('Calc - Sparklines'!$D45,INDIRECT($AB45),0)-O$3)),NA()) -> 1920 | P45: =IFERROR(IF(ISNUMBER( INDEX(INDIRECT($Z45), MATCH('Calc - Sparklines'!$C$1,INDIRECT($AA45),0), MATCH('Calc - Sparklines'!$D45,INDIRECT($AB45),0)-P$3))=FALSE,NA(), INDEX(INDIRECT($Z45), MATCH('Calc - Sparklines'!$C$1,INDIRECT($AA45),0), MATCH('Calc - Sparklines'!$D45,INDIRECT($AB45),0)-P$3)),NA()) -> 2170 | R45: =IF(COUNTA(K45:P45)-COUNTIF(K45:P45,"#N/A")<3, 0, COUNTA(K45:P45)) -> 6 | S45: =IF(P45="N/A",IF(O45="N/A",2,1),0) -> 0 | T45: =OFFSET(P45,,-S45) -> 2170 | U45: =IF(ISERROR(O45),IF(ISERROR(N45),IF(ISERROR(M45),IF(ISERROR(L45),IF(ISERROR(K45),IF(ISERROR(J45),IF(ISERROR(I45),IF(ISERROR(H45),IF(ISERROR(G45),IF(ISERROR(F45),IF(ISERROR(E45), NA(), E45),F45),G45),H45),I45),J45),K45),L45),M45),N45),O45) -> 1920 | V45: =IF(D45="","",IFERROR(IF(T45>U45,"▲", IF(T45<U45,"▼","◄►")),"N/A")) -> ▲ | W45: Sparkline33 | Z45: Data_Table_CR_iii_b | AA45: Data_Orgs_CR_iii_b | AB45: Data_Dates_CR_iii_b
A46: CR_iii_c | B46: CR(iii.c) | C46: Reported spend on inappropriate Out of Area Placements | D46: ='CR(iii_c)_FINAL CALC'!$B$6 -> Q2 2019/20 | E46: =IFERROR(IF(ISNUMBER( INDEX(INDIRECT($Z46), MATCH('Calc - Sparklines'!$C$1,INDIRECT($AA46),0), MATCH('Calc - Sparklines'!$D46,INDIRECT($AB46),0)-E$3))=FALSE,NA(), INDEX(INDIRECT($Z46), MATCH('Calc - Sparklines'!$C$1,INDIRECT($AA46),0), MATCH('Calc - Sparklines'!$D46,INDIRECT($AB46),0)-E$3)),NA()) ->  | F46: =IFERROR(IF(ISNUMBER( INDEX(INDIRECT($Z46), MATCH('Calc - Sparklines'!$C$1,INDIRECT($AA46),0), MATCH('Calc - Sparklines'!$D46,INDIRECT($AB46),0)-F$3))=FALSE,NA(), INDEX(INDIRECT($Z46), MATCH('Calc - Sparklines'!$C$1,INDIRECT($AA46),0), MATCH('Calc - Sparklines'!$D46,INDIRECT($AB46),0)-F$3)),NA()) ->  | G46: =IFERROR(IF(ISNUMBER( INDEX(INDIRECT($Z46), MATCH('Calc - Sparklines'!$C$1,INDIRECT($AA46),0), MATCH('Calc - Sparklines'!$D46,INDIRECT($AB46),0)-G$3))=FALSE,NA(), INDEX(INDIRECT($Z46), MATCH('Calc - Sparklines'!$C$1,INDIRECT($AA46),0), MATCH('Calc - Sparklines'!$D46,INDIRECT($AB46),0)-G$3)),NA()) ->  | H46: =IFERROR(IF(ISNUMBER( INDEX(INDIRECT($Z46), MATCH('Calc - Sparklines'!$C$1,INDIRECT($AA46),0), MATCH('Calc - Sparklines'!$D46,INDIRECT($AB46),0)-H$3))=FALSE,NA(), INDEX(INDIRECT($Z46), MATCH('Calc - Sparklines'!$C$1,INDIRECT($AA46),0), MATCH('Calc - Sparklines'!$D46,INDIRECT($AB46),0)-H$3)),NA()) -> 25616000 | I46: =IFERROR(IF(ISNUMBER( INDEX(INDIRECT($Z46), MATCH('Calc - Sparklines'!$C$1,INDIRECT($AA46),0), MATCH('Calc - Sparklines'!$D46,INDIRECT($AB46),0)-I$3))=FALSE,NA(), INDEX(INDIRECT($Z46), MATCH('Calc - Sparklines'!$C$1,INDIRECT($AA46),0), MATCH('Calc - Sparklines'!$D46,INDIRECT($AB46),0)-I$3)),NA()) -> 24785328 | J46: =IFERROR(IF(ISNUMBER( INDEX(INDIRECT($Z46), MATCH('Calc - Sparklines'!$C$1,INDIRECT($AA46),0), MATCH('Calc - Sparklines'!$D46,INDIRECT($AB46),0)-J$3))=FALSE,NA(), INDEX(INDIRECT($Z46), MATCH('Calc - Sparklines'!$C$1,INDIRECT($AA46),0), MATCH('Calc - Sparklines'!$D46,INDIRECT($AB46),0)-J$3)),NA()) -> 22265261 | K46: =IFERROR(IF(ISNUMBER( INDEX(INDIRECT($Z46), MATCH('Calc - Sparklines'!$C$1,INDIRECT($AA46),0), MATCH('Calc - Sparklines'!$D46,INDIRECT($AB46),0)-K$3))=FALSE,NA(), INDEX(INDIRECT($Z46), MATCH('Calc - Sparklines'!$C$1,INDIRECT($AA46),0), MATCH('Calc - Sparklines'!$D46,INDIRECT($AB46),0)-K$3)),NA()) -> 26570883 | L46: =IFERROR(IF(ISNUMBER( INDEX(INDIRECT($Z46), MATCH('Calc - Sparklines'!$C$1,INDIRECT($AA46),0), MATCH('Calc - Sparklines'!$D46,INDIRECT($AB46),0)-L$3))=FALSE,NA(), INDEX(INDIRECT($Z46), MATCH('Calc - Sparklines'!$C$1,INDIRECT($AA46),0), MATCH('Calc - Sparklines'!$D46,INDIRECT($AB46),0)-L$3)),NA()) -> 26805460 | M46: =IFERROR(IF(ISNUMBER( INDEX(INDIRECT($Z46), MATCH('Calc - Sparklines'!$C$1,INDIRECT($AA46),0), MATCH('Calc - Sparklines'!$D46,INDIRECT($AB46),0)-M$3))=FALSE,NA(), INDEX(INDIRECT($Z46), MATCH('Calc - Sparklines'!$C$1,INDIRECT($AA46),0), MATCH('Calc - Sparklines'!$D46,INDIRECT($AB46),0)-M$3)),NA()) -> 29388824 | N46: =IFERROR(IF(ISNUMBER( INDEX(INDIRECT($Z46), MATCH('Calc - Sparklines'!$C$1,INDIRECT($AA46),0), MATCH('Calc - Sparklines'!$D46,INDIRECT($AB46),0)-N$3))=FALSE,NA(), INDEX(INDIRECT($Z46), MATCH('Calc - Sparklines'!$C$1,INDIRECT($AA46),0), MATCH('Calc - Sparklines'!$D46,INDIRECT($AB46),0)-N$3)),NA()) -> 31223468 | O46: =IFERROR(IF(ISNUMBER( INDEX(INDIRECT($Z46), MATCH('Calc - Sparklines'!$C$1,INDIRECT($AA46),0), MATCH('Calc - Sparklines'!$D46,INDIRECT($AB46),0)-O$3))=FALSE,NA(), INDEX(INDIRECT($Z46), MATCH('Calc - Sparklines'!$C$1,INDIRECT($AA46),0), MATCH('Calc - Sparklines'!$D46,INDIRECT($AB46),0)-O$3)),NA()) -> 35651035 | P46: =IFERROR(IF(ISNUMBER( INDEX(INDIRECT($Z46), MATCH('Calc - Sparklines'!$C$1,INDIRECT($AA46),0), MATCH('Calc - Sparklines'!$D46,INDIRECT($AB46),0)-P$3))=FALSE,NA(), INDEX(INDIRECT($Z46), MATCH('Calc - Sparklines'!$C$1,INDIRECT($AA46),0), MATCH('Calc - Sparklines'!$D46,INDIRECT($AB46),0)-P$3)),NA()) -> 34729184 | R46: =IF(COUNTA(K46:P46)-COUNTIF(K46:P46,"#N/A")<3, 0, COUNTA(K46:P46)) -> 6 | S46: =IF(P46="N/A",IF(O46="N/A",2,1),0) -> 0 | T46: =OFFSET(P46,,-S46) -> 34729184 | U46: =IF(ISERROR(O46),IF(ISERROR(N46),IF(ISERROR(M46),IF(ISERROR(L46),IF(ISERROR(K46),IF(ISERROR(J46),IF(ISERROR(I46),IF(ISERROR(H46),IF(ISERROR(G46),IF(ISERROR(F46),IF(ISERROR(E46), NA(), E46),F46),G46),H46),I46),J46),K46),L46),M46),N46),O46) -> 35651035 | V46: =IF(D46="","",IFERROR(IF(T46>U46,"▲", IF(T46<U46,"▼","◄►")),"N/A")) -> ▼ | W46: Sparkline34 | Z46: Data_Table_CR_iii_c | AA46: Data_Orgs_CR_iii_c | AB46: Data_Dates_CR_iii_c
A47: CR_iv_a | B47: CR(iv.a) | C47: Number of detentions under the Mental Health Act | D47: ='CR(iv_a)_FINAL CALC'!B6 -> 2018/19 | E47: =IFERROR(IF(ISNUMBER( INDEX(INDIRECT($Z47), MATCH('Calc - Sparklines'!$C$1,INDIRECT($AA47),0), MATCH('Calc - Sparklines'!$D47,INDIRECT($AB47),0)-E$3))=FALSE,NA(), INDEX(INDIRECT($Z47), MATCH('Calc - Sparklines'!$C$1,INDIRECT($AA47),0), MATCH('Calc - Sparklines'!$D47,INDIRECT($AB47),0)-E$3)),NA()) ->  | F47: =IFERROR(IF(ISNUMBER( INDEX(INDIRECT($Z47), MATCH('Calc - Sparklines'!$C$1,INDIRECT($AA47),0), MATCH('Calc - Sparklines'!$D47,INDIRECT($AB47),0)-F$3))=FALSE,NA(), INDEX(INDIRECT($Z47), MATCH('Calc - Sparklines'!$C$1,INDIRECT($AA47),0), MATCH('Calc - Sparklines'!$D47,INDIRECT($AB47),0)-F$3)),NA()) ->  | G47: =IFERROR(IF(ISNUMBER( INDEX(INDIRECT($Z47), MATCH('Calc - Sparklines'!$C$1,INDIRECT($AA47),0), MATCH('Calc - Sparklines'!$D47,INDIRECT($AB47),0)-G$3))=FALSE,NA(), INDEX(INDIRECT($Z47), MATCH('Calc - Sparklines'!$C$1,INDIRECT($AA47),0), MATCH('Calc - Sparklines'!$D47,INDIRECT($AB47),0)-G$3)),NA()) ->  | H47: =IFERROR(IF(ISNUMBER( INDEX(INDIRECT($Z47), MATCH('Calc - Sparklines'!$C$1,INDIRECT($AA47),0), MATCH('Calc - Sparklines'!$D47,INDIRECT($AB47),0)-H$3))=FALSE,NA(), INDEX(INDIRECT($Z47), MATCH('Calc - Sparklines'!$C$1,INDIRECT($AA47),0), MATCH('Calc - Sparklines'!$D47,INDIRECT($AB47),0)-H$3)),NA()) ->  | I47: =IFERROR(IF(ISNUMBER( INDEX(INDIRECT($Z47), MATCH('Calc - Sparklines'!$C$1,INDIRECT($AA47),0), MATCH('Calc - Sparklines'!$D47,INDIRECT($AB47),0)-I$3))=FALSE,NA(), INDEX(INDIRECT($Z47), MATCH('Calc - Sparklines'!$C$1,INDIRECT($AA47),0), MATCH('Calc - Sparklines'!$D47,INDIRECT($AB47),0)-I$3)),NA()) ->  | J47: =IFERROR(IF(ISNUMBER( INDEX(INDIRECT($Z47), MATCH('Calc - Sparklines'!$C$1,INDIRECT($AA47),0), MATCH('Calc - Sparklines'!$D47,INDIRECT($AB47),0)-J$3))=FALSE,NA(), INDEX(INDIRECT($Z47), MATCH('Calc - Sparklines'!$C$1,INDIRECT($AA47),0), MATCH('Calc - Sparklines'!$D47,INDIRECT($AB47),0)-J$3)),NA()) ->  | K47: =IFERROR(IF(ISNUMBER( INDEX(INDIRECT($Z47), MATCH('Calc - Sparklines'!$C$1,INDIRECT($AA47),0), MATCH('Calc - Sparklines'!$D47,INDIRECT($AB47),0)-K$3))=FALSE,NA(), INDEX(INDIRECT($Z47), MATCH('Calc - Sparklines'!$C$1,INDIRECT($AA47),0), MATCH('Calc - Sparklines'!$D47,INDIRECT($AB47),0)-K$3)),NA()) ->  | L47: =IFERROR(IF(ISNUMBER( INDEX(INDIRECT($Z47), MATCH('Calc - Sparklines'!$C$1,INDIRECT($AA47),0), MATCH('Calc - Sparklines'!$D47,INDIRECT($AB47),0)-L$3))=FALSE,NA(), INDEX(INDIRECT($Z47), MATCH('Calc - Sparklines'!$C$1,INDIRECT($AA47),0), MATCH('Calc - Sparklines'!$D47,INDIRECT($AB47),0)-L$3)),NA()) ->  | M47: =IFERROR(IF(ISNUMBER( INDEX(INDIRECT($Z47), MATCH('Calc - Sparklines'!$C$1,INDIRECT($AA47),0), MATCH('Calc - Sparklines'!$D47,INDIRECT($AB47),0)-M$3))=FALSE,NA(), INDEX(INDIRECT($Z47), MATCH('Calc - Sparklines'!$C$1,INDIRECT($AA47),0), MATCH('Calc - Sparklines'!$D47,INDIRECT($AB47),0)-M$3)),NA()) ->  | N47: =IFERROR(IF(ISNUMBER( INDEX(INDIRECT($Z47), MATCH('Calc - Sparklines'!$C$1,INDIRECT($AA47),0), MATCH('Calc - Sparklines'!$D47,INDIRECT($AB47),0)-N$3))=FALSE,NA(), INDEX(INDIRECT($Z47), MATCH('Calc - Sparklines'!$C$1,INDIRECT($AA47),0), MATCH('Calc - Sparklines'!$D47,INDIRECT($AB47),0)-N$3)),NA()) -> 45864 | O47: =IFERROR(IF(ISNUMBER( INDEX(INDIRECT($Z47), MATCH('Calc - Sparklines'!$C$1,INDIRECT($AA47),0), MATCH('Calc - Sparklines'!$D47,INDIRECT($AB47),0)-O$3))=FALSE,NA(), INDEX(INDIRECT($Z47), MATCH('Calc - Sparklines'!$C$1,INDIRECT($AA47),0), MATCH('Calc - Sparklines'!$D47,INDIRECT($AB47),0)-O$3)),NA()) -> 49551 | P47: =IFERROR(IF(ISNUMBER( INDEX(INDIRECT($Z47), MATCH('Calc - Sparklines'!$C$1,INDIRECT($AA47),0), MATCH('Calc - Sparklines'!$D47,INDIRECT($AB47),0)-P$3))=FALSE,NA(), INDEX(INDIRECT($Z47), MATCH('Calc - Sparklines'!$C$1,INDIRECT($AA47),0), MATCH('Calc - Sparklines'!$D47,INDIRECT($AB47),0)-P$3)),NA()) -> 49988 | R47: 6 | S47: 0 | T47: 49988 | U47: 49551 | V47: ▲ | W47: Sparkline35 | Z47: Data_Table_CR_iv_a | AA47: Data_Orgs_CR_iv_a | AB47: Data_Dates_CR_iv_a | AD47: National measure only | AE47: National measure only
A48: CR_iv_b | B48: CR(iv.b) | C48: % of people detained under the MHA who are BME | D48: ='CR(iv_b)_FINAL CALC'!B6 -> 2018/19 | E48: =IFERROR(IF(ISNUMBER( INDEX(INDIRECT($Z48), MATCH('Calc - Sparklines'!$C$1,INDIRECT($AA48),0), MATCH('Calc - Sparklines'!$D48,INDIRECT($AB48),0)-E$3))=FALSE,NA(), INDEX(INDIRECT($Z48), MATCH('Calc - Sparklines'!$C$1,INDIRECT($AA48),0), MATCH('Calc - Sparklines'!$D48,INDIRECT($AB48),0)-E$3)),NA()) ->  | F48: =IFERROR(IF(ISNUMBER( INDEX(INDIRECT($Z48), MATCH('Calc - Sparklines'!$C$1,INDIRECT($AA48),0), MATCH('Calc - Sparklines'!$D48,INDIRECT($AB48),0)-F$3))=FALSE,NA(), INDEX(INDIRECT($Z48), MATCH('Calc - Sparklines'!$C$1,INDIRECT($AA48),0), MATCH('Calc - Sparklines'!$D48,INDIRECT($AB48),0)-F$3)),NA()) ->  | G48: =IFERROR(IF(ISNUMBER( INDEX(INDIRECT($Z48), MATCH('Calc - Sparklines'!$C$1,INDIRECT($AA48),0), MATCH('Calc - Sparklines'!$D48,INDIRECT($AB48),0)-G$3))=FALSE,NA(), INDEX(INDIRECT($Z48), MATCH('Calc - Sparklines'!$C$1,INDIRECT($AA48),0), MATCH('Calc - Sparklines'!$D48,INDIRECT($AB48),0)-G$3)),NA()) ->  | H48: =IFERROR(IF(ISNUMBER( INDEX(INDIRECT($Z48), MATCH('Calc - Sparklines'!$C$1,INDIRECT($AA48),0), MATCH('Calc - Sparklines'!$D48,INDIRECT($AB48),0)-H$3))=FALSE,NA(), INDEX(INDIRECT($Z48), MATCH('Calc - Sparklines'!$C$1,INDIRECT($AA48),0), MATCH('Calc - Sparklines'!$D48,INDIRECT($AB48),0)-H$3)),NA()) ->  | I48: =IFERROR(IF(ISNUMBER( INDEX(INDIRECT($Z48), MATCH('Calc - Sparklines'!$C$1,INDIRECT($AA48),0), MATCH('Calc - Sparklines'!$D48,INDIRECT($AB48),0)-I$3))=FALSE,NA(), INDEX(INDIRECT($Z48), MATCH('Calc - Sparklines'!$C$1,INDIRECT($AA48),0), MATCH('Calc - Sparklines'!$D48,INDIRECT($AB48),0)-I$3)),NA()) ->  | J48: =IFERROR(IF(ISNUMBER( INDEX(INDIRECT($Z48), MATCH('Calc - Sparklines'!$C$1,INDIRECT($AA48),0), MATCH('Calc - Sparklines'!$D48,INDIRECT($AB48),0)-J$3))=FALSE,NA(), INDEX(INDIRECT($Z48), MATCH('Calc - Sparklines'!$C$1,INDIRECT($AA48),0), MATCH('Calc - Sparklines'!$D48,INDIRECT($AB48),0)-J$3)),NA()) ->  | K48: =IFERROR(IF(ISNUMBER( INDEX(INDIRECT($Z48), MATCH('Calc - Sparklines'!$C$1,INDIRECT($AA48),0), MATCH('Calc - Sparklines'!$D48,INDIRECT($AB48),0)-K$3))=FALSE,NA(), INDEX(INDIRECT($Z48), MATCH('Calc - Sparklines'!$C$1,INDIRECT($AA48),0), MATCH('Calc - Sparklines'!$D48,INDIRECT($AB48),0)-K$3)),NA()) ->  | L48: =IFERROR(IF(ISNUMBER( INDEX(INDIRECT($Z48), MATCH('Calc - Sparklines'!$C$1,INDIRECT($AA48),0), MATCH('Calc - Sparklines'!$D48,INDIRECT($AB48),0)-L$3))=FALSE,NA(), INDEX(INDIRECT($Z48), MATCH('Calc - Sparklines'!$C$1,INDIRECT($AA48),0), MATCH('Calc - Sparklines'!$D48,INDIRECT($AB48),0)-L$3)),NA()) ->  | M48: =IFERROR(IF(ISNUMBER( INDEX(INDIRECT($Z48), MATCH('Calc - Sparklines'!$C$1,INDIRECT($AA48),0), MATCH('Calc - Sparklines'!$D48,INDIRECT($AB48),0)-M$3))=FALSE,NA(), INDEX(INDIRECT($Z48), MATCH('Calc - Sparklines'!$C$1,INDIRECT($AA48),0), MATCH('Calc - Sparklines'!$D48,INDIRECT($AB48),0)-M$3)),NA()) ->  | N48: =IFERROR(IF(ISNUMBER( INDEX(INDIRECT($Z48), MATCH('Calc - Sparklines'!$C$1,INDIRECT($AA48),0), MATCH('Calc - Sparklines'!$D48,INDIRECT($AB48),0)-N$3))=FALSE,NA(), INDEX(INDIRECT($Z48), MATCH('Calc - Sparklines'!$C$1,INDIRECT($AA48),0), MATCH('Calc - Sparklines'!$D48,INDIRECT($AB48),0)-N$3)),NA()) -> 0.3 | O48: =IFERROR(IF(ISNUMBER( INDEX(INDIRECT($Z48), MATCH('Calc - Sparklines'!$C$1,INDIRECT($AA48),0), MATCH('Calc - Sparklines'!$D48,INDIRECT($AB48),0)-O$3))=FALSE,NA(), INDEX(INDIRECT($Z48), MATCH('Calc - Sparklines'!$C$1,INDIRECT($AA48),0), MATCH('Calc - Sparklines'!$D48,INDIRECT($AB48),0)-O$3)),NA()) -> 0.29 | P48: =IFERROR(IF(ISNUMBER( INDEX(INDIRECT($Z48), MATCH('Calc - Sparklines'!$C$1,INDIRECT($AA48),0), MATCH('Calc - Sparklines'!$D48,INDIRECT($AB48),0)-P$3))=FALSE,NA(), INDEX(INDIRECT($Z48), MATCH('Calc - Sparklines'!$C$1,INDIRECT($AA48),0), MATCH('Calc - Sparklines'!$D48,INDIRECT($AB48),0)-P$3)),NA()) -> 0.31 | R48: 6 | S48: 0 | T48: 0.31 | U48: 0.29 | V48: ▲ | W48: Sparkline36 | Z48: Data_Table_CR_iv_b | AA48: Data_Orgs_CR_iv_b | AB48: Data_Dates_CR_iv_b | AD48: National measure only | AE48: National measure only
A49: CR_v_a | B49: CR(v.a) | C49: Number of section 136 detentions taken to police cells as a place of safety | D49: ='CR(v_a)_FINAL CALC'!B6 -> 2018/19 | E49: =IFERROR(IF(ISNUMBER( INDEX(INDIRECT($Z49), MATCH('Calc - Sparklines'!$C$1,INDIRECT($AA49),0), MATCH('Calc - Sparklines'!$D49,INDIRECT($AB49),0)-E$3))=FALSE,NA(), INDEX(INDIRECT($Z49), MATCH('Calc - Sparklines'!$C$1,INDIRECT($AA49),0), MATCH('Calc - Sparklines'!$D49,INDIRECT($AB49),0)-E$3)),NA()) ->  | F49: =IFERROR(IF(ISNUMBER( INDEX(INDIRECT($Z49), MATCH('Calc - Sparklines'!$C$1,INDIRECT($AA49),0), MATCH('Calc - Sparklines'!$D49,INDIRECT($AB49),0)-F$3))=FALSE,NA(), INDEX(INDIRECT($Z49), MATCH('Calc - Sparklines'!$C$1,INDIRECT($AA49),0), MATCH('Calc - Sparklines'!$D49,INDIRECT($AB49),0)-F$3)),NA()) ->  | G49: =IFERROR(IF(ISNUMBER( INDEX(INDIRECT($Z49), MATCH('Calc - Sparklines'!$C$1,INDIRECT($AA49),0), MATCH('Calc - Sparklines'!$D49,INDIRECT($AB49),0)-G$3))=FALSE,NA(), INDEX(INDIRECT($Z49), MATCH('Calc - Sparklines'!$C$1,INDIRECT($AA49),0), MATCH('Calc - Sparklines'!$D49,INDIRECT($AB49),0)-G$3)),NA()) ->  | H49: =IFERROR(IF(ISNUMBER( INDEX(INDIRECT($Z49), MATCH('Calc - Sparklines'!$C$1,INDIRECT($AA49),0), MATCH('Calc - Sparklines'!$D49,INDIRECT($AB49),0)-H$3))=FALSE,NA(), INDEX(INDIRECT($Z49), MATCH('Calc - Sparklines'!$C$1,INDIRECT($AA49),0), MATCH('Calc - Sparklines'!$D49,INDIRECT($AB49),0)-H$3)),NA()) ->  | I49: =IFERROR(IF(ISNUMBER( INDEX(INDIRECT($Z49), MATCH('Calc - Sparklines'!$C$1,INDIRECT($AA49),0), MATCH('Calc - Sparklines'!$D49,INDIRECT($AB49),0)-I$3))=FALSE,NA(), INDEX(INDIRECT($Z49), MATCH('Calc - Sparklines'!$C$1,INDIRECT($AA49),0), MATCH('Calc - Sparklines'!$D49,INDIRECT($AB49),0)-I$3)),NA()) ->  | J49: =IFERROR(IF(ISNUMBER( INDEX(INDIRECT($Z49), MATCH('Calc - Sparklines'!$C$1,INDIRECT($AA49),0), MATCH('Calc - Sparklines'!$D49,INDIRECT($AB49),0)-J$3))=FALSE,NA(), INDEX(INDIRECT($Z49), MATCH('Calc - Sparklines'!$C$1,INDIRECT($AA49),0), MATCH('Calc - Sparklines'!$D49,INDIRECT($AB49),0)-J$3)),NA()) ->  | K49: =IFERROR(IF(ISNUMBER( INDEX(INDIRECT($Z49), MATCH('Calc - Sparklines'!$C$1,INDIRECT($AA49),0), MATCH('Calc - Sparklines'!$D49,INDIRECT($AB49),0)-K$3))=FALSE,NA(), INDEX(INDIRECT($Z49), MATCH('Calc - Sparklines'!$C$1,INDIRECT($AA49),0), MATCH('Calc - Sparklines'!$D49,INDIRECT($AB49),0)-K$3)),NA()) -> 6028 | L49: =IFERROR(IF(ISNUMBER( INDEX(INDIRECT($Z49), MATCH('Calc - Sparklines'!$C$1,INDIRECT($AA49),0), MATCH('Calc - Sparklines'!$D49,INDIRECT($AB49),0)-L$3))=FALSE,NA(), INDEX(INDIRECT($Z49), MATCH('Calc - Sparklines'!$C$1,INDIRECT($AA49),0), MATCH('Calc - Sparklines'!$D49,INDIRECT($AB49),0)-L$3)),NA()) -> 3996 | M49: =IFERROR(IF(ISNUMBER( INDEX(INDIRECT($Z49), MATCH('Calc - Sparklines'!$C$1,INDIRECT($AA49),0), MATCH('Calc - Sparklines'!$D49,INDIRECT($AB49),0)-M$3))=FALSE,NA(), INDEX(INDIRECT($Z49), MATCH('Calc - Sparklines'!$C$1,INDIRECT($AA49),0), MATCH('Calc - Sparklines'!$D49,INDIRECT($AB49),0)-M$3)),NA()) -> 1764 | N49: =IFERROR(IF(ISNUMBER( INDEX(INDIRECT($Z49), MATCH('Calc - Sparklines'!$C$1,INDIRECT($AA49),0), MATCH('Calc - Sparklines'!$D49,INDIRECT($AB49),0)-N$3))=FALSE,NA(), INDEX(INDIRECT($Z49), MATCH('Calc - Sparklines'!$C$1,INDIRECT($AA49),0), MATCH('Calc - Sparklines'!$D49,INDIRECT($AB49),0)-N$3)),NA()) -> 898 | O49: =IFERROR(IF(ISNUMBER( INDEX(INDIRECT($Z49), MATCH('Calc - Sparklines'!$C$1,INDIRECT($AA49),0), MATCH('Calc - Sparklines'!$D49,INDIRECT($AB49),0)-O$3))=FALSE,NA(), INDEX(INDIRECT($Z49), MATCH('Calc - Sparklines'!$C$1,INDIRECT($AA49),0), MATCH('Calc - Sparklines'!$D49,INDIRECT($AB49),0)-O$3)),NA()) -> 408 | P49: =IFERROR(IF(ISNUMBER( INDEX(INDIRECT($Z49), MATCH('Calc - Sparklines'!$C$1,INDIRECT($AA49),0), MATCH('Calc - Sparklines'!$D49,INDIRECT($AB49),0)-P$3))=FALSE,NA(), INDEX(INDIRECT($Z49), MATCH('Calc - Sparklines'!$C$1,INDIRECT($AA49),0), MATCH('Calc - Sparklines'!$D49,INDIRECT($AB49),0)-P$3)),NA()) -> 110 | R49: 6 | S49: 0 | T49: 110 | U49: 408 | V49: ▼ | W49: Sparkline37 | Z49: Data_Table_CR_v_a | AA49: Data_Orgs_CR_v_a | AB49: Data_Dates_CR_v_a | AD49: National measure only | AE49: National measure only
A50: CR_v_b | B50: CR(v.b) | C50: Number of these that are under 18 | D50: ='CR(v_b)_FINAL CALC'!B6 -> 2018/19 | E50: =IFERROR(IF(ISNUMBER( INDEX(INDIRECT($Z50), MATCH('Calc - Sparklines'!$C$1,INDIRECT($AA50),0), MATCH('Calc - Sparklines'!$D50,INDIRECT($AB50),0)-E$3))=FALSE,NA(), INDEX(INDIRECT($Z50), MATCH('Calc - Sparklines'!$C$1,INDIRECT($AA50),0), MATCH('Calc - Sparklines'!$D50,INDIRECT($AB50),0)-E$3)),NA()) ->  | F50: =IFERROR(IF(ISNUMBER( INDEX(INDIRECT($Z50), MATCH('Calc - Sparklines'!$C$1,INDIRECT($AA50),0), MATCH('Calc - Sparklines'!$D50,INDIRECT($AB50),0)-F$3))=FALSE,NA(), INDEX(INDIRECT($Z50), MATCH('Calc - Sparklines'!$C$1,INDIRECT($AA50),0), MATCH('Calc - Sparklines'!$D50,INDIRECT($AB50),0)-F$3)),NA()) ->  | G50: =IFERROR(IF(ISNUMBER( INDEX(INDIRECT($Z50), MATCH('Calc - Sparklines'!$C$1,INDIRECT($AA50),0), MATCH('Calc - Sparklines'!$D50,INDIRECT($AB50),0)-G$3))=FALSE,NA(), INDEX(INDIRECT($Z50), MATCH('Calc - Sparklines'!$C$1,INDIRECT($AA50),0), MATCH('Calc - Sparklines'!$D50,INDIRECT($AB50),0)-G$3)),NA()) ->  | H50: =IFERROR(IF(ISNUMBER( INDEX(INDIRECT($Z50), MATCH('Calc - Sparklines'!$C$1,INDIRECT($AA50),0), MATCH('Calc - Sparklines'!$D50,INDIRECT($AB50),0)-H$3))=FALSE,NA(), INDEX(INDIRECT($Z50), MATCH('Calc - Sparklines'!$C$1,INDIRECT($AA50),0), MATCH('Calc - Sparklines'!$D50,INDIRECT($AB50),0)-H$3)),NA()) ->  | I50: =IFERROR(IF(ISNUMBER( INDEX(INDIRECT($Z50), MATCH('Calc - Sparklines'!$C$1,INDIRECT($AA50),0), MATCH('Calc - Sparklines'!$D50,INDIRECT($AB50),0)-I$3))=FALSE,NA(), INDEX(INDIRECT($Z50), MATCH('Calc - Sparklines'!$C$1,INDIRECT($AA50),0), MATCH('Calc - Sparklines'!$D50,INDIRECT($AB50),0)-I$3)),NA()) ->  | J50: =IFERROR(IF(ISNUMBER( INDEX(INDIRECT($Z50), MATCH('Calc - Sparklines'!$C$1,INDIRECT($AA50),0), MATCH('Calc - Sparklines'!$D50,INDIRECT($AB50),0)-J$3))=FALSE,NA(), INDEX(INDIRECT($Z50), MATCH('Calc - Sparklines'!$C$1,INDIRECT($AA50),0), MATCH('Calc - Sparklines'!$D50,INDIRECT($AB50),0)-J$3)),NA()) ->  | K50: =IFERROR(IF(ISNUMBER( INDEX(INDIRECT($Z50), MATCH('Calc - Sparklines'!$C$1,INDIRECT($AA50),0), MATCH('Calc - Sparklines'!$D50,INDIRECT($AB50),0)-K$3))=FALSE,NA(), INDEX(INDIRECT($Z50), MATCH('Calc - Sparklines'!$C$1,INDIRECT($AA50),0), MATCH('Calc - Sparklines'!$D50,INDIRECT($AB50),0)-K$3)),NA()) -> 236 | L50: =IFERROR(IF(ISNUMBER( INDEX(INDIRECT($Z50), MATCH('Calc - Sparklines'!$C$1,INDIRECT($AA50),0), MATCH('Calc - Sparklines'!$D50,INDIRECT($AB50),0)-L$3))=FALSE,NA(), INDEX(INDIRECT($Z50), MATCH('Calc - Sparklines'!$C$1,INDIRECT($AA50),0), MATCH('Calc - Sparklines'!$D50,INDIRECT($AB50),0)-L$3)),NA()) -> 145 | M50: =IFERROR(IF(ISNUMBER( INDEX(INDIRECT($Z50), MATCH('Calc - Sparklines'!$C$1,INDIRECT($AA50),0), MATCH('Calc - Sparklines'!$D50,INDIRECT($AB50),0)-M$3))=FALSE,NA(), INDEX(INDIRECT($Z50), MATCH('Calc - Sparklines'!$C$1,INDIRECT($AA50),0), MATCH('Calc - Sparklines'!$D50,INDIRECT($AB50),0)-M$3)),NA()) -> 35 | N50: =IFERROR(IF(ISNUMBER( INDEX(INDIRECT($Z50), MATCH('Calc - Sparklines'!$C$1,INDIRECT($AA50),0), MATCH('Calc - Sparklines'!$D50,INDIRECT($AB50),0)-N$3))=FALSE,NA(), INDEX(INDIRECT($Z50), MATCH('Calc - Sparklines'!$C$1,INDIRECT($AA50),0), MATCH('Calc - Sparklines'!$D50,INDIRECT($AB50),0)-N$3)),NA()) -> 20 | O50: =IFERROR(IF(ISNUMBER( INDEX(INDIRECT($Z50), MATCH('Calc - Sparklines'!$C$1,INDIRECT($AA50),0), MATCH('Calc - Sparklines'!$D50,INDIRECT($AB50),0)-O$3))=FALSE,NA(), INDEX(INDIRECT($Z50), MATCH('Calc - Sparklines'!$C$1,INDIRECT($AA50),0), MATCH('Calc - Sparklines'!$D50,INDIRECT($AB50),0)-O$3)),NA()) -> 10 | P50: =IFERROR(IF(ISNUMBER( INDEX(INDIRECT($Z50), MATCH('Calc - Sparklines'!$C$1,INDIRECT($AA50),0), MATCH('Calc - Sparklines'!$D50,INDIRECT($AB50),0)-P$3))=FALSE,NA(), INDEX(INDIRECT($Z50), MATCH('Calc - Sparklines'!$C$1,INDIRECT($AA50),0), MATCH('Calc - Sparklines'!$D50,INDIRECT($AB50),0)-P$3)),NA()) -> 4 | R50: 6 | S50: 0 | T50: 4 | U50: 10 | V50: ▼ | W50: Sparkline01 | Z50: Data_Table_CR_v_b | AA50: Data_Orgs_CR_v_b | AB50: Data_Dates_CR_v_b
A51: Acute Hospital | B51: Acute hospital (UEC) liaison | E51: =IFERROR(IF(ISNUMBER( INDEX(INDIRECT($Z51), MATCH('Calc - Sparklines'!$C$1,INDIRECT($AA51),0), MATCH('Calc - Sparklines'!$D51,INDIRECT($AB51),0)-E$3))=FALSE,NA(), INDEX(INDIRECT($Z51), MATCH('Calc - Sparklines'!$C$1,INDIRECT($AA51),0), MATCH('Calc - Sparklines'!$D51,INDIRECT($AB51),0)-E$3)),NA()) ->  | F51: =IFERROR(IF(ISNUMBER( INDEX(INDIRECT($Z51), MATCH('Calc - Sparklines'!$C$1,INDIRECT($AA51),0), MATCH('Calc - Sparklines'!$D51,INDIRECT($AB51),0)-F$3))=FALSE,NA(), INDEX(INDIRECT($Z51), MATCH('Calc - Sparklines'!$C$1,INDIRECT($AA51),0), MATCH('Calc - Sparklines'!$D51,INDIRECT($AB51),0)-F$3)),NA()) ->  | G51: =IFERROR(IF(ISNUMBER( INDEX(INDIRECT($Z51), MATCH('Calc - Sparklines'!$C$1,INDIRECT($AA51),0), MATCH('Calc - Sparklines'!$D51,INDIRECT($AB51),0)-G$3))=FALSE,NA(), INDEX(INDIRECT($Z51), MATCH('Calc - Sparklines'!$C$1,INDIRECT($AA51),0), MATCH('Calc - Sparklines'!$D51,INDIRECT($AB51),0)-G$3)),NA()) ->  | H51: =IFERROR(IF(ISNUMBER( INDEX(INDIRECT($Z51), MATCH('Calc - Sparklines'!$C$1,INDIRECT($AA51),0), MATCH('Calc - Sparklines'!$D51,INDIRECT($AB51),0)-H$3))=FALSE,NA(), INDEX(INDIRECT($Z51), MATCH('Calc - Sparklines'!$C$1,INDIRECT($AA51),0), MATCH('Calc - Sparklines'!$D51,INDIRECT($AB51),0)-H$3)),NA()) ->  | I51: =IFERROR(IF(ISNUMBER( INDEX(INDIRECT($Z51), MATCH('Calc - Sparklines'!$C$1,INDIRECT($AA51),0), MATCH('Calc - Sparklines'!$D51,INDIRECT($AB51),0)-I$3))=FALSE,NA(), INDEX(INDIRECT($Z51), MATCH('Calc - Sparklines'!$C$1,INDIRECT($AA51),0), MATCH('Calc - Sparklines'!$D51,INDIRECT($AB51),0)-I$3)),NA()) ->  | J51: =IFERROR(IF(ISNUMBER( INDEX(INDIRECT($Z51), MATCH('Calc - Sparklines'!$C$1,INDIRECT($AA51),0), MATCH('Calc - Sparklines'!$D51,INDIRECT($AB51),0)-J$3))=FALSE,NA(), INDEX(INDIRECT($Z51), MATCH('Calc - Sparklines'!$C$1,INDIRECT($AA51),0), MATCH('Calc - Sparklines'!$D51,INDIRECT($AB51),0)-J$3)),NA()) ->  | K51: =IFERROR(IF(ISNUMBER( INDEX(INDIRECT($Z51), MATCH('Calc - Sparklines'!$C$1,INDIRECT($AA51),0), MATCH('Calc - Sparklines'!$D51,INDIRECT($AB51),0)-K$3))=FALSE,NA(), INDEX(INDIRECT($Z51), MATCH('Calc - Sparklines'!$C$1,INDIRECT($AA51),0), MATCH('Calc - Sparklines'!$D51,INDIRECT($AB51),0)-K$3)),NA()) ->  | L51: =IFERROR(IF(ISNUMBER( INDEX(INDIRECT($Z51), MATCH('Calc - Sparklines'!$C$1,INDIRECT($AA51),0), MATCH('Calc - Sparklines'!$D51,INDIRECT($AB51),0)-L$3))=FALSE,NA(), INDEX(INDIRECT($Z51), MATCH('Calc - Sparklines'!$C$1,INDIRECT($AA51),0), MATCH('Calc - Sparklines'!$D51,INDIRECT($AB51),0)-L$3)),NA()) ->  | M51: =IFERROR(IF(ISNUMBER( INDEX(INDIRECT($Z51), MATCH('Calc - Sparklines'!$C$1,INDIRECT($AA51),0), MATCH('Calc - Sparklines'!$D51,INDIRECT($AB51),0)-M$3))=FALSE,NA(), INDEX(INDIRECT($Z51), MATCH('Calc - Sparklines'!$C$1,INDIRECT($AA51),0), MATCH('Calc - Sparklines'!$D51,INDIRECT($AB51),0)-M$3)),NA()) ->  | N51: =IFERROR(IF(ISNUMBER( INDEX(INDIRECT($Z51), MATCH('Calc - Sparklines'!$C$1,INDIRECT($AA51),0), MATCH('Calc - Sparklines'!$D51,INDIRECT($AB51),0)-N$3))=FALSE,NA(), INDEX(INDIRECT($Z51), MATCH('Calc - Sparklines'!$C$1,INDIRECT($AA51),0), MATCH('Calc - Sparklines'!$D51,INDIRECT($AB51),0)-N$3)),NA()) ->  | O51: =IFERROR(IF(ISNUMBER( INDEX(INDIRECT($Z51), MATCH('Calc - Sparklines'!$C$1,INDIRECT($AA51),0), MATCH('Calc - Sparklines'!$D51,INDIRECT($AB51),0)-O$3))=FALSE,NA(), INDEX(INDIRECT($Z51), MATCH('Calc - Sparklines'!$C$1,INDIRECT($AA51),0), MATCH('Calc - Sparklines'!$D51,INDIRECT($AB51),0)-O$3)),NA()) ->  | P51: =IFERROR(IF(ISNUMBER( INDEX(INDIRECT($Z51), MATCH('Calc - Sparklines'!$C$1,INDIRECT($AA51),0), MATCH('Calc - Sparklines'!$D51,INDIRECT($AB51),0)-P$3))=FALSE,NA(), INDEX(INDIRECT($Z51), MATCH('Calc - Sparklines'!$C$1,INDIRECT($AA51),0), MATCH('Calc - Sparklines'!$D51,INDIRECT($AB51),0)-P$3)),NA()) ->  | R51: 0 | S51: =IF(P51="N/A",IF(O51="N/A",2,1),0) ->  | T51: =OFFSET(P51,,-S51) ->  | V51: =IF(D51="","",IFERROR(IF(T51>U51,"▲", IF(T51<U51,"▼","◄►")),"N/A")) ->  | X51: =IF(R51<=2,"N/A","") -> N/A | AD51: Subheading
A52: AC_i | B52: AC(i) | C52: % of acute hospitals meeting the ‘core 24’ service standard (criteria a, b and c below) | D52: ='AC(i)_FINAL CALC'!B6 -> 2017/18 | E52: =IFERROR(IF(ISNUMBER( INDEX(INDIRECT($Z52), MATCH('Calc - Sparklines'!$C$1,INDIRECT($AA52),0), MATCH('Calc - Sparklines'!$D52,INDIRECT($AB52),0)-E$3))=FALSE,NA(), INDEX(INDIRECT($Z52), MATCH('Calc - Sparklines'!$C$1,INDIRECT($AA52),0), MATCH('Calc - Sparklines'!$D52,INDIRECT($AB52),0)-E$3)),NA()) ->  | F52: =IFERROR(IF(ISNUMBER( INDEX(INDIRECT($Z52), MATCH('Calc - Sparklines'!$C$1,INDIRECT($AA52),0), MATCH('Calc - Sparklines'!$D52,INDIRECT($AB52),0)-F$3))=FALSE,NA(), INDEX(INDIRECT($Z52), MATCH('Calc - Sparklines'!$C$1,INDIRECT($AA52),0), MATCH('Calc - Sparklines'!$D52,INDIRECT($AB52),0)-F$3)),NA()) ->  | G52: =IFERROR(IF(ISNUMBER( INDEX(INDIRECT($Z52), MATCH('Calc - Sparklines'!$C$1,INDIRECT($AA52),0), MATCH('Calc - Sparklines'!$D52,INDIRECT($AB52),0)-G$3))=FALSE,NA(), INDEX(INDIRECT($Z52), MATCH('Calc - Sparklines'!$C$1,INDIRECT($AA52),0), MATCH('Calc - Sparklines'!$D52,INDIRECT($AB52),0)-G$3)),NA()) ->  | H52: =IFERROR(IF(ISNUMBER( INDEX(INDIRECT($Z52), MATCH('Calc - Sparklines'!$C$1,INDIRECT($AA52),0), MATCH('Calc - Sparklines'!$D52,INDIRECT($AB52),0)-H$3))=FALSE,NA(), INDEX(INDIRECT($Z52), MATCH('Calc - Sparklines'!$C$1,INDIRECT($AA52),0), MATCH('Calc - Sparklines'!$D52,INDIRECT($AB52),0)-H$3)),NA()) ->  | I52: =IFERROR(IF(ISNUMBER( INDEX(INDIRECT($Z52), MATCH('Calc - Sparklines'!$C$1,INDIRECT($AA52),0), MATCH('Calc - Sparklines'!$D52,INDIRECT($AB52),0)-I$3))=FALSE,NA(), INDEX(INDIRECT($Z52), MATCH('Calc - Sparklines'!$C$1,INDIRECT($AA52),0), MATCH('Calc - Sparklines'!$D52,INDIRECT($AB52),0)-I$3)),NA()) ->  | J52: =IFERROR(IF(ISNUMBER( INDEX(INDIRECT($Z52), MATCH('Calc - Sparklines'!$C$1,INDIRECT($AA52),0), MATCH('Calc - Sparklines'!$D52,INDIRECT($AB52),0)-J$3))=FALSE,NA(), INDEX(INDIRECT($Z52), MATCH('Calc - Sparklines'!$C$1,INDIRECT($AA52),0), MATCH('Calc - Sparklines'!$D52,INDIRECT($AB52),0)-J$3)),NA()) ->  | K52: =IFERROR(IF(ISNUMBER( INDEX(INDIRECT($Z52), MATCH('Calc - Sparklines'!$C$1,INDIRECT($AA52),0), MATCH('Calc - Sparklines'!$D52,INDIRECT($AB52),0)-K$3))=FALSE,NA(), INDEX(INDIRECT($Z52), MATCH('Calc - Sparklines'!$C$1,INDIRECT($AA52),0), MATCH('Calc - Sparklines'!$D52,INDIRECT($AB52),0)-K$3)),NA()) ->  | L52: =IFERROR(IF(ISNUMBER( INDEX(INDIRECT($Z52), MATCH('Calc - Sparklines'!$C$1,INDIRECT($AA52),0), MATCH('Calc - Sparklines'!$D52,INDIRECT($AB52),0)-L$3))=FALSE,NA(), INDEX(INDIRECT($Z52), MATCH('Calc - Sparklines'!$C$1,INDIRECT($AA52),0), MATCH('Calc - Sparklines'!$D52,INDIRECT($AB52),0)-L$3)),NA()) ->  | M52: =IFERROR(IF(ISNUMBER( INDEX(INDIRECT($Z52), MATCH('Calc - Sparklines'!$C$1,INDIRECT($AA52),0), MATCH('Calc - Sparklines'!$D52,INDIRECT($AB52),0)-M$3))=FALSE,NA(), INDEX(INDIRECT($Z52), MATCH('Calc - Sparklines'!$C$1,INDIRECT($AA52),0), MATCH('Calc - Sparklines'!$D52,INDIRECT($AB52),0)-M$3)),NA()) -> 0.07 | N52: =IFERROR(IF(ISNUMBER( INDEX(INDIRECT($Z52), MATCH('Calc - Sparklines'!$C$1,INDIRECT($AA52),0), MATCH('Calc - Sparklines'!$D52,INDIRECT($AB52),0)-N$3))=FALSE,NA(), INDEX(INDIRECT($Z52), MATCH('Calc - Sparklines'!$C$1,INDIRECT($AA52),0), MATCH('Calc - Sparklines'!$D52,INDIRECT($AB52),0)-N$3)),NA()) -> 0.1016949153 | O52: =IFERROR(IF(ISNUMBER( INDEX(INDIRECT($Z52), MATCH('Calc - Sparklines'!$C$1,INDIRECT($AA52),0), MATCH('Calc - Sparklines'!$D52,INDIRECT($AB52),0)-O$3))=FALSE,NA(), INDEX(INDIRECT($Z52), MATCH('Calc - Sparklines'!$C$1,INDIRECT($AA52),0), MATCH('Calc - Sparklines'!$D52,INDIRECT($AB52),0)-O$3)),NA()) ->  | P52: =IFERROR(IF(ISNUMBER( INDEX(INDIRECT($Z52), MATCH('Calc - Sparklines'!$C$1,INDIRECT($AA52),0), MATCH('Calc - Sparklines'!$D52,INDIRECT($AB52),0)-P$3))=FALSE,NA(), INDEX(INDIRECT($Z52), MATCH('Calc - Sparklines'!$C$1,INDIRECT($AA52),0), MATCH('Calc - Sparklines'!$D52,INDIRECT($AB52),0)-P$3)),NA()) -> 0.3314285714 | R52: 6 | S52: =IF(P52="N/A",IF(O52="N/A",2,1),0) -> 0 | T52: =OFFSET(P52,,-S52) -> 0.3314285714 | U52: 0.1016949153 | V52: ▲ | W52: Sparkline38 | Z52: Data_Table_AC_i | AA52: Data_Orgs_AC_i | AB52: Data_Dates_AC_i | AD52: National, Regional and STP measure only | AE52: National, Regional and STP measure only
A53: AC_ii | B53: AC(ii) | C53: Mental health liaison staffing levels | D53: ='AC(ii)_FINAL CALC'!B6 -> 2017/18 | E53: =IFERROR(IF(ISNUMBER( INDEX(INDIRECT($Z53), MATCH('Calc - Sparklines'!$C$1,INDIRECT($AA53),0), MATCH('Calc - Sparklines'!$D53,INDIRECT($AB53),0)-E$3))=FALSE,NA(), INDEX(INDIRECT($Z53), MATCH('Calc - Sparklines'!$C$1,INDIRECT($AA53),0), MATCH('Calc - Sparklines'!$D53,INDIRECT($AB53),0)-E$3)),NA()) ->  | F53: =IFERROR(IF(ISNUMBER( INDEX(INDIRECT($Z53), MATCH('Calc - Sparklines'!$C$1,INDIRECT($AA53),0), MATCH('Calc - Sparklines'!$D53,INDIRECT($AB53),0)-F$3))=FALSE,NA(), INDEX(INDIRECT($Z53), MATCH('Calc - Sparklines'!$C$1,INDIRECT($AA53),0), MATCH('Calc - Sparklines'!$D53,INDIRECT($AB53),0)-F$3)),NA()) ->  | G53: =IFERROR(IF(ISNUMBER( INDEX(INDIRECT($Z53), MATCH('Calc - Sparklines'!$C$1,INDIRECT($AA53),0), MATCH('Calc - Sparklines'!$D53,INDIRECT($AB53),0)-G$3))=FALSE,NA(), INDEX(INDIRECT($Z53), MATCH('Calc - Sparklines'!$C$1,INDIRECT($AA53),0), MATCH('Calc - Sparklines'!$D53,INDIRECT($AB53),0)-G$3)),NA()) ->  | H53: =IFERROR(IF(ISNUMBER( INDEX(INDIRECT($Z53), MATCH('Calc - Sparklines'!$C$1,INDIRECT($AA53),0), MATCH('Calc - Sparklines'!$D53,INDIRECT($AB53),0)-H$3))=FALSE,NA(), INDEX(INDIRECT($Z53), MATCH('Calc - Sparklines'!$C$1,INDIRECT($AA53),0), MATCH('Calc - Sparklines'!$D53,INDIRECT($AB53),0)-H$3)),NA()) ->  | I53: =IFERROR(IF(ISNUMBER( INDEX(INDIRECT($Z53), MATCH('Calc - Sparklines'!$C$1,INDIRECT($AA53),0), MATCH('Calc - Sparklines'!$D53,INDIRECT($AB53),0)-I$3))=FALSE,NA(), INDEX(INDIRECT($Z53), MATCH('Calc - Sparklines'!$C$1,INDIRECT($AA53),0), MATCH('Calc - Sparklines'!$D53,INDIRECT($AB53),0)-I$3)),NA()) ->  | J53: =IFERROR(IF(ISNUMBER( INDEX(INDIRECT($Z53), MATCH('Calc - Sparklines'!$C$1,INDIRECT($AA53),0), MATCH('Calc - Sparklines'!$D53,INDIRECT($AB53),0)-J$3))=FALSE,NA(), INDEX(INDIRECT($Z53), MATCH('Calc - Sparklines'!$C$1,INDIRECT($AA53),0), MATCH('Calc - Sparklines'!$D53,INDIRECT($AB53),0)-J$3)),NA()) ->  | K53: =IFERROR(IF(ISNUMBER( INDEX(INDIRECT($Z53), MATCH('Calc - Sparklines'!$C$1,INDIRECT($AA53),0), MATCH('Calc - Sparklines'!$D53,INDIRECT($AB53),0)-K$3))=FALSE,NA(), INDEX(INDIRECT($Z53), MATCH('Calc - Sparklines'!$C$1,INDIRECT($AA53),0), MATCH('Calc - Sparklines'!$D53,INDIRECT($AB53),0)-K$3)),NA()) ->  | L53: =IFERROR(IF(ISNUMBER( INDEX(INDIRECT($Z53), MATCH('Calc - Sparklines'!$C$1,INDIRECT($AA53),0), MATCH('Calc - Sparklines'!$D53,INDIRECT($AB53),0)-L$3))=FALSE,NA(), INDEX(INDIRECT($Z53), MATCH('Calc - Sparklines'!$C$1,INDIRECT($AA53),0), MATCH('Calc - Sparklines'!$D53,INDIRECT($AB53),0)-L$3)),NA()) ->  | M53: =IFERROR(IF(ISNUMBER( INDEX(INDIRECT($Z53), MATCH('Calc - Sparklines'!$C$1,INDIRECT($AA53),0), MATCH('Calc - Sparklines'!$D53,INDIRECT($AB53),0)-M$3))=FALSE,NA(), INDEX(INDIRECT($Z53), MATCH('Calc - Sparklines'!$C$1,INDIRECT($AA53),0), MATCH('Calc - Sparklines'!$D53,INDIRECT($AB53),0)-M$3)),NA()) -> 1420.8 | N53: =IFERROR(IF(ISNUMBER( INDEX(INDIRECT($Z53), MATCH('Calc - Sparklines'!$C$1,INDIRECT($AA53),0), MATCH('Calc - Sparklines'!$D53,INDIRECT($AB53),0)-N$3))=FALSE,NA(), INDEX(INDIRECT($Z53), MATCH('Calc - Sparklines'!$C$1,INDIRECT($AA53),0), MATCH('Calc - Sparklines'!$D53,INDIRECT($AB53),0)-N$3)),NA()) ->  | O53: =IFERROR(IF(ISNUMBER( INDEX(INDIRECT($Z53), MATCH('Calc - Sparklines'!$C$1,INDIRECT($AA53),0), MATCH('Calc - Sparklines'!$D53,INDIRECT($AB53),0)-O$3))=FALSE,NA(), INDEX(INDIRECT($Z53), MATCH('Calc - Sparklines'!$C$1,INDIRECT($AA53),0), MATCH('Calc - Sparklines'!$D53,INDIRECT($AB53),0)-O$3)),NA()) -> 1809.4 | P53: =IFERROR(IF(ISNUMBER( INDEX(INDIRECT($Z53), MATCH('Calc - Sparklines'!$C$1,INDIRECT($AA53),0), MATCH('Calc - Sparklines'!$D53,INDIRECT($AB53),0)-P$3))=FALSE,NA(), INDEX(INDIRECT($Z53), MATCH('Calc - Sparklines'!$C$1,INDIRECT($AA53),0), MATCH('Calc - Sparklines'!$D53,INDIRECT($AB53),0)-P$3)),NA()) -> 2316.63 | R53: =IF(COUNTA(K53:P53)-COUNTIF(K53:P53,"#N/A")<3, 0, COUNTA(K53:P53)) -> 6 | S53: =IF(P53="N/A",IF(O53="N/A",2,1),0) -> 0 | T53: =OFFSET(P53,,-S53) -> 2316.63 | U53: =IF(ISERROR(O53),IF(ISERROR(N53),IF(ISERROR(M53),IF(ISERROR(L53),IF(ISERROR(K53),IF(ISERROR(J53),IF(ISERROR(I53),IF(ISERROR(H53),IF(ISERROR(G53),IF(ISERROR(F53),IF(ISERROR(E53), NA(), E53),F53),G53),H53),I53),J53),K53),L53),M53),N53),O53) -> 1809.4 | V53: =IF(D53="","",IFERROR(IF(T53>U53,"▲", IF(T53<U53,"▼","◄►")),"N/A")) -> ▲ | W53: Sparkline39 | Z53: Data_Table_AC_ii | AA53: Data_Orgs_AC_ii | AB53: Data_Dates_AC_ii | AD53: National, Regional and STP measure only | AE53: National, Regional and STP measure only
A54: AC_iii | B54: AC(iii) | C54: A&E and Ward Liaison mental health planned spend | D54: ='AC(iii)_FINAL CALC'!B6 -> 2019/20 planned | E54: =IFERROR(IF(ISNUMBER( INDEX(INDIRECT($Z54), MATCH('Calc - Sparklines'!$C$1,INDIRECT($AA54),0), MATCH('Calc - Sparklines'!$D54,INDIRECT($AB54),0)-E$4))=FALSE,NA(), INDEX(INDIRECT($Z54), MATCH('Calc - Sparklines'!$C$1,INDIRECT($AA54),0), MATCH('Calc - Sparklines'!$D54,INDIRECT($AB54),0)-E$4)),NA()) ->  | F54: =IFERROR(IF(ISNUMBER( INDEX(INDIRECT($Z54), MATCH('Calc - Sparklines'!$C$1,INDIRECT($AA54),0), MATCH('Calc - Sparklines'!$D54,INDIRECT($AB54),0)-F$4))=FALSE,NA(), INDEX(INDIRECT($Z54), MATCH('Calc - Sparklines'!$C$1,INDIRECT($AA54),0), MATCH('Calc - Sparklines'!$D54,INDIRECT($AB54),0)-F$4)),NA()) ->  | G54: =IFERROR(IF(ISNUMBER( INDEX(INDIRECT($Z54), MATCH('Calc - Sparklines'!$C$1,INDIRECT($AA54),0), MATCH('Calc - Sparklines'!$D54,INDIRECT($AB54),0)-G$4))=FALSE,NA(), INDEX(INDIRECT($Z54), MATCH('Calc - Sparklines'!$C$1,INDIRECT($AA54),0), MATCH('Calc - Sparklines'!$D54,INDIRECT($AB54),0)-G$4)),NA()) ->  | H54: =IFERROR(IF(ISNUMBER( INDEX(INDIRECT($Z54), MATCH('Calc - Sparklines'!$C$1,INDIRECT($AA54),0), MATCH('Calc - Sparklines'!$D54,INDIRECT($AB54),0)-H$4))=FALSE,NA(), INDEX(INDIRECT($Z54), MATCH('Calc - Sparklines'!$C$1,INDIRECT($AA54),0), MATCH('Calc - Sparklines'!$D54,INDIRECT($AB54),0)-H$4)),NA()) ->  | I54: =IFERROR(IF(ISNUMBER( INDEX(INDIRECT($Z54), MATCH('Calc - Sparklines'!$C$1,INDIRECT($AA54),0), MATCH('Calc - Sparklines'!$D54,INDIRECT($AB54),0)-I$4))=FALSE,NA(), INDEX(INDIRECT($Z54), MATCH('Calc - Sparklines'!$C$1,INDIRECT($AA54),0), MATCH('Calc - Sparklines'!$D54,INDIRECT($AB54),0)-I$4)),NA()) ->  | J54: =IFERROR(IF(ISNUMBER( INDEX(INDIRECT($Z54), MATCH('Calc - Sparklines'!$C$1,INDIRECT($AA54),0), MATCH('Calc - Sparklines'!$D54,INDIRECT($AB54),0)-J$4))=FALSE,NA(), INDEX(INDIRECT($Z54), MATCH('Calc - Sparklines'!$C$1,INDIRECT($AA54),0), MATCH('Calc - Sparklines'!$D54,INDIRECT($AB54),0)-J$4)),NA()) ->  | K54: =IFERROR(IF(ISNUMBER( INDEX(INDIRECT($Z54), MATCH('Calc - Sparklines'!$C$1,INDIRECT($AA54),0), MATCH('Calc - Sparklines'!$D54,INDIRECT($AB54),0)-K$4))=FALSE,NA(), INDEX(INDIRECT($Z54), MATCH('Calc - Sparklines'!$C$1,INDIRECT($AA54),0), MATCH('Calc - Sparklines'!$D54,INDIRECT($AB54),0)-K$4)),NA()) ->  | L54: =IFERROR(IF(ISNUMBER( INDEX(INDIRECT($Z54), MATCH('Calc - Sparklines'!$C$1,INDIRECT($AA54),0), MATCH('Calc - Sparklines'!$D54,INDIRECT($AB54),0)-L$4))=FALSE,NA(), INDEX(INDIRECT($Z54), MATCH('Calc - Sparklines'!$C$1,INDIRECT($AA54),0), MATCH('Calc - Sparklines'!$D54,INDIRECT($AB54),0)-L$4)),NA()) ->  | M54: =IFERROR(IF(ISNUMBER( INDEX(INDIRECT($Z54), MATCH('Calc - Sparklines'!$C$1,INDIRECT($AA54),0), MATCH('Calc - Sparklines'!$D54,INDIRECT($AB54),0)-M$4))=FALSE,NA(), INDEX(INDIRECT($Z54), MATCH('Calc - Sparklines'!$C$1,INDIRECT($AA54),0), MATCH('Calc - Sparklines'!$D54,INDIRECT($AB54),0)-M$4)),NA()) ->  | N54: =IFERROR(IF(ISNUMBER( INDEX(INDIRECT($Z54), MATCH('Calc - Sparklines'!$C$1,INDIRECT($AA54),0), MATCH('Calc - Sparklines'!$D54,INDIRECT($AB54),0)-N$4))=FALSE,NA(), INDEX(INDIRECT($Z54), MATCH('Calc - Sparklines'!$C$1,INDIRECT($AA54),0), MATCH('Calc - Sparklines'!$D54,INDIRECT($AB54),0)-N$4)),NA()) -> 143225364.7 | O54: =IFERROR(IF(ISNUMBER( INDEX(INDIRECT($Z54), MATCH('Calc - Sparklines'!$C$1,INDIRECT($AA54),0), MATCH('Calc - Sparklines'!$D54,INDIRECT($AB54),0)-O$4))=FALSE,NA(), INDEX(INDIRECT($Z54), MATCH('Calc - Sparklines'!$C$1,INDIRECT($AA54),0), MATCH('Calc - Sparklines'!$D54,INDIRECT($AB54),0)-O$4)),NA()) -> 168929399 | P54: =IFERROR(IF(ISNUMBER( INDEX(INDIRECT($Z54), MATCH('Calc - Sparklines'!$C$1,INDIRECT($AA54),0), MATCH('Calc - Sparklines'!$D54,INDIRECT($AB54),0)-P$4))=FALSE,NA(), INDEX(INDIRECT($Z54), MATCH('Calc - Sparklines'!$C$1,INDIRECT($AA54),0), MATCH('Calc - Sparklines'!$D54,INDIRECT($AB54),0)-P$4)),NA()) -> 177421754.6 | R54: 6 | S54: =IF(P54="N/A",IF(O54="N/A",2,1),0) -> 0 | T54: =OFFSET(P54,,-S54) -> 177421754.6 | U54: =IF(ISERROR(O54),IF(ISERROR(N54),IF(ISERROR(M54),IF(ISERROR(L54),IF(ISERROR(K54),IF(ISERROR(J54),IF(ISERROR(I54),IF(ISERROR(H54),IF(ISERROR(G54),IF(ISERROR(F54),IF(ISERROR(E54), NA(), E54),F54),G54),H54),I54),J54),K54),L54),M54),N54),O54) -> 168929399 | V54: ▲ | W54: Sparkline42 | X54: N/A | Z54: Data_Table_AC_iii | AA54: Data_Orgs_AC_iii | AB54: Data_Dates_AC_iii
A55: Health & Justice | B55: Health & Justice | E55: =IFERROR(IF(ISNUMBER( INDEX(INDIRECT($Z55), MATCH('Calc - Sparklines'!$C$1,INDIRECT($AA55),0), MATCH('Calc - Sparklines'!$D55,INDIRECT($AB55),0)-E$3))=FALSE,NA(), INDEX(INDIRECT($Z55), MATCH('Calc - Sparklines'!$C$1,INDIRECT($AA55),0), MATCH('Calc - Sparklines'!$D55,INDIRECT($AB55),0)-E$3)),NA()) ->  | F55: =IFERROR(IF(ISNUMBER( INDEX(INDIRECT($Z55), MATCH('Calc - Sparklines'!$C$1,INDIRECT($AA55),0), MATCH('Calc - Sparklines'!$D55,INDIRECT($AB55),0)-F$3))=FALSE,NA(), INDEX(INDIRECT($Z55), MATCH('Calc - Sparklines'!$C$1,INDIRECT($AA55),0), MATCH('Calc - Sparklines'!$D55,INDIRECT($AB55),0)-F$3)),NA()) ->  | G55: =IFERROR(IF(ISNUMBER( INDEX(INDIRECT($Z55), MATCH('Calc - Sparklines'!$C$1,INDIRECT($AA55),0), MATCH('Calc - Sparklines'!$D55,INDIRECT($AB55),0)-G$3))=FALSE,NA(), INDEX(INDIRECT($Z55), MATCH('Calc - Sparklines'!$C$1,INDIRECT($AA55),0), MATCH('Calc - Sparklines'!$D55,INDIRECT($AB55),0)-G$3)),NA()) ->  | H55: =IFERROR(IF(ISNUMBER( INDEX(INDIRECT($Z55), MATCH('Calc - Sparklines'!$C$1,INDIRECT($AA55),0), MATCH('Calc - Sparklines'!$D55,INDIRECT($AB55),0)-H$3))=FALSE,NA(), INDEX(INDIRECT($Z55), MATCH('Calc - Sparklines'!$C$1,INDIRECT($AA55),0), MATCH('Calc - Sparklines'!$D55,INDIRECT($AB55),0)-H$3)),NA()) ->  | I55: =IFERROR(IF(ISNUMBER( INDEX(INDIRECT($Z55), MATCH('Calc - Sparklines'!$C$1,INDIRECT($AA55),0), MATCH('Calc - Sparklines'!$D55,INDIRECT($AB55),0)-I$3))=FALSE,NA(), INDEX(INDIRECT($Z55), MATCH('Calc - Sparklines'!$C$1,INDIRECT($AA55),0), MATCH('Calc - Sparklines'!$D55,INDIRECT($AB55),0)-I$3)),NA()) ->  | J55: =IFERROR(IF(ISNUMBER( INDEX(INDIRECT($Z55), MATCH('Calc - Sparklines'!$C$1,INDIRECT($AA55),0), MATCH('Calc - Sparklines'!$D55,INDIRECT($AB55),0)-J$3))=FALSE,NA(), INDEX(INDIRECT($Z55), MATCH('Calc - Sparklines'!$C$1,INDIRECT($AA55),0), MATCH('Calc - Sparklines'!$D55,INDIRECT($AB55),0)-J$3)),NA()) ->  | K55: =IFERROR(IF(ISNUMBER( INDEX(INDIRECT($Z55), MATCH('Calc - Sparklines'!$C$1,INDIRECT($AA55),0), MATCH('Calc - Sparklines'!$D55,INDIRECT($AB55),0)-K$3))=FALSE,NA(), INDEX(INDIRECT($Z55), MATCH('Calc - Sparklines'!$C$1,INDIRECT($AA55),0), MATCH('Calc - Sparklines'!$D55,INDIRECT($AB55),0)-K$3)),NA()) ->  | L55: =IFERROR(IF(ISNUMBER( INDEX(INDIRECT($Z55), MATCH('Calc - Sparklines'!$C$1,INDIRECT($AA55),0), MATCH('Calc - Sparklines'!$D55,INDIRECT($AB55),0)-L$3))=FALSE,NA(), INDEX(INDIRECT($Z55), MATCH('Calc - Sparklines'!$C$1,INDIRECT($AA55),0), MATCH('Calc - Sparklines'!$D55,INDIRECT($AB55),0)-L$3)),NA()) ->  | M55: =IFERROR(IF(ISNUMBER( INDEX(INDIRECT($Z55), MATCH('Calc - Sparklines'!$C$1,INDIRECT($AA55),0), MATCH('Calc - Sparklines'!$D55,INDIRECT($AB55),0)-M$3))=FALSE,NA(), INDEX(INDIRECT($Z55), MATCH('Calc - Sparklines'!$C$1,INDIRECT($AA55),0), MATCH('Calc - Sparklines'!$D55,INDIRECT($AB55),0)-M$3)),NA()) ->  | N55: =IFERROR(IF(ISNUMBER( INDEX(INDIRECT($Z55), MATCH('Calc - Sparklines'!$C$1,INDIRECT($AA55),0), MATCH('Calc - Sparklines'!$D55,INDIRECT($AB55),0)-N$3))=FALSE,NA(), INDEX(INDIRECT($Z55), MATCH('Calc - Sparklines'!$C$1,INDIRECT($AA55),0), MATCH('Calc - Sparklines'!$D55,INDIRECT($AB55),0)-N$3)),NA()) ->  | O55: =IFERROR(IF(ISNUMBER( INDEX(INDIRECT($Z55), MATCH('Calc - Sparklines'!$C$1,INDIRECT($AA55),0), MATCH('Calc - Sparklines'!$D55,INDIRECT($AB55),0)-O$3))=FALSE,NA(), INDEX(INDIRECT($Z55), MATCH('Calc - Sparklines'!$C$1,INDIRECT($AA55),0), MATCH('Calc - Sparklines'!$D55,INDIRECT($AB55),0)-O$3)),NA()) ->  | P55: =IFERROR(IF(ISNUMBER( INDEX(INDIRECT($Z55), MATCH('Calc - Sparklines'!$C$1,INDIRECT($AA55),0), MATCH('Calc - Sparklines'!$D55,INDIRECT($AB55),0)-P$3))=FALSE,NA(), INDEX(INDIRECT($Z55), MATCH('Calc - Sparklines'!$C$1,INDIRECT($AA55),0), MATCH('Calc - Sparklines'!$D55,INDIRECT($AB55),0)-P$3)),NA()) ->  | R55: 0 | X55: N/A | AD55: Heading
A56: HJ_i | B56: HJ(i) | C56: Number of mental health secure transfers within 2 weeks of acceptance under the MHA- Age:18+ | D56: ='HJ(i)_FINAL CALC'!B6 -> Q2 2019/20 | E56: =IFERROR(IF(ISNUMBER( INDEX(INDIRECT($Z56), MATCH('Calc - Sparklines'!$C$1,INDIRECT($AA56),0), MATCH('Calc - Sparklines'!$D56,INDIRECT($AB56),0)-E$3))=FALSE,NA(), INDEX(INDIRECT($Z56), MATCH('Calc - Sparklines'!$C$1,INDIRECT($AA56),0), MATCH('Calc - Sparklines'!$D56,INDIRECT($AB56),0)-E$3)),NA()) -> 108 | F56: =IFERROR(IF(ISNUMBER( INDEX(INDIRECT($Z56), MATCH('Calc - Sparklines'!$C$1,INDIRECT($AA56),0), MATCH('Calc - Sparklines'!$D56,INDIRECT($AB56),0)-F$3))=FALSE,NA(), INDEX(INDIRECT($Z56), MATCH('Calc - Sparklines'!$C$1,INDIRECT($AA56),0), MATCH('Calc - Sparklines'!$D56,INDIRECT($AB56),0)-F$3)),NA()) -> 83 | G56: =IFERROR(IF(ISNUMBER( INDEX(INDIRECT($Z56), MATCH('Calc - Sparklines'!$C$1,INDIRECT($AA56),0), MATCH('Calc - Sparklines'!$D56,INDIRECT($AB56),0)-G$3))=FALSE,NA(), INDEX(INDIRECT($Z56), MATCH('Calc - Sparklines'!$C$1,INDIRECT($AA56),0), MATCH('Calc - Sparklines'!$D56,INDIRECT($AB56),0)-G$3)),NA()) ->  | H56: =IFERROR(IF(ISNUMBER( INDEX(INDIRECT($Z56), MATCH('Calc - Sparklines'!$C$1,INDIRECT($AA56),0), MATCH('Calc - Sparklines'!$D56,INDIRECT($AB56),0)-H$3))=FALSE,NA(), INDEX(INDIRECT($Z56), MATCH('Calc - Sparklines'!$C$1,INDIRECT($AA56),0), MATCH('Calc - Sparklines'!$D56,INDIRECT($AB56),0)-H$3)),NA()) ->  | I56: =IFERROR(IF(ISNUMBER( INDEX(INDIRECT($Z56), MATCH('Calc - Sparklines'!$C$1,INDIRECT($AA56),0), MATCH('Calc - Sparklines'!$D56,INDIRECT($AB56),0)-I$3))=FALSE,NA(), INDEX(INDIRECT($Z56), MATCH('Calc - Sparklines'!$C$1,INDIRECT($AA56),0), MATCH('Calc - Sparklines'!$D56,INDIRECT($AB56),0)-I$3)),NA()) ->  | J56: =IFERROR(IF(ISNUMBER( INDEX(INDIRECT($Z56), MATCH('Calc - Sparklines'!$C$1,INDIRECT($AA56),0), MATCH('Calc - Sparklines'!$D56,INDIRECT($AB56),0)-J$3))=FALSE,NA(), INDEX(INDIRECT($Z56), MATCH('Calc - Sparklines'!$C$1,INDIRECT($AA56),0), MATCH('Calc - Sparklines'!$D56,INDIRECT($AB56),0)-J$3)),NA()) ->  | K56: =IFERROR(IF(ISNUMBER( INDEX(INDIRECT($Z56), MATCH('Calc - Sparklines'!$C$1,INDIRECT($AA56),0), MATCH('Calc - Sparklines'!$D56,INDIRECT($AB56),0)-K$3))=FALSE,NA(), INDEX(INDIRECT($Z56), MATCH('Calc - Sparklines'!$C$1,INDIRECT($AA56),0), MATCH('Calc - Sparklines'!$D56,INDIRECT($AB56),0)-K$3)),NA()) -> 81 | L56: =IFERROR(IF(ISNUMBER( INDEX(INDIRECT($Z56), MATCH('Calc - Sparklines'!$C$1,INDIRECT($AA56),0), MATCH('Calc - Sparklines'!$D56,INDIRECT($AB56),0)-L$3))=FALSE,NA(), INDEX(INDIRECT($Z56), MATCH('Calc - Sparklines'!$C$1,INDIRECT($AA56),0), MATCH('Calc - Sparklines'!$D56,INDIRECT($AB56),0)-L$3)),NA()) -> 74 | M56: =IFERROR(IF(ISNUMBER( INDEX(INDIRECT($Z56), MATCH('Calc - Sparklines'!$C$1,INDIRECT($AA56),0), MATCH('Calc - Sparklines'!$D56,INDIRECT($AB56),0)-M$3))=FALSE,NA(), INDEX(INDIRECT($Z56), MATCH('Calc - Sparklines'!$C$1,INDIRECT($AA56),0), MATCH('Calc - Sparklines'!$D56,INDIRECT($AB56),0)-M$3)),NA()) -> 78 | N56: =IFERROR(IF(ISNUMBER( INDEX(INDIRECT($Z56), MATCH('Calc - Sparklines'!$C$1,INDIRECT($AA56),0), MATCH('Calc - Sparklines'!$D56,INDIRECT($AB56),0)-N$3))=FALSE,NA(), INDEX(INDIRECT($Z56), MATCH('Calc - Sparklines'!$C$1,INDIRECT($AA56),0), MATCH('Calc - Sparklines'!$D56,INDIRECT($AB56),0)-N$3)),NA()) -> 74 | O56: =IFERROR(IF(ISNUMBER( INDEX(INDIRECT($Z56), MATCH('Calc - Sparklines'!$C$1,INDIRECT($AA56),0), MATCH('Calc - Sparklines'!$D56,INDIRECT($AB56),0)-O$3))=FALSE,NA(), INDEX(INDIRECT($Z56), MATCH('Calc - Sparklines'!$C$1,INDIRECT($AA56),0), MATCH('Calc - Sparklines'!$D56,INDIRECT($AB56),0)-O$3)),NA()) -> 84 | P56: =IFERROR(IF(ISNUMBER( INDEX(INDIRECT($Z56), MATCH('Calc - Sparklines'!$C$1,INDIRECT($AA56),0), MATCH('Calc - Sparklines'!$D56,INDIRECT($AB56),0)-P$3))=FALSE,NA(), INDEX(INDIRECT($Z56), MATCH('Calc - Sparklines'!$C$1,INDIRECT($AA56),0), MATCH('Calc - Sparklines'!$D56,INDIRECT($AB56),0)-P$3)),NA()) -> 64 | R56: 6 | S56: 0 | T56: 64 | U56: 84 | V56: ▼ | W56: Sparkline44 | Z56: Data_Table_HJ_i | AA56: Data_Orgs_HJ_i | AB56: Data_Dates_HJ_i | AD56: National measure only | AE56: National measure only
A57: HJ_ii_c | B57: HJ(ii.c) | C57: Number of patient assessments, for MH issues, during the reporting period | D57: ='HJ(ii_c)_FINAL CALC'!B6 -> Q2 2019/20 | E57: =IFERROR(IF(ISNUMBER( INDEX(INDIRECT($Z57), MATCH('Calc - Sparklines'!$C$1,INDIRECT($AA57),0), MATCH('Calc - Sparklines'!$D57,INDIRECT($AB57),0)-E$3))=FALSE,NA(), INDEX(INDIRECT($Z57), MATCH('Calc - Sparklines'!$C$1,INDIRECT($AA57),0), MATCH('Calc - Sparklines'!$D57,INDIRECT($AB57),0)-E$3)),NA()) ->  | F57: =IFERROR(IF(ISNUMBER( INDEX(INDIRECT($Z57), MATCH('Calc - Sparklines'!$C$1,INDIRECT($AA57),0), MATCH('Calc - Sparklines'!$D57,INDIRECT($AB57),0)-F$3))=FALSE,NA(), INDEX(INDIRECT($Z57), MATCH('Calc - Sparklines'!$C$1,INDIRECT($AA57),0), MATCH('Calc - Sparklines'!$D57,INDIRECT($AB57),0)-F$3)),NA()) ->  | G57: =IFERROR(IF(ISNUMBER( INDEX(INDIRECT($Z57), MATCH('Calc - Sparklines'!$C$1,INDIRECT($AA57),0), MATCH('Calc - Sparklines'!$D57,INDIRECT($AB57),0)-G$3))=FALSE,NA(), INDEX(INDIRECT($Z57), MATCH('Calc - Sparklines'!$C$1,INDIRECT($AA57),0), MATCH('Calc - Sparklines'!$D57,INDIRECT($AB57),0)-G$3)),NA()) ->  | H57: =IFERROR(IF(ISNUMBER( INDEX(INDIRECT($Z57), MATCH('Calc - Sparklines'!$C$1,INDIRECT($AA57),0), MATCH('Calc - Sparklines'!$D57,INDIRECT($AB57),0)-H$3))=FALSE,NA(), INDEX(INDIRECT($Z57), MATCH('Calc - Sparklines'!$C$1,INDIRECT($AA57),0), MATCH('Calc - Sparklines'!$D57,INDIRECT($AB57),0)-H$3)),NA()) ->  | I57: =IFERROR(IF(ISNUMBER( INDEX(INDIRECT($Z57), MATCH('Calc - Sparklines'!$C$1,INDIRECT($AA57),0), MATCH('Calc - Sparklines'!$D57,INDIRECT($AB57),0)-I$3))=FALSE,NA(), INDEX(INDIRECT($Z57), MATCH('Calc - Sparklines'!$C$1,INDIRECT($AA57),0), MATCH('Calc - Sparklines'!$D57,INDIRECT($AB57),0)-I$3)),NA()) ->  | J57: =IFERROR(IF(ISNUMBER( INDEX(INDIRECT($Z57), MATCH('Calc - Sparklines'!$C$1,INDIRECT($AA57),0), MATCH('Calc - Sparklines'!$D57,INDIRECT($AB57),0)-J$3))=FALSE,NA(), INDEX(INDIRECT($Z57), MATCH('Calc - Sparklines'!$C$1,INDIRECT($AA57),0), MATCH('Calc - Sparklines'!$D57,INDIRECT($AB57),0)-J$3)),NA()) ->  | K57: =IFERROR(IF(ISNUMBER( INDEX(INDIRECT($Z57), MATCH('Calc - Sparklines'!$C$1,INDIRECT($AA57),0), MATCH('Calc - Sparklines'!$D57,INDIRECT($AB57),0)-K$3))=FALSE,NA(), INDEX(INDIRECT($Z57), MATCH('Calc - Sparklines'!$C$1,INDIRECT($AA57),0), MATCH('Calc - Sparklines'!$D57,INDIRECT($AB57),0)-K$3)),NA()) ->  | L57: =IFERROR(IF(ISNUMBER( INDEX(INDIRECT($Z57), MATCH('Calc - Sparklines'!$C$1,INDIRECT($AA57),0), MATCH('Calc - Sparklines'!$D57,INDIRECT($AB57),0)-L$3))=FALSE,NA(), INDEX(INDIRECT($Z57), MATCH('Calc - Sparklines'!$C$1,INDIRECT($AA57),0), MATCH('Calc - Sparklines'!$D57,INDIRECT($AB57),0)-L$3)),NA()) ->  | M57: =IFERROR(IF(ISNUMBER( INDEX(INDIRECT($Z57), MATCH('Calc - Sparklines'!$C$1,INDIRECT($AA57),0), MATCH('Calc - Sparklines'!$D57,INDIRECT($AB57),0)-M$3))=FALSE,NA(), INDEX(INDIRECT($Z57), MATCH('Calc - Sparklines'!$C$1,INDIRECT($AA57),0), MATCH('Calc - Sparklines'!$D57,INDIRECT($AB57),0)-M$3)),NA()) -> 15869 | N57: =IFERROR(IF(ISNUMBER( INDEX(INDIRECT($Z57), MATCH('Calc - Sparklines'!$C$1,INDIRECT($AA57),0), MATCH('Calc - Sparklines'!$D57,INDIRECT($AB57),0)-N$3))=FALSE,NA(), INDEX(INDIRECT($Z57), MATCH('Calc - Sparklines'!$C$1,INDIRECT($AA57),0), MATCH('Calc - Sparklines'!$D57,INDIRECT($AB57),0)-N$3)),NA()) -> 16648 | O57: =IFERROR(IF(ISNUMBER( INDEX(INDIRECT($Z57), MATCH('Calc - Sparklines'!$C$1,INDIRECT($AA57),0), MATCH('Calc - Sparklines'!$D57,INDIRECT($AB57),0)-O$3))=FALSE,NA(), INDEX(INDIRECT($Z57), MATCH('Calc - Sparklines'!$C$1,INDIRECT($AA57),0), MATCH('Calc - Sparklines'!$D57,INDIRECT($AB57),0)-O$3)),NA()) -> 17463 | P57: =IFERROR(IF(ISNUMBER( INDEX(INDIRECT($Z57), MATCH('Calc - Sparklines'!$C$1,INDIRECT($AA57),0), MATCH('Calc - Sparklines'!$D57,INDIRECT($AB57),0)-P$3))=FALSE,NA(), INDEX(INDIRECT($Z57), MATCH('Calc - Sparklines'!$C$1,INDIRECT($AA57),0), MATCH('Calc - Sparklines'!$D57,INDIRECT($AB57),0)-P$3)),NA()) -> 19369 | R57: 6 | S57: 0 | T57: 19369 | U57: 17463 | V57: ▲ | W57: Sparkline45 | Z57: Data_Table_HJ_ii_c | AA57: Data_Orgs_HJ_ii_c | AB57: Data_Dates_HJ_ii_c | AD57: National measure only | AE57: National measure only
A58: HJ_ii_d | B58: HJ(ii.d) | C58: Number of patient treatments for MH issues, during the reporting period | D58: ='HJ(ii_d)_FINAL CALC'!B6 -> Q2 2019/20 | E58: =IFERROR(IF(ISNUMBER( INDEX(INDIRECT($Z58), MATCH('Calc - Sparklines'!$C$1,INDIRECT($AA58),0), MATCH('Calc - Sparklines'!$D58,INDIRECT($AB58),0)-E$3))=FALSE,NA(), INDEX(INDIRECT($Z58), MATCH('Calc - Sparklines'!$C$1,INDIRECT($AA58),0), MATCH('Calc - Sparklines'!$D58,INDIRECT($AB58),0)-E$3)),NA()) ->  | F58: =IFERROR(IF(ISNUMBER( INDEX(INDIRECT($Z58), MATCH('Calc - Sparklines'!$C$1,INDIRECT($AA58),0), MATCH('Calc - Sparklines'!$D58,INDIRECT($AB58),0)-F$3))=FALSE,NA(), INDEX(INDIRECT($Z58), MATCH('Calc - Sparklines'!$C$1,INDIRECT($AA58),0), MATCH('Calc - Sparklines'!$D58,INDIRECT($AB58),0)-F$3)),NA()) ->  | G58: =IFERROR(IF(ISNUMBER( INDEX(INDIRECT($Z58), MATCH('Calc - Sparklines'!$C$1,INDIRECT($AA58),0), MATCH('Calc - Sparklines'!$D58,INDIRECT($AB58),0)-G$3))=FALSE,NA(), INDEX(INDIRECT($Z58), MATCH('Calc - Sparklines'!$C$1,INDIRECT($AA58),0), MATCH('Calc - Sparklines'!$D58,INDIRECT($AB58),0)-G$3)),NA()) ->  | H58: =IFERROR(IF(ISNUMBER( INDEX(INDIRECT($Z58), MATCH('Calc - Sparklines'!$C$1,INDIRECT($AA58),0), MATCH('Calc - Sparklines'!$D58,INDIRECT($AB58),0)-H$3))=FALSE,NA(), INDEX(INDIRECT($Z58), MATCH('Calc - Sparklines'!$C$1,INDIRECT($AA58),0), MATCH('Calc - Sparklines'!$D58,INDIRECT($AB58),0)-H$3)),NA()) ->  | I58: =IFERROR(IF(ISNUMBER( INDEX(INDIRECT($Z58), MATCH('Calc - Sparklines'!$C$1,INDIRECT($AA58),0), MATCH('Calc - Sparklines'!$D58,INDIRECT($AB58),0)-I$3))=FALSE,NA(), INDEX(INDIRECT($Z58), MATCH('Calc - Sparklines'!$C$1,INDIRECT($AA58),0), MATCH('Calc - Sparklines'!$D58,INDIRECT($AB58),0)-I$3)),NA()) ->  | J58: =IFERROR(IF(ISNUMBER( INDEX(INDIRECT($Z58), MATCH('Calc - Sparklines'!$C$1,INDIRECT($AA58),0), MATCH('Calc - Sparklines'!$D58,INDIRECT($AB58),0)-J$3))=FALSE,NA(), INDEX(INDIRECT($Z58), MATCH('Calc - Sparklines'!$C$1,INDIRECT($AA58),0), MATCH('Calc - Sparklines'!$D58,INDIRECT($AB58),0)-J$3)),NA()) ->  | K58: =IFERROR(IF(ISNUMBER( INDEX(INDIRECT($Z58), MATCH('Calc - Sparklines'!$C$1,INDIRECT($AA58),0), MATCH('Calc - Sparklines'!$D58,INDIRECT($AB58),0)-K$3))=FALSE,NA(), INDEX(INDIRECT($Z58), MATCH('Calc - Sparklines'!$C$1,INDIRECT($AA58),0), MATCH('Calc - Sparklines'!$D58,INDIRECT($AB58),0)-K$3)),NA()) ->  | L58: =IFERROR(IF(ISNUMBER( INDEX(INDIRECT($Z58), MATCH('Calc - Sparklines'!$C$1,INDIRECT($AA58),0), MATCH('Calc - Sparklines'!$D58,INDIRECT($AB58),0)-L$3))=FALSE,NA(), INDEX(INDIRECT($Z58), MATCH('Calc - Sparklines'!$C$1,INDIRECT($AA58),0), MATCH('Calc - Sparklines'!$D58,INDIRECT($AB58),0)-L$3)),NA()) ->  | M58: =IFERROR(IF(ISNUMBER( INDEX(INDIRECT($Z58), MATCH('Calc - Sparklines'!$C$1,INDIRECT($AA58),0), MATCH('Calc - Sparklines'!$D58,INDIRECT($AB58),0)-M$3))=FALSE,NA(), INDEX(INDIRECT($Z58), MATCH('Calc - Sparklines'!$C$1,INDIRECT($AA58),0), MATCH('Calc - Sparklines'!$D58,INDIRECT($AB58),0)-M$3)),NA()) -> 49264 | N58: =IFERROR(IF(ISNUMBER( INDEX(INDIRECT($Z58), MATCH('Calc - Sparklines'!$C$1,INDIRECT($AA58),0), MATCH('Calc - Sparklines'!$D58,INDIRECT($AB58),0)-N$3))=FALSE,NA(), INDEX(INDIRECT($Z58), MATCH('Calc - Sparklines'!$C$1,INDIRECT($AA58),0), MATCH('Calc - Sparklines'!$D58,INDIRECT($AB58),0)-N$3)),NA()) -> 60130 | O58: =IFERROR(IF(ISNUMBER( INDEX(INDIRECT($Z58), MATCH('Calc - Sparklines'!$C$1,INDIRECT($AA58),0), MATCH('Calc - Sparklines'!$D58,INDIRECT($AB58),0)-O$3))=FALSE,NA(), INDEX(INDIRECT($Z58), MATCH('Calc - Sparklines'!$C$1,INDIRECT($AA58),0), MATCH('Calc - Sparklines'!$D58,INDIRECT($AB58),0)-O$3)),NA()) -> 61428 | P58: =IFERROR(IF(ISNUMBER( INDEX(INDIRECT($Z58), MATCH('Calc - Sparklines'!$C$1,INDIRECT($AA58),0), MATCH('Calc - Sparklines'!$D58,INDIRECT($AB58),0)-P$3))=FALSE,NA(), INDEX(INDIRECT($Z58), MATCH('Calc - Sparklines'!$C$1,INDIRECT($AA58),0), MATCH('Calc - Sparklines'!$D58,INDIRECT($AB58),0)-P$3)),NA()) -> 64906 | R58: 6 | S58: 0 | T58: 64906 | U58: 61428 | V58: ▲ | W58: Sparkline46 | Z58: Data_Table_HJ_ii_d | AA58: Data_Orgs_HJ_ii_d | AB58: Data_Dates_HJ_ii_d | AD58: National measure only | AE58: National measure only
